Workbook

Sheet Eingabe
C2: WECHSELRICHTER UND SPEICHER AUSLEGUNG
C3: Grunddaten | L3: Einstellungen
C5: Modulauswahl | N5: Cos ϕ | P5: =W5/100 -> 1 | W5: 100
C7: Min./Max. Modultemperatur | G7: =H7-(H7*2) -> -30 | H7: 30 | I7: =J7 -> 50 | J7: 50 | N7: Einspeisung % | P7: =W7/100 -> 0.7 | T7: 130 | W7: 70
C10: Wechselrichter | N10: Min. Leistungsverhältnis | P10: =S10/100 -> 0.9 | S10: 90
C13: Speicherauswahl | N13: Max. Leistungsverhältnis | P13: =T7/100 -> 1.3
C15: Verbrauch
C16: Stromverbrauch | G16: 5397 | J16: kWh
C24: Verschaltung | G24: MPPT A | I24: MPPT B | K24: Gesamt
C26: Anzahl Stränge | G26: 1 | I26: 1 | L26: Nennleistung | O26: Betrieb
L27: Min. | M27: ='Berechnung WR'!H8 -> 9 | O27: Min. | P27: ='Berechnung WR'!H7 -> 6
C28: Anzahl PV Module | G28: 12 | H28: 2 | I28: 12 | L28: Max | M28: ='Berechnung WR'!K9 -> 17 | O28: Max | P28: ='Berechnung WR'!K9 -> 17
C30: Gesamtanzahl der PV Module | G30: =G26*G28 -> 12 | I30: =I26*I28 -> 12 | K30: =G30+I30 -> 24
C31: Leistung PV Generator | G31: ='Berechnung WR'!C8 -> 5040 | H31: W | I31: ='Berechnung WR'!C10 -> 5040 | J31: W | K31: =G31+I31 -> 10080 | L31: W | M31: =IF(G31<7501,"OK",IF(G31<8176,"WARNUNG","ACHTUNG")) -> OK | N31: =IF(I31<7501,"OK",IF(I31<8176,"WARNUNG","ACHTUNG")) -> OK
C33: Leistungsverhältnis | K33: =Eingabe!K31/Wechselrichterdaten!J2/P5 -> 1.26 | M33: =IF(K33<P13,"OK","WARNUNG") -> OK
C34: Min. MPP Spannung Wechselrichter | G34: =Wechselrichterdaten!F2 -> 240 | H34: V | I34: =G34 -> 240 | J34: V
C36: Min. MPP Spannung PV Generator | G36: ='Berechnung WR'!H14 -> 354.4875 | H36: V | I36: ='Berechnung WR'!H16 -> 354.4875 | J36: V | M36: =IF(G36>G34,"OK","ACHTUNG") -> OK | N36: =IF(I36>0,IF(I36>=I34,"OK","ACHTUNG"),"") -> OK
C37: Max. MPP Spannung Wechselrichter | G37: =Wechselrichterdaten!G2 -> 800 | H37: V | I37: =G37 -> 800 | J37: V
C39: Max. MPP Spannung PV Generator | G39: ='Berechnung WR'!H20 -> 430.1115 | H39: V | I39: ='Berechnung WR'!H22 -> 430.1115 | J39: V | M39: =IF(G39<G37,"OK","ACHTUNG") -> OK | N39: =IF(I39>0,IF(I39<=I37,"OK","ACHTUNG"),"") -> OK
C40: Max. Eingangsspannung Wechselrichter | G40: =Wechselrichterdaten!C2 -> 1000 | H40: V | I40: =G40 -> 1000 | J40: V | K40: =IF(I31>3300,800,800) -> 800
C41: Max. Eingangsspannung PV Generator | G41: ='Berechnung WR'!H27 -> 520.2015 | H41: V | I41: ='Berechnung WR'!H29 -> 520.2015 | J41: V | M41: =IF(G41<G40,"OK","ACHTUNG") -> OK | N41: =IF(I41>0,IF(I41<=I40,"OK","ACHTUNG"),"") -> OK
C42: Max. Generatorstrom Wechselrichter | G42: =IF(G30>0,Wechselrichterdaten!H2,0) -> 26 | H42: A | I42: =IF(I30>0,Wechselrichterdaten!I2,0) -> 14 | J42: A
C43: Max. Generatorstrom PV Generator | G43: ='Berechnung WR'!I34 -> 14.425971 | H43: A | I43: ='Berechnung WR'!I36 -> 14.425971 | J43: A | M43: =IF(G43<G42,"OK","ACHTUNG") -> OK | N43: =IF(I43>0,IF(I43<=I42,"OK","ACHTUNG"),"") -> ACHTUNG
C45: Eigenverbrauch | J45: Autarkie
B47: ='Berechnung Speicher'!G14 -> 0.3993523576 | J47: ='Berechnung Speicher'!F7 -> 0.7156107522
B49: Der Ersteller dieses Auslegungstoos übernimmt keinerlei Gewähr für die Aktualität, Korrektheit, Vollständigkeit oder Qualität der bereitgestellten Informationen. Haftungsansprüche gegen den Autor, welche sich auf Schäden materieller oder ideeller Art beziehen, die durch die Nutzung oder Nichtnutzung der dargebotenen Informationen bzw. durch die Nutzung fehlerhafter und unvollständiger Informationen verursacht wurden, sind grundsätzlich ausgeschlossen.

Sheet Berechnung WR (hidden)
B3: Ausgewähltes Modul
B4: 4 | D4: Leistung | E4: MPP Spannung | F4: MPP Strom | G4: Leerlaufspannung | H4: Kurzschlussstrom | I4: Pmpp | J4: VOC | K4: Isc
B5: 1 | C5: =VLOOKUP(B5,Moduldatenbank!A2:J92,2) -> Jinko JKM420N-54HL4 | D5: =VLOOKUP(B5,Moduldatenbank!A2:J97,3) -> 420 | E5: =VLOOKUP(B5,Moduldatenbank!A2:J97,4) -> 31.51 | F5: =VLOOKUP(B5,Moduldatenbank!A2:J97,5) -> 13.33 | G5: =VLOOKUP(B5,Moduldatenbank!A2:J97,6) -> 38.11 | H5: =VLOOKUP(B5,Moduldatenbank!A2:J97,7) -> 14.07 | I5: =VLOOKUP(B5,Moduldatenbank!A2:J97,8) -> -0.3 | J5: =VLOOKUP(B5,Moduldatenbank!A2:J97,9) -> -0.25 | K5: =VLOOKUP(B5,Moduldatenbank!A2:J97,10) -> 0.046
B7: Eingang A Anzahl Module | C7: Leistung String | D7: Generatorleistung | E7: Anzahl Stränge Eingang A | G7: =Wechselrichterdaten!E2/('Berechnung WR'!E5*'Berechnung WR'!G14) -> 5.416269967 | H7: =ROUNDUP(G7,0) -> 6
B8: =Eingabe!G28*E8 -> 12 | C8: =B8*D5 -> 5040 | D8: =C8+C10+C12 ->  | E8: =Eingabe!G26 -> 1 | G8: =Wechselrichterdaten!F2/('Berechnung WR'!E5*'Berechnung WR'!G14) -> 8.124404951 | H8: =ROUNDUP(G8,0) -> 9
B9: Eingang B Anzahl Module | E9: Anzahl Stränge Eingang B | G9: =Wechselrichterdaten!C2/('Berechnung WR'!G5*'Berechnung WR'!G27) -> 23.06798423 | H9: =ROUNDDOWN(G9,0) -> 23 | I9: =ROUNDDOWN(7500/D5,0) -> 17 | J9: =ROUNDDOWN(G10,0) -> 22 | K9: =MIN(H9:J9) -> 17
B10: =Eingabe!I28*E10 -> 12 | C10: =B10*D5 -> 5040 | E10: =Eingabe!I26 -> 1 | G10: =Wechselrichterdaten!G2/('Berechnung WR'!E5*'Berechnung WR'!G20) -> 22.31979382
B11: Eingang C Anzahl Module | E11: Anzahl Stränge Eingang C
B12: =Eingabe!#REF!*E12 ->  | C12: =B12*D5 ->  | E12: =Eingabe!#REF! -> 
B14: Min. MPP Spannung PV Generator ( 70°C ) Eingang A | C14: 25 | D14: =Eingabe!I7 -> 50 | E14: =D14-C14 -> 25 | F14: =E14*J5 -> -6.25 | G14: =(100+F14)/100 -> 0.9375 | H14: =E5*G14*B8/E8 -> 354.4875
B16: Min. MPP Spannung PV Generator ( 70°C ) Eingang B | C16: 25 | D16: =Eingabe!I7 -> 50 | E16: =D16-C16 -> 25 | F16: =E16*J5 -> -6.25 | G16: =(100+F16)/100 -> 0.9375 | H16: =E5*G16*B10/E10 -> 354.4875
B18: Min. MPP Spannung PV Generator ( 70°C ) Eingang C | C18: 25 | D18: =Eingabe!I7 -> 50 | E18: =D18-C18 -> 25 | F18: =E18*J5 -> -6.25 | G18: =(100+F18)/100 -> 0.9375 | H18: =E5*G18*B12/E12 -> 
B20: Max. MPP Spannung PV Generator ( -10°C >) Eingang A | C20: 25 | D20: =Eingabe!G7 -> -30 | E20: =C20-D20 -> 55 | F20: =E20*J5 -> -13.75 | G20: =(100-F20)/100 -> 1.1375 | H20: =E5*G20*B8/E8 -> 430.1115
B22: Max. MPP Spannung PV Generator ( -10°C >) Eingang B | C22: 25 | D22: =Eingabe!G7 -> -30 | E22: =C22-D22 -> 55 | F22: =E22*J5 -> -13.75 | G22: =(100-F22)/100 -> 1.1375 | H22: =E5*G22*B10/E10 -> 430.1115
B24: Max. MPP Spannung PV Generator ( -10°C >) Eingang C | C24: 25 | D24: =Eingabe!G7 -> -30 | E24: =C24-D24 -> 55 | F24: =E24*J5 -> -13.75 | G24: =(100-F24)/100 -> 1.1375 | H24: =E5*G24*B12/E12 -> 
B27: Max. Eingangsspannung PV Generator ( -40°C) Eingang A | C27: 25 | D27: =Eingabe!G7 -> -30 | E27: =C27-D27 -> 55 | F27: =E27*J5 -> -13.75 | G27: =(100-F27)/100 -> 1.1375 | H27: =G5*G27*B8/E8 -> 520.2015
B29: Max. Eingangsspannung PV Generator ( -40°C) Eingang B | C29: 25 | D29: =Eingabe!G7 -> -30 | E29: =C29-D29 -> 55 | F29: =E29*J5 -> -13.75 | G29: =(100-F29)/100 -> 1.1375 | H29: =G5*G29*B10/E10 -> 520.2015
B31: Max. Eingangsspannung PV Generator ( -40°C) Eingang C | C31: 25 | D31: =Eingabe!G7 -> -30 | E31: =C31-D31 -> 55 | F31: =E31*J5 -> -13.75 | G31: =(100-F31)/100 -> 1.1375 | H31: =G5*G31*B12/E12 -> 
B34: Max. Generatorstrom PV Generator Eingang A | C34: 25 | D34: =Eingabe!G7 -> -30 | E34: =D34-C34 -> -55 | F34: =E34*K5 -> -2.53 | G34: =(100-F34)/100 -> 1.0253 | H34: =H5*G34*Eingabe!G26 -> 14.425971 | I34: =IF(B8=0,0,H34) -> 14.425971
B36: Max. Generatorstrom PV Generator Eingang B | C36: 25 | D36: =Eingabe!G7 -> -30 | E36: =D36-C36 -> -55 | F36: =E36*K5 -> -2.53 | G36: =(100-F36)/100 -> 1.0253 | H36: =H5*G36*Eingabe!I26 -> 14.425971 | I36: =IF(B10=0,0,H36) -> 14.425971
B38: Max. Generatorstrom PV Generator Eingang C | C38: 25 | D38: =Eingabe!G7 -> -30 | E38: =D38-C38 -> -55 | F38: =E38*K5 -> -2.53 | G38: =(100-F38)/100 -> 1.0253 | H38: =H5*G38*Eingabe!#REF! ->  | I38: =IF(B12=0,0,H38) -> 

Sheet Moduldatenbank
C1: Leistung | D1: MPP Spannung | E1: MPP Strom | F1: Leerlaufspannung | G1: Kurzschlussstrom | H1: Pmpp | I1: VOC | J1: Isc
A2: 1 | B2: Jinko JKM420N-54HL4 | C2: 420 | D2: 31.51 | E2: 13.33 | F2: 38.11 | G2: 14.07 | H2: -0.3 | I2: -0.25 | J2: 0.046
A3: 2 | B3: EGing 400W, EG-M54-HLV | C3: 400 | D3: 31.28 | E3: 12.79 | F3: 37.18 | G3: 13.54 | H3: -0.35 | I3: -0.275 | J3: 0.05
A4: 3 | B4: EGing 395W, EG-M54-HLV, black | C4: 395 | D4: 30.82 | E4: 12.82 | F4: 36.77 | G4: 13.55 | H4: -0.35 | I4: -0.275 | J4: 0.05
A5: 4 | B5: Q CELLS Mono Q.PEAK DUO G8 360 Wp | C5: 360 | D5: 34.85 | E5: 10.33 | F5: 41.19 | G5: 10.84 | H5: -0.35 | I5: -0.27 | J5: 0.04
A6: 5 | B6: Q Cells Q.PEAK DUO ML-G9 390 Wp | C6: 390 | D6: 38.01 | E6: 10.26 | F6: 45.06 | G6: 10.71 | H6: -0.35 | I6: -0.27 | J6: 0.04
A7: 6 | B7: Q CELLS Q.PEAK DUO ML G10 410 Wp | C7: 410 | D7: 38.11 | E7: 10.76 | F7: 45.13 | G7: 11.22 | H7: -0.34 | I7: -0.27 | J7: 0.04
A8: 7
A9: 8
A10: 9
A11: 10
A12: 11
A13: 12
A14: 13
A15: 14
A16: 15
A17: 16
A18: 17
A19: 18
A20: 19
A21: 20
A22: 21
A23: 22
A24: 23
A25: 24
A26: 25
A27: 26
A28: 27
A29: 28
A30: 29
A31: 30
A32: 31
A33: 32
A34: 33
A35: 34
A36: 35
A37: 36
A38: 37
A39: 38
A40: 39
A41: 40
A42: 41
A43: 42
A44: 43
A45: 44
A46: 45
A47: 46
A48: 47
A49: 48
A50: 49
A51: 50
A52: 51
A53: 52
A54: 53
A55: 54
A56: 55
A57: 56
A58: 57

Sheet Wechselrichterdaten (hidden)
B1: Wecheselrichterdaten | C1: Max. Eingansspannung | D1: Max. DC_Leistung | E1: Eingangsspannung MIN | F1: Eingangsspannung MPPT MIN bei AC-Nennausgangsleistung | G1: Eingangsspannung MPPT MAX bei AC-Nennausgangsleistung | H1: Max. Eingangsstrom pro Mppt (A) | I1: Max. Eingangsstrom pro Mppt (B) | J1: Nennausgangsleistung
A2: Ergebnis | B2: =VLOOKUP(B31,A3:J21,2) -> H3-8.0-E | C2: =VLOOKUP(B31,A3:J21,3) -> 1000 | D2: =VLOOKUP(B31,A3:J21,4) -> 10400 | E2: =VLOOKUP(B31,A3:J21,5) -> 160 | F2: =VLOOKUP(B31,A3:J21,6) -> 240 | G2: =VLOOKUP(B31,A3:J21,7) -> 800 | H2: =VLOOKUP(B31,A3:J21,8) -> 26 | I2: =VLOOKUP(B31,A3:J21,9) -> 14 | J2: =VLOOKUP(B31,A3:J21,10) -> 8000
A3: 1 | B3: H1-3.0-E | C3: 600 | D3: 3900 | E3: 75 | F3: 80 | G3: 550 | H3: 13.5 | I3: 13.5 | J3: 3000
A4: 2 | B4: H1-3.7-E | C4: 600 | D4: 4680 | E4: 75 | F4: 80 | G4: 550 | H4: 13.5 | I4: 13.5 | J4: 3680
A5: 3 | B5: H1-4.6-E | C5: 600 | D5: 5980 | E5: 75 | F5: 80 | G5: 550 | H5: 13.5 | I5: 13.5 | J5: 4600
A6: 4 | B6: H3-5.0-E | C6: 1000 | D6: 7500 | E6: 160 | F6: 240 | G6: 800 | H6: 14 | I6: 14 | J6: 5000
A7: 5 | B7: H3-6.0-E | C7: 1000 | D7: 9000 | E7: 160 | F7: 250 | G7: 800 | H7: 14 | I7: 14 | J7: 6000
A8: 6 | B8: H3-8.0-E | C8: 1000 | D8: 10400 | E8: 160 | F8: 240 | G8: 800 | H8: 26 | I8: 14 | J8: 8000
A9: 7 | B9: H3-10.0-E | C9: 1000 | D9: 13000 | E9: 160 | F9: 280 | G9: 800 | H9: 26 | I9: 14 | J9: 10000
A10: 8 | B10: H3-12.0-E | C10: 1000 | D10: 15000 | E10: 160 | F10: 320 | G10: 800 | H10: 26 | I10: 14 | J10: 12000
A11: 9
A12: 10
A13: 11
A14: 12
A15: 13
A16: 14
A17: 15
A18: 16
A19: 17
A20: 18
A21: 19
B31: 6

Sheet Berechnung Speicher (hidden)
A2: Nutzbare Speicherkapazität | B2: =VLOOKUP(B43,A23:C27,3) -> 7.776 | C2: kWh | E2: Spalten | F2: PV-Leistung | G2: in kWp/MWh Jahresstrombedarf
A3: Stromverbrauch | B3: =Eingabe!G16 -> 5397 | C3: Wh | D3: =B3/1000 -> 5.397 | E3: Zeilen | F3: nutzbare Speicherkapazität | G3: in kWh/MWh Jahresstrombedarf
A4: KWp | B4: =Eingabe!K31 -> 10080 | C4: Wp | D4: =B4/1000 -> 10.08
A7: spezifische PV-Leistung | B7: =D4/D3 -> 1.86770428 | C7: kWp/MWh | D7: Spalten | E7: Autarkiegrad | F7: =INDEX(Autarkiegrad!B2:CD82,MATCH(B7,Autarkiegrad!A2:A82,1),MATCH(B8,Autarkiegrad!B1:CD1,-1)) -> 0.7156107522 | G7: =F7 -> 0.7156107522
A8: nutzbare Speicherkapazität | B8: =B2/D3 -> 1.440800445 | C8: kWh/MWh | D8: Zeilen
A9: Stromverbrauch | B9: =B3 -> 5397
A10: Direktverbrauch
A11: Batterieantladung
A12: Netzbezug | B12: =B9-B9*G7 -> 1534.84877 | C12: =B12/B9 -> 0.2843892478
A14: spezifische PV-Leistung | B14: =D4/D3 -> 1.86770428 | C14: kWp/MWh | D14: Zeilen | E14: Eigenverbrauch | F14: =INDEX(Eigenverbrauch!B2:CD82,MATCH(B8,Eigenverbrauch!A2:A82,1),MATCH(B7,Eigenverbrauch!B1:CD1,-1)) -> 0.3993523576 | G14: =F14 -> 0.3993523576
A15: nutzbare Speicherkapazität | B15: =B2/D3 -> 1.440800445 | C15: kWh/MWh | D15: Spalten
A16: Direktverbrauch
A17: Batterieentladung
A18: Netzeinspeisung
A22: Speichertypen
A23: 1 | B23: 5,76 kWh (1x CM2900 1xCS2900) | C23: 5.184
A24: 2 | B24: 8,64 kWh (1x CM2900 2xCS2900) | C24: 7.776
A25: 3 | B25: 11,52 kWh (1x CM2900 3xCS2900) | C25: 10.368
A26: 4 | B26: 14,40 kWh (1x CM2900 4xCS2900) | C26: 12.96
A27: 5 | B27: 17,28 kWh (1x CM2900 5xCS2900) | C27: 15.552
A28: 6 | B28: 20,16 kWh (1x CM2900 6xCS2900) | C28: 18.144
A29: 7 | B29: 23,04 kWh (1x CM2900 6xCS2900) | C29: 20.736
A30: 8
A31: 9
A32: 10
A33: 11 | B33: 8,06 kWh (1x CM4100 1xCS4100) | C33: 7.254
A34: 12 | B34: 12,09 kWh (1x CM4100 2xCS4100) | C34: 10.881
A35: 13 | B35: 16,12 kWh (1x CM4100 3xCS4100) | C35: 14.508
A36: 14 | B36: 20,15 kWh (1x CM4100 4xCS4100) | C36: 18.135
A37: 15 | B37: 24,18 kWh (1x CM4100 5xCS4100) | C37: 21.762
A38: 16 | B38: 28,21 kWh (1x CM4100 6xCS4100) | C38: 25.389
A39: 17
A40: 18
A41: 19
A42: 20
A43: Ausgewähleter Speicher: | B43: 2 | C43: =VLOOKUP(B43,A23:C42,2) -> 8,64 kWh (1x CM2900 2xCS2900)

Sheet Autarkiegrad (hidden)
B1: 5 | C1: 4.9375 | D1: 4.875 | E1: 4.8125 | F1: 4.75 | G1: 4.6875 | H1: 4.625 | I1: 4.5625 | J1: 4.5 | K1: 4.4375 | L1: 4.375 | M1: 4.3125 | N1: 4.25 | O1: 4.1875 | P1: 4.125 | Q1: 4.0625 | R1: 4 | S1: 3.9375 | T1: 3.875 | U1: 3.8125 | V1: 3.75 | W1: 3.6875 | X1: 3.625 | Y1: 3.5625 | Z1: 3.5 | AA1: 3.4375 | AB1: 3.375 | AC1: 3.3125 | AD1: 3.25 | AE1: 3.1875 | AF1: 3.125 | AG1: 3.0625 | AH1: 3 | AI1: 2.9375 | AJ1: 2.875 | AK1: 2.8125 | AL1: 2.75 | AM1: 2.6875 | AN1: 2.625 | AO1: 2.5625 | AP1: 2.5 | AQ1: 2.4375 | AR1: 2.375 | AS1: 2.3125 | AT1: 2.25 | AU1: 2.1875 | AV1: 2.125 | AW1: 2.0625 | AX1: 2 | AY1: 1.9375 | AZ1: 1.875 | BA1: 1.8125 | BB1: 1.75 | BC1: 1.6875 | BD1: 1.625 | BE1: 1.5625 | BF1: 1.5 | BG1: 1.4375 | BH1: 1.375 | BI1: 1.3125 | BJ1: 1.25 | BK1: 1.1875 | BL1: 1.125 | BM1: 1.0625 | BN1: 1 | BO1: 0.9375 | BP1: 0.875 | BQ1: 0.8125 | BR1: 0.75 | BS1: 0.6875 | BT1: 0.625 | BU1: 0.5625 | BV1: 0.5 | BW1: 0.4375 | BX1: 0.375 | BY1: 0.3125 | BZ1: 0.25 | CA1: 0.1875 | CB1: 0.125 | CC1: 0.0625 | CD1: 0
A2: 0 | B2: 0.4106738512 | C2: 0.4101058062 | D2: 0.409526221 | E2: 0.408935865 | F2: 0.4083328657 | G2: 0.4077169072 | H2: 0.4070885667 | I2: 0.406448797 | J2: 0.4057963699 | K2: 0.4051313053 | L2: 0.4044511718 | M2: 0.4037551874 | N2: 0.4030418656 | O2: 0.4023132439 | P2: 0.401568442 | Q2: 0.4008054955 | R2: 0.400024771 | S2: 0.3992251356 | T2: 0.3984057685 | U2: 0.3975670936 | V2: 0.3967095837 | W2: 0.3958319466 | X2: 0.3949343669 | Y2: 0.394015044 | Z2: 0.3930738841 | AA2: 0.3921094786 | AB2: 0.3911184088 | AC2: 0.3900995388 | AD2: 0.3890508943 | AE2: 0.3879722701 | AF2: 0.3868617382 | AG2: 0.3857184358 | AH2: 0.3845379112 | AI2: 0.3833178107 | AJ2: 0.3820566782 | AK2: 0.3807566292 | AL2: 0.3794151807 | AM2: 0.3780256015 | AN2: 0.3765863992 | AO2: 0.3750958995 | AP2: 0.3735508762 | AQ2: 0.371948848 | AR2: 0.3702843871 | AS2: 0.3685572578 | AT2: 0.3667607349 | AU2: 0.3648948132 | AV2: 0.3629514824 | AW2: 0.360933805 | AX2: 0.3588227593 | AY2: 0.3566136571 | AZ2: 0.354303243 | BA2: 0.3518833072 | BB2: 0.3493443719 | BC2: 0.3466690373 | BD2: 0.3438487999 | BE2: 0.340876774 | BF2: 0.3377467232 | BG2: 0.3344451052 | BH2: 0.3309548601 | BI2: 0.3272522092 | BJ2: 0.3233162548 | BK2: 0.3191151065 | BL2: 0.3146200192 | BM2: 0.3097730675 | BN2: 0.3045280401 | BO2: 0.2988651145 | BP2: 0.2927251208 | BQ2: 0.2860055799 | BR2: 0.278612561 | BS2: 0.2703766341 | BT2: 0.2610211318 | BU2: 0.2501238149 | BV2: 0.2375150783 | BW2: 0.2230891203 | BX2: 0.206639719 | BY2: 0.1878054945 | BZ2: 0.1659616075 | CA2: 0.1399085831 | CB2: 0.1070274504 | CC2: 0.06163402768 | CD2: 0
A3: 0.0625 | B3: 0.4356909722 | C3: 0.4351869409 | D3: 0.4346701662 | E3: 0.434141454 | F3: 0.4336020009 | G3: 0.4330486295 | H3: 0.4324812048 | I3: 0.4318961142 | J3: 0.4312980506 | K3: 0.4306848048 | L3: 0.4300593555 | M3: 0.4294198904 | N3: 0.4287642298 | O3: 0.4280938611 | P3: 0.4274056302 | Q3: 0.4266991494 | R3: 0.4259717865 | S3: 0.4252277314 | T3: 0.4244659796 | U3: 0.4236819586 | V3: 0.4228715664 | W3: 0.4220366127 | X3: 0.4211795324 | Y3: 0.4203024904 | Z3: 0.4194052437 | AA3: 0.418480807 | AB3: 0.4175297566 | AC3: 0.4165537424 | AD3: 0.4155442985 | AE3: 0.4145047754 | AF3: 0.4134404527 | AG3: 0.4123408484 | AH3: 0.4112076939 | AI3: 0.4100383268 | AJ3: 0.4088337205 | AK3: 0.4075929296 | AL3: 0.4063037948 | AM3: 0.4049721637 | AN3: 0.403587752 | AO3: 0.4021484684 | AP3: 0.4006555524 | AQ3: 0.3991098965 | AR3: 0.3975036665 | AS3: 0.395842835 | AT3: 0.3941265947 | AU3: 0.3923475897 | AV3: 0.3905003118 | AW3: 0.3885864738 | AX3: 0.3865860358 | AY3: 0.3844956334 | AZ3: 0.3823150421 | BA3: 0.380025138 | BB3: 0.3776077159 | BC3: 0.3750585199 | BD3: 0.3723752406 | BE3: 0.3695532818 | BF3: 0.3665868816 | BG3: 0.3634405928 | BH3: 0.360115406 | BI3: 0.3565636314 | BJ3: 0.352737749 | BK3: 0.3486522931 | BL3: 0.3442711678 | BM3: 0.3395513468 | BN3: 0.3344594723 | BO3: 0.3289272863 | BP3: 0.3229424771 | BQ3: 0.3163911747 | BR3: 0.3090823009 | BS3: 0.3009504003 | BT3: 0.2919213638 | BU3: 0.2816532206 | BV3: 0.2695626833 | BW3: 0.2550526351 | BX3: 0.2378972312 | BY3: 0.2173390016 | BZ3: 0.1925999725 | CA3: 0.1613949952 | CB3: 0.1194989554 | CC3: 0.06370066856 | CD3: 0
A4: 0.125 | B4: 0.4574298902 | C4: 0.4569386436 | D4: 0.4564365966 | E4: 0.4559235904 | F4: 0.4553972008 | G4: 0.4548580168 | H4: 0.4543072865 | I4: 0.4537464027 | J4: 0.453174409 | K4: 0.4525893743 | L4: 0.4519835043 | M4: 0.4513529803 | N4: 0.4507024365 | O4: 0.4500337654 | P4: 0.4493499845 | Q4: 0.4486472356 | R4: 0.447930128 | S4: 0.4471943413 | T4: 0.4464349725 | U4: 0.4456548548 | V4: 0.4448550626 | W4: 0.4440349705 | X4: 0.4431933296 | Y4: 0.4423316238 | Z4: 0.4414310469 | AA4: 0.4405021069 | AB4: 0.4395436007 | AC4: 0.4385608677 | AD4: 0.4375428187 | AE4: 0.4364892007 | AF4: 0.4354095692 | AG4: 0.4342968742 | AH4: 0.4331573155 | AI4: 0.4319747608 | AJ4: 0.430758241 | AK4: 0.4295106112 | AL4: 0.4282232837 | AM4: 0.4268982372 | AN4: 0.4255181094 | AO4: 0.4240873475 | AP4: 0.4226155425 | AQ4: 0.4210967677 | AR4: 0.4195284191 | AS4: 0.4179001055 | AT4: 0.4162128128 | AU4: 0.4144786016 | AV4: 0.4126662954 | AW4: 0.4107817688 | AX4: 0.4088178596 | AY4: 0.4067575857 | AZ4: 0.4045932218 | BA4: 0.4023182104 | BB4: 0.3999432094 | BC4: 0.3974535118 | BD4: 0.3948059893 | BE4: 0.3920104384 | BF4: 0.389067439 | BG4: 0.3859500714 | BH4: 0.3825954086 | BI4: 0.3790114059 | BJ4: 0.3751959413 | BK4: 0.371122046 | BL4: 0.3667954588 | BM4: 0.3621321704 | BN4: 0.3569729881 | BO4: 0.3513932791 | BP4: 0.3453459182 | BQ4: 0.3386402411 | BR4: 0.331201622 | BS4: 0.3229637635 | BT4: 0.3138257238 | BU4: 0.3034254118 | BV4: 0.2912370726 | BW4: 0.2767204112 | BX4: 0.2584289424 | BY4: 0.2355073809 | BZ4: 0.2074898549 | CA4: 0.1704456591 | CB4: 0.1225347621 | CC4: 0.06370066856 | CD4: 0
A5: 0.1875 | B5: 0.4777214165 | C5: 0.4772294134 | D5: 0.4767292878 | E5: 0.4762162448 | F5: 0.4756918884 | G5: 0.4751439654 | H5: 0.4745836255 | I5: 0.4740073265 | J5: 0.4734174437 | K5: 0.4728134455 | L5: 0.4721885823 | M5: 0.4715452786 | N5: 0.4708746737 | O5: 0.4701821958 | P5: 0.4694736313 | Q5: 0.4687545165 | R5: 0.4680221686 | S5: 0.4672694601 | T5: 0.4664913316 | U5: 0.4656822848 | V5: 0.4648555552 | W5: 0.4640063157 | X5: 0.4631376837 | Y5: 0.4622471879 | Z5: 0.4613384682 | AA5: 0.4604052825 | AB5: 0.4594379357 | AC5: 0.4584455956 | AD5: 0.4574245064 | AE5: 0.4563646498 | AF5: 0.4552833189 | AG5: 0.4541669361 | AH5: 0.4530224961 | AI5: 0.4518396285 | AJ5: 0.4506188742 | AK5: 0.4493475308 | AL5: 0.4480324085 | AM5: 0.446677555 | AN5: 0.4452806621 | AO5: 0.4438428951 | AP5: 0.4423651969 | AQ5: 0.4408395177 | AR5: 0.4392756889 | AS5: 0.4376624567 | AT5: 0.4359973871 | AU5: 0.4342722052 | AV5: 0.4324597392 | AW5: 0.4305768271 | AX5: 0.4285767967 | AY5: 0.4264551243 | AZ5: 0.4242367196 | BA5: 0.4219270596 | BB5: 0.4195064515 | BC5: 0.4169831741 | BD5: 0.4143221986 | BE5: 0.4114813951 | BF5: 0.4085028042 | BG5: 0.4052821432 | BH5: 0.401892909 | BI5: 0.3983152436 | BJ5: 0.394534251 | BK5: 0.390496483 | BL5: 0.386084894 | BM5: 0.3812907856 | BN5: 0.3761317314 | BO5: 0.3705235013 | BP5: 0.3644007511 | BQ5: 0.3575001055 | BR5: 0.3499055734 | BS5: 0.341407345 | BT5: 0.3318373166 | BU5: 0.3209527035 | BV5: 0.3081337633 | BW5: 0.2929307465 | BX5: 0.2734024282 | BY5: 0.2485934121 | BZ5: 0.2166577128 | CA5: 0.1753725989 | CB5: 0.124093446 | CC5: 0.06370066856 | CD5: 0
A6: 0.25 | B6: 0.4970546248 | C6: 0.4965350507 | D6: 0.4960006015 | E6: 0.4954488767 | F6: 0.4948827338 | G6: 0.4942997608 | H6: 0.4937058219 | I6: 0.4931032804 | J6: 0.4924862399 | K6: 0.4918565228 | L6: 0.4912093842 | M6: 0.4905439063 | N6: 0.489863446 | O6: 0.4891685319 | P6: 0.4884509429 | Q6: 0.4877143833 | R6: 0.4869581446 | S6: 0.4861815268 | T6: 0.485382483 | U6: 0.4845616061 | V6: 0.4837225359 | W6: 0.4828600018 | X6: 0.4819768335 | Y6: 0.4810685066 | Z6: 0.4801357806 | AA6: 0.4791712431 | AB6: 0.4781776886 | AC6: 0.4771637507 | AD6: 0.4761214718 | AE6: 0.4750461286 | AF6: 0.4739411378 | AG6: 0.4727995874 | AH6: 0.4716340826 | AI6: 0.470431973 | AJ6: 0.4691815189 | AK6: 0.4678906824 | AL6: 0.4665575378 | AM6: 0.4652000256 | AN6: 0.4637988608 | AO6: 0.4623616092 | AP6: 0.4608886102 | AQ6: 0.4593623123 | AR6: 0.4577915392 | AS6: 0.4561505678 | AT6: 0.4544129289 | AU6: 0.4525961383 | AV6: 0.4506810477 | AW6: 0.4486652714 | AX6: 0.4465532274 | AY6: 0.4443626383 | AZ6: 0.4421083926 | BA6: 0.439751768 | BB6: 0.437292888 | BC6: 0.4347047653 | BD6: 0.4319804661 | BE6: 0.4291456073 | BF6: 0.42614796 | BG6: 0.4229145753 | BH6: 0.4194897743 | BI6: 0.4158664227 | BJ6: 0.4119390347 | BK6: 0.4077590842 | BL6: 0.4032658355 | BM6: 0.3984227693 | BN6: 0.3931486769 | BO6: 0.3874843732 | BP6: 0.3812298932 | BQ6: 0.3741824185 | BR6: 0.3662814294 | BS6: 0.3574479946 | BT6: 0.3474862945 | BU6: 0.3359753782 | BV6: 0.3225755325 | BW6: 0.3060508926 | BX6: 0.2850849957 | BY6: 0.2584109714 | BZ6: 0.2231595191 | CA6: 0.1785945582 | CB6: 0.1247087 | CC6: 0.06370066856 | CD6: 0
A7: 0.3125 | B7: 0.5156651465 | C7: 0.515130209 | D7: 0.5145823595 | E7: 0.5140193266 | F7: 0.5134415501 | G7: 0.5128455465 | H7: 0.5122404991 | I7: 0.5116267907 | J7: 0.5109992641 | K7: 0.5103320623 | L7: 0.5096464703 | M7: 0.5089465604 | N7: 0.5082293819 | O7: 0.5074983501 | P7: 0.5067531826 | Q7: 0.505992267 | R7: 0.5052151608 | S7: 0.5044103322 | T7: 0.5035843097 | U7: 0.5027426728 | V7: 0.5018844317 | W7: 0.5010088119 | X7: 0.500109043 | Y7: 0.4991902887 | Z7: 0.4982496008 | AA7: 0.4972712038 | AB7: 0.4962629415 | AC7: 0.4952150771 | AD7: 0.4941321077 | AE7: 0.4930213098 | AF7: 0.4918906609 | AG7: 0.4907419559 | AH7: 0.4895499599 | AI7: 0.4883244797 | AJ7: 0.4870724459 | AK7: 0.4857806394 | AL7: 0.4844516779 | AM7: 0.4830548125 | AN7: 0.4816107716 | AO7: 0.48010934 | AP7: 0.47854913 | AQ7: 0.4769327229 | AR7: 0.4752747736 | AS7: 0.473555857 | AT7: 0.4717525075 | AU7: 0.4698422139 | AV7: 0.4678564751 | AW7: 0.4657757705 | AX7: 0.46359558 | AY7: 0.4613366699 | AZ7: 0.4589935804 | BA7: 0.4565762754 | BB7: 0.454071101 | BC7: 0.4514557146 | BD7: 0.4486860029 | BE7: 0.4457477225 | BF7: 0.4426439185 | BG7: 0.4393382084 | BH7: 0.4357785748 | BI7: 0.4320165454 | BJ7: 0.4280223272 | BK7: 0.4237342092 | BL7: 0.4191655148 | BM7: 0.4142140744 | BN7: 0.4088442439 | BO7: 0.4030061333 | BP7: 0.396590909 | BQ7: 0.3892817456 | BR7: 0.3811498212 | BS7: 0.3719662342 | BT7: 0.36151492 | BU7: 0.3494269117 | BV7: 0.3352973606 | BW7: 0.3173841285 | BX7: 0.295018314 | BY7: 0.265745517 | BZ7: 0.2280701861 | CA7: 0.1808598025 | CB7: 0.124793412 | CC7: 0.06370066856 | CD7: 0
A8: 0.375 | B8: 0.5339770126 | C8: 0.5334216676 | D8: 0.5328496978 | E8: 0.5322670535 | F8: 0.5316565582 | G8: 0.5310228992 | H8: 0.530373872 | I8: 0.5297137009 | J8: 0.5290421979 | K8: 0.5283556468 | L8: 0.5276508924 | M8: 0.526923896 | N8: 0.526183711 | O8: 0.5254267106 | P8: 0.5246567311 | Q8: 0.5238672876 | R8: 0.5230693166 | S8: 0.5222501469 | T8: 0.5214095501 | U8: 0.5205470802 | V8: 0.5196625332 | W8: 0.5187617645 | X8: 0.5178442189 | Y8: 0.5169049441 | Z8: 0.5159327975 | AA8: 0.5149149539 | AB8: 0.5138694621 | AC8: 0.5128022348 | AD8: 0.5117172564 | AE8: 0.5106079467 | AF8: 0.5094715775 | AG8: 0.5082960324 | AH8: 0.5070780842 | AI8: 0.5058021302 | AJ8: 0.5044854736 | AK8: 0.5031369477 | AL8: 0.5017121142 | AM8: 0.5002275677 | AN8: 0.4987118447 | AO8: 0.4971614935 | AP8: 0.4955699728 | AQ8: 0.4939242781 | AR8: 0.4922058899 | AS8: 0.4903884592 | AT8: 0.4884855484 | AU8: 0.4865260173 | AV8: 0.484489032 | AW8: 0.4823378743 | AX8: 0.480090855 | AY8: 0.4777723342 | AZ8: 0.4754077479 | BA8: 0.472940869 | BB8: 0.4703652247 | BC8: 0.4676414367 | BD8: 0.4647311491 | BE8: 0.4617250027 | BF8: 0.4585201174 | BG8: 0.4550388206 | BH8: 0.4513747788 | BI8: 0.4475286856 | BJ8: 0.4433731707 | BK8: 0.4389978255 | BL8: 0.434361016 | BM8: 0.4292662769 | BN8: 0.4236755523 | BO8: 0.4176865442 | BP8: 0.4110366237 | BQ8: 0.4034959178 | BR8: 0.3950827082 | BS8: 0.3854809083 | BT8: 0.3744416136 | BU8: 0.3617872902 | BV8: 0.3467232492 | BW8: 0.3276278641 | BX8: 0.3035506381 | BY8: 0.2718578025 | BZ8: 0.2319177328 | CA8: 0.182351088 | CB8: 0.124793412 | CC8: 0.06370066856 | CD8: 0
A9: 0.4375 | B9: 0.5519944195 | C9: 0.5514052053 | D9: 0.5508040713 | E9: 0.5501904837 | F9: 0.5495667915 | G9: 0.5489145516 | H9: 0.5482409913 | I9: 0.5475574089 | J9: 0.5468570602 | K9: 0.5461426289 | L9: 0.5454132042 | M9: 0.5446744667 | N9: 0.5439228163 | O9: 0.54315574 | P9: 0.5423779566 | Q9: 0.5415804562 | R9: 0.540760069 | S9: 0.5399099964 | T9: 0.5390382793 | U9: 0.5381437573 | V9: 0.5372271624 | W9: 0.5362957594 | X9: 0.5353355653 | Y9: 0.5343654797 | Z9: 0.5333704741 | AA9: 0.5323420368 | AB9: 0.5312804123 | AC9: 0.5301913451 | AD9: 0.5290704606 | AE9: 0.5279066214 | AF9: 0.5267140268 | AG9: 0.5254760626 | AH9: 0.5241949965 | AI9: 0.5228610505 | AJ9: 0.5214761082 | AK9: 0.5200613992 | AL9: 0.5186035924 | AM9: 0.5171012648 | AN9: 0.515553637 | AO9: 0.5139288709 | AP9: 0.5122525574 | AQ9: 0.510520454 | AR9: 0.5087360395 | AS9: 0.506892465 | AT9: 0.5049719135 | AU9: 0.502952997 | AV9: 0.5008307781 | AW9: 0.4986069528 | AX9: 0.4962922497 | AY9: 0.4939170505 | AZ9: 0.4914809904 | BA9: 0.4889205458 | BB9: 0.4862401262 | BC9: 0.4834153026 | BD9: 0.4804666977 | BE9: 0.4773148179 | BF9: 0.4739092732 | BG9: 0.4703097845 | BH9: 0.4665129335 | BI9: 0.462555193 | BJ9: 0.4583688736 | BK9: 0.4539109605 | BL9: 0.449125587 | BM9: 0.4438093916 | BN9: 0.4380834089 | BO9: 0.431894097 | BP9: 0.4249384583 | BQ9: 0.4172193297 | BR9: 0.4083069532 | BS9: 0.3982965043 | BT9: 0.3866951074 | BU9: 0.3734245424 | BV9: 0.3571028945 | BW9: 0.337023793 | BX9: 0.311021637 | BY9: 0.277094503 | BZ9: 0.2348598576 | CA9: 0.1832819915 | CB9: 0.124793412 | CC9: 0.06370066856 | CD9: 0
A10: 0.5 | B10: 0.5698327831 | C10: 0.5692143387 | D10: 0.56858511 | E10: 0.5679455028 | F10: 0.5672930138 | G10: 0.5666190239 | H10: 0.5659360663 | I10: 0.565245268 | J10: 0.5645390631 | K10: 0.5638149675 | L10: 0.5630759499 | M10: 0.5623274314 | N10: 0.5615663511 | O10: 0.5607870277 | P10: 0.5599790771 | Q10: 0.5591431107 | R10: 0.5582823348 | S10: 0.5574065948 | T10: 0.5565134022 | U10: 0.5555861399 | V10: 0.5546396156 | W10: 0.5536817538 | X10: 0.552700512 | Y10: 0.5516987792 | Z10: 0.5506706717 | AA10: 0.5496013312 | AB10: 0.548473121 | AC10: 0.547308098 | AD10: 0.5461234978 | AE10: 0.5449170304 | AF10: 0.5436826146 | AG10: 0.5423985511 | AH10: 0.5410788902 | AI10: 0.5397179552 | AJ10: 0.5383140085 | AK10: 0.536841275 | AL10: 0.5353136275 | AM10: 0.533729457 | AN10: 0.5321031992 | AO10: 0.5304471665 | AP10: 0.5287366857 | AQ10: 0.5269780193 | AR10: 0.5251718732 | AS10: 0.5233045753 | AT10: 0.521294845 | AU10: 0.519137254 | AV10: 0.516923578 | AW10: 0.5146531875 | AX10: 0.5122793424 | AY10: 0.509816464 | AZ10: 0.5072722655 | BA10: 0.5046500524 | BB10: 0.5019262416 | BC10: 0.4990102303 | BD10: 0.49585728 | BE10: 0.4925246416 | BF10: 0.4889873748 | BG10: 0.4852844416 | BH10: 0.4814237727 | BI10: 0.4774363152 | BJ10: 0.4731579411 | BK10: 0.4685006736 | BL10: 0.4635666564 | BM10: 0.4580929091 | BN10: 0.4521547543 | BO10: 0.4456209376 | BP10: 0.4385431049 | BQ10: 0.4302940027 | BR10: 0.4212002558 | BS10: 0.4105548543 | BT10: 0.398468065 | BU10: 0.3843146989 | BV10: 0.3668925744 | BW10: 0.3455876639 | BX10: 0.31766365 | BY10: 0.2818372611 | BZ10: 0.2372710716 | CA10: 0.1837537237 | CB10: 0.124793412 | CC10: 0.06370066856 | CD10: 0
A11: 0.5625 | B11: 0.5875072168 | C11: 0.5868871033 | D11: 0.5862484548 | E11: 0.5855990099 | F11: 0.5849377517 | G11: 0.5842538306 | H11: 0.5835610854 | I11: 0.5828610331 | J11: 0.5821494295 | K11: 0.5814238408 | L11: 0.580681545 | M11: 0.5798891396 | N11: 0.5790838164 | O11: 0.5782581903 | P11: 0.5774177647 | Q11: 0.5765650713 | R11: 0.5756882563 | S11: 0.5747781078 | T11: 0.5738350615 | U11: 0.5728786641 | V11: 0.571905069 | W11: 0.5709085387 | X11: 0.5698678599 | Y11: 0.5687987986 | Z11: 0.5677093725 | AA11: 0.5665917629 | AB11: 0.5654345422 | AC11: 0.5642524161 | AD11: 0.5630446355 | AE11: 0.5617964985 | AF11: 0.5605099064 | AG11: 0.5591745908 | AH11: 0.5577862226 | AI11: 0.5563643176 | AJ11: 0.5549030375 | AK11: 0.5533912181 | AL11: 0.5518351987 | AM11: 0.5502377551 | AN11: 0.5485904561 | AO11: 0.5468865554 | AP11: 0.5451518374 | AQ11: 0.5433671892 | AR11: 0.541485872 | AS11: 0.5394498416 | AT11: 0.5373334139 | AU11: 0.5351423698 | AV11: 0.5328794545 | AW11: 0.5305102831 | AX11: 0.5280608423 | AY11: 0.5255314566 | AZ11: 0.5229359151 | BA11: 0.5202335535 | BB11: 0.5173687768 | BC11: 0.5142612721 | BD11: 0.510948421 | BE11: 0.5075030342 | BF11: 0.5039095934 | BG11: 0.5001548576 | BH11: 0.4962578581 | BI11: 0.4921677388 | BJ11: 0.487664438 | BK11: 0.482939717 | BL11: 0.477799109 | BM11: 0.4721060711 | BN11: 0.4658872594 | BO11: 0.4591609412 | BP11: 0.4516542109 | BQ11: 0.4431868455 | BR11: 0.4335713822 | BS11: 0.4224604548 | BT11: 0.4098034248 | BU11: 0.3944220195 | BV11: 0.3763112698 | BW11: 0.353292263 | BX11: 0.3233779815 | BY11: 0.2858567558 | BZ11: 0.2390654065 | CA11: 0.1838757717 | CB11: 0.124793412 | CC11: 0.06370066856 | CD11: 0
A12: 0.625 | B12: 0.6051143437 | C12: 0.6044849701 | D12: 0.6038446451 | E12: 0.6031939912 | F12: 0.602531801 | G12: 0.6018498019 | H12: 0.6011507452 | I12: 0.6004242987 | J12: 0.5996614132 | K12: 0.5988827861 | L12: 0.5980894476 | M12: 0.5972871051 | N12: 0.5964662585 | O12: 0.595620527 | P12: 0.5947401557 | Q12: 0.59384717 | R12: 0.5929322574 | S12: 0.5919817049 | T12: 0.5910001746 | U12: 0.5899790791 | V12: 0.5889418924 | W12: 0.5878935666 | X12: 0.5868331184 | Y12: 0.5857461868 | Z12: 0.5846391242 | AA12: 0.5835046629 | AB12: 0.5823121599 | AC12: 0.581066061 | AD12: 0.5797742661 | AE12: 0.5784543422 | AF12: 0.5771201582 | AG12: 0.5757550551 | AH12: 0.5743378168 | AI12: 0.5728792935 | AJ12: 0.5713983533 | AK12: 0.5698783241 | AL12: 0.5683027725 | AM12: 0.5666634653 | AN12: 0.5649738693 | AO12: 0.5632326403 | AP12: 0.5614180498 | AQ12: 0.5595235129 | AR12: 0.5575150905 | AS12: 0.555421758 | AT12: 0.5532641419 | AU12: 0.5510065441 | AV12: 0.5486601495 | AW12: 0.546224067 | AX12: 0.5437075443 | AY12: 0.5411022184 | AZ12: 0.5383954375 | BA12: 0.5355506377 | BB12: 0.5325202366 | BC12: 0.529272685 | BD12: 0.525884191 | BE12: 0.5223980106 | BF12: 0.5187502244 | BG12: 0.5149515799 | BH12: 0.5109442832 | BI12: 0.5066276198 | BJ12: 0.502082588 | BK12: 0.4971538462 | BL12: 0.4917666759 | BM12: 0.4858605959 | BN12: 0.479373318 | BO12: 0.4723492602 | BP12: 0.4645436788 | BQ12: 0.4556840629 | BR12: 0.4456350501 | BS12: 0.4340195831 | BT12: 0.4205201692 | BU12: 0.4041492785 | BV12: 0.3849777921 | BW12: 0.3602080372 | BX12: 0.3285532998 | BY12: 0.2891987475 | BZ12: 0.240378791 | CA12: 0.1838769321 | CB12: 0.124793412 | CC12: 0.06370066856 | CD12: 0
A13: 0.6875 | B13: 0.6227019311 | C13: 0.6220712608 | D13: 0.6214122435 | E13: 0.6207285873 | F13: 0.6200312285 | G13: 0.6193004437 | H13: 0.6185561349 | I13: 0.6178021593 | J13: 0.6170285978 | K13: 0.61622629 | L13: 0.6154065258 | M13: 0.614564913 | N13: 0.6136985333 | O13: 0.6128033014 | P13: 0.6118867563 | Q13: 0.6109401066 | R13: 0.6099609279 | S13: 0.6089667997 | T13: 0.6079560394 | U13: 0.6069306121 | V13: 0.6058775788 | W13: 0.6048113622 | X13: 0.6037210324 | Y13: 0.6026018087 | Z13: 0.6014293089 | AA13: 0.6002005375 | AB13: 0.5989440211 | AC13: 0.5976570222 | AD13: 0.5963499493 | AE13: 0.5950198155 | AF13: 0.5936563645 | AG13: 0.5922540973 | AH13: 0.5908216096 | AI13: 0.5893599056 | AJ13: 0.5878568723 | AK13: 0.5862706204 | AL13: 0.5846320256 | AM13: 0.5829444286 | AN13: 0.5811886247 | AO13: 0.5793915534 | AP13: 0.5774684653 | AQ13: 0.5754635816 | AR13: 0.5734255325 | AS13: 0.5712887344 | AT13: 0.5690660382 | AU13: 0.5667242017 | AV13: 0.5642942804 | AW13: 0.5617743636 | AX13: 0.5591665594 | AY13: 0.5564781543 | AZ13: 0.5536401771 | BA13: 0.5506472841 | BB13: 0.5474856502 | BC13: 0.5441887934 | BD13: 0.540756893 | BE13: 0.5372089478 | BF13: 0.5335246126 | BG13: 0.5296001213 | BH13: 0.5253996175 | BI13: 0.5210180301 | BJ13: 0.5163080655 | BK13: 0.5111193126 | BL13: 0.5055479052 | BM13: 0.4993374426 | BN13: 0.4925921059 | BO13: 0.4853190394 | BP13: 0.4771418717 | BQ13: 0.4679332111 | BR13: 0.4573877789 | BS13: 0.4451507738 | BT13: 0.4306904184 | BU13: 0.4135878004 | BV13: 0.3931461705 | BW13: 0.3664822352 | BX13: 0.3333954312 | BY13: 0.2919856148 | BZ13: 0.2411697164 | CA13: 0.1838769321 | CB13: 0.124793412 | CC13: 0.06370066856 | CD13: 0
A14: 0.75 | B14: 0.6401818398 | C14: 0.6395152648 | D14: 0.6388275061 | E14: 0.6381230274 | F14: 0.6373997477 | G14: 0.6366417553 | H14: 0.6358718516 | I14: 0.6350855284 | J14: 0.6342750464 | K14: 0.6334238413 | L14: 0.6325480884 | M14: 0.6316589919 | N14: 0.630738729 | O14: 0.629799612 | P14: 0.6288501209 | Q14: 0.6278884319 | R14: 0.62690504 | S14: 0.6258906494 | T14: 0.624849583 | U14: 0.6237933763 | V14: 0.6226965758 | W14: 0.6215826498 | X14: 0.6204076402 | Y14: 0.6192136927 | Z14: 0.6180077493 | AA14: 0.616776003 | AB14: 0.6155168393 | AC14: 0.6142144 | AD14: 0.6128721248 | AE14: 0.6115111927 | AF14: 0.6101358574 | AG14: 0.6087200142 | AH14: 0.6072492628 | AI14: 0.6057211391 | AJ14: 0.6041501507 | AK14: 0.6025185545 | AL14: 0.6008143639 | AM14: 0.5990688097 | AN14: 0.5972732164 | AO14: 0.5953396887 | AP14: 0.5933727506 | AQ14: 0.5913263246 | AR14: 0.5892361866 | AS14: 0.5870292985 | AT14: 0.5846850452 | AU14: 0.5822642834 | AV14: 0.5797602382 | AW14: 0.5771645156 | AX14: 0.5744992065 | AY14: 0.5716593523 | AZ14: 0.5686912063 | BA14: 0.5655779063 | BB14: 0.5623836289 | BC14: 0.5590314956 | BD14: 0.5555408027 | BE14: 0.5519611955 | BF14: 0.54813837 | BG14: 0.5440596983 | BH14: 0.5397626019 | BI14: 0.5352444744 | BJ14: 0.5302749324 | BK14: 0.5249215592 | BL14: 0.5190187639 | BM14: 0.5125764599 | BN14: 0.5056433515 | BO14: 0.4979525295 | BP14: 0.4894628672 | BQ14: 0.4798657093 | BR14: 0.4687806456 | BS14: 0.455897679 | BT14: 0.4403377901 | BU14: 0.4225559404 | BV14: 0.4006374522 | BW14: 0.3723347677 | BX14: 0.3376841139 | BY14: 0.2942080577 | BZ14: 0.2416528274 | CA14: 0.1838769321 | CB14: 0.124793412 | CC14: 0.06370066856 | CD14: 0
A15: 0.8125 | B15: 0.6573852262 | C15: 0.6566823928 | D15: 0.6559619544 | E15: 0.655224417 | F15: 0.6544755607 | G15: 0.6536955913 | H15: 0.652875746 | I15: 0.6520417994 | J15: 0.6511822911 | K15: 0.6502923999 | L15: 0.6493895096 | M15: 0.648478959 | N15: 0.6475593897 | O15: 0.646615795 | P15: 0.6456407761 | Q15: 0.6446521364 | R15: 0.6436326258 | S15: 0.6425798491 | T15: 0.6415018085 | U15: 0.6403973478 | V15: 0.6392439506 | W15: 0.6380739613 | X15: 0.6368921899 | Y15: 0.6357003683 | Z15: 0.6344962477 | AA15: 0.6332455186 | AB15: 0.6319516748 | AC15: 0.6306255631 | AD15: 0.6292795808 | AE15: 0.6278868613 | AF15: 0.6264720333 | AG15: 0.6249999578 | AH15: 0.6234769679 | AI15: 0.6218880794 | AJ15: 0.6202581638 | AK15: 0.6185904462 | AL15: 0.6168769908 | AM15: 0.6150519903 | AN15: 0.613146218 | AO15: 0.61117783 | AP15: 0.6091713661 | AQ15: 0.607082672 | AR15: 0.6048626139 | AS15: 0.602560724 | AT15: 0.600163969 | AU15: 0.597664775 | AV15: 0.5951095931 | AW15: 0.592440893 | AX15: 0.5896244835 | AY15: 0.5866693968 | AZ15: 0.5835984818 | BA15: 0.5804615147 | BB15: 0.5771926312 | BC15: 0.5738011395 | BD15: 0.5702741559 | BE15: 0.566550858 | BF15: 0.5625781367 | BG15: 0.5583975771 | BH15: 0.554006484 | BI15: 0.5492269445 | BJ15: 0.544079582 | BK15: 0.5383892518 | BL15: 0.5323040025 | BM15: 0.5256756147 | BN15: 0.5183616193 | BO15: 0.510402756 | BP15: 0.5015763215 | BQ15: 0.4915489214 | BR15: 0.4798136692 | BS15: 0.4660895644 | BT15: 0.4498558183 | BU15: 0.4310186174 | BV15: 0.4072813919 | BW15: 0.3778230555 | BX15: 0.3414104856 | BY15: 0.2959186844 | BZ15: 0.2418316492 | CA15: 0.1838769321 | CB15: 0.124793412 | CC15: 0.06370066856 | CD15: 0
A16: 0.875 | B16: 0.6740166779 | C16: 0.6732979434 | D16: 0.6725519711 | E16: 0.6717896086 | F16: 0.6709972396 | G16: 0.6701657896 | H16: 0.6693188027 | I16: 0.6684637731 | J16: 0.6675953738 | K16: 0.666709386 | L16: 0.6657945355 | M16: 0.6648620807 | N16: 0.6639181551 | O16: 0.6629395249 | P16: 0.6619375994 | Q16: 0.6609133737 | R16: 0.6598696287 | S16: 0.658799998 | T16: 0.6576781346 | U16: 0.6565423011 | V16: 0.6553940902 | W16: 0.6542345909 | X16: 0.6530620939 | Y16: 0.6518471331 | Z16: 0.6506149826 | AA16: 0.6493559586 | AB16: 0.64805356 | AC16: 0.6467031295 | AD16: 0.6453168484 | AE16: 0.6439037896 | AF16: 0.6424444136 | AG16: 0.640900842 | AH16: 0.6393248704 | AI16: 0.6377217463 | AJ16: 0.6360950752 | AK16: 0.6344050609 | AL16: 0.6325876356 | AM16: 0.6306943897 | AN16: 0.6287488608 | AO16: 0.6267533693 | AP16: 0.6246371286 | AQ16: 0.6224468885 | AR16: 0.6201925153 | AS16: 0.6178354462 | AT16: 0.6154012949 | AU16: 0.6129083019 | AV16: 0.6102509394 | AW16: 0.6074679588 | AX16: 0.6045464979 | AY16: 0.6015174723 | AZ16: 0.5984330131 | BA16: 0.5952218639 | BB16: 0.5919426971 | BC16: 0.5885140382 | BD16: 0.5848350946 | BE16: 0.5809716401 | BF16: 0.5769207689 | BG16: 0.5726378247 | BH16: 0.5680104761 | BI16: 0.5630383176 | BJ16: 0.5575708213 | BK16: 0.5517130304 | BL16: 0.5454049648 | BM16: 0.5384927942 | BN16: 0.5308617888 | BO16: 0.522581472 | BP16: 0.5134888843 | BQ16: 0.5028488926 | BR16: 0.4904940327 | BS16: 0.4758465942 | BT16: 0.4590067873 | BU16: 0.4389792387 | BV16: 0.4134310746 | BW16: 0.382796186 | BX16: 0.3447501282 | BY16: 0.2972664898 | BZ16: 0.2418639947 | CA16: 0.1838769321 | CB16: 0.124793412 | CC16: 0.06370066856 | CD16: 0
A17: 0.9375 | B17: 0.6894517575 | C17: 0.6887009894 | D17: 0.6879170184 | E17: 0.6871225298 | F17: 0.6863168686 | G17: 0.6854867023 | H17: 0.6846413968 | I17: 0.6837790242 | J17: 0.6828956722 | K17: 0.6819900898 | L17: 0.6810669793 | M17: 0.6801204137 | N17: 0.6791510212 | O17: 0.6781734559 | P17: 0.6771830377 | Q17: 0.6761624921 | R17: 0.6750918048 | S17: 0.6740048507 | T17: 0.6729027865 | U17: 0.6717878213 | V17: 0.6706514311 | W17: 0.6694747182 | X17: 0.6682835169 | Y17: 0.6670780909 | Z17: 0.6658296186 | AA17: 0.6645516753 | AB17: 0.6632301659 | AC17: 0.6618782165 | AD17: 0.6604676412 | AE17: 0.6589976732 | AF17: 0.6575134334 | AG17: 0.656002069 | AH17: 0.6544581746 | AI17: 0.6528526691 | AJ17: 0.6511957782 | AK17: 0.6494063529 | AL17: 0.6475502521 | AM17: 0.6456242905 | AN17: 0.6435977844 | AO17: 0.641532952 | AP17: 0.6393994045 | AQ17: 0.6371915893 | AR17: 0.6349118908 | AS17: 0.6325793631 | AT17: 0.6301536924 | AU17: 0.6275887166 | AV17: 0.6248785278 | AW17: 0.6220528685 | AX17: 0.6191147684 | AY17: 0.6160991251 | AZ17: 0.6129760756 | BA17: 0.6097835114 | BB17: 0.6064684561 | BC17: 0.6028921932 | BD17: 0.5991153764 | BE17: 0.595212233 | BF17: 0.5910497549 | BG17: 0.5865827577 | BH17: 0.5817705425 | BI17: 0.5765053381 | BJ17: 0.5708922043 | BK17: 0.5648123561 | BL17: 0.5583185354 | BM17: 0.5510955395 | BN17: 0.5432014295 | BO17: 0.5346194975 | BP17: 0.525139003 | BQ17: 0.5138707683 | BR17: 0.5007842615 | BS17: 0.4853519183 | BT17: 0.4677403857 | BU17: 0.4462364418 | BV17: 0.4192740638 | BW17: 0.3872590585 | BX17: 0.3475187918 | BY17: 0.2981604862 | BZ17: 0.2418639947 | CA17: 0.1838769321 | CB17: 0.124793412 | CC17: 0.06370066856 | CD17: 0
A18: 1 | B18: 0.7034050333 | C18: 0.7026480599 | D18: 0.7018740895 | E18: 0.7010922154 | F18: 0.7002894618 | G18: 0.6994614754 | H18: 0.6986109365 | I18: 0.6977515523 | J18: 0.6968573248 | K18: 0.6959405086 | L18: 0.6950162208 | M18: 0.694085885 | N18: 0.6931495335 | O18: 0.6921753575 | P18: 0.6911726193 | Q18: 0.6901592543 | R18: 0.6891273349 | S18: 0.6880820015 | T18: 0.68700087 | U18: 0.6858893218 | V18: 0.6847647179 | W18: 0.6836031318 | X18: 0.6824093137 | Y18: 0.6811989525 | Z18: 0.6799624693 | AA18: 0.6786899589 | AB18: 0.6773556349 | AC18: 0.6759531364 | AD18: 0.6745373662 | AE18: 0.6731082734 | AF18: 0.6716612193 | AG18: 0.6701587898 | AH18: 0.6686193496 | AI18: 0.6669694708 | AJ18: 0.6652457042 | AK18: 0.6634253138 | AL18: 0.661520134 | AM18: 0.6595656218 | AN18: 0.6575768361 | AO18: 0.6555028076 | AP18: 0.6533463473 | AQ18: 0.6511462836 | AR18: 0.6488911656 | AS18: 0.6465211232 | AT18: 0.6440353331 | AU18: 0.6414053514 | AV18: 0.6386833051 | AW18: 0.6358524671 | AX18: 0.6329352634 | AY18: 0.6299295088 | AZ18: 0.6268660854 | BA18: 0.6236912978 | BB18: 0.6202890813 | BC18: 0.6167427622 | BD18: 0.6130171162 | BE18: 0.6090497864 | BF18: 0.6047967438 | BG18: 0.6002022778 | BH18: 0.5951134139 | BI18: 0.5897067839 | BJ18: 0.5838628829 | BK18: 0.5776058168 | BL18: 0.5708818524 | BM18: 0.5633396438 | BN18: 0.5551917114 | BO18: 0.5464248948 | BP18: 0.5363434822 | BQ18: 0.5244328936 | BR18: 0.5106505904 | BS18: 0.4946415665 | BT18: 0.4760865195 | BU18: 0.4529142255 | BV18: 0.4248735829 | BW18: 0.3913201242 | BX18: 0.3496318444 | BY18: 0.2987940411 | BZ18: 0.2418639947 | CA18: 0.1838769321 | CB18: 0.124793412 | CC18: 0.06370066856 | CD18: 0
A19: 1.0625 | B19: 0.7166932689 | C19: 0.7159194067 | D19: 0.7151293507 | E19: 0.7143250188 | F19: 0.7135111407 | G19: 0.7126505999 | H19: 0.7117752036 | I19: 0.7108936677 | J19: 0.7099996176 | K19: 0.7090973282 | L19: 0.7081848476 | M19: 0.7072342855 | N19: 0.706264134 | O19: 0.7052869534 | P19: 0.7043005238 | Q19: 0.7033037791 | R19: 0.7022633414 | S19: 0.7012016305 | T19: 0.7001114872 | U19: 0.6989920493 | V19: 0.6978565246 | W19: 0.6966952957 | X19: 0.695514291 | Y19: 0.694310346 | Z19: 0.6930505418 | AA19: 0.6917288136 | AB19: 0.6903829259 | AC19: 0.6890188794 | AD19: 0.68764292 | AE19: 0.686230937 | AF19: 0.6848039006 | AG19: 0.6833107996 | AH19: 0.6817076153 | AI19: 0.6799949018 | AJ19: 0.6782181436 | AK19: 0.6763691736 | AL19: 0.6744950868 | AM19: 0.6725647885 | AN19: 0.6705433903 | AO19: 0.6684864173 | AP19: 0.6664047435 | AQ19: 0.664259016 | AR19: 0.6619916209 | AS19: 0.6596010264 | AT19: 0.65705599 | AU19: 0.6544172122 | AV19: 0.651668047 | AW19: 0.6488427037 | AX19: 0.6459493958 | AY19: 0.6429832125 | AZ19: 0.6399021162 | BA19: 0.6366020405 | BB19: 0.6332123467 | BC19: 0.6297484957 | BD19: 0.626018237 | BE19: 0.6220308242 | BF19: 0.6176975978 | BG19: 0.6128857968 | BH19: 0.6077246453 | BI19: 0.6021361019 | BJ19: 0.5962059103 | BK19: 0.5898947732 | BL19: 0.5828778542 | BM19: 0.5752655352 | BN19: 0.5669432412 | BO19: 0.5578608112 | BP19: 0.5471877938 | BQ19: 0.5346389686 | BR19: 0.520178606 | BS19: 0.5034540587 | BT19: 0.4837592229 | BU19: 0.4590583487 | BV19: 0.4302221278 | BW19: 0.3950501544 | BX19: 0.3514959358 | BY19: 0.2990757177 | BZ19: 0.2418639947 | CA19: 0.1838769321 | CB19: 0.124793412 | CC19: 0.06370066856 | CD19: 0
A20: 1.125 | B20: 0.729496645 | C20: 0.7287108991 | D20: 0.7278935063 | E20: 0.7270610316 | F20: 0.7262194936 | G20: 0.7253593607 | H20: 0.724493716 | I20: 0.7236219597 | J20: 0.7227299562 | K20: 0.7217977822 | L20: 0.7208463288 | M20: 0.7198889358 | N20: 0.7189264649 | O20: 0.7179490031 | P20: 0.7169369843 | Q20: 0.7159021719 | R20: 0.7148386041 | S20: 0.7137412582 | T20: 0.712627899 | U20: 0.7114859139 | V20: 0.710319897 | W20: 0.7091364931 | X20: 0.7079109576 | Y20: 0.7066456348 | Z20: 0.7053663768 | AA20: 0.7040661216 | AB20: 0.7027481469 | AC20: 0.7013917576 | AD20: 0.7000178736 | AE20: 0.6986124243 | AF20: 0.6971319451 | AG20: 0.695514015 | AH20: 0.6938039327 | AI20: 0.6920560859 | AJ20: 0.6902757755 | AK20: 0.6884424487 | AL20: 0.6865348656 | AM20: 0.6845441625 | AN20: 0.6825365243 | AO20: 0.6805075368 | AP20: 0.6784081687 | AQ20: 0.6762000136 | AR20: 0.673874895 | AS20: 0.6714395224 | AT20: 0.6689187644 | AU20: 0.666289134 | AV20: 0.6635783033 | AW20: 0.660806647 | AX20: 0.6579524273 | AY20: 0.654965612 | AZ20: 0.6517997154 | BA20: 0.6485459489 | BB20: 0.6452382653 | BC20: 0.6417774076 | BD20: 0.6381193202 | BE20: 0.6341292082 | BF20: 0.6296251511 | BG20: 0.6247292712 | BH20: 0.6193759835 | BI20: 0.6137164979 | BJ20: 0.6077553127 | BK20: 0.6012024123 | BL20: 0.5941155752 | BM20: 0.5863423057 | BN20: 0.57791922 | BO20: 0.5684760586 | BP20: 0.5572273716 | BQ20: 0.544347327 | BR20: 0.5293720968 | BS20: 0.5119442567 | BT20: 0.4908196328 | BU20: 0.4648835011 | BV20: 0.4350920403 | BW20: 0.3983035878 | BX20: 0.3530389306 | BY20: 0.2991728652 | BZ20: 0.2418639947 | CA20: 0.1838769321 | CB20: 0.124793412 | CC20: 0.06370066856 | CD20: 0
A21: 1.1875 | B21: 0.7416995729 | C21: 0.7409003895 | D21: 0.7400961822 | E21: 0.7392850444 | F21: 0.7384650211 | G21: 0.7376258088 | H21: 0.7367667247 | I21: 0.7358734698 | J21: 0.7349449859 | K21: 0.7340127273 | L21: 0.7330721758 | M21: 0.7321121999 | N21: 0.731122444 | O21: 0.7301036668 | P21: 0.7290647664 | Q21: 0.7280013445 | R21: 0.7269108372 | S21: 0.7257909189 | T21: 0.7246471966 | U21: 0.7234810275 | V21: 0.7222748136 | W21: 0.7210396437 | X21: 0.719786542 | Y21: 0.7185253515 | Z21: 0.7172561884 | AA21: 0.7159514252 | AB21: 0.7146211246 | AC21: 0.7132595967 | AD21: 0.711829759 | AE21: 0.7103187783 | AF21: 0.7086952785 | AG21: 0.7070338253 | AH21: 0.7053194364 | AI21: 0.7035707662 | AJ21: 0.7017804509 | AK21: 0.6998989648 | AL21: 0.6979681802 | AM21: 0.6960064888 | AN21: 0.6939932779 | AO21: 0.6919033148 | AP21: 0.6897364002 | AQ21: 0.6874383985 | AR21: 0.6850685239 | AS21: 0.6825820058 | AT21: 0.6800060848 | AU21: 0.6773717998 | AV21: 0.6746858943 | AW21: 0.6719058842 | AX21: 0.6690122141 | AY21: 0.6659687541 | AZ21: 0.6628344341 | BA21: 0.659646509 | BB21: 0.6563123889 | BC21: 0.6528368108 | BD21: 0.6491466952 | BE21: 0.6450561134 | BF21: 0.6404888666 | BG21: 0.6353835917 | BH21: 0.6299455559 | BI21: 0.624270585 | BJ21: 0.6181803208 | BK21: 0.611464301 | BL21: 0.6042997352 | BM21: 0.5965009733 | BN21: 0.5879312906 | BO21: 0.5780292818 | BP21: 0.5664431622 | BQ21: 0.5532618638 | BR21: 0.5378941386 | BS21: 0.519718774 | BT21: 0.4973991301 | BU21: 0.47044784 | BV21: 0.4393730056 | BW21: 0.4009420574 | BX21: 0.3541458243 | BY21: 0.299175154 | BZ21: 0.2418639947 | CA21: 0.1838769321 | CB21: 0.124793412 | CC21: 0.06370066856 | CD21: 0
A22: 1.25 | B22: 0.7533238537 | C22: 0.7525342514 | D22: 0.751737988 | E22: 0.750933987 | F22: 0.750102676 | G22: 0.7492417877 | H22: 0.7483498677 | I22: 0.7474514682 | J22: 0.7465306375 | K22: 0.7455998719 | L22: 0.7446270456 | M22: 0.7436390044 | N22: 0.742631238 | O22: 0.7416101753 | P22: 0.7405591882 | Q22: 0.7394780282 | R22: 0.7383825803 | S22: 0.7372555207 | T22: 0.7360898428 | U22: 0.7349022729 | V22: 0.7336807257 | W22: 0.7324527269 | X22: 0.7312197335 | Y22: 0.7299572809 | Z22: 0.7286720116 | AA22: 0.7273571747 | AB22: 0.7259754213 | AC22: 0.7245342986 | AD22: 0.722987053 | AE22: 0.7213693698 | AF22: 0.71971747 | AG22: 0.7180211643 | AH22: 0.7162747104 | AI22: 0.714464059 | AJ22: 0.7126149145 | AK22: 0.7107147287 | AL22: 0.7087944999 | AM22: 0.7068233474 | AN22: 0.7047623211 | AO22: 0.7026071305 | AP22: 0.7003639079 | AQ22: 0.69805796 | AR22: 0.6956388427 | AS22: 0.6931412656 | AT22: 0.6905643112 | AU22: 0.687948905 | AV22: 0.6851983262 | AW22: 0.6823675799 | AX22: 0.6794127806 | AY22: 0.6763735499 | AZ22: 0.6733007359 | BA22: 0.6701033391 | BB22: 0.6667687352 | BC22: 0.6632764807 | BD22: 0.6594358295 | BE22: 0.6553031442 | BF22: 0.6505242551 | BG22: 0.6453018273 | BH22: 0.6398501143 | BI22: 0.6340873585 | BJ22: 0.6277667317 | BK22: 0.6210528173 | BL22: 0.6137371589 | BM22: 0.6057244516 | BN22: 0.5968641061 | BO22: 0.5863861852 | BP22: 0.5747776273 | BQ22: 0.5613985462 | BR22: 0.5456562053 | BS22: 0.5266307953 | BT22: 0.5031333209 | BU22: 0.4755815112 | BV22: 0.4432682985 | BW22: 0.403193764 | BX22: 0.3549297197 | BY22: 0.299175154 | BZ22: 0.2418639947 | CA22: 0.1838769321 | CB22: 0.124793412 | CC22: 0.06370066856 | CD22: 0
A23: 1.3125 | B23: 0.7644473952 | C23: 0.763661992 | D23: 0.7628497439 | E23: 0.7620300356 | F23: 0.7611734297 | G23: 0.7602970142 | H23: 0.7594022789 | I23: 0.7584887474 | J23: 0.7575249311 | K23: 0.7565577893 | L23: 0.7555618538 | M23: 0.7545552365 | N23: 0.7535163431 | O23: 0.752460647 | P23: 0.7513957002 | Q23: 0.7502935477 | R23: 0.749162892 | S23: 0.7480214511 | T23: 0.7468381089 | U23: 0.7456421247 | V23: 0.7444399535 | W23: 0.7432181427 | X23: 0.7419780375 | Y23: 0.7407144557 | Z23: 0.7393928328 | AA23: 0.7380277941 | AB23: 0.7365961817 | AC23: 0.7350595121 | AD23: 0.7334815168 | AE23: 0.7318577297 | AF23: 0.7301929282 | AG23: 0.7284663877 | AH23: 0.7266949948 | AI23: 0.7248818339 | AJ23: 0.7230348925 | AK23: 0.7211469065 | AL23: 0.7191965754 | AM23: 0.7171463809 | AN23: 0.7150084179 | AO23: 0.7127989405 | AP23: 0.7105304843 | AQ23: 0.7081470762 | AR23: 0.7057040064 | AS23: 0.7031671649 | AT23: 0.7005799409 | AU23: 0.6978745055 | AV23: 0.6950961147 | AW23: 0.692220141 | AX23: 0.6892503473 | AY23: 0.6862461226 | AZ23: 0.6831334042 | BA23: 0.67989253 | BB23: 0.6765455164 | BC23: 0.6729045463 | BD23: 0.6690126162 | BE23: 0.664754879 | BF23: 0.6599501339 | BG23: 0.6547767176 | BH23: 0.6491989617 | BI23: 0.6432354332 | BJ23: 0.6368128199 | BK23: 0.6299081499 | BL23: 0.6225033363 | BM23: 0.6143922712 | BN23: 0.6049250037 | BO23: 0.5940564394 | BP23: 0.5822674935 | BQ23: 0.5685891576 | BR23: 0.5525656883 | BS23: 0.5327537999 | BT23: 0.508198532 | BU23: 0.4804019475 | BV23: 0.4468118104 | BW23: 0.4052108398 | BX23: 0.3554570694 | BY23: 0.299175154 | BZ23: 0.2418639947 | CA23: 0.1838769321 | CB23: 0.124793412 | CC23: 0.06370066856 | CD23: 0
A24: 1.375 | B24: 0.7753007552 | C24: 0.774497055 | D24: 0.7736666194 | E24: 0.7728230391 | F24: 0.7719612284 | G24: 0.771057678 | H24: 0.7701238009 | I24: 0.7691716218 | J24: 0.7681931235 | K24: 0.7671974631 | L24: 0.7661627052 | M24: 0.7651232293 | N24: 0.7640712125 | O24: 0.7629860638 | P24: 0.7618818657 | Q24: 0.7607681021 | R24: 0.7596205302 | S24: 0.7584532068 | T24: 0.7572744225 | U24: 0.7560730272 | V24: 0.7548494262 | W24: 0.7535933989 | X24: 0.752291225 | Y24: 0.7509762466 | Z24: 0.7495934062 | AA24: 0.7481522728 | AB24: 0.7466241555 | AC24: 0.7450491007 | AD24: 0.7434280762 | AE24: 0.7417577171 | AF24: 0.7400410196 | AG24: 0.7383074156 | AH24: 0.7365375521 | AI24: 0.7347445979 | AJ24: 0.7329181928 | AK24: 0.7310016085 | AL24: 0.7289896394 | AM24: 0.7268790692 | AN24: 0.7247128926 | AO24: 0.7224798921 | AP24: 0.7201531813 | AQ24: 0.7177579846 | AR24: 0.7152979512 | AS24: 0.7127645313 | AT24: 0.7101057697 | AU24: 0.7073878985 | AV24: 0.7045773783 | AW24: 0.7016938113 | AX24: 0.6987662491 | AY24: 0.6957275764 | AZ24: 0.6925722079 | BA24: 0.6893427212 | BB24: 0.6858202711 | BC24: 0.6820615229 | BD24: 0.67800695 | BE24: 0.6736628158 | BF24: 0.6688821544 | BG24: 0.663699703 | BH24: 0.6580696413 | BI24: 0.6518838739 | BJ24: 0.6453449504 | BK24: 0.6383243723 | BL24: 0.6306719768 | BM24: 0.6223422295 | BN24: 0.6123061727 | BO24: 0.6012859644 | BP24: 0.589228601 | BQ24: 0.5751935102 | BR24: 0.5585731988 | BS24: 0.5381341342 | BT24: 0.5127895269 | BU24: 0.484555112 | BV24: 0.4497820369 | BW24: 0.4067956825 | BX24: 0.3557830011 | BY24: 0.299175154 | BZ24: 0.2418639947 | CA24: 0.1838769321 | CB24: 0.124793412 | CC24: 0.06370066856 | CD24: 0
A25: 1.4375 | B25: 0.7855084281 | C25: 0.784686218 | D25: 0.7838434238 | E25: 0.7829620104 | F25: 0.7820572782 | G25: 0.7811274131 | H25: 0.7801835038 | I25: 0.7792062681 | J25: 0.7782039476 | K25: 0.7771989737 | L25: 0.7761735946 | M25: 0.7751180932 | N25: 0.7740524914 | O25: 0.7729811663 | P25: 0.7718832883 | Q25: 0.7707592152 | R25: 0.7696210974 | S25: 0.768462166 | T25: 0.7672724358 | U25: 0.766036535 | V25: 0.7647647287 | W25: 0.7634866792 | X25: 0.7621630545 | Y25: 0.7607966988 | Z25: 0.7593451124 | AA25: 0.7578336292 | AB25: 0.7562710772 | AC25: 0.7546506876 | AD25: 0.7529776867 | AE25: 0.7512864202 | AF25: 0.7495866721 | AG25: 0.7478360783 | AH25: 0.7460646997 | AI25: 0.744238996 | AJ25: 0.7423444846 | AK25: 0.7403463944 | AL25: 0.7382725346 | AM25: 0.7361354483 | AN25: 0.7339454662 | AO25: 0.7316739899 | AP25: 0.7293378411 | AQ25: 0.726929984 | AR25: 0.7244464875 | AS25: 0.7218348383 | AT25: 0.7191447835 | AU25: 0.7163823712 | AV25: 0.7135549422 | AW25: 0.710682115 | AX25: 0.7077004327 | AY25: 0.7046169057 | AZ25: 0.7014902715 | BA25: 0.698101652 | BB25: 0.6944899617 | BC25: 0.6906130997 | BD25: 0.6864370399 | BE25: 0.6820749418 | BF25: 0.6773367082 | BG25: 0.6721786887 | BH25: 0.6664244673 | BI25: 0.6601637262 | BJ25: 0.6534032106 | BK25: 0.6461150287 | BL25: 0.6383687393 | BM25: 0.6295385985 | BN25: 0.6191288552 | BO25: 0.607985582 | BP25: 0.5955538533 | BQ25: 0.5812559739 | BR25: 0.5640360059 | BS25: 0.5427873744 | BT25: 0.5169580986 | BU25: 0.487967118 | BV25: 0.4520213501 | BW25: 0.4081080782 | BX25: 0.3559401234 | BY25: 0.299175154 | BZ25: 0.2418639947 | CA25: 0.1838769321 | CB25: 0.124793412 | CC25: 0.06370066856 | CD25: 0
A26: 1.5 | B26: 0.7952493851 | C26: 0.7943789623 | D26: 0.7934900473 | E26: 0.7925740604 | F26: 0.7916463969 | G26: 0.790669936 | H26: 0.7896838507 | I26: 0.7886922183 | J26: 0.7876710817 | K26: 0.7866231136 | L26: 0.7855694281 | M26: 0.7845112562 | N26: 0.7834472449 | O26: 0.7823511324 | P26: 0.7812487949 | Q26: 0.7801313486 | R26: 0.7789794887 | S26: 0.7777752 | T26: 0.7765386134 | U26: 0.7752921193 | V26: 0.7740268637 | W26: 0.7726969321 | X26: 0.7713338974 | Y26: 0.769871634 | Z26: 0.7683681466 | AA26: 0.7668089947 | AB26: 0.7651909269 | AC26: 0.7635373137 | AD26: 0.761875571 | AE26: 0.7602041624 | AF26: 0.7584909444 | AG26: 0.7567381034 | AH26: 0.754939601 | AI26: 0.7530596306 | AJ26: 0.7511010551 | AK26: 0.7490752681 | AL26: 0.746968478 | AM26: 0.7448211431 | AN26: 0.7425988249 | AO26: 0.7403004901 | AP26: 0.7379579541 | AQ26: 0.7355182807 | AR26: 0.7329883089 | AS26: 0.7303597739 | AT26: 0.7276456269 | AU26: 0.7248840275 | AV26: 0.7220634659 | AW26: 0.7191397981 | AX26: 0.7161229556 | AY26: 0.7130614738 | AZ26: 0.7098118768 | BA26: 0.7063310419 | BB26: 0.7025669002 | BC26: 0.6985379562 | BD26: 0.6943306671 | BE26: 0.6899430285 | BF26: 0.6851965307 | BG26: 0.6800211037 | BH26: 0.6742039443 | BI26: 0.667856127 | BJ26: 0.6609398651 | BK26: 0.6534215784 | BL26: 0.645367183 | BM26: 0.6360404215 | BN26: 0.625572153 | BO26: 0.6141707575 | BP26: 0.6013546195 | BQ26: 0.5867383675 | BR26: 0.568930768 | BS26: 0.5468297979 | BT26: 0.520802964 | BU26: 0.4909985846 | BV26: 0.4539174395 | BW26: 0.4091571904 | BX26: 0.3560030218 | BY26: 0.299175154 | BZ26: 0.2418639947 | CA26: 0.1838769321 | CB26: 0.124793412 | CC26: 0.06370066856 | CD26: 0
A27: 1.5625 | B27: 0.8043995146 | C27: 0.8034976843 | D27: 0.8025779353 | E27: 0.8016246295 | F27: 0.8006661741 | G27: 0.7996974853 | H27: 0.7987020334 | I27: 0.797681457 | J27: 0.7966530013 | K27: 0.7956148841 | L27: 0.7945724648 | M27: 0.7935030374 | N27: 0.792423332 | O27: 0.7913351407 | P27: 0.7902114743 | Q27: 0.7890414497 | R27: 0.7878358428 | S27: 0.7866221751 | T27: 0.7853988459 | U27: 0.7841386644 | V27: 0.7828471771 | W27: 0.7814644279 | X27: 0.7800162786 | Y27: 0.7785038845 | Z27: 0.7769455233 | AA27: 0.775339081 | AB27: 0.7737137848 | AC27: 0.7720668036 | AD27: 0.7704106027 | AE27: 0.7687106353 | AF27: 0.7669719327 | AG27: 0.7651770053 | AH27: 0.7632966471 | AI27: 0.7613463172 | AJ27: 0.7593456358 | AK27: 0.7572591955 | AL27: 0.7551331235 | AM27: 0.7529413196 | AN27: 0.7507093395 | AO27: 0.7484266251 | AP27: 0.7460116844 | AQ27: 0.7435282474 | AR27: 0.7409647102 | AS27: 0.7383172202 | AT27: 0.7356232205 | AU27: 0.7328662258 | AV27: 0.730000862 | AW27: 0.7270536959 | AX27: 0.7240476426 | AY27: 0.7208872729 | AZ27: 0.7175573967 | BA27: 0.7139392722 | BB27: 0.7100482728 | BC27: 0.7059949438 | BD27: 0.7017245764 | BE27: 0.6972765354 | BF27: 0.6925311941 | BG27: 0.6872049651 | BH27: 0.6814771071 | BI27: 0.6750308697 | BJ27: 0.6678821285 | BK27: 0.660289356 | BL27: 0.6518167128 | BM27: 0.6420857758 | BN27: 0.6315966883 | BO27: 0.6199275285 | BP27: 0.6067498262 | BQ27: 0.5917376723 | BR27: 0.5734874659 | BS27: 0.5506790898 | BT27: 0.5244518732 | BU27: 0.4937551662 | BV27: 0.4556405108 | BW27: 0.4099572407 | BX27: 0.3560030218 | BY27: 0.299175154 | BZ27: 0.2418639947 | CA27: 0.1838769321 | CB27: 0.124793412 | CC27: 0.06370066856 | CD27: 0
A28: 1.625 | B28: 0.8129538355 | C28: 0.8120159283 | D28: 0.81107154 | E28: 0.8101113293 | F28: 0.809126786 | G28: 0.8081218175 | H28: 0.8071125808 | I28: 0.8060977355 | J28: 0.8050757097 | K28: 0.8040375315 | L28: 0.8029786187 | M28: 0.8019144658 | N28: 0.8008075437 | O28: 0.7996653898 | P28: 0.7984948794 | Q28: 0.7973169592 | R28: 0.7961209713 | S28: 0.7949091172 | T28: 0.7936609747 | U28: 0.792393303 | V28: 0.7910148953 | W28: 0.7895574917 | X28: 0.7880411827 | Y28: 0.7864707465 | Z28: 0.7848860259 | AA28: 0.783293438 | AB28: 0.7816886905 | AC28: 0.7800617664 | AD28: 0.7783903231 | AE28: 0.7766777126 | AF28: 0.7749043522 | AG28: 0.773042635 | AH28: 0.7711097135 | AI28: 0.769116175 | AJ28: 0.7670640721 | AK28: 0.7649624284 | AL28: 0.7627992352 | AM28: 0.7605944407 | AN28: 0.7583636637 | AO28: 0.7559898369 | AP28: 0.7535522708 | AQ28: 0.751021372 | AR28: 0.7484369085 | AS28: 0.7458022928 | AT28: 0.743083345 | AU28: 0.7402679316 | AV28: 0.7373934975 | AW28: 0.7344591259 | AX28: 0.7313960735 | AY28: 0.728153 | AZ28: 0.7246867775 | BA28: 0.7209569604 | BB28: 0.717003704 | BC28: 0.7128520427 | BD28: 0.7085352651 | BE28: 0.7040197496 | BF28: 0.6992359567 | BG28: 0.6938757782 | BH28: 0.6881043269 | BI28: 0.6816097579 | BJ28: 0.6744130875 | BK28: 0.6665142703 | BL28: 0.6576356387 | BM28: 0.64777223 | BN28: 0.6372349631 | BO28: 0.6252201674 | BP28: 0.6117648953 | BQ28: 0.596399118 | BR28: 0.5776206872 | BS28: 0.5543393984 | BT28: 0.5278737805 | BU28: 0.4962443739 | BV28: 0.4572772641 | BW28: 0.4105209824 | BX28: 0.3560030218 | BY28: 0.299175154 | BZ28: 0.2418639947 | CA28: 0.1838769321 | CB28: 0.124793412 | CC28: 0.06370066856 | CD28: 0
A29: 1.6875 | B29: 0.8210034865 | C29: 0.8200491168 | D29: 0.8190722783 | E29: 0.8180816464 | F29: 0.8170873993 | G29: 0.8160883098 | H29: 0.8150854714 | I29: 0.8140746668 | J29: 0.8130296034 | K29: 0.811982282 | L29: 0.8108845767 | M29: 0.8097587076 | N29: 0.8086045381 | O29: 0.8074457628 | P29: 0.8062833229 | Q29: 0.8051131635 | R29: 0.8039056092 | S29: 0.8026828594 | T29: 0.8014031592 | U29: 0.800042633 | V29: 0.7985873224 | W29: 0.7970624884 | X29: 0.7955081856 | Y29: 0.7939383879 | Z29: 0.7923604477 | AA29: 0.7907761567 | AB29: 0.7891683327 | AC29: 0.7874980087 | AD29: 0.785793406 | AE29: 0.784029242 | AF29: 0.7821685313 | AG29: 0.7802459635 | AH29: 0.7782720994 | AI29: 0.7762501536 | AJ29: 0.7741876236 | AK29: 0.7720636373 | AL29: 0.7698986631 | AM29: 0.7676823642 | AN29: 0.7653601445 | AO29: 0.7629741687 | AP29: 0.7604753901 | AQ29: 0.7579307854 | AR29: 0.7553646515 | AS29: 0.7526996571 | AT29: 0.7499206761 | AU29: 0.7471052716 | AV29: 0.7442171881 | AW29: 0.7412404452 | AX29: 0.7380567914 | AY29: 0.7347276588 | AZ29: 0.73115631 | BA29: 0.7273983075 | BB29: 0.723400019 | BC29: 0.719212984 | BD29: 0.7148014402 | BE29: 0.7101784726 | BF29: 0.7052468745 | BG29: 0.6999283459 | BH29: 0.6939939415 | BI29: 0.6874645127 | BJ29: 0.6802879043 | BK29: 0.6720679394 | BL29: 0.6629078065 | BM29: 0.65311001 | BN29: 0.6424107211 | BO29: 0.6301443307 | BP29: 0.6165077804 | BQ29: 0.6007188959 | BR29: 0.5812064837 | BS29: 0.557809884 | BT29: 0.5309842762 | BU29: 0.4981839178 | BV29: 0.4586857596 | BW29: 0.4108789561 | BX29: 0.3560030218 | BY29: 0.299175154 | BZ29: 0.2418639947 | CA29: 0.1838769321 | CB29: 0.124793412 | CC29: 0.06370066856 | CD29: 0
A30: 1.75 | B30: 0.8286467635 | C30: 0.827671367 | D30: 0.8266929543 | E30: 0.8257113918 | F30: 0.8247272971 | G30: 0.823738964 | H30: 0.822722158 | I30: 0.8216907637 | J30: 0.8206060583 | K30: 0.819493812 | L30: 0.8183516023 | M30: 0.817206299 | N30: 0.8160557158 | O30: 0.8148985115 | P30: 0.8137269024 | Q30: 0.8125232071 | R30: 0.811307399 | S30: 0.8099975384 | T30: 0.8086040976 | U30: 0.8071451864 | V30: 0.8056196854 | W30: 0.8040700124 | X30: 0.8025153841 | Y30: 0.8009537061 | Z30: 0.7993863723 | AA30: 0.7977957968 | AB30: 0.7961377397 | AC30: 0.7944387809 | AD30: 0.7926774008 | AE30: 0.7908292182 | AF30: 0.7888945097 | AG30: 0.7869273121 | AH30: 0.7849178162 | AI30: 0.7828601752 | AJ30: 0.7807640434 | AK30: 0.7786185828 | AL30: 0.7764104721 | AM30: 0.7741139817 | AN30: 0.771795839 | AO30: 0.7693461937 | AP30: 0.7668488226 | AQ30: 0.7643278849 | AR30: 0.7617300804 | AS30: 0.7589927468 | AT30: 0.7562123783 | AU30: 0.7533580257 | AV30: 0.7504321916 | AW30: 0.747295418 | AX30: 0.7440483282 | AY30: 0.7406113439 | AZ30: 0.7370323426 | BA30: 0.7332004587 | BB30: 0.7291438414 | BC30: 0.7248876629 | BD30: 0.7203940944 | BE30: 0.7157031078 | BF30: 0.710670393 | BG30: 0.7052269878 | BH30: 0.6992026248 | BI30: 0.6926316414 | BJ30: 0.6853039713 | BK30: 0.6769550347 | BL30: 0.6677372315 | BM30: 0.6579212374 | BN30: 0.646904463 | BO30: 0.634352311 | BP30: 0.6206135115 | BQ30: 0.6045264323 | BR30: 0.5844303508 | BS30: 0.5610904346 | BT30: 0.5337917859 | BU30: 0.4998285169 | BV30: 0.4598153353 | BW30: 0.4111830469 | BX30: 0.3560030218 | BY30: 0.299175154 | BZ30: 0.2418639947 | CA30: 0.1838769321 | CB30: 0.124793412 | CC30: 0.06370066856 | CD30: 0
A31: 1.8125 | B31: 0.835632141 | C31: 0.8346718196 | D31: 0.8337081626 | E31: 0.8327413923 | F31: 0.8317574795 | G31: 0.8307411301 | H31: 0.8296838452 | I31: 0.8285983192 | J31: 0.8274790436 | K31: 0.8263575484 | L31: 0.8252319345 | M31: 0.8241003351 | N31: 0.8229653884 | O31: 0.821797845 | P31: 0.8206203939 | Q31: 0.8194052975 | R31: 0.8180903136 | S31: 0.8166855468 | T31: 0.8152154198 | U31: 0.8137288661 | V31: 0.8122227796 | W31: 0.8106894182 | X31: 0.8091454548 | Y31: 0.807593959 | Z31: 0.8060050897 | AA31: 0.8043612147 | AB31: 0.8026728388 | AC31: 0.800908575 | AD31: 0.799056759 | AE31: 0.7971319921 | AF31: 0.7951800169 | AG31: 0.7931913732 | AH31: 0.7911516096 | AI31: 0.7890782223 | AJ31: 0.7869660609 | AK31: 0.7847788454 | AL31: 0.7825045659 | AM31: 0.7802026893 | AN31: 0.7777972202 | AO31: 0.7753441608 | AP31: 0.7728563589 | AQ31: 0.7703021408 | AR31: 0.7676214897 | AS31: 0.7648987531 | AT31: 0.7620977586 | AU31: 0.7592347725 | AV31: 0.7561582123 | AW31: 0.752954665 | AX31: 0.7495649941 | AY31: 0.7460878921 | AZ31: 0.742482991 | BA31: 0.7385657566 | BB31: 0.7344377023 | BC31: 0.7301110203 | BD31: 0.725551983 | BE31: 0.7206869256 | BF31: 0.7156107522 | BG31: 0.7099725239 | BH31: 0.7037673179 | BI31: 0.6971096377 | BJ31: 0.6896395675 | BK31: 0.6812133416 | BL31: 0.6720262814 | BM31: 0.6620822664 | BN31: 0.6507523444 | BO31: 0.6381018548 | BP31: 0.6241264691 | BQ31: 0.6078092516 | BR31: 0.5872465279 | BS31: 0.5639641326 | BT31: 0.5361407889 | BU31: 0.5013583338 | BV31: 0.4608202804 | BW31: 0.4114347868 | BX31: 0.3560030218 | BY31: 0.299175154 | BZ31: 0.2418639947 | CA31: 0.1838769321 | CB31: 0.124793412 | CC31: 0.06370066856 | CD31: 0
A32: 1.875 | B32: 0.8418538319 | C32: 0.8408983824 | D32: 0.8399357137 | E32: 0.8389268257 | F32: 0.8378882009 | G32: 0.8368194319 | H32: 0.8357219265 | I32: 0.8346184584 | J32: 0.8335076634 | K32: 0.8323949034 | L32: 0.8312780646 | M32: 0.8301455799 | N32: 0.828988464 | O32: 0.8278278122 | P32: 0.826593384 | Q32: 0.8252592869 | R32: 0.8238390767 | S32: 0.8223817119 | T32: 0.820919003 | U32: 0.8194505442 | V32: 0.8179604022 | W32: 0.8164439923 | X32: 0.814923192 | Y32: 0.8133474427 | Z32: 0.8117316252 | AA32: 0.8100739622 | AB32: 0.8083451032 | AC32: 0.8065072776 | AD32: 0.804618036 | AE32: 0.8026881587 | AF32: 0.8007214183 | AG32: 0.7987128147 | AH32: 0.7966683643 | AI32: 0.7945689074 | AJ32: 0.7923952031 | AK32: 0.7901445086 | AL32: 0.7878792398 | AM32: 0.7855125795 | AN32: 0.7831366571 | AO32: 0.780713405 | AP32: 0.778209843 | AQ32: 0.7755666065 | AR32: 0.7728873946 | AS32: 0.7701312505 | AT32: 0.7672930061 | AU32: 0.7642872255 | AV32: 0.7611569784 | AW32: 0.7578608989 | AX32: 0.7544670763 | AY32: 0.7510007298 | AZ32: 0.7473085894 | BA32: 0.7434003721 | BB32: 0.7392438303 | BC32: 0.7348102367 | BD32: 0.7301348677 | BE32: 0.7252130211 | BF32: 0.719939636 | BG32: 0.7141007471 | BH32: 0.7078678657 | BI32: 0.7009707818 | BJ32: 0.6932972451 | BK32: 0.6850235786 | BL32: 0.6760447802 | BM32: 0.6658284126 | BN32: 0.654209558 | BO32: 0.6414080113 | BP32: 0.6271084185 | BQ32: 0.6105565413 | BR32: 0.5897710123 | BS32: 0.5665022436 | BT32: 0.5381524614 | BU32: 0.502798928 | BV32: 0.4616424064 | BW32: 0.4116462868 | BX32: 0.3560030218 | BY32: 0.299175154 | BZ32: 0.2418639947 | CA32: 0.1838769321 | CB32: 0.124793412 | CC32: 0.06370066856 | CD32: 0
A33: 1.9375 | B33: 0.8476889694 | C33: 0.846688246 | D33: 0.8456595982 | E33: 0.8445999659 | F33: 0.843514605 | G33: 0.8424210463 | H33: 0.8413233953 | I33: 0.8402220469 | J33: 0.839113687 | K33: 0.8380034956 | L33: 0.8368586228 | M33: 0.8357075701 | N33: 0.8345376338 | O33: 0.8332844163 | P33: 0.8319178669 | Q33: 0.8304793104 | R33: 0.8290289679 | S33: 0.8275721928 | T33: 0.8261103547 | U33: 0.8246426531 | V33: 0.8231552066 | W33: 0.8216447042 | X33: 0.8200625923 | Y33: 0.8184463982 | Z33: 0.8167869178 | AA33: 0.8150580585 | AB33: 0.8132276752 | AC33: 0.8113520658 | AD33: 0.8094341358 | AE33: 0.8074825447 | AF33: 0.805496461 | AG33: 0.8034789536 | AH33: 0.8014001914 | AI33: 0.7992481608 | AJ33: 0.7970450725 | AK33: 0.7948178028 | AL33: 0.7924960304 | AM33: 0.7901639679 | AN33: 0.787824083 | AO33: 0.7854640124 | AP33: 0.7829506553 | AQ33: 0.7803098001 | AR33: 0.7776077776 | AS33: 0.7748070603 | AT33: 0.7718598509 | AU33: 0.7687575805 | AV33: 0.7655377022 | AW33: 0.7621841447 | AX33: 0.7587956114 | AY33: 0.7552135908 | AZ33: 0.7514835032 | BA33: 0.7475972858 | BB33: 0.7434461707 | BC33: 0.7390350039 | BD33: 0.7342401495 | BE33: 0.7292086135 | BF33: 0.7237487365 | BG33: 0.7177232449 | BH33: 0.7113511567 | BI33: 0.7042092082 | BJ33: 0.6963834051 | BK33: 0.6882449092 | BL33: 0.679335203 | BM33: 0.668874348 | BN33: 0.6571276638 | BO33: 0.644174086 | BP33: 0.6296073649 | BQ33: 0.6126838499 | BR33: 0.5918296021 | BS33: 0.5684558918 | BT33: 0.539957224 | BU33: 0.5041974868 | BV33: 0.4623130396 | BW33: 0.4118326165 | BX33: 0.3560030218 | BY33: 0.299175154 | BZ33: 0.2418639947 | CA33: 0.1838769321 | CB33: 0.124793412 | CC33: 0.06370066856 | CD33: 0
A34: 2 | B34: 0.8528637401 | C34: 0.8518165245 | D34: 0.8507450836 | E34: 0.8496643483 | F34: 0.8485789498 | G34: 0.847488804 | H34: 0.8463947605 | I34: 0.845297398 | J34: 0.844179316 | K34: 0.8430404486 | L34: 0.841897926 | M34: 0.8407071089 | N34: 0.8394404357 | O34: 0.8380696985 | P34: 0.8366437908 | Q34: 0.8352085686 | R34: 0.833762162 | S34: 0.8323092298 | T34: 0.8308512394 | U34: 0.8293869629 | V34: 0.8278865014 | W34: 0.8263055419 | X34: 0.8246841692 | Y34: 0.8230156497 | Z34: 0.8212704922 | AA34: 0.8194477411 | AB34: 0.8175896445 | AC34: 0.8157143349 | AD34: 0.8137983203 | AE34: 0.8118174947 | AF34: 0.8098313262 | AG34: 0.8078078536 | AH34: 0.8056635449 | AI34: 0.8034694255 | AJ34: 0.8012445735 | AK34: 0.7989405299 | AL34: 0.7966319547 | AM34: 0.7943141606 | AN34: 0.7919765165 | AO34: 0.7895578216 | AP34: 0.7871082422 | AQ34: 0.7845587072 | AR34: 0.781862099 | AS34: 0.779008724 | AT34: 0.7759714113 | AU34: 0.7728304291 | AV34: 0.76956193 | AW34: 0.7662133614 | AX34: 0.7627452474 | AY34: 0.75910227 | AZ34: 0.7553104162 | BA34: 0.7514325103 | BB34: 0.7472855316 | BC34: 0.7428051411 | BD34: 0.7379699374 | BE34: 0.7327744071 | BF34: 0.7270934252 | BG34: 0.7210093198 | BH34: 0.7143806601 | BI34: 0.7069886409 | BJ34: 0.6991878745 | BK34: 0.691112101 | BL34: 0.6821356697 | BM34: 0.6715573486 | BN34: 0.6596707887 | BO34: 0.6465639948 | BP34: 0.6319373184 | BQ34: 0.6145133241 | BR34: 0.5937192449 | BS34: 0.5700954055 | BT34: 0.5414804377 | BU34: 0.5055523329 | BV34: 0.462823666 | BW34: 0.4119912415 | BX34: 0.3560030218 | BY34: 0.299175154 | BZ34: 0.2418639947 | CA34: 0.1838769321 | CB34: 0.124793412 | CC34: 0.06370066856 | CD34: 0
A35: 2.0625 | B35: 0.8572885691 | C35: 0.8562203273 | D35: 0.855149016 | E35: 0.8540745856 | F35: 0.8529975979 | G35: 0.8519166026 | H35: 0.8508320626 | I35: 0.8497106953 | J35: 0.8485833172 | K35: 0.8474389037 | L35: 0.8462280486 | M35: 0.8449187541 | N35: 0.8435472514 | O35: 0.8421733311 | P35: 0.8407955629 | Q35: 0.8393855135 | R35: 0.8379498842 | S35: 0.836504391 | T35: 0.8350534621 | U35: 0.8335677265 | V35: 0.8320174824 | W35: 0.830430927 | X35: 0.8287655583 | Y35: 0.8270170073 | Z35: 0.8251992583 | AA35: 0.8233590858 | AB35: 0.8215069822 | AC35: 0.8196143944 | AD35: 0.8176997748 | AE35: 0.8157660041 | AF35: 0.8137839126 | AG35: 0.811700406 | AH35: 0.8095323927 | AI35: 0.8073081746 | AJ35: 0.8050156325 | AK35: 0.8027168949 | AL35: 0.8004112244 | AM35: 0.7980820073 | AN35: 0.7956729463 | AO35: 0.7932399069 | AP35: 0.7908008286 | AQ35: 0.7882773528 | AR35: 0.7855618823 | AS35: 0.7826377886 | AT35: 0.779620557 | AU35: 0.7764440878 | AV35: 0.7732116107 | AW35: 0.769855616 | AX35: 0.7663370787 | AY35: 0.7626427542 | AZ35: 0.7588379351 | BA35: 0.7548812004 | BB35: 0.7507488636 | BC35: 0.7462525708 | BD35: 0.7412771767 | BE35: 0.7358770395 | BF35: 0.7300739927 | BG35: 0.7238075197 | BH35: 0.7169335245 | BI35: 0.7094861664 | BJ35: 0.7017671788 | BK35: 0.6937273094 | BL35: 0.6845716143 | BM35: 0.6739666177 | BN35: 0.6620112565 | BO35: 0.6487426167 | BP35: 0.6341218894 | BQ35: 0.6162637288 | BR35: 0.5954888706 | BS35: 0.5715825086 | BT35: 0.5428057833 | BU35: 0.5067107557 | BV35: 0.4632827538 | BW35: 0.4121150674 | BX35: 0.3560030218 | BY35: 0.299175154 | BZ35: 0.2418639947 | CA35: 0.1838769321 | CB35: 0.124793412 | CC35: 0.06370066856 | CD35: 0
A36: 2.125 | B36: 0.8612700518 | C36: 0.86020376 | D36: 0.8591350719 | E36: 0.8580633938 | F36: 0.8569894199 | G36: 0.8558948531 | H36: 0.8547821269 | I36: 0.8536656734 | J36: 0.852485875 | K36: 0.8512544006 | L36: 0.8498944163 | M36: 0.8485300057 | N36: 0.8471627825 | O36: 0.8457928138 | P36: 0.8444188431 | Q36: 0.8430366771 | R36: 0.8416307301 | S36: 0.8401881248 | T36: 0.8387008228 | U36: 0.8371774172 | V36: 0.83560657 | W36: 0.8339770007 | X36: 0.8322608755 | Y36: 0.8304415592 | Z36: 0.8286085956 | AA36: 0.82677099 | AB36: 0.8248902692 | AC36: 0.8229832399 | AD36: 0.8210714596 | AE36: 0.8191419357 | AF36: 0.8171279499 | AG36: 0.8150585567 | AH36: 0.8128849854 | AI36: 0.8106037021 | AJ36: 0.8083183257 | AK36: 0.8060270029 | AL36: 0.803715074 | AM36: 0.8013240659 | AN36: 0.7989084126 | AO36: 0.7964860594 | AP36: 0.7940141879 | AQ36: 0.7914671982 | AR36: 0.7887100314 | AS36: 0.7857667236 | AT36: 0.7827408754 | AU36: 0.7796310745 | AV36: 0.7764037091 | AW36: 0.7730242323 | AX36: 0.769463465 | AY36: 0.7657522656 | AZ36: 0.7618941773 | BA36: 0.757915958 | BB36: 0.7537968233 | BC36: 0.7493082255 | BD36: 0.7442444112 | BE36: 0.7386160609 | BF36: 0.7327284684 | BG36: 0.7261898226 | BH36: 0.7190877841 | BI36: 0.7116744395 | BJ36: 0.7040156037 | BK36: 0.6959334092 | BL36: 0.6867959812 | BM36: 0.6761592912 | BN36: 0.6642381496 | BO36: 0.6508388682 | BP36: 0.6360992273 | BQ36: 0.6179329934 | BR36: 0.5971948921 | BS36: 0.5730185331 | BT36: 0.5441249488 | BU36: 0.5077950085 | BV36: 0.4636759944 | BW36: 0.412176961 | BX36: 0.3560030218 | BY36: 0.299175154 | BZ36: 0.2418639947 | CA36: 0.1838769321 | CB36: 0.124793412 | CC36: 0.06370066856 | CD36: 0
A37: 2.1875 | B37: 0.8649415128 | C37: 0.8638768018 | D37: 0.8628098051 | E37: 0.8617382442 | F37: 0.8606320681 | G37: 0.8595228739 | H37: 0.8583855947 | I37: 0.8571993434 | J37: 0.8558983728 | K37: 0.8545433759 | L37: 0.8531857402 | M37: 0.8518251987 | N37: 0.8504621766 | O37: 0.8490966605 | P37: 0.8477272104 | Q37: 0.8463515019 | R37: 0.8449479418 | S37: 0.8435094709 | T37: 0.8419955445 | U37: 0.8404268104 | V37: 0.8388158561 | W37: 0.8371432063 | X37: 0.8353704464 | Y37: 0.8335822372 | Z37: 0.8317502417 | AA37: 0.8298752211 | AB37: 0.8279838513 | AC37: 0.8260771037 | AD37: 0.8241474481 | AE37: 0.8221412174 | AF37: 0.8201280357 | AG37: 0.8180508596 | AH37: 0.8158523086 | AI37: 0.8136041114 | AJ37: 0.8113245217 | AK37: 0.8090389571 | AL37: 0.8066620435 | AM37: 0.8042578682 | AN37: 0.8018460785 | AO37: 0.7993828175 | AP37: 0.7968540472 | AQ37: 0.794243784 | AR37: 0.7914714807 | AS37: 0.7885340312 | AT37: 0.7855196659 | AU37: 0.7824915564 | AV37: 0.7792163923 | AW37: 0.7758011413 | AX37: 0.7722317071 | AY37: 0.7685271466 | AZ37: 0.7646250613 | BA37: 0.7606104936 | BB37: 0.7564743166 | BC37: 0.7519815055 | BD37: 0.7467740917 | BE37: 0.7410699825 | BF37: 0.734993926 | BG37: 0.7282226199 | BH37: 0.7209927593 | BI37: 0.7136324387 | BJ37: 0.7059209259 | BK37: 0.6976960464 | BL37: 0.6886198024 | BM37: 0.6779693457 | BN37: 0.6660922761 | BO37: 0.6527626685 | BP37: 0.637837507 | BQ37: 0.6195400323 | BR37: 0.5988289805 | BS37: 0.5743442596 | BT37: 0.5453552522 | BU37: 0.5087202156 | BV37: 0.4639932444 | BW37: 0.412229836 | BX37: 0.3560030218 | BY37: 0.299175154 | BZ37: 0.2418639947 | CA37: 0.1838769321 | CB37: 0.124793412 | CC37: 0.06370066856 | CD37: 0
A38: 2.25 | B38: 0.8683575182 | C38: 0.8672977909 | D38: 0.866235906 | E38: 0.8651558297 | F38: 0.8640522333 | G38: 0.8628867261 | H38: 0.8616882489 | I38: 0.8603804088 | J38: 0.8590297671 | K38: 0.8576772979 | L38: 0.8563224977 | M38: 0.8549650942 | N38: 0.8536045789 | O38: 0.8522413506 | P38: 0.8508753591 | Q38: 0.8494739231 | R38: 0.8480409876 | S38: 0.8465635729 | T38: 0.8450303285 | U38: 0.8434563442 | V38: 0.8418064409 | W38: 0.840079215 | X38: 0.8383187289 | Y38: 0.8365417584 | Z38: 0.8347194756 | AA38: 0.8328453044 | AB38: 0.8309592132 | AC38: 0.8290262386 | AD38: 0.8270218102 | AE38: 0.825012004 | AF38: 0.8229527925 | AG38: 0.8208381786 | AH38: 0.8186854497 | AI38: 0.8164674913 | AJ38: 0.8142105365 | AK38: 0.8118897181 | AL38: 0.8094952787 | AM38: 0.8070911748 | AN38: 0.8046333772 | AO38: 0.8021132033 | AP38: 0.7995206756 | AQ38: 0.796866881 | AR38: 0.7940430389 | AS38: 0.7911595487 | AT38: 0.7882088396 | AU38: 0.7851583418 | AV38: 0.7819187632 | AW38: 0.7784591733 | AX38: 0.7749226513 | AY38: 0.7711900894 | AZ38: 0.767244138 | BA38: 0.7631961857 | BB38: 0.7590066516 | BC38: 0.7544309515 | BD38: 0.7490689812 | BE38: 0.7433109675 | BF38: 0.7369827478 | BG38: 0.7300324446 | BH38: 0.7228128455 | BI38: 0.7154550307 | BJ38: 0.7077426407 | BK38: 0.6993771679 | BL38: 0.690211439 | BM38: 0.6796719566 | BN38: 0.6677637767 | BO38: 0.6545643442 | BP38: 0.639476632 | BQ38: 0.6210679611 | BR38: 0.6003401753 | BS38: 0.57563824 | BT38: 0.5465392298 | BU38: 0.5095532569 | BV38: 0.4642581609 | BW38: 0.412282711 | BX38: 0.3560030218 | BY38: 0.299175154 | BZ38: 0.2418639947 | CA38: 0.1838769321 | CB38: 0.124793412 | CC38: 0.06370066856 | CD38: 0
A39: 2.3125 | B39: 0.871399258 | C39: 0.8703486319 | D39: 0.8692947546 | E39: 0.8681879409 | F39: 0.867026939 | G39: 0.8658043653 | H39: 0.8645703898 | I39: 0.8632459012 | J39: 0.8618993027 | K39: 0.8605512493 | L39: 0.8592006801 | M39: 0.8578467606 | N39: 0.8564905838 | O39: 0.8551238761 | P39: 0.8537243436 | Q39: 0.8523014728 | R39: 0.8508127924 | S39: 0.8492941142 | T39: 0.8477608199 | U39: 0.8461680842 | V39: 0.8444954849 | W39: 0.8427751655 | X39: 0.8410224209 | Y39: 0.8392107935 | Z39: 0.837395571 | AA39: 0.835573954 | AB39: 0.8336565529 | AC39: 0.8316631038 | AD39: 0.829664969 | AE39: 0.8276214257 | AF39: 0.8255594556 | AG39: 0.8234534076 | AH39: 0.8213150037 | AI39: 0.8191527401 | AJ39: 0.8169033176 | AK39: 0.8145882258 | AL39: 0.8121951478 | AM39: 0.8097449981 | AN39: 0.8072357103 | AO39: 0.8046558273 | AP39: 0.8020145541 | AQ39: 0.7993093277 | AR39: 0.7964875039 | AS39: 0.7936279833 | AT39: 0.7907003623 | AU39: 0.787638929 | AV39: 0.7844078436 | AW39: 0.7809948596 | AX39: 0.7774494496 | AY39: 0.7737115052 | AZ39: 0.7697353856 | BA39: 0.7656505357 | BB39: 0.7614415989 | BC39: 0.7566281098 | BD39: 0.751194367 | BE39: 0.7453690139 | BF39: 0.7387977317 | BG39: 0.731792681 | BH39: 0.7245758109 | BI39: 0.7171687504 | BJ39: 0.7093447306 | BK39: 0.7009782923 | BL39: 0.691672976 | BM39: 0.6812201689 | BN39: 0.6693014145 | BO39: 0.656196043 | BP39: 0.6410977712 | BQ39: 0.6225484611 | BR39: 0.6017468286 | BS39: 0.5768493805 | BT39: 0.5476879766 | BU39: 0.5103203511 | BV39: 0.4644696609 | BW39: 0.412335586 | BX39: 0.3560030218 | BY39: 0.299175154 | BZ39: 0.2418639947 | CA39: 0.1838769321 | CB39: 0.124793412 | CC39: 0.06370066856 | CD39: 0
A40: 2.375 | B40: 0.87417625 | C40: 0.8731122115 | D40: 0.8719977449 | E40: 0.8708311587 | F40: 0.8696036804 | G40: 0.8683746614 | H40: 0.8671443959 | I40: 0.8658343367 | J40: 0.8644912659 | K40: 0.8631454266 | L40: 0.8617974112 | M40: 0.8604471054 | N40: 0.8590720605 | O40: 0.8576789 | P40: 0.8562722656 | Q40: 0.854808895 | R40: 0.8532990616 | S40: 0.8517774683 | T40: 0.8502164678 | U40: 0.8485873322 | V40: 0.8469549249 | W40: 0.8452518771 | X40: 0.8434795531 | Y40: 0.8416720262 | Z40: 0.8398538 | AA40: 0.8379794257 | AB40: 0.8360532605 | AC40: 0.8340749982 | AD40: 0.8320365877 | AE40: 0.829993116 | AF40: 0.8279375357 | AG40: 0.8258384474 | AH40: 0.8237159375 | AI40: 0.8215211145 | AJ40: 0.8193034127 | AK40: 0.8170317183 | AL40: 0.814614622 | AM40: 0.8121204746 | AN40: 0.8095634372 | AO40: 0.8069406548 | AP40: 0.8042733623 | AQ40: 0.801564113 | AR40: 0.7987450558 | AS40: 0.7958864347 | AT40: 0.7929456327 | AU40: 0.7898757875 | AV40: 0.7866323472 | AW40: 0.7832815819 | AX40: 0.7797415254 | AY40: 0.7760104113 | AZ40: 0.7720345578 | BA40: 0.7679552612 | BB40: 0.7636030408 | BC40: 0.7586961331 | BD40: 0.7531516155 | BE40: 0.7471625956 | BF40: 0.7404897317 | BG40: 0.733484681 | BH40: 0.7262235185 | BI40: 0.7187832794 | BJ40: 0.7108252306 | BK40: 0.7023902128 | BL40: 0.692994851 | BM40: 0.6825072572 | BN40: 0.6706788736 | BO40: 0.6577191091 | BP40: 0.6426352578 | BQ40: 0.623996701 | BR40: 0.6030706701 | BS40: 0.5780126305 | BT40: 0.5487263881 | BU40: 0.5109153259 | BV40: 0.4646369002 | BW40: 0.412388461 | BX40: 0.3560030218 | BY40: 0.299175154 | BZ40: 0.2418639947 | CA40: 0.1838769321 | CB40: 0.124793412 | CC40: 0.06370066856 | CD40: 0
A41: 2.4375 | B41: 0.8768561952 | C41: 0.8757587776 | D41: 0.8745828349 | E41: 0.8733766088 | F41: 0.8721495484 | G41: 0.870920531 | H41: 0.8696902144 | I41: 0.8683882079 | J41: 0.8670430159 | K41: 0.865696432 | L41: 0.8643478838 | M41: 0.8629602358 | N41: 0.8615686552 | O41: 0.8601384548 | P41: 0.8586700239 | Q41: 0.8571974227 | R41: 0.8557226904 | S41: 0.8541982603 | T41: 0.8526076652 | U41: 0.8509765636 | V41: 0.8493263842 | W41: 0.8476425578 | X41: 0.8458747648 | Y41: 0.8440686631 | Z41: 0.8421945273 | AA41: 0.8402869624 | AB41: 0.8383679569 | AC41: 0.8363952802 | AD41: 0.8343706433 | AE41: 0.8323266111 | AF41: 0.8302698486 | AG41: 0.8281695138 | AH41: 0.8260299771 | AI41: 0.8238503734 | AJ41: 0.8216345423 | AK41: 0.8193655841 | AL41: 0.8169346265 | AM41: 0.8143995292 | AN41: 0.8117886564 | AO41: 0.8091614048 | AP41: 0.8064941123 | AQ41: 0.803784863 | AR41: 0.8009658058 | AS41: 0.7980516451 | AT41: 0.7950606327 | AU41: 0.7919907875 | AV41: 0.7887864448 | AW41: 0.7854365045 | AX41: 0.7818810544 | AY41: 0.778187627 | AZ41: 0.774229287 | BA41: 0.7701666178 | BB41: 0.7656507893 | BC41: 0.7606645442 | BD41: 0.7549623874 | BE41: 0.7487883668 | BF41: 0.7421535992 | BG41: 0.735176681 | BH41: 0.7278626435 | BI41: 0.7203104053 | BJ41: 0.7122961773 | BK41: 0.7037388902 | BL41: 0.6943045724 | BM41: 0.6836314813 | BN41: 0.672037989 | BO41: 0.6590742327 | BP41: 0.6441041185 | BQ41: 0.625424326 | BR41: 0.6042912443 | BS41: 0.5791758805 | BT41: 0.5496559217 | BU41: 0.5114969509 | BV41: 0.4647955252 | BW41: 0.412441336 | BX41: 0.3560030218 | BY41: 0.299175154 | BZ41: 0.2418639947 | CA41: 0.1838769321 | CB41: 0.124793412 | CC41: 0.06370066856 | CD41: 0
A42: 2.5 | B42: 0.8793125515 | C42: 0.8781563131 | D42: 0.8769704869 | E42: 0.8757667431 | F42: 0.874542165 | G42: 0.8733156858 | H42: 0.8720867565 | I42: 0.8707968727 | J42: 0.8694545681 | K42: 0.8680986829 | L42: 0.8667145648 | M42: 0.8653259768 | N42: 0.863871928 | O42: 0.8624081212 | P42: 0.8609408605 | Q42: 0.8594713292 | R42: 0.8580002723 | S42: 0.8564849156 | T42: 0.8548974345 | U42: 0.8532489906 | V42: 0.851573717 | W42: 0.8498943496 | X42: 0.8481868496 | Y42: 0.84630715 | Z42: 0.8444071275 | AA42: 0.8424969649 | AB42: 0.8405441259 | AC42: 0.8385868277 | AD42: 0.8366212376 | AE42: 0.8346214135 | AF42: 0.8325720946 | AG42: 0.8304375292 | AH42: 0.8282828303 | AI42: 0.826122755 | AJ42: 0.8238929622 | AK42: 0.8215687982 | AL42: 0.8191480019 | AM42: 0.8166097363 | AN42: 0.8139940908 | AO42: 0.8113682073 | AP42: 0.8087022888 | AQ42: 0.8059944231 | AR42: 0.8031340554 | AS42: 0.8001585335 | AT42: 0.7971297363 | AU42: 0.7940641932 | AV42: 0.7908700383 | AW42: 0.7875061877 | AX42: 0.7839842254 | AY42: 0.780302627 | AZ42: 0.776397162 | BA42: 0.7722251082 | BB42: 0.7676539762 | BC42: 0.7625511262 | BD42: 0.7566714347 | BE42: 0.7503746168 | BF42: 0.7437581135 | BG42: 0.7368222477 | BH42: 0.7294791 | BI42: 0.7217380303 | BJ42: 0.7137075293 | BK42: 0.7050091957 | BL42: 0.6955061775 | BM42: 0.6847418563 | BN42: 0.6733485469 | BO42: 0.6603961077 | BP42: 0.6454999496 | BQ42: 0.6267917024 | BR42: 0.6055072436 | BS42: 0.580298224 | BT42: 0.5505368215 | BU42: 0.5120287908 | BV42: 0.4649541502 | BW42: 0.4124479346 | BX42: 0.3560030218 | BY42: 0.299175154 | BZ42: 0.2418639947 | CA42: 0.1838769321 | CB42: 0.124793412 | CC42: 0.06370066856 | CD42: 0
A43: 2.5625 | B43: 0.8814991583 | C43: 0.8803482828 | D43: 0.8791678199 | E43: 0.8779689304 | F43: 0.8767478032 | G43: 0.8755251064 | H43: 0.8743012279 | I43: 0.8730416681 | J43: 0.8716917511 | K43: 0.8703110304 | L43: 0.8689003445 | M43: 0.8674427633 | N43: 0.8659816885 | O43: 0.864518447 | P43: 0.8630525538 | Q43: 0.8615838467 | R43: 0.8601127457 | S43: 0.8586054865 | T43: 0.8569941863 | U43: 0.8553212272 | V43: 0.8536458962 | W43: 0.8519670961 | X43: 0.8501977651 | Y43: 0.8483350869 | Z43: 0.8464235022 | AA43: 0.8444749845 | AB43: 0.84252365 | AC43: 0.8405680667 | AD43: 0.8386088295 | AE43: 0.8366449437 | AF43: 0.8346210964 | AG43: 0.8325024828 | AH43: 0.8303756483 | AI43: 0.8281766098 | AJ43: 0.8259184032 | AK43: 0.8236340911 | AL43: 0.8211739027 | AM43: 0.8186698466 | AN43: 0.8161122256 | AO43: 0.8134910427 | AP43: 0.8108294046 | AQ43: 0.8080965885 | AR43: 0.8051730648 | AS43: 0.8021727475 | AT43: 0.799114338 | AU43: 0.7960502325 | AV43: 0.7928274208 | AW43: 0.7894487424 | AX43: 0.7859629918 | AY43: 0.7823248133 | AZ43: 0.7784430901 | BA43: 0.7741536113 | BB43: 0.7695555338 | BC43: 0.7643315945 | BD43: 0.7582844927 | BE43: 0.7519608668 | BF43: 0.7453443635 | BG43: 0.738416715 | BH43: 0.7310597563 | BI43: 0.7231656553 | BJ43: 0.7150422365 | BK43: 0.7062253207 | BL43: 0.696637187 | BM43: 0.6858522313 | BN43: 0.6744720678 | BO43: 0.661693311 | BP43: 0.6467906332 | BQ43: 0.6280176037 | BR43: 0.6065984902 | BS43: 0.581355724 | BT43: 0.5513327235 | BU43: 0.512499475 | BV43: 0.4651127752 | BW43: 0.4124479346 | BX43: 0.3560030218 | BY43: 0.299175154 | BZ43: 0.2418639947 | CA43: 0.1838769321 | CB43: 0.124793412 | CC43: 0.06370066856 | CD43: 0
A44: 2.625 | B44: 0.8834237625 | C44: 0.8822776669 | D44: 0.8811007505 | E44: 0.8799205556 | F44: 0.8787141753 | G44: 0.8774955659 | H44: 0.8762754138 | I44: 0.8750194763 | J44: 0.8737344025 | K44: 0.8722977244 | L44: 0.8708446712 | M44: 0.8693888234 | N44: 0.8679309821 | O44: 0.8664714633 | P44: 0.8650068584 | Q44: 0.8635389647 | R44: 0.8620697989 | S44: 0.8605401916 | T44: 0.8589079911 | U44: 0.8572359752 | V44: 0.8555512333 | W44: 0.8537785349 | X44: 0.8520039931 | Y44: 0.8501786796 | Z44: 0.848234346 | AA44: 0.8462854432 | AB44: 0.8443337663 | AC44: 0.8423770647 | AD44: 0.8404161746 | AE44: 0.8384507827 | AF44: 0.8364492843 | AG44: 0.8343629555 | AH44: 0.8322318946 | AI44: 0.8300040176 | AJ44: 0.8277699414 | AK44: 0.8254840459 | AL44: 0.8230461065 | AM44: 0.8205511779 | AN44: 0.818051154 | AO44: 0.8154963911 | AP44: 0.8128285176 | AQ44: 0.810027166 | AR44: 0.8070835927 | AS44: 0.804031148 | AT44: 0.8009746212 | AU44: 0.7978597313 | AV44: 0.7945861352 | AW44: 0.7912256461 | AX44: 0.7877430023 | AY44: 0.7841955656 | AZ44: 0.7802067207 | BA44: 0.7759272369 | BB44: 0.7712752671 | BC44: 0.7660225324 | BD44: 0.7598707427 | BE44: 0.7535471168 | BF44: 0.7468820276 | BG44: 0.7399401279 | BH44: 0.7324958072 | BI44: 0.7245932803 | BJ44: 0.7163112365 | BK44: 0.7074103071 | BL44: 0.6976588838 | BM44: 0.6869626063 | BN44: 0.6755295678 | BO44: 0.662962311 | BP44: 0.6480067582 | BQ44: 0.6292267383 | BR44: 0.6076373946 | BS44: 0.582413224 | BT44: 0.5521258485 | BU44: 0.512922475 | BV44: 0.4652714002 | BW44: 0.4124479346 | BX44: 0.3560030218 | BY44: 0.299175154 | BZ44: 0.2418639947 | CA44: 0.1838769321 | CB44: 0.124793412 | CC44: 0.06370066856 | CD44: 0
A45: 2.6875 | B45: 0.8851541114 | C45: 0.8840081581 | D45: 0.8828324259 | E45: 0.8816542986 | F45: 0.8804746509 | G45: 0.8792859161 | H45: 0.8780677198 | I45: 0.8767951998 | J45: 0.8754609035 | K45: 0.874092819 | L45: 0.8726399754 | M45: 0.8711857095 | N45: 0.8697292422 | O45: 0.8682703536 | P45: 0.8668090257 | Q45: 0.8653461191 | R45: 0.863847615 | S45: 0.8623094245 | T45: 0.8606823249 | U45: 0.8589939465 | V45: 0.8572303836 | W45: 0.855464914 | X45: 0.8536978213 | Y45: 0.8518558246 | Z45: 0.8499683638 | AA45: 0.8480230103 | AB45: 0.8460744051 | AC45: 0.8441202057 | AD45: 0.8421622554 | AE45: 0.8402010486 | AF45: 0.8382058162 | AG45: 0.8361259621 | AH45: 0.8339963058 | AI45: 0.8317725216 | AJ45: 0.8295210512 | AK45: 0.827226453 | AL45: 0.8248440386 | AM45: 0.8224018029 | AN45: 0.819901779 | AO45: 0.8173979882 | AP45: 0.8147116588 | AQ45: 0.8118858731 | AR45: 0.8088985085 | AS45: 0.8058538151 | AT45: 0.8027782782 | AU45: 0.7995943934 | AV45: 0.7963196193 | AW45: 0.7929318507 | AX45: 0.7894878773 | AY45: 0.7859220207 | AZ45: 0.7818987207 | BA45: 0.7776001427 | BB45: 0.7728884829 | BC45: 0.7676107998 | BD45: 0.7614569927 | BE45: 0.7551333668 | BF45: 0.7484154026 | BG45: 0.7414206279 | BH45: 0.7338672206 | BI45: 0.7259780513 | BJ45: 0.7175301396 | BK45: 0.7084872518 | BL45: 0.6986635088 | BM45: 0.68803157 | BN45: 0.6765577962 | BO45: 0.6642098259 | BP45: 0.649190005 | BQ45: 0.6303609079 | BR45: 0.6085891446 | BS45: 0.5834430729 | BT45: 0.5528946534 | BU45: 0.513345475 | BV45: 0.4654300252 | BW45: 0.4124479346 | BX45: 0.3560030218 | BY45: 0.299175154 | BZ45: 0.2418639947 | CA45: 0.1838769321 | CB45: 0.124793412 | CC45: 0.06370066856 | CD45: 0
A46: 2.75 | B46: 0.8866812042 | C46: 0.8855367486 | D46: 0.8843631514 | E46: 0.8831867907 | F46: 0.8820093247 | G46: 0.8808306385 | H46: 0.8796009587 | I46: 0.8782849762 | J46: 0.8769533326 | K46: 0.875621046 | L46: 0.8742457338 | M46: 0.8727955872 | N46: 0.8713412351 | O46: 0.8698858515 | P46: 0.8684286887 | Q46: 0.8669314918 | R46: 0.8654237719 | S46: 0.8638934498 | T46: 0.8622513362 | U46: 0.8605293761 | V46: 0.8587697315 | W46: 0.8570086364 | X46: 0.8552454379 | Y46: 0.853457679 | Z46: 0.8516020011 | AA46: 0.8496892776 | AB46: 0.8477397537 | AC46: 0.8457851855 | AD46: 0.8438280686 | AE46: 0.8418679202 | AF46: 0.839858911 | AG46: 0.8377425095 | AH46: 0.8356237085 | AI46: 0.8334284405 | AJ46: 0.8311395256 | AK46: 0.8288460405 | AL46: 0.8264984467 | AM46: 0.8240996254 | AN46: 0.8216664299 | AO46: 0.819126693 | AP46: 0.8164560047 | AQ46: 0.8136529089 | AR46: 0.8106485824 | AS46: 0.8076083621 | AT46: 0.8044561881 | AU46: 0.8012540193 | AV46: 0.7979335104 | AW46: 0.7945579849 | AX46: 0.791170696 | AY46: 0.7874541756 | AZ46: 0.7835388827 | BA46: 0.7792392677 | BB46: 0.7744438193 | BC46: 0.7691112593 | BD46: 0.7630432427 | BE46: 0.756668858 | BF46: 0.7499415174 | BG46: 0.7428268645 | BH46: 0.7351890956 | BI46: 0.7272482969 | BJ46: 0.7187462646 | BK46: 0.7095257608 | BL46: 0.6996681338 | BM46: 0.68908907 | BN46: 0.6775624212 | BO46: 0.6652772035 | BP46: 0.6503409063 | BQ46: 0.6314712829 | BR46: 0.6095408946 | BS46: 0.5844008329 | BT46: 0.5536349034 | BU46: 0.513756245 | BV46: 0.4655886502 | BW46: 0.4124479346 | BX46: 0.3560030218 | BY46: 0.299175154 | BZ46: 0.2418639947 | CA46: 0.1838769321 | CB46: 0.124793412 | CC46: 0.06370066856 | CD46: 0
A47: 2.8125 | B47: 0.8881652017 | C47: 0.8870202459 | D47: 0.8858462746 | E47: 0.8846696645 | F47: 0.8834820865 | G47: 0.8822310386 | H47: 0.8809774574 | I47: 0.8796887992 | J47: 0.8783826245 | K47: 0.877049447 | L47: 0.875714948 | M47: 0.8743157931 | N47: 0.8728772022 | O47: 0.8714209518 | P47: 0.8699200668 | Q47: 0.868414615 | R47: 0.8669076847 | S47: 0.8653807074 | T47: 0.8637353338 | U47: 0.8620133737 | V47: 0.8602535607 | W47: 0.8584917917 | X47: 0.8567285611 | Y47: 0.8549437301 | Z47: 0.8531303107 | AA47: 0.8512718943 | AB47: 0.8493329371 | AC47: 0.847382092 | AD47: 0.8454287011 | AE47: 0.8434527926 | AF47: 0.8414146197 | AG47: 0.8393016654 | AH47: 0.8371782305 | AI47: 0.8349667347 | AJ47: 0.8327254269 | AK47: 0.8304322905 | AL47: 0.8280846967 | AM47: 0.8257302767 | AN47: 0.8232765695 | AO47: 0.820712943 | AP47: 0.8180536465 | AQ47: 0.815289829 | AR47: 0.8123405824 | AS47: 0.8092409105 | AT47: 0.8060424381 | AU47: 0.8028402693 | AV47: 0.7995197604 | AW47: 0.7961442349 | AX47: 0.7926513717 | AY47: 0.7888939467 | AZ47: 0.7850182066 | BA47: 0.7808355755 | BB47: 0.7758869082 | BC47: 0.7705917593 | BD47: 0.7646020635 | BE47: 0.758202233 | BF47: 0.7514220174 | BG47: 0.7441487395 | BH47: 0.7365006714 | BI47: 0.7284290418 | BJ47: 0.7199035713 | BK47: 0.7105034953 | BL47: 0.7006727588 | BM47: 0.6900938624 | BN47: 0.6785660863 | BO47: 0.6662818285 | BP47: 0.6513575339 | BQ47: 0.6325014583 | BR47: 0.6104926446 | BS47: 0.5852082295 | BT47: 0.5543437306 | BU47: 0.51412637 | BV47: 0.4657472752 | BW47: 0.4124479346 | BX47: 0.3560030218 | BY47: 0.299175154 | BZ47: 0.2418639947 | CA47: 0.1838769321 | CB47: 0.124793412 | CC47: 0.06370066856 | CD47: 0
A48: 2.875 | B48: 0.8895715221 | C48: 0.8884436104 | D48: 0.887289745 | E48: 0.8860736317 | F48: 0.8848220003 | G48: 0.8835696327 | H48: 0.8823164253 | I48: 0.8810276513 | J48: 0.8797313936 | K48: 0.8784344971 | L48: 0.8771065369 | M48: 0.8757629347 | N48: 0.8743466322 | O48: 0.8728727716 | P48: 0.8713686148 | Q48: 0.8698625308 | R48: 0.8683544801 | S48: 0.866831285 | T48: 0.8651862852 | U48: 0.8634643301 | V48: 0.8617043852 | W48: 0.8599429898 | X48: 0.858180133 | Y48: 0.8563965576 | Z48: 0.8545817538 | AA48: 0.8527649703 | AB48: 0.8508900051 | AC48: 0.8489393942 | AD48: 0.8469639839 | AE48: 0.8449572324 | AF48: 0.8429202506 | AG48: 0.8408062678 | AH48: 0.8386309166 | AI48: 0.836451284 | AJ48: 0.8342317354 | AK48: 0.8319862486 | AL48: 0.8296446277 | AM48: 0.8272660454 | AN48: 0.8247873894 | AO48: 0.8222297357 | AP48: 0.8195621974 | AQ48: 0.8167987536 | AR48: 0.8139006876 | AS48: 0.8107854608 | AT48: 0.8076053589 | AU48: 0.8044035639 | AV48: 0.8010834287 | AW48: 0.7976759477 | AX48: 0.7940115929 | AY48: 0.7902602222 | AZ48: 0.786372 | BA48: 0.7822766483 | BB48: 0.7773145332 | BC48: 0.7720361669 | BD48: 0.7660825635 | BE48: 0.759735608 | BF48: 0.7528696533 | BG48: 0.7454706145 | BH48: 0.7377487717 | BI48: 0.7295394168 | BJ48: 0.7209262176 | BK48: 0.7114552453 | BL48: 0.7016689329 | BM48: 0.6910984874 | BN48: 0.6795178363 | BO48: 0.6672864535 | BP48: 0.6523253591 | BQ48: 0.6334360454 | BR48: 0.6114443946 | BS48: 0.5860013545 | BT48: 0.5549782306 | BU48: 0.5144904804 | BV48: 0.4659059002 | BW48: 0.4124479346 | BX48: 0.3560030218 | BY48: 0.299175154 | BZ48: 0.2418639947 | CA48: 0.1838769321 | CB48: 0.124793412 | CC48: 0.06370066856 | CD48: 0
A49: 2.9375 | B49: 0.8909029989 | C49: 0.8897659101 | D49: 0.8885657727 | E49: 0.8873514857 | F49: 0.8861024589 | G49: 0.8848505471 | H49: 0.8835971467 | I49: 0.8823085584 | J49: 0.8810131131 | K49: 0.879717029 | L49: 0.8784198603 | M49: 0.8771027522 | N49: 0.8756871189 | O49: 0.8742248804 | P49: 0.8727600074 | Q49: 0.8712558294 | R49: 0.8697488128 | S49: 0.8682301903 | T49: 0.8665857121 | U49: 0.8648645825 | V49: 0.8631057822 | W49: 0.8613455929 | X49: 0.8595835685 | Y49: 0.857800477 | Z49: 0.8559863492 | AA49: 0.8541707958 | AB49: 0.8523524174 | AC49: 0.8504260436 | AD49: 0.8484225723 | AE49: 0.8464160749 | AF49: 0.8443793471 | AG49: 0.8422127434 | AH49: 0.8400376463 | AI49: 0.8378582678 | AJ49: 0.8356757548 | AK49: 0.8334466155 | AL49: 0.831137316 | AM49: 0.828688725 | AN49: 0.826197932 | AO49: 0.8236490845 | AP49: 0.8209781247 | AQ49: 0.818260645 | AR49: 0.8152732636 | AS49: 0.8122115009 | AT49: 0.8090722951 | AU49: 0.8058930418 | AV49: 0.802595456 | AW49: 0.7990632607 | AX49: 0.7953166379 | AY49: 0.7915167033 | AZ49: 0.7876203363 | BA49: 0.7835152618 | BB49: 0.7787004389 | BC49: 0.7734460669 | BD49: 0.7675437649 | BE49: 0.7611693868 | BF49: 0.7542122669 | BG49: 0.7467782209 | BH49: 0.7388980712 | BI49: 0.730633673 | BJ49: 0.7218830056 | BK49: 0.7124034538 | BL49: 0.7026206829 | BM49: 0.6920811938 | BN49: 0.6804421177 | BO49: 0.6682510737 | BP49: 0.6532147188 | BQ49: 0.6342626414 | BR49: 0.6123961446 | BS49: 0.5867944795 | BT49: 0.5555526472 | BU49: 0.5148077304 | BV49: 0.4660645252 | BW49: 0.4124479346 | BX49: 0.3560030218 | BY49: 0.299175154 | BZ49: 0.2418639947 | CA49: 0.1838769321 | CB49: 0.124793412 | CC49: 0.06370066856 | CD49: 0
A50: 3 | B50: 0.8921448993 | C50: 0.8909428613 | D50: 0.8897307715 | E50: 0.8885164845 | F50: 0.8873004556 | G50: 0.8860668255 | H50: 0.8848132717 | I50: 0.8835246834 | J50: 0.8822292381 | K50: 0.880933154 | L50: 0.8796359853 | M50: 0.8783215004 | N50: 0.8769396249 | O50: 0.8754943496 | P50: 0.8740290074 | Q50: 0.8725627505 | R50: 0.8710706878 | S50: 0.8695547934 | T50: 0.8679102103 | U50: 0.8661890807 | V50: 0.8644302804 | W50: 0.8626695525 | X50: 0.8609066927 | Y50: 0.8591232264 | Z50: 0.8573090986 | AA50: 0.8554932907 | AB50: 0.853647971 | AC50: 0.8517774977 | AD50: 0.8498006643 | AE50: 0.8477952999 | AF50: 0.8457133331 | AG50: 0.8435414106 | AH50: 0.8413675234 | AI50: 0.8391893689 | AJ50: 0.8370080798 | AK50: 0.8348222779 | AL50: 0.8324458037 | AM50: 0.8300116618 | AN50: 0.8275149285 | AO50: 0.8249488626 | AP50: 0.8223192584 | AQ50: 0.8195427458 | AR50: 0.8165646309 | AS50: 0.8135047695 | AT50: 0.810442053 | AU50: 0.8072958883 | AV50: 0.803934438 | AW50: 0.8002767558 | AX50: 0.7965543786 | AY50: 0.7927328283 | AZ50: 0.7887550486 | BA50: 0.7846785118 | BB50: 0.7800223139 | BC50: 0.7747579414 | BD50: 0.7689185149 | BE50: 0.7625240552 | BF50: 0.7554812669 | BG50: 0.7480450569 | BH50: 0.7400084462 | BI50: 0.7316711246 | BJ50: 0.7227638495 | BK50: 0.7133023288 | BL50: 0.7035724329 | BM50: 0.6930329438 | BN50: 0.6813409927 | BO50: 0.6691605767 | BP50: 0.6540607188 | BQ50: 0.6350517734 | BR50: 0.6132718494 | BS50: 0.5875876045 | BT50: 0.5560813972 | BU50: 0.5151249804 | BV50: 0.4662231502 | BW50: 0.4124479346 | BX50: 0.3560030218 | BY50: 0.299175154 | BZ50: 0.2418639947 | CA50: 0.1838769321 | CB50: 0.124793412 | CC50: 0.06370066856 | CD50: 0
A51: 3.0625 | B51: 0.8933098981 | C51: 0.8921078601 | D51: 0.8908955336 | E51: 0.8896802119 | F51: 0.8884637056 | G51: 0.8872464877 | H51: 0.8860286001 | I51: 0.8847408084 | J51: 0.8834453631 | K51: 0.882149279 | L51: 0.8808521103 | M51: 0.8795390645 | N51: 0.878155763 | O51: 0.8767633496 | P51: 0.8752980074 | Q51: 0.8738317505 | R51: 0.8723646344 | S51: 0.8708792916 | T51: 0.8692347085 | U51: 0.8675135789 | V51: 0.8657540914 | W51: 0.8639925394 | X51: 0.8622294421 | Y51: 0.8604459758 | Z51: 0.8586314291 | AA51: 0.8567848025 | AB51: 0.854916971 | AC51: 0.8530464977 | AD51: 0.8511598009 | AE51: 0.8491307311 | AF51: 0.8470352081 | AG51: 0.8448632856 | AH51: 0.8426893984 | AI51: 0.8405112439 | AJ51: 0.8383299548 | AK51: 0.8360958563 | AL51: 0.8337148037 | AM51: 0.8312805135 | AN51: 0.8287682102 | AO51: 0.8262178626 | AP51: 0.8235866779 | AQ51: 0.8207588708 | AR51: 0.817785105 | AS51: 0.8147737695 | AT51: 0.811711053 | AU51: 0.8086328869 | AV51: 0.805158269 | AW51: 0.8014400058 | AX51: 0.7977176286 | AY51: 0.7938542257 | AZ51: 0.7898449889 | BA51: 0.7858009304 | BB51: 0.7812310606 | BC51: 0.7760269414 | BD51: 0.7702125961 | BE51: 0.7637902248 | BF51: 0.7567059248 | BG51: 0.7491969486 | BH51: 0.7411188212 | BI51: 0.7326757496 | BJ51: 0.7236098495 | BK51: 0.7141670969 | BL51: 0.7045048423 | BM51: 0.693983457 | BN51: 0.6822398677 | BO51: 0.6700065767 | BP51: 0.6549067188 | BQ51: 0.6357920234 | BR51: 0.6140674632 | BS51: 0.5882908494 | BT51: 0.5566101472 | BU51: 0.5154422304 | BV51: 0.4663817752 | BW51: 0.4124479346 | BX51: 0.3560030218 | BY51: 0.299175154 | BZ51: 0.2418639947 | CA51: 0.1838769321 | CB51: 0.124793412 | CC51: 0.06370066856 | CD51: 0
A52: 3.125 | B52: 0.8944690817 | C52: 0.893272071 | D52: 0.892058865 | E52: 0.8908434619 | F52: 0.8896269556 | G52: 0.8884097377 | H52: 0.8871918501 | I52: 0.8859389282 | J52: 0.8846614881 | K52: 0.883365404 | L52: 0.8820682353 | M52: 0.8807551895 | N52: 0.879371888 | O52: 0.8779876273 | P52: 0.8765670074 | Q52: 0.8751007505 | R52: 0.8736336344 | S52: 0.8721628919 | T52: 0.8705581045 | U52: 0.8688372043 | V52: 0.8670769411 | W52: 0.8653152888 | X52: 0.8635521915 | Y52: 0.8617682132 | Z52: 0.8599200393 | AA52: 0.8580538025 | AB52: 0.856185971 | AC52: 0.8543154977 | AD52: 0.852410352 | AE52: 0.8504354039 | AF52: 0.8483570831 | AG52: 0.8461851606 | AH52: 0.8440112734 | AI52: 0.8418331189 | AJ52: 0.8396181032 | AK52: 0.8373648563 | AL52: 0.8349838037 | AM52: 0.8324966385 | AN52: 0.8299843352 | AO52: 0.8274690771 | AP52: 0.8247587294 | AQ52: 0.8219570226 | AR52: 0.81900123 | AS52: 0.8159928933 | AT52: 0.812980053 | AU52: 0.8098125709 | AV52: 0.8063064731 | AW52: 0.8026032558 | AX52: 0.7988730974 | AY52: 0.794930393 | AZ52: 0.7909024889 | BA52: 0.7868604033 | BB52: 0.7822992207 | BC52: 0.7772803803 | BD52: 0.7714273913 | BE52: 0.764980461 | BF52: 0.7579220498 | BG52: 0.7503073236 | BH52: 0.7422151441 | BI52: 0.7336525592 | BJ52: 0.7244558495 | BK52: 0.7150130969 | BL52: 0.7054037173 | BM52: 0.6948497207 | BN52: 0.6831387427 | BO52: 0.6708525767 | BP52: 0.6556496715 | BQ52: 0.6365322734 | BR52: 0.6148077132 | BS52: 0.5889183074 | BT52: 0.5571388972 | BU52: 0.5157594804 | BV52: 0.4665404002 | BW52: 0.4124479346 | BX52: 0.3560030218 | BY52: 0.299175154 | BZ52: 0.2418639947 | CA52: 0.1838769321 | CB52: 0.124793412 | CC52: 0.06370066856 | CD52: 0
A53: 3.1875 | B53: 0.895527492 | C53: 0.8944045864 | D53: 0.8932172019 | E53: 0.8920067119 | F53: 0.8907902056 | G53: 0.8895729877 | H53: 0.8883551001 | I53: 0.8871021782 | J53: 0.8858423992 | K53: 0.884581529 | L53: 0.8832843603 | M53: 0.8819713145 | N53: 0.880588013 | O53: 0.8792037523 | P53: 0.8778181748 | Q53: 0.8763697505 | R53: 0.8749026344 | S53: 0.8734334056 | T53: 0.871828679 | U53: 0.8701460198 | V53: 0.8683996905 | W53: 0.8666380382 | X53: 0.8648743358 | Y53: 0.8630539218 | Z53: 0.8611890393 | AA53: 0.8593228025 | AB53: 0.857454971 | AC53: 0.8555593184 | AD53: 0.853626477 | AE53: 0.8516907035 | AF53: 0.8496602032 | AG53: 0.8475070356 | AH53: 0.8453331484 | AI53: 0.8431358342 | AJ53: 0.8408871032 | AK53: 0.8386338563 | AL53: 0.8362206856 | AM53: 0.8337127635 | AN53: 0.8312004602 | AO53: 0.8286124635 | AP53: 0.8259030889 | AQ53: 0.8231202726 | AR53: 0.8202106 | AS53: 0.8172090183 | AT53: 0.814166799 | AU53: 0.8109106709 | AV53: 0.8073639731 | AW53: 0.8037531778 | AX53: 0.7999834724 | AY53: 0.795987893 | AZ53: 0.7919599889 | BA53: 0.7879116151 | BB53: 0.7833038457 | BC53: 0.7784021472 | BD53: 0.7725815403 | BE53: 0.7661166822 | BF53: 0.7590907595 | BG53: 0.7513649354 | BH53: 0.7432412745 | BI53: 0.7345789143 | BJ53: 0.7253018495 | BK53: 0.7158590969 | BL53: 0.706267434 | BM53: 0.6956101537 | BN53: 0.6840376177 | BO53: 0.6716985767 | BP53: 0.6563682328 | BQ53: 0.6372725234 | BR53: 0.6155244187 | BS53: 0.5894999324 | BT53: 0.5576299547 | BU53: 0.5160767304 | BV53: 0.4666990252 | BW53: 0.4124479346 | BX53: 0.3560030218 | BY53: 0.299175154 | BZ53: 0.2418639947 | CA53: 0.1838769321 | CB53: 0.124793412 | CC53: 0.06370066856 | CD53: 0
A54: 3.25 | B54: 0.896584992 | C54: 0.8954620864 | D54: 0.8943275769 | E54: 0.8931358912 | F54: 0.8919431103 | G54: 0.8907362377 | H54: 0.8895183501 | I54: 0.8882654282 | J54: 0.8870056492 | K54: 0.8857452518 | L54: 0.8844837749 | M54: 0.8831874395 | N54: 0.881804138 | O54: 0.8804198773 | P54: 0.8790342998 | Q54: 0.8776387505 | R54: 0.8761716344 | S54: 0.8747024056 | T54: 0.8730985534 | U54: 0.8714158942 | V54: 0.8696955862 | W54: 0.8679600895 | X54: 0.8661571427 | Y54: 0.8643229218 | Z54: 0.8624580393 | AA54: 0.8605918025 | AB54: 0.8587058605 | AC54: 0.8567754434 | AD54: 0.854842602 | AE54: 0.8529068285 | AF54: 0.8509292032 | AG54: 0.8488086144 | AH54: 0.846650408 | AI54: 0.8444048342 | AJ54: 0.8421561032 | AK54: 0.8398916362 | AL54: 0.8374368106 | AM54: 0.8349288885 | AN54: 0.8323920381 | AO54: 0.8297228385 | AP54: 0.8270134639 | AQ54: 0.8242663304 | AR54: 0.82137385 | AS54: 0.8184251433 | AT54: 0.8152587423 | AU54: 0.8119158696 | AV54: 0.8084209039 | AW54: 0.804804578 | AX54: 0.8010401025 | AY54: 0.797045393 | AZ54: 0.7930174889 | BA54: 0.7889162401 | BB54: 0.7843084707 | BC54: 0.7793863477 | BD54: 0.7736633043 | BE54: 0.7672270572 | BF54: 0.7601413977 | BG54: 0.7524090419 | BH54: 0.7442376839 | BI54: 0.7354249143 | BJ54: 0.7261478495 | BK54: 0.7167050969 | BL54: 0.707060559 | BM54: 0.6963504037 | BN54: 0.6849364927 | BO54: 0.6725012031 | BP54: 0.6570304627 | BQ54: 0.6380127734 | BR54: 0.6162117937 | BS54: 0.5900815574 | BT54: 0.5580529547 | BU54: 0.51629746 | BV54: 0.4668576502 | BW54: 0.4124479346 | BX54: 0.3560030218 | BY54: 0.299175154 | BZ54: 0.2418639947 | CA54: 0.1838769321 | CB54: 0.124793412 | CC54: 0.06370066856 | CD54: 0
A55: 3.3125 | B55: 0.8976188339 | C55: 0.8965195864 | D55: 0.8953866559 | E55: 0.8942462662 | F55: 0.8930534853 | G55: 0.891860008 | H55: 0.8906658743 | I55: 0.8894286782 | J55: 0.8881688992 | K55: 0.8869085018 | L55: 0.8856470249 | M55: 0.8843696962 | N55: 0.883020263 | O55: 0.8816360023 | P55: 0.8802504248 | Q55: 0.8788639543 | R55: 0.8774406344 | S55: 0.8759714056 | T55: 0.8743684278 | U55: 0.8726857586 | V55: 0.8709646693 | W55: 0.8692002483 | X55: 0.8674261427 | Y55: 0.8655919218 | Z55: 0.8637270393 | AA55: 0.8618497577 | AB55: 0.8599219855 | AC55: 0.8579915684 | AD55: 0.856058727 | AE55: 0.8541229535 | AF55: 0.8521570206 | AG55: 0.8500776144 | AH55: 0.8478975799 | AI55: 0.8456738342 | AJ55: 0.8434251032 | AK55: 0.8411077612 | AL55: 0.8386529356 | AM55: 0.8361450135 | AN55: 0.8335038339 | AO55: 0.8308332135 | AP55: 0.8281238389 | AQ55: 0.8253767054 | AR55: 0.8225218709 | AS55: 0.819532405 | AT55: 0.8163025404 | AU55: 0.8129204946 | AV55: 0.8094255289 | AW55: 0.805807547 | AX55: 0.8020150738 | AY55: 0.79808853 | AZ55: 0.7940668727 | BA55: 0.7899208651 | BB55: 0.7852981141 | BC55: 0.7802905672 | BD55: 0.774706474 | BE55: 0.7683374322 | BF55: 0.7611288001 | BG55: 0.7534136669 | BH55: 0.7451627699 | BI55: 0.7362709143 | BJ55: 0.7269938495 | BK55: 0.7175510969 | BL55: 0.7078049826 | BM55: 0.6970888953 | BN55: 0.6857848212 | BO55: 0.6732943281 | BP55: 0.6576506635 | BQ55: 0.6387204404 | BR55: 0.6168777451 | BS55: 0.5906207264 | BT55: 0.5584759547 | BU55: 0.516456085 | BV55: 0.4670162752 | BW55: 0.4124479346 | BX55: 0.3560030218 | BY55: 0.299175154 | BZ55: 0.2418639947 | CA55: 0.1838769321 | CB55: 0.124793412 | CC55: 0.06370066856 | CD55: 0
A56: 3.375 | B56: 0.8985705839 | C56: 0.8974899088 | D56: 0.8963992218 | E56: 0.8953042785 | F56: 0.8941638603 | G56: 0.892970383 | H56: 0.8917762493 | I56: 0.8905470933 | J56: 0.8893110937 | K56: 0.8880717518 | L56: 0.8868102749 | M56: 0.8855329462 | N56: 0.8841854015 | O56: 0.8828369201 | P56: 0.8814665498 | Q56: 0.8800800793 | R56: 0.8786927891 | S56: 0.8772404056 | T56: 0.8756381992 | U56: 0.8739547586 | V56: 0.872188798 | W56: 0.8704163733 | X56: 0.8686425152 | Y56: 0.8668483479 | Z56: 0.8649920657 | AA56: 0.8630658827 | AB56: 0.8611381105 | AC56: 0.8592076934 | AD56: 0.857274852 | AE56: 0.8553390785 | AF56: 0.8533731456 | AG56: 0.8512878994 | AH56: 0.8491137049 | AI56: 0.8469194787 | AJ56: 0.8446509314 | AK56: 0.8423238862 | AL56: 0.8398690606 | AM56: 0.8372819845 | AN56: 0.8346142089 | AO56: 0.8319435885 | AP56: 0.8292342139 | AQ56: 0.8264870804 | AR56: 0.8236156815 | AS56: 0.8205335752 | AT56: 0.8172700303 | AU56: 0.8139251196 | AV56: 0.8104048852 | AW56: 0.8067137372 | AX56: 0.8029641632 | AY56: 0.799076416 | AZ56: 0.7950567442 | BA56: 0.7909254901 | BB56: 0.7862498641 | BC56: 0.7811894422 | BD56: 0.775711099 | BE56: 0.7693574524 | BF56: 0.7620805501 | BG56: 0.7543362979 | BH56: 0.746027378 | BI56: 0.7371004615 | BJ56: 0.7278398495 | BK56: 0.7183970969 | BL56: 0.7085238936 | BM56: 0.6977762703 | BN56: 0.6865779462 | BO56: 0.6740536926 | BP56: 0.6582322885 | BQ56: 0.6393955464 | BR56: 0.617494119 | BS56: 0.5910966014 | BT56: 0.5588989547 | BU56: 0.51661471 | BV56: 0.4671301162 | BW56: 0.4124479346 | BX56: 0.3560030218 | BY56: 0.299175154 | BZ56: 0.2418639947 | CA56: 0.1838769321 | CB56: 0.124793412 | CC56: 0.06370066856 | CD56: 0
A57: 3.4375 | B57: 0.8995223339 | C57: 0.8984416588 | D57: 0.8973509718 | E57: 0.8962582478 | F57: 0.8951645371 | G57: 0.8940570228 | H57: 0.8928866243 | I57: 0.8916574683 | J57: 0.8904214687 | K57: 0.8891848586 | L57: 0.8879471762 | M57: 0.8866936638 | N57: 0.8853486515 | O57: 0.8840001701 | P57: 0.8826504979 | Q57: 0.8812962043 | R57: 0.8799089141 | S57: 0.8785094056 | T57: 0.8769071992 | U57: 0.8751759856 | V57: 0.873404923 | W57: 0.8716324983 | X57: 0.8698586402 | Y57: 0.8680644729 | Z57: 0.8661828773 | AA57: 0.8642820077 | AB57: 0.8623542355 | AC57: 0.8604238184 | AD57: 0.858490977 | AE57: 0.8565552035 | AF57: 0.8545607665 | AG57: 0.8524511494 | AH57: 0.8503298299 | AI57: 0.8481133347 | AJ57: 0.8458421837 | AK57: 0.8435400112 | AL57: 0.84105584 | AM57: 0.8383923595 | AN57: 0.8357245839 | AO57: 0.8330539635 | AP57: 0.8303445889 | AQ57: 0.8275974554 | AR57: 0.8246378468 | AS57: 0.8214853252 | AT57: 0.8182217803 | AU57: 0.8149044199 | AV57: 0.8113566352 | AW57: 0.8076126122 | AX57: 0.8038630382 | AY57: 0.8000169477 | AZ57: 0.7960048066 | BA57: 0.7919113421 | BB57: 0.7871667902 | BC57: 0.7820883172 | BD57: 0.7766488248 | BE57: 0.7702687606 | BF57: 0.7630242528 | BG57: 0.7552310817 | BH57: 0.7468018486 | BI57: 0.7378935865 | BJ57: 0.7286858495 | BK57: 0.7192430969 | BL57: 0.7092112686 | BM57: 0.6984636453 | BN57: 0.6873710712 | BO57: 0.6746928851 | BP57: 0.6588139135 | BQ57: 0.6400300464 | BR57: 0.618075744 | BS57: 0.5915724764 | BT57: 0.5592786233 | BU57: 0.516773335 | BV57: 0.4672358662 | BW57: 0.4124479346 | BX57: 0.3560030218 | BY57: 0.299175154 | BZ57: 0.2418639947 | CA57: 0.1838769321 | CB57: 0.124793412 | CC57: 0.06370066856 | CD57: 0
A58: 3.5 | B58: 0.9004740839 | C58: 0.8993934088 | D58: 0.8983027218 | E58: 0.8972099978 | F58: 0.8961162871 | G58: 0.895021956 | H58: 0.8939099527 | I58: 0.8927233567 | J58: 0.8915200808 | K58: 0.8902952336 | L58: 0.8890575512 | M58: 0.8878040388 | N58: 0.8864803202 | O58: 0.8851556707 | P58: 0.8838137479 | Q58: 0.8824632633 | R58: 0.8811119613 | S58: 0.8797349489 | T58: 0.8781255245 | U58: 0.8763921106 | V58: 0.874621048 | W58: 0.8728486233 | X58: 0.8710747652 | Y58: 0.8692308008 | Z58: 0.8673461273 | AA58: 0.8654601285 | AB58: 0.8635703605 | AC58: 0.8616399434 | AD58: 0.859707102 | AE58: 0.8577572567 | AF58: 0.8557240165 | AG58: 0.8536143994 | AH58: 0.8515014749 | AI58: 0.8492765847 | AJ58: 0.8470054337 | AK58: 0.8447297608 | AL58: 0.842166215 | AM58: 0.8395027345 | AN58: 0.8368349589 | AO58: 0.8341643385 | AP58: 0.8314549639 | AQ58: 0.8286721079 | AR58: 0.8255895968 | AS58: 0.8224370752 | AT58: 0.8191735303 | AU58: 0.815822156 | AV58: 0.8122445474 | AW58: 0.8085114872 | AX58: 0.8047619132 | AY58: 0.8008629477 | AZ58: 0.7968991394 | BA58: 0.7928102171 | BB58: 0.7880656652 | BC58: 0.7829871922 | BD58: 0.7775460215 | BE58: 0.7711676356 | BF58: 0.7639219662 | BG58: 0.7560515933 | BH58: 0.7475420986 | BI58: 0.7386867115 | BJ58: 0.729507215 | BK58: 0.7200365381 | BL58: 0.7098986436 | BM58: 0.6991510203 | BN58: 0.688097459 | BO58: 0.6753273851 | BP58: 0.6593955385 | BQ58: 0.6406199531 | BR58: 0.618657369 | BS58: 0.5920483514 | BT58: 0.5596487483 | BU58: 0.51693196 | BV58: 0.4673416162 | BW58: 0.4124479346 | BX58: 0.3560030218 | BY58: 0.299175154 | BZ58: 0.2418639947 | CA58: 0.1838769321 | CB58: 0.124793412 | CC58: 0.06370066856 | CD58: 0
A59: 3.5625 | B59: 0.9014258339 | C59: 0.9003451588 | D59: 0.8992544718 | E59: 0.8981617478 | F59: 0.8970680371 | G59: 0.895973706 | H59: 0.894878798 | I59: 0.8937279817 | J59: 0.8925345747 | K59: 0.8913405885 | L59: 0.8901429208 | M59: 0.8889092344 | N59: 0.8875906952 | O59: 0.8862660457 | P59: 0.8849402201 | Q59: 0.8836135974 | R59: 0.8822716084 | S59: 0.8808682672 | T59: 0.8793258912 | U59: 0.8776082356 | V59: 0.875837173 | W59: 0.8740647483 | X59: 0.8722481429 | Y59: 0.8703940508 | Z59: 0.8685093773 | AA59: 0.8666233785 | AB59: 0.8647358326 | AC59: 0.862845688 | AD59: 0.860923227 | AE59: 0.8589205067 | AF59: 0.8568872665 | AG59: 0.8547776494 | AH59: 0.8526118499 | AI59: 0.8504222725 | AJ59: 0.8481686837 | AK59: 0.8458077267 | AL59: 0.8432487335 | AM59: 0.8406131095 | AN59: 0.8379453339 | AO59: 0.8352747135 | AP59: 0.8325633331 | AQ59: 0.8296593628 | AR59: 0.8265413468 | AS59: 0.8233888252 | AT59: 0.8201252803 | AU59: 0.8167169749 | AV59: 0.8130905474 | AW59: 0.8094103622 | AX59: 0.8056607882 | AY59: 0.8017089477 | AZ59: 0.7977451394 | BA59: 0.793638169 | BB59: 0.7889326539 | BC59: 0.7838860672 | BD59: 0.7783581013 | BE59: 0.7720665106 | BF59: 0.764726935 | BG59: 0.7568255478 | BH59: 0.7482823486 | BI59: 0.7394296798 | BJ59: 0.73030034 | BK59: 0.7208296631 | BL59: 0.7105860186 | BM59: 0.6998383953 | BN59: 0.688731959 | BO59: 0.6759097156 | BP59: 0.6599771635 | BQ59: 0.6411775731 | BR59: 0.619238994 | BS59: 0.5925216512 | BT59: 0.5600176519 | BU59: 0.517090585 | BV59: 0.4674473662 | BW59: 0.4124479346 | BX59: 0.3560030218 | BY59: 0.299175154 | BZ59: 0.2418639947 | CA59: 0.1838769321 | CB59: 0.124793412 | CC59: 0.06370066856 | CD59: 0
A60: 3.625 | B60: 0.9023775839 | C60: 0.9012969088 | D60: 0.9002062218 | E60: 0.8991134978 | F60: 0.8980197871 | G60: 0.896925456 | H60: 0.895830548 | I60: 0.8947007745 | J60: 0.8935391997 | K60: 0.8923452135 | L60: 0.8911501978 | M60: 0.8899393936 | N60: 0.8886584237 | O60: 0.8873580717 | P60: 0.8860505951 | Q60: 0.8847174677 | R60: 0.8833400593 | S60: 0.8819616986 | T60: 0.8804423666 | U60: 0.8788136331 | V60: 0.877053298 | W60: 0.8752451586 | X60: 0.8734113929 | Y60: 0.8715573008 | Z60: 0.8696726273 | AA60: 0.8677866285 | AB60: 0.8658990826 | AC60: 0.864008938 | AD60: 0.8620638717 | AE60: 0.8600837567 | AF60: 0.8580505165 | AG60: 0.8559075479 | AH60: 0.8537222249 | AI60: 0.8515326475 | AJ60: 0.8492965074 | AK60: 0.8468652267 | AL60: 0.8443062335 | AM60: 0.8416941622 | AN60: 0.8390557089 | AO60: 0.8363850885 | AP60: 0.8336205081 | AQ60: 0.8306111128 | AR60: 0.8274930968 | AS60: 0.8243405752 | AT60: 0.8210342637 | AU60: 0.8175629749 | AV60: 0.8139365474 | AW60: 0.81025661 | AX60: 0.8065110328 | AY60: 0.8025549477 | AZ60: 0.7985458391 | BA60: 0.794378419 | BB60: 0.7897427284 | BC60: 0.7847849422 | BD60: 0.7791512263 | BE60: 0.7729391614 | BF60: 0.76552006 | BG60: 0.7575213795 | BH60: 0.7490225986 | BI60: 0.7401699298 | BJ60: 0.7310648143 | BK60: 0.7215462071 | BL60: 0.7112733936 | BM60: 0.7005257703 | BN60: 0.6893313633 | BO60: 0.6764265166 | BP60: 0.6605068845 | BQ60: 0.6416717503 | BR60: 0.6197909488 | BS60: 0.5929446512 | BT60: 0.5603349019 | BU60: 0.51724921 | BV60: 0.4675462066 | BW60: 0.4124479346 | BX60: 0.3560030218 | BY60: 0.299175154 | BZ60: 0.2418639947 | CA60: 0.1838769321 | CB60: 0.124793412 | CC60: 0.06370066856 | CD60: 0
A61: 3.6875 | B61: 0.9033293339 | C61: 0.9022486588 | D61: 0.9011579718 | E61: 0.9000652478 | F61: 0.8989715371 | G61: 0.897877206 | H61: 0.896782298 | I61: 0.8956525245 | J61: 0.8945159883 | K61: 0.8933498385 | L61: 0.8921548228 | M61: 0.8909440186 | N61: 0.8896630487 | O61: 0.8883812022 | P61: 0.8870888136 | Q61: 0.8857435152 | R61: 0.8843860305 | S61: 0.8830191986 | T61: 0.8815086709 | U61: 0.8799187491 | V61: 0.8782132029 | W61: 0.8764084086 | X61: 0.8745746429 | Y61: 0.8727205508 | Z61: 0.8708358773 | AA61: 0.8689498785 | AB61: 0.8670623326 | AC61: 0.8651340713 | AD61: 0.8631742467 | AE61: 0.8612115174 | AF61: 0.8592012958 | AG61: 0.8570179229 | AH61: 0.8548325999 | AI61: 0.8526430225 | AJ61: 0.8503091715 | AK61: 0.8479227267 | AL61: 0.8453637335 | AM61: 0.8427516622 | AN61: 0.8401353151 | AO61: 0.8374742995 | AP61: 0.8345731842 | AQ61: 0.8315628628 | AR61: 0.8284448468 | AS61: 0.8252923252 | AT61: 0.8219234712 | AU61: 0.8184089749 | AV61: 0.8147825474 | AW61: 0.81110261 | AX61: 0.8073173426 | AY61: 0.8034009477 | AZ61: 0.7993295532 | BA61: 0.795118669 | BB61: 0.7904829784 | BC61: 0.7856330117 | BD61: 0.7799443513 | BE61: 0.7736907386 | BF61: 0.7662887395 | BG61: 0.7582087545 | BH61: 0.7497327207 | BI61: 0.7409101798 | BJ61: 0.7318050643 | BK61: 0.7222335821 | BL61: 0.7119607686 | BM61: 0.7012131453 | BN61: 0.6898642141 | BO61: 0.6769023916 | BP61: 0.6609734481 | BQ61: 0.6421476253 | BR61: 0.6202894837 | BS61: 0.5933676512 | BT61: 0.5606521519 | BU61: 0.517407835 | BV61: 0.4675990816 | BW61: 0.4124479346 | BX61: 0.3560030218 | BY61: 0.299175154 | BZ61: 0.2418639947 | CA61: 0.1838769321 | CB61: 0.124793412 | CC61: 0.06370066856 | CD61: 0
A62: 3.75 | B62: 0.9042810839 | C62: 0.9032004088 | D62: 0.9021097218 | E62: 0.9010169978 | F62: 0.8999232871 | G62: 0.898828956 | H62: 0.897734048 | I62: 0.8966042745 | J62: 0.8954677383 | K62: 0.8943306757 | L62: 0.8931594478 | M62: 0.8919486436 | N62: 0.8906676737 | O62: 0.8893735419 | P62: 0.8880405636 | Q62: 0.8867068497 | R62: 0.8853723702 | S62: 0.8840322249 | T62: 0.8825416421 | U62: 0.880950031 | V62: 0.8792672648 | W62: 0.8775131651 | X62: 0.8757297021 | Y62: 0.8738838008 | Z62: 0.8719991273 | AA62: 0.8701131285 | AB62: 0.8682018523 | AC62: 0.8662444463 | AD62: 0.8642846217 | AE62: 0.8623218924 | AF62: 0.8602636338 | AG62: 0.8581205959 | AH62: 0.8559429749 | AI62: 0.8536620751 | AJ62: 0.8513137965 | AK62: 0.8489610523 | AL62: 0.8464212335 | AM62: 0.8438091622 | AN62: 0.8411928151 | AO62: 0.8384675222 | AP62: 0.8355249342 | AQ62: 0.8325146128 | AR62: 0.8293965968 | AS62: 0.8261925615 | AT62: 0.8227694712 | AU62: 0.8192549749 | AV62: 0.8156285474 | AW62: 0.81194861 | AX62: 0.8081104676 | AY62: 0.8041863753 | AZ62: 0.8000698032 | BA62: 0.795858919 | BB62: 0.7912232284 | BC62: 0.7862825362 | BD62: 0.7807299573 | BE62: 0.7743781136 | BF62: 0.7670289895 | BG62: 0.7588700681 | BH62: 0.7504200957 | BI62: 0.7416504298 | BJ62: 0.7325453143 | BK62: 0.7229209571 | BL62: 0.7126089835 | BM62: 0.7018949224 | BN62: 0.6903929641 | BO62: 0.6773782666 | BP62: 0.6613964481 | BQ62: 0.6425849141 | BR62: 0.6207653587 | BS62: 0.5937906512 | BT62: 0.5609558848 | BU62: 0.51756646 | BV62: 0.4676519566 | BW62: 0.4124479346 | BX62: 0.3560030218 | BY62: 0.299175154 | BZ62: 0.2418639947 | CA62: 0.1838769321 | CB62: 0.124793412 | CC62: 0.06370066856 | CD62: 0
A63: 3.8125 | B63: 0.9052328339 | C63: 0.9041521588 | D63: 0.9030614718 | E63: 0.9019687478 | F63: 0.9008750371 | G63: 0.899780706 | H63: 0.898685798 | I63: 0.8975560245 | J63: 0.8964194883 | K63: 0.8952824257 | L63: 0.8941443719 | M63: 0.8929532686 | N63: 0.8916571251 | O63: 0.8903252919 | P63: 0.8889923136 | Q63: 0.8876585997 | R63: 0.8863241202 | S63: 0.8849887284 | T63: 0.8835065549 | U63: 0.8818997805 | V63: 0.8802344312 | W63: 0.8785531844 | X63: 0.8768007882 | Y63: 0.8750106188 | Z63: 0.8731623773 | AA63: 0.8712669875 | AB63: 0.8693122273 | AC63: 0.8673548213 | AD63: 0.8653949967 | AE63: 0.8633877887 | AF63: 0.8613211338 | AG63: 0.8591780959 | AH63: 0.8569916358 | AI63: 0.8546667001 | AJ63: 0.8523184215 | AK63: 0.8499656773 | AL63: 0.8474787335 | AM63: 0.8448666622 | AN63: 0.8422100079 | AO63: 0.8393663972 | AP63: 0.836443038 | AQ63: 0.8334663628 | AR63: 0.8303409606 | AS63: 0.8270761527 | AT63: 0.8236154712 | AU63: 0.8201009749 | AV63: 0.8164745474 | AW63: 0.8127895612 | AX63: 0.8089035926 | AY63: 0.8049266253 | AZ63: 0.800796447 | BA63: 0.796599169 | BB63: 0.7919616179 | BC63: 0.7869170362 | BD63: 0.7814173323 | BE63: 0.7750587934 | BF63: 0.7676865593 | BG63: 0.7595045681 | BH63: 0.7511074707 | BI63: 0.7423504293 | BJ63: 0.7332705658 | BK63: 0.7236083321 | BL63: 0.7132434835 | BM63: 0.7025294224 | BN63: 0.6909217141 | BO63: 0.6778418207 | BP63: 0.6617480845 | BQ63: 0.6430079141 | BR63: 0.6212412337 | BS63: 0.5942136512 | BT63: 0.5612202598 | BU63: 0.517725085 | BV63: 0.4677048316 | BW63: 0.4124479346 | BX63: 0.3560030218 | BY63: 0.299175154 | BZ63: 0.2418639947 | CA63: 0.1838769321 | CB63: 0.124793412 | CC63: 0.06370066856 | CD63: 0
A64: 3.875 | B64: 0.9061845839 | C64: 0.9051039088 | D64: 0.9040132218 | E64: 0.9029204978 | F64: 0.9018267871 | G64: 0.900732456 | H64: 0.899637548 | I64: 0.8985077745 | J64: 0.8973712383 | K64: 0.8962341757 | L64: 0.8950961219 | M64: 0.893924242 | N64: 0.8926088751 | O64: 0.8912770419 | P64: 0.8899440636 | Q64: 0.8886103497 | R64: 0.8872758702 | S64: 0.8859328421 | T64: 0.8844054299 | U64: 0.8827986555 | V64: 0.8811543975 | W64: 0.8795089543 | X64: 0.8778079242 | Y64: 0.876037755 | Z64: 0.8742370788 | AA64: 0.8723632042 | AB64: 0.8704226023 | AC64: 0.8684651963 | AD64: 0.866481735 | AE64: 0.8644452887 | AF64: 0.8623786338 | AG64: 0.8602355959 | AH64: 0.8579433858 | AI64: 0.8556385546 | AJ64: 0.8533230465 | AK64: 0.8509703023 | AL64: 0.8484899016 | AM64: 0.8459176 | AN64: 0.8431499022 | AO64: 0.8402652722 | AP64: 0.837341913 | AQ64: 0.8343830395 | AR64: 0.8312398356 | AS64: 0.8279221527 | AT64: 0.8244614712 | AU64: 0.8209469749 | AV64: 0.8173205474 | AW64: 0.8135826862 | AX64: 0.8096757259 | AY64: 0.8056173236 | AZ64: 0.801483822 | BA64: 0.7973393174 | BB64: 0.7926353242 | BC64: 0.7875515362 | BD64: 0.782080807 | BE64: 0.7756313845 | BF64: 0.7683142103 | BG64: 0.7601390681 | BH64: 0.7517948457 | BI64: 0.7430378043 | BJ64: 0.7339579408 | BK64: 0.7242957071 | BL64: 0.7138779835 | BM64: 0.7031177125 | BN64: 0.6914162826 | BO64: 0.6782648207 | BP64: 0.6620653345 | BQ64: 0.6434051827 | BR64: 0.6216801667 | BS64: 0.5946366512 | BT64: 0.5614846348 | BU64: 0.51788371 | BV64: 0.4677577066 | BW64: 0.4124479346 | BX64: 0.3560030218 | BY64: 0.299175154 | BZ64: 0.2418639947 | CA64: 0.1838769321 | CB64: 0.124793412 | CC64: 0.06370066856 | CD64: 0
A65: 3.9375 | B65: 0.9071363339 | C65: 0.9060556588 | D65: 0.9049649718 | E65: 0.9038722478 | F65: 0.9027785371 | G65: 0.901684206 | H65: 0.900589298 | I65: 0.8994595245 | J65: 0.8983229883 | K65: 0.8971859257 | L65: 0.8960269217 | M65: 0.894823117 | N65: 0.8935491757 | O65: 0.8922287919 | P65: 0.8908958136 | Q65: 0.8895620997 | R65: 0.8882269819 | S65: 0.8868317171 | T65: 0.8853043049 | U65: 0.8836975305 | V65: 0.8820532725 | W65: 0.8804078293 | X65: 0.8787614867 | Y65: 0.8770270682 | Z65: 0.875193772 | AA65: 0.873324612 | AB65: 0.8714541528 | AC65: 0.8695639705 | AD65: 0.867539235 | AE65: 0.8655027887 | AF65: 0.8634361338 | AG65: 0.8611957081 | AH65: 0.8588951358 | AI65: 0.8565903046 | AJ65: 0.8542823967 | AK65: 0.8519700688 | AL65: 0.8494945266 | AM65: 0.8469004718 | AN65: 0.8440487772 | AO65: 0.8411641472 | AP65: 0.838240788 | AQ65: 0.8352657767 | AR65: 0.8320813067 | AS65: 0.8287681527 | AT65: 0.8253074712 | AU65: 0.8217929749 | AV65: 0.8181665474 | AW65: 0.8143758112 | AX65: 0.8104159759 | AY65: 0.8063046986 | AZ65: 0.802171197 | BA65: 0.7980266924 | BB65: 0.7932698242 | BC65: 0.7881860362 | BD65: 0.7827051939 | BE65: 0.7761601345 | BF65: 0.7688181396 | BG65: 0.7607666453 | BH65: 0.7524715045 | BI65: 0.7437251793 | BJ65: 0.7345950472 | BK65: 0.7249830821 | BL65: 0.7145124835 | BM65: 0.703678965 | BN65: 0.6918486211 | BO65: 0.6786878207 | BP65: 0.6623825845 | BQ65: 0.6437310651 | BR65: 0.6221031667 | BS65: 0.5950596512 | BT65: 0.5617490098 | BU65: 0.518042335 | BV65: 0.4678105816 | BW65: 0.4124479346 | BX65: 0.3560030218 | BY65: 0.299175154 | BZ65: 0.2418639947 | CA65: 0.1838769321 | CB65: 0.124793412 | CC65: 0.06370066856 | CD65: 0
A66: 4 | B66: 0.9080454626 | C66: 0.9069830873 | D66: 0.9059107138 | E66: 0.9048239978 | F66: 0.9037302871 | G66: 0.902635956 | H66: 0.901541048 | I66: 0.9004112745 | J66: 0.8992747383 | K66: 0.8981138372 | L66: 0.8969257967 | M66: 0.895721992 | N66: 0.8944480507 | O66: 0.8931732727 | P66: 0.8918475636 | Q66: 0.8905138497 | R66: 0.8891258569 | S66: 0.8877305921 | T66: 0.8862031799 | U66: 0.8845964055 | V66: 0.8829521475 | W66: 0.8813067043 | X66: 0.8796603617 | Y66: 0.8779452142 | Z66: 0.8761004705 | AA66: 0.8742545149 | AB66: 0.8724059028 | AC66: 0.8704772083 | AD66: 0.8685281623 | AE66: 0.8665418594 | AF66: 0.8644460761 | AG66: 0.8621474581 | AH66: 0.8598468858 | AI66: 0.8575420546 | AJ66: 0.8552341467 | AK66: 0.8529218188 | AL66: 0.850456177 | AM66: 0.8477559571 | AN66: 0.8449476522 | AO66: 0.8420630222 | AP66: 0.839139663 | AQ66: 0.8361117767 | AR66: 0.8328744317 | AS66: 0.8295763018 | AT66: 0.8261534712 | AU66: 0.8226389749 | AV66: 0.8190125474 | AW66: 0.8151608475 | AX66: 0.8111194997 | AY66: 0.8069920736 | AZ66: 0.802858572 | BA66: 0.7987140674 | BB66: 0.7939043242 | BC66: 0.7888205362 | BD66: 0.7832868189 | BE66: 0.7766619146 | BF66: 0.7692411396 | BG66: 0.7613412738 | BH66: 0.7530992237 | BI66: 0.7444125543 | BJ66: 0.7352295472 | BK66: 0.7256555912 | BL66: 0.7151469835 | BM66: 0.704207715 | BN66: 0.6922716211 | BO66: 0.6791044669 | BP66: 0.6626998345 | BQ66: 0.6439954401 | BR66: 0.6225261667 | BS66: 0.5954826512 | BT66: 0.5620133848 | BU66: 0.51820096 | BV66: 0.4678634566 | BW66: 0.4124479346 | BX66: 0.3560030218 | BY66: 0.299175154 | BZ66: 0.2418639947 | CA66: 0.1838769321 | CB66: 0.124793412 | CC66: 0.06370066856 | CD66: 0
A67: 4.0625 | B67: 0.9089091605 | C67: 0.9078819623 | D67: 0.9068095888 | E67: 0.9057351949 | F67: 0.9046598475 | G67: 0.9035838846 | H67: 0.902492798 | I67: 0.9013630245 | J67: 0.9001997614 | K67: 0.8990127122 | L67: 0.8978246717 | M67: 0.896620867 | N67: 0.8953469257 | O67: 0.8940721477 | P67: 0.8927962855 | Q67: 0.8914190844 | R67: 0.8900247319 | S67: 0.8886294671 | T67: 0.8871020549 | U67: 0.8854952805 | V67: 0.8838510225 | W67: 0.8822055793 | X67: 0.880539956 | Y67: 0.8788071072 | Z67: 0.8769993455 | AA67: 0.8751533899 | AB67: 0.8732713214 | AC67: 0.8713491288 | AD67: 0.869424625 | AE67: 0.8674720858 | AF67: 0.8653219541 | AG67: 0.863071089 | AH67: 0.860790861 | AI67: 0.8584938046 | AJ67: 0.8561858967 | AK67: 0.8538735688 | AL67: 0.8513306233 | AM67: 0.8485729981 | AN67: 0.845798924 | AO67: 0.8429618972 | AP67: 0.8400136488 | AQ67: 0.836931176 | AR67: 0.8336675567 | AS67: 0.8303694268 | AT67: 0.8269602899 | AU67: 0.8234849749 | AV67: 0.8198441909 | AW67: 0.8159010975 | AX67: 0.8118068747 | AY67: 0.8076794486 | AZ67: 0.803545947 | BA67: 0.7993714982 | BB67: 0.7945388242 | BC67: 0.7894201203 | BD67: 0.783838075 | BE67: 0.7771377896 | BF67: 0.7696641396 | BG67: 0.7618700238 | BH67: 0.7536808487 | BI67: 0.7450553548 | BJ67: 0.7358640472 | BK67: 0.7262372162 | BL67: 0.7157417187 | BM67: 0.704736465 | BN67: 0.6926946211 | BO67: 0.6794745919 | BP67: 0.6630108682 | BQ67: 0.6442598151 | BR67: 0.6229390444 | BS67: 0.5959056512 | BT67: 0.5622777598 | BU67: 0.518359585 | BV67: 0.4679163316 | BW67: 0.4124479346 | BX67: 0.3560030218 | BY67: 0.299175154 | BZ67: 0.2418639947 | CA67: 0.1838769321 | CB67: 0.124793412 | CC67: 0.06370066856 | CD67: 0
A68: 4.125 | B68: 0.9097551605 | C68: 0.9087475895 | D68: 0.9077084638 | E68: 0.9066340699 | F68: 0.9055587225 | G68: 0.9044827596 | H68: 0.9034062285 | I68: 0.9022652263 | J68: 0.9010971021 | K68: 0.8999115872 | L68: 0.8987235467 | M68: 0.897519742 | N68: 0.8962458007 | O68: 0.8949710227 | P68: 0.8936556433 | Q68: 0.8923179594 | R68: 0.8909236069 | S68: 0.8895283421 | T68: 0.8880009299 | U68: 0.8863941555 | V68: 0.8847498975 | W68: 0.883099511 | X68: 0.881385956 | Y68: 0.8796531072 | Z68: 0.8778897798 | AA68: 0.8760382155 | AB68: 0.8741173214 | AC68: 0.8721951288 | AD68: 0.870270625 | AE68: 0.8682397926 | AF68: 0.8661270544 | AG68: 0.863917683 | AH68: 0.861665491 | AI68: 0.8594052857 | AJ68: 0.8571177798 | AK68: 0.8547805306 | AL68: 0.8521237483 | AM68: 0.8493661231 | AN68: 0.8466046206 | AO68: 0.8438390904 | AP68: 0.8408596488 | AQ68: 0.837724301 | AR68: 0.8344606817 | AS68: 0.8311625518 | AT68: 0.8277534149 | AU68: 0.8242905002 | AV68: 0.8206373159 | AW68: 0.8166174468 | AX68: 0.8124942497 | AY68: 0.8083668236 | AZ68: 0.804233322 | BA68: 0.8000059982 | BB68: 0.7951733242 | BC68: 0.7900017453 | BD68: 0.78431395 | BE68: 0.7775766202 | BF68: 0.7700871396 | BG68: 0.7623987738 | BH68: 0.7542186909 | BI68: 0.7456369798 | BJ68: 0.7364927998 | BK68: 0.7268188412 | BL68: 0.7163233437 | BM68: 0.705265215 | BN68: 0.6931176211 | BO68: 0.6798301752 | BP68: 0.6632752432 | BQ68: 0.6445241901 | BR68: 0.6233091694 | BS68: 0.5963065402 | BT68: 0.5625421348 | BU68: 0.51851821 | BV68: 0.4679692066 | BW68: 0.4124479346 | BX68: 0.3560030218 | BY68: 0.299175154 | BZ68: 0.2418639947 | CA68: 0.1838769321 | CB68: 0.124793412 | CC68: 0.06370066856 | CD68: 0
A69: 4.1875 | B69: 0.9106011605 | C69: 0.9095935895 | D69: 0.9085760645 | E69: 0.9075329449 | F69: 0.9064575975 | G69: 0.9053816346 | H69: 0.9042726119 | I69: 0.9031112263 | J69: 0.9019431021 | K69: 0.9007744673 | L69: 0.8996048517 | M69: 0.898418617 | N69: 0.8971446757 | O69: 0.8958373784 | P69: 0.8945016433 | Q69: 0.893165204 | R69: 0.8918224819 | S69: 0.8904272171 | T69: 0.8888998049 | U69: 0.8872930305 | V69: 0.8856487725 | W69: 0.883945511 | X69: 0.882231956 | Y69: 0.8804991072 | Z69: 0.8787357798 | AA69: 0.8768842155 | AB69: 0.8749633214 | AC69: 0.8730411288 | AD69: 0.8710629297 | AE69: 0.8689800426 | AF69: 0.8668673044 | AG69: 0.8646782649 | AH69: 0.8624873638 | AI69: 0.8602554894 | AJ69: 0.8579854708 | AK69: 0.8555698946 | AL69: 0.8528849675 | AM69: 0.8501477662 | AN69: 0.8473977456 | AO69: 0.8445998537 | AP69: 0.8416634214 | AQ69: 0.838517426 | AR69: 0.8352538067 | AS69: 0.8319556768 | AT69: 0.8285465399 | AU69: 0.8250836252 | AV69: 0.8213410429 | AW69: 0.8173048218 | AX69: 0.8131816247 | AY69: 0.8090541986 | AZ69: 0.804920697 | BA69: 0.8006404982 | BB69: 0.7958078242 | BC69: 0.7905833703 | BD69: 0.7847715437 | BE69: 0.7779996202 | BF69: 0.7705101396 | BG69: 0.7628858766 | BH69: 0.7547474409 | BI69: 0.7461707728 | BJ69: 0.7370744248 | BK69: 0.7273954389 | BL69: 0.7169049687 | BM69: 0.7057824833 | BN69: 0.6935406211 | BO69: 0.6801374436 | BP69: 0.6635056074 | BQ69: 0.6447885651 | BR69: 0.6236792944 | BS69: 0.5966766652 | BT69: 0.5628065098 | BU69: 0.518676835 | BV69: 0.4680220816 | BW69: 0.4124479346 | BX69: 0.3560030218 | BY69: 0.299175154 | BZ69: 0.2418639947 | CA69: 0.1838769321 | CB69: 0.124793412 | CC69: 0.06370066856 | CD69: 0
A70: 4.25 | B70: 0.9114471605 | C70: 0.9104395895 | D70: 0.9094220645 | E70: 0.9084025723 | F70: 0.9073564725 | G70: 0.9062451414 | H70: 0.9051186119 | I70: 0.9039572263 | J70: 0.9027891021 | K70: 0.9016204673 | L70: 0.9004508517 | M70: 0.8992654767 | N70: 0.8979845648 | O70: 0.8966682227 | P70: 0.8953476433 | Q70: 0.894011204 | R70: 0.8926740285 | S70: 0.8913260921 | T70: 0.8897986799 | U70: 0.8881919055 | V70: 0.8865041666 | W70: 0.884791511 | X70: 0.883077956 | Y70: 0.8813451072 | Z70: 0.8795817798 | AA70: 0.8777302155 | AB70: 0.8758093214 | AC70: 0.8738772264 | AD70: 0.8718031797 | AE70: 0.8697202926 | AF70: 0.8676075544 | AG70: 0.8654185149 | AH70: 0.8632276138 | AI70: 0.8610329973 | AJ70: 0.8587618267 | AK70: 0.8562655672 | AL70: 0.853609187 | AM70: 0.8508880162 | AN70: 0.8481469605 | AO70: 0.845316651 | AP70: 0.8423520971 | AQ70: 0.8392894276 | AR70: 0.8360469317 | AS70: 0.8327488018 | AT70: 0.8293396649 | AU70: 0.8258767502 | AV70: 0.8220173426 | AW70: 0.8179497641 | AX70: 0.8138689997 | AY70: 0.8097415736 | AZ70: 0.805561873 | BA70: 0.8012749982 | BB70: 0.7963968318 | BC70: 0.7911430808 | BD70: 0.7851945437 | BE70: 0.7784226202 | BF70: 0.7709331396 | BG70: 0.76332616 | BH70: 0.755267502 | BI70: 0.7466592532 | BJ70: 0.7376560498 | BK70: 0.7279241889 | BL70: 0.7174823911 | BM70: 0.7062583583 | BN70: 0.6939636211 | BO70: 0.6804018186 | BP70: 0.6637171074 | BQ70: 0.6450529401 | BR70: 0.6240494194 | BS70: 0.5970467902 | BT70: 0.5630708848 | BU70: 0.51883546 | BV70: 0.4680749566 | BW70: 0.4124479346 | BX70: 0.3560030218 | BY70: 0.299175154 | BZ70: 0.2418639947 | CA70: 0.1838769321 | CB70: 0.124793412 | CC70: 0.06370066856 | CD70: 0
A71: 4.3125 | B71: 0.9122931605 | C71: 0.9112855895 | D71: 0.9102680645 | E71: 0.9092485723 | F71: 0.9081903631 | G71: 0.9070911414 | H71: 0.9059646119 | I71: 0.9048032263 | J71: 0.9036351021 | K71: 0.9024664673 | L71: 0.9012968517 | M71: 0.9000932621 | N71: 0.8987776898 | O71: 0.8974613477 | P71: 0.8961440493 | Q71: 0.8948260497 | R71: 0.8935073148 | S71: 0.8921819683 | T71: 0.8906975549 | U71: 0.8890616371 | V71: 0.8873501666 | W71: 0.885637511 | X71: 0.883923956 | Y71: 0.8821911072 | Z71: 0.8804277798 | AA71: 0.8785762155 | AB71: 0.8766553214 | AC71: 0.8746235018 | AD71: 0.8725434297 | AE71: 0.8704605426 | AF71: 0.8683478044 | AG71: 0.8661587649 | AH71: 0.8639678638 | AI71: 0.861743178 | AJ71: 0.8594155503 | AK71: 0.8569114723 | AL71: 0.8542798772 | AM71: 0.8515880293 | AN71: 0.8488332391 | AO71: 0.845966004 | AP71: 0.8429865971 | AQ71: 0.8399717417 | AR71: 0.8367929403 | AS71: 0.8335419268 | AT71: 0.8301327899 | AU71: 0.8266344598 | AV71: 0.8226518426 | AW71: 0.8185842641 | AX71: 0.8145131915 | AY71: 0.8104289486 | AZ71: 0.806196373 | BA71: 0.8019094982 | BB71: 0.7969784568 | BC71: 0.7916718308 | BD71: 0.7856175437 | BE71: 0.7788456202 | BF71: 0.7713561396 | BG71: 0.76374916 | BH71: 0.755743377 | BI71: 0.7471351282 | BJ71: 0.7382376748 | BK71: 0.7284529389 | BL71: 0.7180111411 | BM71: 0.7067312491 | BN71: 0.6943832248 | BO71: 0.6806661936 | BP71: 0.6639286074 | BQ71: 0.6453173151 | BR71: 0.6244195444 | BS71: 0.5974169152 | BT71: 0.5633352598 | BU71: 0.518994085 | BV71: 0.4681278316 | BW71: 0.4124479346 | BX71: 0.3560030218 | BY71: 0.299175154 | BZ71: 0.2418639947 | CA71: 0.1838769321 | CB71: 0.124793412 | CC71: 0.06370066856 | CD71: 0
A72: 4.375 | B72: 0.9131391605 | C72: 0.9121315895 | D72: 0.9111140645 | E72: 0.9100534507 | F72: 0.9089834881 | G72: 0.9079130575 | H72: 0.9068106119 | I72: 0.9056492263 | J72: 0.9044811021 | K72: 0.9033124673 | L72: 0.9021318273 | M72: 0.9008863871 | N72: 0.8995708148 | O72: 0.8982544727 | P72: 0.8969371743 | Q72: 0.8956191747 | R72: 0.8943004398 | S72: 0.8929808224 | T72: 0.8915429925 | U72: 0.8899076371 | V72: 0.8881961666 | W72: 0.886483511 | X72: 0.884769956 | Y72: 0.8830371072 | Z72: 0.8812737798 | AA72: 0.8794222155 | AB72: 0.8774414951 | AC72: 0.8753637518 | AD72: 0.8732836797 | AE72: 0.8712007926 | AF72: 0.8690880544 | AG72: 0.8668990149 | AH72: 0.8647081138 | AI72: 0.862430553 | AJ72: 0.8600500503 | AK72: 0.8575459723 | AL72: 0.8549143772 | AM72: 0.8522306762 | AN72: 0.8494478915 | AO72: 0.8465647608 | AP72: 0.8436141088 | AQ72: 0.8406062417 | AR72: 0.8374803153 | AS72: 0.8342445187 | AT72: 0.8308977894 | AU72: 0.8273157609 | AV72: 0.8232863426 | AW72: 0.8192187641 | AX72: 0.8151476915 | AY72: 0.8110630887 | AZ72: 0.806830873 | BA72: 0.8025407479 | BB72: 0.7975600818 | BC72: 0.7921909811 | BD72: 0.7860405437 | BE72: 0.7792686202 | BF72: 0.7717791396 | BG72: 0.76417216 | BH72: 0.756219252 | BI72: 0.7476110032 | BJ72: 0.7387875929 | BK72: 0.7289816889 | BL72: 0.7185398911 | BM72: 0.7071542491 | BN72: 0.6947532554 | BO72: 0.6809305686 | BP72: 0.6641401074 | BQ72: 0.6455816901 | BR72: 0.6247577422 | BS72: 0.5977870402 | BT72: 0.5635996348 | BU72: 0.51915271 | BV72: 0.4681807066 | BW72: 0.4124479346 | BX72: 0.3560030218 | BY72: 0.299175154 | BZ72: 0.2418639947 | CA72: 0.1838769321 | CB72: 0.124793412 | CC72: 0.06370066856 | CD72: 0
A73: 4.4375 | B73: 0.9139851605 | C73: 0.9129775895 | D73: 0.9119160662 | E73: 0.9108465757 | F73: 0.9097766131 | G73: 0.9087061825 | H73: 0.9076352084 | I73: 0.9064952263 | J73: 0.9053271021 | K73: 0.9041546374 | L73: 0.9029249523 | M73: 0.9016795121 | N73: 0.9003639398 | O73: 0.8990475977 | P73: 0.8977302993 | Q73: 0.8964122997 | R73: 0.8950935648 | S73: 0.8937739474 | T73: 0.8923361175 | U73: 0.8907193847 | V73: 0.8890421666 | W73: 0.887329511 | X73: 0.885615956 | Y73: 0.8838831072 | Z73: 0.8821197798 | AA73: 0.8802514766 | AB73: 0.8781817451 | AC73: 0.8761040018 | AD73: 0.8740239297 | AE73: 0.8719410426 | AF73: 0.8698283044 | AG73: 0.8676392649 | AH73: 0.8653992276 | AI73: 0.8630699736 | AJ73: 0.8606845503 | AK73: 0.8581804723 | AL73: 0.8555488772 | AM73: 0.8528139869 | AN73: 0.8499857678 | AO73: 0.8470985902 | AP73: 0.8441729622 | AQ73: 0.841209814 | AR73: 0.8381183544 | AS73: 0.8349318937 | AT73: 0.8315851644 | AU73: 0.8278866839 | AV73: 0.8238825079 | AW73: 0.8198355613 | AX73: 0.8157821915 | AY73: 0.8116447137 | AZ73: 0.807421455 | BA73: 0.8031223729 | BB73: 0.7981203177 | BC73: 0.7926668561 | BD73: 0.7864364602 | BE73: 0.7796590991 | BF73: 0.7722021396 | BG73: 0.76459516 | BH73: 0.756647819 | BI73: 0.7480868782 | BJ73: 0.7393106164 | BK73: 0.7295104389 | BL73: 0.719039198 | BM73: 0.7075386025 | BN73: 0.6950705054 | BO73: 0.6811949436 | BP73: 0.6643516074 | BQ73: 0.6458460651 | BR73: 0.6250749922 | BS73: 0.5981571652 | BT73: 0.5638640098 | BU73: 0.519311335 | BV73: 0.4682335816 | BW73: 0.4124479346 | BX73: 0.3560030218 | BY73: 0.299175154 | BZ73: 0.2418639947 | CA73: 0.1838769321 | CB73: 0.124793412 | CC73: 0.06370066856 | CD73: 0
A74: 4.5 | B74: 0.9148311605 | C74: 0.9137781588 | D74: 0.9127091912 | E74: 0.9116397007 | F74: 0.9105697381 | G74: 0.9094993075 | H74: 0.9084283334 | I74: 0.9073225126 | J74: 0.9061731021 | K74: 0.9049477624 | L74: 0.9037180773 | M74: 0.9024726371 | N74: 0.9011570648 | O74: 0.8998407227 | P74: 0.8985234243 | Q74: 0.8972054247 | R74: 0.8958866898 | S74: 0.8945670724 | T74: 0.8931292425 | U74: 0.8915125097 | V74: 0.8898583373 | W74: 0.888175511 | X74: 0.886461956 | Y74: 0.8847291072 | Z74: 0.8829657798 | AA74: 0.880998424 | AB74: 0.8789219951 | AC74: 0.8768442518 | AD74: 0.8747641797 | AE74: 0.8726812926 | AF74: 0.8705685544 | AG74: 0.8683642114 | AH74: 0.8660772828 | AI74: 0.8637044736 | AJ74: 0.8613190503 | AK74: 0.8588149723 | AL74: 0.8561762805 | AM74: 0.8533956119 | AN74: 0.8505145178 | AO74: 0.8476273402 | AP74: 0.8447017122 | AQ74: 0.8417408469 | AR74: 0.8387103272 | AS74: 0.8355957464 | AT74: 0.8322725394 | AU74: 0.8284154339 | AV74: 0.8244407416 | AW74: 0.8204171863 | AX74: 0.8163667867 | AY74: 0.8121971648 | AZ74: 0.8079946616 | BA74: 0.8036599496 | BB74: 0.7986490677 | BC74: 0.7931427311 | BD74: 0.7868065852 | BE74: 0.7800292241 | BF74: 0.7726251396 | BG74: 0.76498648 | BH74: 0.757070819 | BI74: 0.7485627532 | BJ74: 0.7397864914 | BK74: 0.7300391889 | BL74: 0.719515073 | BM74: 0.7079087275 | BN74: 0.6953877554 | BO74: 0.6814593186 | BP74: 0.6645631074 | BQ74: 0.6461104401 | BR74: 0.6253922422 | BS74: 0.5985272902 | BT74: 0.5641283848 | BU74: 0.51946996 | BV74: 0.4682864566 | BW74: 0.4124479346 | BX74: 0.3560030218 | BY74: 0.299175154 | BZ74: 0.2418639947 | CA74: 0.1838769321 | CB74: 0.124793412 | CC74: 0.06370066856 | CD74: 0
A75: 4.5625 | B75: 0.9156305654 | C75: 0.9145712838 | D75: 0.9135023162 | E75: 0.9124328257 | F75: 0.9113628631 | G75: 0.9102924325 | H75: 0.9092214584 | I75: 0.9081156376 | J75: 0.9069535754 | K75: 0.9057408874 | L75: 0.9045112023 | M75: 0.9032657621 | N75: 0.9019501898 | O75: 0.9006338477 | P75: 0.8993165493 | Q75: 0.8979985497 | R75: 0.8966798148 | S75: 0.8953601974 | T75: 0.8939223675 | U75: 0.8923056347 | V75: 0.8906514623 | W75: 0.8889961607 | X75: 0.887307956 | Y75: 0.8855751072 | Z75: 0.8837651851 | AA75: 0.881738674 | AB75: 0.8796622451 | AC75: 0.8775845018 | AD75: 0.8755044297 | AE75: 0.8734215426 | AF75: 0.8713088044 | AG75: 0.8690515864 | AH75: 0.8667117828 | AI75: 0.8643389736 | AJ75: 0.8619535503 | AK75: 0.8594494723 | AL75: 0.8567579055 | AM75: 0.8539284695 | AN75: 0.8510432678 | AO75: 0.8481560902 | AP75: 0.8452304622 | AQ75: 0.8422695969 | AR75: 0.8392390772 | AS75: 0.8361773714 | AT75: 0.8328390191 | AU75: 0.8289412782 | AV75: 0.8249694916 | AW75: 0.8209649818 | AX75: 0.8169225391 | AY75: 0.8127259148 | AZ75: 0.8085234116 | BA75: 0.8041886996 | BB75: 0.7991328718 | BC75: 0.793573951 | BD75: 0.7871767102 | BE75: 0.7803993491 | BF75: 0.7730481396 | BG75: 0.765356605 | BH75: 0.7574424462 | BI75: 0.7490386282 | BJ75: 0.7402623664 | BK75: 0.7305528106 | BL75: 0.719990948 | BM75: 0.7082788525 | BN75: 0.6957050054 | BO75: 0.6816762162 | BP75: 0.6647746074 | BQ75: 0.6463748151 | BR75: 0.6257094922 | BS75: 0.5988974152 | BT75: 0.5643927598 | BU75: 0.519628585 | BV75: 0.4683393316 | BW75: 0.4124479346 | BX75: 0.3560030218 | BY75: 0.299175154 | BZ75: 0.2418639947 | CA75: 0.1838769321 | CB75: 0.124793412 | CC75: 0.06370066856 | CD75: 0
A76: 4.625 | B76: 0.9164236904 | C76: 0.9153644088 | D76: 0.9142954412 | E76: 0.9132259507 | F76: 0.9121559881 | G76: 0.9110855575 | H76: 0.9100145834 | I76: 0.9088664467 | J76: 0.9076938254 | K76: 0.9065207141 | L76: 0.9053043273 | M76: 0.9040588871 | N76: 0.9027433148 | O76: 0.9014269727 | P76: 0.9001096743 | Q76: 0.8987916747 | R76: 0.8974729398 | S76: 0.8961533224 | T76: 0.8947154925 | U76: 0.8930987597 | V76: 0.8914445873 | W76: 0.8897892857 | X76: 0.8881331077 | Y76: 0.8863975317 | Z76: 0.8845540618 | AA76: 0.882478924 | AB76: 0.8804024951 | AC76: 0.8783247518 | AD76: 0.8762446797 | AE76: 0.8741617926 | AF76: 0.8720147086 | AG76: 0.8697153862 | AH76: 0.8673462828 | AI76: 0.8649734736 | AJ76: 0.8625880503 | AK76: 0.860068088 | AL76: 0.8573395305 | AM76: 0.8544572195 | AN76: 0.8515720178 | AO76: 0.8486848402 | AP76: 0.8457592122 | AQ76: 0.8427983469 | AR76: 0.8397678272 | AS76: 0.8367347165 | AT76: 0.8332651327 | AU76: 0.8294171532 | AV76: 0.8254676869 | AW76: 0.8214884406 | AX76: 0.8174070901 | AY76: 0.8132535422 | AZ76: 0.8090521616 | BA76: 0.8047174496 | BB76: 0.7995558718 | BC76: 0.7939531256 | BD76: 0.7875468352 | BE76: 0.7807694741 | BF76: 0.7734711396 | BG76: 0.76572673 | BH76: 0.7578125712 | BI76: 0.7495145032 | BJ76: 0.7407382414 | BK76: 0.7310286856 | BL76: 0.720466823 | BM76: 0.7086485522 | BN76: 0.6960222554 | BO76: 0.6818877162 | BP76: 0.6649861074 | BQ76: 0.6466391901 | BR76: 0.6260267422 | BS76: 0.5992675402 | BT76: 0.5646571348 | BU76: 0.51978721 | BV76: 0.4683922066 | BW76: 0.4124479346 | BX76: 0.3560030218 | BY76: 0.299175154 | BZ76: 0.2418639947 | CA76: 0.1838769321 | CB76: 0.124793412 | CC76: 0.06370066856 | CD76: 0
A77: 4.6875 | B77: 0.9172168154 | C77: 0.9161575338 | D77: 0.9150885662 | E77: 0.9140190757 | F77: 0.9129491131 | G77: 0.9118786825 | H77: 0.910772587 | I77: 0.9096066967 | J77: 0.9084340754 | K77: 0.9072609641 | L77: 0.9060868929 | M77: 0.9048520121 | N77: 0.9035364398 | O77: 0.9022200977 | P77: 0.9009027993 | Q77: 0.8995847997 | R77: 0.8982660648 | S77: 0.8969464474 | T77: 0.8955086175 | U77: 0.8938918847 | V77: 0.8922377123 | W77: 0.8905824107 | X77: 0.8889256764 | Y77: 0.8871743498 | Z77: 0.8852943118 | AA77: 0.883219174 | AB77: 0.8811427451 | AC77: 0.8790650018 | AD77: 0.8769849297 | AE77: 0.8749015382 | AF77: 0.8727020836 | AG77: 0.8703498862 | AH77: 0.8679807828 | AI77: 0.8656079736 | AJ77: 0.8632225503 | AK77: 0.860649713 | AL77: 0.8578693014 | AM77: 0.8549859695 | AN77: 0.8521007678 | AO77: 0.8492135902 | AP77: 0.8462879622 | AQ77: 0.8433270969 | AR77: 0.8402965772 | AS77: 0.8372379926 | AT77: 0.8336881327 | AU77: 0.8298695696 | AV77: 0.8259435619 | AW77: 0.8219643156 | AX77: 0.8178501187 | AY77: 0.8137219485 | AZ77: 0.8095702064 | BA77: 0.8051980687 | BB77: 0.7999788718 | BC77: 0.7943232506 | BD77: 0.7878734844 | BE77: 0.7811395991 | BF77: 0.7738930837 | BG77: 0.766096855 | BH77: 0.7581826962 | BI77: 0.7499387612 | BJ77: 0.7412141164 | BK77: 0.7314809056 | BL77: 0.720942698 | BM77: 0.7089658022 | BN77: 0.6963395054 | BO77: 0.6820649535 | BP77: 0.6651976074 | BQ77: 0.6469035651 | BR77: 0.6263439922 | BS77: 0.5996324464 | BT77: 0.5649215098 | BU77: 0.519945835 | BV77: 0.4684450816 | BW77: 0.4124479346 | BX77: 0.3560030218 | BY77: 0.299175154 | BZ77: 0.2418639947 | CA77: 0.1838769321 | CB77: 0.124793412 | CC77: 0.06370066856 | CD77: 0
A78: 4.75 | B78: 0.9179724106 | C78: 0.916931924 | D78: 0.9158816912 | E78: 0.9148122007 | F78: 0.9137422381 | G78: 0.9126438806 | H78: 0.911512837 | I78: 0.9103469467 | J78: 0.9091743254 | K78: 0.9080012141 | L78: 0.9068271429 | M78: 0.905637339 | N78: 0.9043295648 | O78: 0.9030132227 | P78: 0.9016959243 | Q78: 0.9003779247 | R78: 0.8990591898 | S78: 0.8977395724 | T78: 0.8963017425 | U78: 0.8946850097 | V78: 0.8930308373 | W78: 0.8913755357 | X78: 0.8896659264 | Y78: 0.8879145998 | Z78: 0.8860228383 | AA78: 0.883959424 | AB78: 0.8818829951 | AC78: 0.8798052518 | AD78: 0.8777251797 | AE78: 0.8755889132 | AF78: 0.8733516269 | AG78: 0.8709843862 | AH78: 0.8686152828 | AI78: 0.8662424736 | AJ78: 0.863832351 | AK78: 0.8612293 | AL78: 0.8583980514 | AM78: 0.8555147195 | AN78: 0.8526295178 | AO78: 0.8497423402 | AP78: 0.8468167122 | AQ78: 0.8438558469 | AR78: 0.8408253272 | AS78: 0.8377138676 | AT78: 0.8340797039 | AU78: 0.8302925696 | AV78: 0.8264194369 | AW78: 0.8223980025 | AX78: 0.8182731187 | AY78: 0.8141449485 | AZ78: 0.8100112392 | BA78: 0.8056444996 | BB78: 0.8004018718 | BC78: 0.794676253 | BD78: 0.7881907344 | BE78: 0.7815052019 | BF78: 0.7742632087 | BG78: 0.76646698 | BH78: 0.7585528212 | BI78: 0.7503617612 | BJ78: 0.7416704469 | BK78: 0.7319039056 | BL78: 0.721418573 | BM78: 0.7092830522 | BN78: 0.6966567554 | BO78: 0.6822235785 | BP78: 0.6654091074 | BQ78: 0.6471679401 | BR78: 0.6266612422 | BS78: 0.59992 | BT78: 0.5651858848 | BU78: 0.52010446 | BV78: 0.4684979566 | BW78: 0.4124479346 | BX78: 0.3560030218 | BY78: 0.299175154 | BZ78: 0.2418639947 | CA78: 0.1838769321 | CB78: 0.124793412 | CC78: 0.06370066856 | CD78: 0
A79: 4.8125 | B79: 0.9187126606 | C79: 0.917672174 | D79: 0.9166220294 | E79: 0.9155713872 | F79: 0.9145146216 | G79: 0.9133841306 | H79: 0.912253087 | I79: 0.9110871967 | J79: 0.9099145754 | K79: 0.9087414641 | L79: 0.9075673929 | M79: 0.906377589 | N79: 0.9051176653 | O79: 0.9038063477 | P79: 0.9024890493 | Q79: 0.9011710497 | R79: 0.8998523148 | S79: 0.8985326974 | T79: 0.8970948675 | U79: 0.8954781347 | V79: 0.8938239623 | W79: 0.8921382486 | X79: 0.8904061764 | Y79: 0.8886548498 | Z79: 0.8867102133 | AA79: 0.8846925742 | AB79: 0.8826232451 | AC79: 0.8805455018 | AD79: 0.8784459398 | AE79: 0.8762762882 | AF79: 0.8739861269 | AG79: 0.8716188862 | AH79: 0.8692497828 | AI79: 0.8668769736 | AJ79: 0.864413976 | AK79: 0.86175805 | AL79: 0.8589268014 | AM79: 0.8560434695 | AN79: 0.8531582678 | AO79: 0.8502710902 | AP79: 0.8473454622 | AQ79: 0.8443845969 | AR79: 0.8413414287 | AS79: 0.8381160905 | AT79: 0.8344498289 | AU79: 0.8307155696 | AV79: 0.8268453345 | AW79: 0.8228210025 | AX79: 0.8186961187 | AY79: 0.8145679485 | AZ79: 0.8104342392 | BA79: 0.8060088593 | BB79: 0.8007952789 | BC79: 0.794993503 | BD79: 0.7885079844 | BE79: 0.7818224519 | BF79: 0.7746333337 | BG79: 0.766837105 | BH79: 0.7589229462 | BI79: 0.7507710124 | BJ79: 0.7420934469 | BK79: 0.7323269056 | BL79: 0.721844019 | BM79: 0.7096003022 | BN79: 0.6969276467 | BO79: 0.6823822035 | BP79: 0.6656206074 | BQ79: 0.6474143588 | BR79: 0.6269784922 | BS79: 0.600184375 | BT79: 0.5654502598 | BU79: 0.5202454977 | BV79: 0.4685508316 | BW79: 0.4124479346 | BX79: 0.3560030218 | BY79: 0.299175154 | BZ79: 0.2418639947 | CA79: 0.1838769321 | CB79: 0.124793412 | CC79: 0.06370066856 | CD79: 0
A80: 4.875 | B80: 0.9194529106 | C80: 0.918412424 | D80: 0.9173622794 | E80: 0.9163116372 | F80: 0.9152548716 | G80: 0.9141243806 | H80: 0.912993337 | I80: 0.9118274467 | J80: 0.9106548254 | K80: 0.9094817141 | L80: 0.9083076429 | M80: 0.907117839 | N80: 0.9058579153 | O80: 0.9045972417 | P80: 0.9032821743 | Q80: 0.9019641747 | R80: 0.9006454398 | S80: 0.8993258224 | T80: 0.8978879925 | U80: 0.8962712597 | V80: 0.8946096944 | W80: 0.8928784986 | X80: 0.8911464264 | Y80: 0.8893950998 | Z80: 0.8873975883 | AA80: 0.8853799492 | AB80: 0.8833610422 | AC80: 0.8812857518 | AD80: 0.8791333148 | AE80: 0.8769115716 | AF80: 0.8746206269 | AG80: 0.8722533862 | AH80: 0.8698842828 | AI80: 0.8674804308 | AJ80: 0.8649905041 | AK80: 0.8622868 | AL80: 0.8594555514 | AM80: 0.8565722195 | AN80: 0.8536870178 | AO80: 0.8507998402 | AP80: 0.8478742122 | AQ80: 0.8449133469 | AR80: 0.8418173037 | AS80: 0.8384862155 | AT80: 0.8348199539 | AU80: 0.8311001001 | AV80: 0.8272626817 | AW80: 0.823220493 | AX80: 0.8191191187 | AY80: 0.8149909485 | AZ80: 0.8108572392 | BA80: 0.8063261093 | BB80: 0.8011654039 | BC80: 0.795310753 | BD80: 0.7888252344 | BE80: 0.7821397019 | BF80: 0.7750034587 | BG80: 0.76720723 | BH80: 0.7592930712 | BI80: 0.7511411374 | BJ80: 0.7425138976 | BK80: 0.7327499056 | BL80: 0.7222525399 | BM80: 0.7099175522 | BN80: 0.6971920217 | BO80: 0.6825408285 | BP80: 0.6658321074 | BQ80: 0.6476258588 | BR80: 0.6272811329 | BS80: 0.60044875 | BT80: 0.5657146348 | BU80: 0.5202999899 | BV80: 0.468567923 | BW80: 0.4124479346 | BX80: 0.3560030218 | BY80: 0.299175154 | BZ80: 0.2418639947 | CA80: 0.1838769321 | CB80: 0.124793412 | CC80: 0.06370066856 | CD80: 0
A81: 4.9375 | B81: 0.9201931606 | C81: 0.919152674 | D81: 0.9181025294 | E81: 0.9170518872 | F81: 0.9159951216 | G81: 0.9148646306 | H81: 0.913733587 | I81: 0.9125676967 | J81: 0.9113950754 | K81: 0.9102219641 | L81: 0.9090478929 | M81: 0.907858089 | N81: 0.9065981653 | O81: 0.9053374917 | P81: 0.9040752993 | Q81: 0.9027572997 | R81: 0.9014385648 | S81: 0.9001189474 | T81: 0.8986811175 | U81: 0.8970643847 | V81: 0.8953499444 | W81: 0.8936187486 | X81: 0.8918866764 | Y81: 0.8901014366 | Z81: 0.8880849633 | AA81: 0.8860673242 | AB81: 0.8840484172 | AC81: 0.8819875263 | AD81: 0.8798072109 | AE81: 0.8775460716 | AF81: 0.8752551269 | AG81: 0.8728878862 | AH81: 0.8705187828 | AI81: 0.8680620558 | AJ81: 0.8655192541 | AK81: 0.86281555 | AL81: 0.8599843014 | AM81: 0.8571009695 | AN81: 0.8542157678 | AO81: 0.8513285902 | AP81: 0.8484029622 | AQ81: 0.8454420969 | AR81: 0.8422931787 | AS81: 0.8388563405 | AT81: 0.8351900789 | AU81: 0.8314702251 | AV81: 0.8276328067 | AW81: 0.823590618 | AX81: 0.8195421187 | AY81: 0.8154139485 | AZ81: 0.8112802392 | BA81: 0.8066433593 | BB81: 0.8015146671 | BC81: 0.795628003 | BD81: 0.7891424844 | BE81: 0.7824569519 | BF81: 0.7753735837 | BG81: 0.767577355 | BH81: 0.7596631962 | BI81: 0.7515112624 | BJ81: 0.7428840226 | BK81: 0.7331729056 | BL81: 0.7225475407 | BM81: 0.7102348022 | BN81: 0.6974563967 | BO81: 0.6826994535 | BP81: 0.6660436074 | BQ81: 0.6478373588 | BR81: 0.6275455079 | BS81: 0.600713125 | BT81: 0.5659790098 | BU81: 0.5203528649 | BV81: 0.468567923 | BW81: 0.4124479346 | BX81: 0.3560030218 | BY81: 0.299175154 | BZ81: 0.2418639947 | CA81: 0.1838769321 | CB81: 0.124793412 | CC81: 0.06370066856 | CD81: 0
A82: 5 | B82: 0.9209334106 | C82: 0.919892924 | D82: 0.9188427794 | E82: 0.9177921372 | F82: 0.9167353716 | G82: 0.9156048806 | H82: 0.914473837 | I82: 0.9133079467 | J82: 0.9121353254 | K82: 0.9109622141 | L82: 0.9097881429 | M82: 0.908598339 | N82: 0.9073384153 | O82: 0.9060777417 | P82: 0.9048161338 | Q82: 0.9035504247 | R82: 0.9022316898 | S82: 0.9009120724 | T82: 0.8994742425 | U82: 0.8978202611 | V82: 0.8960901944 | W82: 0.8943589986 | X82: 0.8926269264 | Y82: 0.8907888116 | Z82: 0.8887723383 | AA82: 0.8867546992 | AB82: 0.8847312162 | AC82: 0.8826243036 | AD82: 0.8804417109 | AE82: 0.8781805716 | AF82: 0.8758896269 | AG82: 0.8735223862 | AH82: 0.8711171552 | AI82: 0.8686356806 | AJ82: 0.8660480041 | AK82: 0.8633443 | AL82: 0.8605130514 | AM82: 0.8576297195 | AN82: 0.8547445178 | AO82: 0.8518573402 | AP82: 0.8489317122 | AQ82: 0.8459181488 | AR82: 0.8427690537 | AS82: 0.8392264655 | AT82: 0.8355602039 | AU82: 0.8318403501 | AV82: 0.8279574625 | AW82: 0.823960743 | AX82: 0.8199153104 | AY82: 0.8158369485 | AZ82: 0.8117032392 | BA82: 0.8069606093 | BB82: 0.8018319171 | BC82: 0.795945253 | BD82: 0.7894597344 | BE82: 0.7827742019 | BF82: 0.775702696 | BG82: 0.76794748 | BH82: 0.7600333212 | BI82: 0.7518813874 | BJ82: 0.7432541476 | BK82: 0.7335959056 | BL82: 0.7227616288 | BM82: 0.7105223146 | BN82: 0.6976805406 | BO82: 0.6828580785 | BP82: 0.6662551074 | BQ82: 0.6480488588 | BR82: 0.6278098829 | BS82: 0.6009775 | BT82: 0.5662433848 | BU82: 0.5204057399 | BV82: 0.468567923 | BW82: 0.4124479346 | BX82: 0.3560030218 | BY82: 0.299175154 | BZ82: 0.2418639947 | CA82: 0.1838769321 | CB82: 0.124793412 | CC82: 0.06370066856 | CD82: 0

Sheet Eigenverbrauch (hidden)
B1: 5 | C1: 4.9375 | D1: 4.875 | E1: 4.8125 | F1: 4.75 | G1: 4.6875 | H1: 4.625 | I1: 4.5625 | J1: 4.5 | K1: 4.4375 | L1: 4.375 | M1: 4.3125 | N1: 4.25 | O1: 4.1875 | P1: 4.125 | Q1: 4.0625 | R1: 4 | S1: 3.9375 | T1: 3.875 | U1: 3.8125 | V1: 3.75 | W1: 3.6875 | X1: 3.625 | Y1: 3.5625 | Z1: 3.5 | AA1: 3.4375 | AB1: 3.375 | AC1: 3.3125 | AD1: 3.25 | AE1: 3.1875 | AF1: 3.125 | AG1: 3.0625 | AH1: 3 | AI1: 2.9375 | AJ1: 2.875 | AK1: 2.8125 | AL1: 2.75 | AM1: 2.6875 | AN1: 2.625 | AO1: 2.5625 | AP1: 2.5 | AQ1: 2.4375 | AR1: 2.375 | AS1: 2.3125 | AT1: 2.25 | AU1: 2.1875 | AV1: 2.125 | AW1: 2.0625 | AX1: 2 | AY1: 1.9375 | AZ1: 1.875 | BA1: 1.8125 | BB1: 1.75 | BC1: 1.6875 | BD1: 1.625 | BE1: 1.5625 | BF1: 1.5 | BG1: 1.4375 | BH1: 1.375 | BI1: 1.3125 | BJ1: 1.25 | BK1: 1.1875 | BL1: 1.125 | BM1: 1.0625 | BN1: 1 | BO1: 0.9375 | BP1: 0.875 | BQ1: 0.8125 | BR1: 0.75 | BS1: 0.6875 | BT1: 0.625 | BU1: 0.5625 | BV1: 0.5 | BW1: 0.4375 | BX1: 0.375 | BY1: 0.3125 | BZ1: 0.25 | CA1: 0.1875 | CB1: 0.125 | CC1: 0.0625 | CD1: 0
A2: 0 | B2: 0.08008959665 | C2: 0.08099120661 | D2: 0.0819136265 | E2: 0.08285782301 | F2: 0.0838242713 | G2: 0.08481379578 | H2: 0.08582745363 | I2: 0.08686644028 | J2: 0.08793154494 | K2: 0.08902387558 | L2: 0.0901440571 | M2: 0.09129312361 | N2: 0.09247200838 | O2: 0.09368252101 | P2: 0.09492589106 | Q2: 0.09620316347 | R2: 0.09751601683 | S2: 0.09886586487 | T2: 0.1002542912 | U2: 0.1016833014 | V2: 0.1031550477 | W2: 0.1046713614 | X2: 0.1062345973 | Y2: 0.1078467323 | Z2: 0.1095103597 | AA2: 0.1112278887 | AB2: 0.113001326 | AC2: 0.114833502 | AD2: 0.116727213 | AE2: 0.118686016 | AF2: 0.120713215 | AG2: 0.1228127225 | AH2: 0.1249876111 | AI2: 0.1272419111 | AJ2: 0.1295803073 | AK2: 0.1320091399 | AL2: 0.1345336945 | AM2: 0.1371582071 | AN2: 0.1398892631 | AO2: 0.1427340213 | AP2: 0.1456997511 | AQ2: 0.1487947653 | AR2: 0.1520270421 | AS2: 0.1554076115 | AT2: 0.1589459166 | AU2: 0.1626554754 | AV2: 0.1665477228 | AW2: 0.1706407148 | AX2: 0.174943997 | AY2: 0.1794755607 | AZ2: 0.1842565411 | BA2: 0.1893083231 | BB2: 0.1946546402 | BC2: 0.2003181642 | BD2: 0.2063303933 | BE2: 0.212728875 | BF2: 0.2195578369 | BG2: 0.2268642423 | BH2: 0.2347010989 | BI2: 0.2431265195 | BJ2: 0.2522124868 | BK2: 0.2620371112 | BL2: 0.2726985874 | BM2: 0.2842914345 | BN2: 0.296945224 | BO2: 0.3108515267 | BP2: 0.3262127997 | BQ2: 0.3432418174 | BR2: 0.3622333938 | BS2: 0.3834824649 | BT2: 0.4072346338 | BU2: 0.4335923104 | BV2: 0.463201796 | BW2: 0.4972209121 | BX2: 0.5373182429 | BY2: 0.5860130954 | BZ2: 0.6473164888 | CA2: 0.7275990548 | CB2: 0.8348994886 | CC2: 0.9615890829 | CD2: 1
A3: 0.0625 | B3: 0.08590175008 | C3: 0.08689199199 | D3: 0.08790502972 | E3: 0.08894191616 | F3: 0.09000395884 | G3: 0.09109138919 | H3: 0.09220517925 | I3: 0.09334545357 | J3: 0.094514578 | K3: 0.09571319238 | L3: 0.09694345515 | M3: 0.09820628796 | N3: 0.09950259719 | O3: 0.1008342037 | P3: 0.1022018634 | Q3: 0.1036072198 | R3: 0.1050512581 | S3: 0.1065371104 | T3: 0.1080665382 | U3: 0.1096402706 | V3: 0.1112592287 | W3: 0.1129263475 | X3: 0.1146448889 | Y3: 0.1164183594 | Z3: 0.1182496262 | AA3: 0.1201395576 | AB3: 0.1220918001 | AC3: 0.1241105233 | AD3: 0.1261966498 | AE3: 0.1283553779 | AF3: 0.130593141 | AG3: 0.1329108549 | AH3: 0.1353144635 | AI3: 0.1378085462 | AJ3: 0.1403994912 | AK3: 0.1430932253 | AL3: 0.1458917888 | AM3: 0.1488054904 | AN3: 0.151838109 | AO3: 0.1549975199 | AP3: 0.158294049 | AQ3: 0.1617388591 | AR3: 0.1653402512 | AS3: 0.1691139404 | AT3: 0.1730744254 | AU3: 0.1772338115 | AV3: 0.181607341 | AW3: 0.1862151691 | AX3: 0.191069396 | AY3: 0.1961923007 | AZ3: 0.201610936 | BA3: 0.207344483 | BB3: 0.2134156081 | BC3: 0.2198608136 | BD3: 0.2267225879 | BE3: 0.2340483242 | BF3: 0.2418923314 | BG3: 0.2502953223 | BH3: 0.2593366735 | BI3: 0.2690687505 | BJ3: 0.2795541202 | BK3: 0.2909309505 | BL3: 0.303315313 | BM3: 0.3168481365 | BN3: 0.3317146276 | BO3: 0.3481008871 | BP3: 0.3663288487 | BQ3: 0.3866842478 | BR3: 0.4094263546 | BS3: 0.4351414629 | BT3: 0.4646663062 | BU3: 0.4987046044 | BV3: 0.5376570436 | BW3: 0.5820893504 | BX3: 0.6341444404 | BY3: 0.6957960043 | BZ3: 0.7710927287 | CA3: 0.8607156969 | CB3: 0.9507981893 | CC3: 1 | CD3: 1
A4: 0.125 | B4: 0.09095228836 | C4: 0.09200946895 | D4: 0.09309162473 | E4: 0.09419966064 | F4: 0.09533407892 | G4: 0.0964960934 | H4: 0.09768711306 | I4: 0.09890864552 | J4: 0.1001617662 | K4: 0.1014473035 | L4: 0.1027646807 | M4: 0.1041142875 | N4: 0.1054988777 | O4: 0.1069204519 | P4: 0.1083815806 | Q4: 0.1098830766 | R4: 0.1114281535 | S4: 0.1130176657 | T4: 0.1146523329 | U4: 0.1163352185 | V4: 0.1180690426 | W4: 0.1198562636 | X4: 0.1216992339 | Y4: 0.1236014656 | Z4: 0.1255598969 | AA4: 0.1275812205 | AB4: 0.1296687053 | AC4: 0.1318280328 | AD4: 0.1340594973 | AE4: 0.1363672622 | AF4: 0.1387595724 | AG4: 0.1412389827 | AH4: 0.1438136142 | AI4: 0.1464833148 | AJ4: 0.1492580282 | AK4: 0.1521457939 | AL4: 0.1551508611 | AM4: 0.1582827361 | AN4: 0.1615428992 | AO4: 0.1649428753 | AP4: 0.1684978475 | AQ4: 0.1722171042 | AR4: 0.1761127678 | AS4: 0.1801939407 | AT4: 0.1844771486 | AU4: 0.1889861139 | AV4: 0.1937244167 | AW4: 0.1987159375 | AX4: 0.2039820299 | AY4: 0.2095395349 | AZ4: 0.2154131315 | BA4: 0.2216321611 | BB4: 0.2282417192 | BC4: 0.2352769971 | BD4: 0.2427572624 | BE4: 0.2507440186 | BF4: 0.2593018018 | BG4: 0.2684850973 | BH4: 0.2783283543 | BI4: 0.2889362735 | BJ4: 0.3004247005 | BK4: 0.3129112913 | BL4: 0.326573098 | BM4: 0.3415358336 | BN4: 0.3578671188 | BO4: 0.375937993 | BP4: 0.3960712767 | BQ4: 0.4184938446 | BR4: 0.4436857954 | BS4: 0.4723363666 | BT4: 0.5053781051 | BU4: 0.5436669908 | BV4: 0.5880125078 | BW4: 0.6396208929 | BX4: 0.697745392 | BY4: 0.7633320923 | BZ4: 0.8402791694 | CA4: 0.9167880639 | CB4: 0.9790101844 | CC4: 1 | CD4: 1
A5: 0.1875 | B5: 0.09566655842 | C5: 0.09678323532 | D5: 0.0979270511 | E5: 0.09909787586 | F5: 0.1002972416 | G5: 0.1015232659 | H5: 0.1027798067 | I5: 0.1040671773 | J5: 0.1053873264 | K5: 0.1067414989 | L5: 0.1081294645 | M5: 0.1095533794 | N5: 0.111012473 | O5: 0.1125097354 | P5: 0.1140485711 | Q5: 0.1156325718 | R5: 0.1172630587 | S5: 0.1189401961 | T5: 0.1206647643 | U5: 0.1224373999 | V5: 0.1242645826 | W5: 0.1261476308 | X5: 0.1280904236 | Y5: 0.1300953939 | Z5: 0.1321670856 | AA5: 0.1343071051 | AB5: 0.1365161006 | AC5: 0.1388012551 | AD5: 0.1411657334 | AE5: 0.1436105627 | AF5: 0.1461471072 | AG5: 0.1487758847 | AH5: 0.1515056449 | AI5: 0.154338882 | AJ5: 0.1572826576 | AK5: 0.1603389542 | AL5: 0.1635184886 | AM5: 0.1668320759 | AN5: 0.1702883757 | AO5: 0.1738984805 | AP5: 0.1776746047 | AQ5: 0.1816258724 | AR5: 0.1857713458 | AS5: 0.1901211372 | AT5: 0.194691574 | AU5: 0.1994971747 | AV5: 0.204544539 | AW5: 0.2098648517 | AX5: 0.2154583679 | AY5: 0.2213492656 | AZ5: 0.2275830395 | BA5: 0.2341995147 | BB5: 0.2412276332 | BC5: 0.2487207555 | BD5: 0.2567084715 | BE5: 0.2652196331 | BF5: 0.274353004 | BG5: 0.2841072288 | BH5: 0.2946313759 | BI5: 0.3060212383 | BJ5: 0.3183959488 | BK5: 0.3318637351 | BL5: 0.3464906854 | BM5: 0.3624820179 | BN5: 0.3801225883 | BO5: 0.3996418206 | BP5: 0.4213681494 | BQ5: 0.4454578831 | BR5: 0.4726553517 | BS5: 0.5034995846 | BT5: 0.5388547435 | BU5: 0.5798631115 | BV5: 0.6272680871 | BW5: 0.6826620244 | BX5: 0.7441286642 | BY5: 0.8119759113 | BZ5: 0.8828779919 | CA5: 0.9473123633 | CB5: 0.9934951599 | CC5: 1 | CD5: 1
A6: 0.25 | B6: 0.1001581853 | C6: 0.1013252317 | D6: 0.1025190994 | E6: 0.1037402242 | F6: 0.1049904543 | G6: 0.1062703689 | H6: 0.1075826209 | I6: 0.108929102 | J6: 0.1103097673 | K6: 0.1117265373 | L6: 0.1131798033 | M6: 0.1146709385 | N6: 0.1162025966 | O6: 0.1177766478 | P6: 0.1193927437 | Q6: 0.1210539743 | R6: 0.1227622325 | S6: 0.1245196048 | T6: 0.1263278935 | U6: 0.1281897627 | V6: 0.1301089954 | W6: 0.1320869135 | X6: 0.1341274494 | Y6: 0.1362325182 | Z6: 0.1384058338 | AA6: 0.1406486905 | AB6: 0.1429661023 | AC6: 0.145365381 | AD6: 0.1478485187 | AE6: 0.1504187392 | AF6: 0.1530826522 | AG6: 0.1558434252 | AH6: 0.1587122693 | AI6: 0.1616912296 | AJ6: 0.1647828387 | AK6: 0.1679977548 | AL6: 0.1713437401 | AM6: 0.1748381607 | AN6: 0.1784831912 | AO6: 0.1822934032 | AP6: 0.1862815839 | AQ6: 0.1904532485 | AR6: 0.1948276248 | AS6: 0.1994082462 | AT6: 0.204199192 | AU6: 0.2092277918 | AV6: 0.2145052508 | AW6: 0.2200525719 | AX6: 0.2258993947 | AY6: 0.2320857805 | AZ6: 0.2386552334 | BA6: 0.2456234087 | BB6: 0.2530341188 | BC6: 0.2609198804 | BD6: 0.2693315264 | BE6: 0.2783520299 | BF6: 0.2880178261 | BG6: 0.2983558917 | BH6: 0.3094976576 | BI6: 0.3215550033 | BJ6: 0.3345703556 | BK6: 0.3487503407 | BL6: 0.364231117 | BM6: 0.3812124785 | BN6: 0.3998900703 | BO6: 0.4206576551 | BP6: 0.4437102327 | BQ6: 0.4693086659 | BR6: 0.4980190449 | BS6: 0.5306026859 | BT6: 0.5679401877 | BU6: 0.6108868746 | BV6: 0.66082022 | BW6: 0.7174981904 | BX6: 0.7803176797 | BY6: 0.8484700603 | BZ6: 0.913088898 | CA6: 0.9672736487 | CB6: 0.9992127651 | CC6: 1 | CD6: 1
A7: 0.3125 | B7: 0.1044819125 | C7: 0.1057000751 | D7: 0.1069468375 | E7: 0.1082227359 | F7: 0.1095291014 | G7: 0.110866302 | H7: 0.1122378712 | I7: 0.1136452797 | J7: 0.1150887405 | K7: 0.1165630074 | L7: 0.1180751558 | M7: 0.1196279634 | N7: 0.1212224829 | O7: 0.1228614385 | P7: 0.1245468104 | Q7: 0.12628037 | R7: 0.1280642305 | S7: 0.1298974387 | T7: 0.1317843791 | U7: 0.1337293735 | V7: 0.1357349945 | W7: 0.1378041462 | X7: 0.1399379355 | Y7: 0.1421415425 | Z7: 0.1444177339 | AA7: 0.1467652142 | AB7: 0.1491908328 | AC7: 0.1516956618 | AD7: 0.1542859919 | AE7: 0.1569695163 | AF7: 0.1597549073 | AG7: 0.1626491349 | AH7: 0.1656495069 | AI7: 0.1687668261 | AJ7: 0.1720116142 | AK7: 0.1753867692 | AL7: 0.1789024536 | AM7: 0.1825556484 | AN7: 0.1863654546 | AO7: 0.1903388229 | AP7: 0.1944876161 | AQ7: 0.1988267487 | AR7: 0.2033788414 | AS7: 0.2081514228 | AT7: 0.2131513093 | AU7: 0.2183860307 | AV7: 0.2238942297 | AW7: 0.2296894965 | AX7: 0.2357978927 | AY7: 0.2422626227 | AZ7: 0.2491162615 | BA7: 0.2564062717 | BB7: 0.2641713543 | BC7: 0.2724508383 | BD7: 0.2812735194 | BE7: 0.2906948142 | BF7: 0.300792683 | BG7: 0.3116277313 | BH7: 0.3232588526 | BI7: 0.3358487558 | BJ7: 0.3495166898 | BK7: 0.3643775127 | BL7: 0.3806485626 | BM7: 0.3984771702 | BN7: 0.4181225925 | BO7: 0.4398903186 | BP7: 0.4641032565 | BQ7: 0.4908962462 | BR7: 0.5210479067 | BS7: 0.5551334457 | BT7: 0.5940140186 | BU7: 0.6386660283 | BV7: 0.690376465 | BW7: 0.747589813 | BX7: 0.8110880568 | BY7: 0.8757342708 | BZ7: 0.9359065107 | CA7: 0.9813077139 | CB7: 1 | CC7: 1 | CD7: 1
A8: 0.375 | B8: 0.108736254 | C8: 0.1100034678 | D8: 0.1112996544 | E8: 0.1126273491 | F8: 0.1139836685 | G8: 0.1153709318 | H8: 0.1167923281 | I8: 0.1182502968 | J8: 0.1197463641 | K8: 0.1212811661 | L8: 0.1228556288 | M8: 0.1244704226 | N8: 0.1261298664 | O8: 0.1278348627 | P8: 0.1295886022 | Q8: 0.1313915705 | R8: 0.1332492342 | S8: 0.1351605132 | T8: 0.1371279729 | U8: 0.1391542196 | V8: 0.1412421059 | W8: 0.143396676 | X8: 0.1456211917 | Y8: 0.1479178138 | Z8: 0.1502867119 | AA8: 0.1527275707 | AB8: 0.1552507893 | AC8: 0.1578631669 | AD8: 0.1605713848 | AE8: 0.1633786946 | AF8: 0.1662901427 | AG8: 0.1693075618 | AH8: 0.172436602 | AI8: 0.1756783676 | AJ8: 0.179047296 | AK8: 0.1825553728 | AL8: 0.1861934825 | AM8: 0.1899783372 | AN8: 0.1939331528 | AO8: 0.1980689228 | AP8: 0.2023964198 | AQ8: 0.2069243847 | AR8: 0.2116600119 | AS8: 0.2166069222 | AT8: 0.221790282 | AU8: 0.2272456844 | AV8: 0.2329864474 | AW8: 0.2390175557 | AX8: 0.2453786383 | AY8: 0.2521166849 | AZ8: 0.2592854742 | BA8: 0.2668943749 | BB8: 0.2749872553 | BC8: 0.2835927072 | BD8: 0.2927434307 | BE8: 0.3025730671 | BF8: 0.3130875834 | BG8: 0.3243153021 | BH8: 0.3364349244 | BI8: 0.3495778585 | BJ8: 0.3637823533 | BK8: 0.3793086732 | BL8: 0.3963388988 | BM8: 0.4149337984 | BN8: 0.4353511615 | BO8: 0.4580804853 | BP8: 0.4832811419 | BQ8: 0.5112183164 | BR8: 0.5426278149 | BS8: 0.5779685299 | BT8: 0.618039781 | BU8: 0.6641918059 | BV8: 0.7169218922 | BW8: 0.7747886317 | BX8: 0.8375185833 | BY8: 0.8984550565 | BZ8: 0.953784292 | CA8: 0.9905468052 | CB8: 1 | CC8: 1 | CD8: 1
A9: 0.4375 | B9: 0.1129221847 | C9: 0.1142344166 | D9: 0.1155778968 | E9: 0.1169536839 | F9: 0.1183637015 | G9: 0.1198047606 | H9: 0.1212799117 | I9: 0.1227933935 | J9: 0.1243451131 | K9: 0.1259373878 | L9: 0.1275718176 | M9: 0.1292517992 | N9: 0.1309784236 | O9: 0.1327529913 | P9: 0.1345790503 | Q9: 0.136456491 | R9: 0.1383867842 | S9: 0.1403704947 | T9: 0.1424126572 | U9: 0.144515772 | V9: 0.1466830901 | W9: 0.1489202299 | X9: 0.1512263125 | Y9: 0.1536112235 | Z9: 0.1560742028 | AA9: 0.1586167088 | AB9: 0.1612434328 | AC9: 0.1639612203 | AD9: 0.1667738747 | AE9: 0.1696829295 | AF9: 0.172699562 | AG9: 0.1758241093 | AH9: 0.179064471 | AI9: 0.1824243221 | AJ9: 0.1859123111 | AK9: 0.1895456085 | AL9: 0.1933286588 | AM9: 0.1972717622 | AN9: 0.201386112 | AO9: 0.2056699276 | AP9: 0.2101480505 | AQ9: 0.2148335955 | AR9: 0.2197450658 | AS9: 0.2248973582 | AT9: 0.2303019003 | AU9: 0.2359689562 | AV9: 0.241919693 | AW9: 0.2481805779 | AX9: 0.2547886931 | AY9: 0.2617963081 | AZ9: 0.2692434708 | BA9: 0.2771357842 | BB9: 0.2855248802 | BC9: 0.2944510639 | BD9: 0.3039920254 | BE9: 0.3141632606 | BF9: 0.3250053062 | BG9: 0.3366556767 | BH9: 0.3492240244 | BI9: 0.3628771492 | BJ9: 0.3777179818 | BK9: 0.3938969862 | BL9: 0.4115842717 | BM9: 0.4308338391 | BN9: 0.4520878341 | BO9: 0.4756847441 | BP9: 0.5017369816 | BQ9: 0.530838744 | BR9: 0.5631101451 | BS9: 0.5996224158 | BT9: 0.6408143234 | BU9: 0.6882242345 | BV9: 0.7410366134 | BW9: 0.7997363826 | BX9: 0.8606614493 | BY9: 0.917921089 | BZ9: 0.9674549941 | CA9: 0.9963141129 | CB9: 1 | CC9: 1 | CD9: 1
A10: 0.5 | B10: 0.1170665187 | C10: 0.1184243336 | D10: 0.1198148361 | E10: 0.121239368 | F10: 0.1226987337 | G10: 0.1241922032 | H10: 0.1257242838 | I10: 0.1272968102 | J10: 0.1289095656 | K10: 0.1305635985 | L10: 0.1322615699 | M10: 0.1340068843 | N10: 0.135800859 | O10: 0.137644006 | P10: 0.1395356759 | Q10: 0.1414783733 | R10: 0.1434754042 | S10: 0.1455323141 | T10: 0.1476512938 | U10: 0.1498303123 | V10: 0.1520769348 | W10: 0.1543971607 | X10: 0.1567909284 | Y10: 0.1592631449 | Z10: 0.161816065 | AA10: 0.1644491461 | AB10: 0.1671609602 | AC10: 0.1699637627 | AD10: 0.1728690769 | AE10: 0.1758821103 | AF10: 0.1790071806 | AG10: 0.1822429689 | AH10: 0.1856021125 | AI10: 0.1890903896 | AJ10: 0.1927156144 | AK10: 0.1964761306 | AL10: 0.2003871913 | AM10: 0.204459071 | AN10: 0.2087097514 | AO10: 0.2131580185 | AP10: 0.2178074677 | AQ10: 0.2226767489 | AR10: 0.2277839888 | AS10: 0.2331416325 | AT10: 0.2387291408 | AU10: 0.2445633342 | AV10: 0.2507168515 | AW10: 0.2572180908 | AX10: 0.2640742775 | AY10: 0.2713288591 | AZ10: 0.2790267775 | BA10: 0.2872168588 | BB10: 0.2959371905 | BC10: 0.3051862439 | BD10: 0.3149940201 | BE10: 0.3254709508 | BF10: 0.3366821414 | BG10: 0.3487566075 | BH10: 0.3618210826 | BI10: 0.376047766 | BJ10: 0.3914615822 | BK10: 0.4081689218 | BL10: 0.4264956084 | BM10: 0.4464500611 | BN10: 0.4684336035 | BO10: 0.4926933633 | BP10: 0.5197982793 | BQ10: 0.5495316666 | BR10: 0.5830798964 | BS10: 0.6203347505 | BT10: 0.6626957333 | BU10: 0.7107138138 | BV10: 0.7637806858 | BW10: 0.8224748816 | BX10: 0.8812363708 | BY10: 0.935551023 | BZ10: 0.9786587974 | CA10: 0.9992366765 | CB10: 1 | CC10: 1 | CD10: 1
A11: 0.5625 | B11: 0.1211727674 | C11: 0.1225821675 | D11: 0.124023731 | E11: 0.1255005491 | F11: 0.1270138384 | G11: 0.1285623816 | H11: 0.1301510604 | I11: 0.1317818715 | J11: 0.1334555257 | K11: 0.1351731954 | L11: 0.1369361478 | M11: 0.1387373881 | N11: 0.1405888363 | O11: 0.142490601 | P11: 0.1444465589 | Q11: 0.1464600254 | R11: 0.1485302367 | S11: 0.1506572309 | T11: 0.1528439257 | U11: 0.155099192 | V11: 0.1574252435 | W11: 0.1598239373 | X11: 0.1622922235 | Y11: 0.1648389999 | Z11: 0.1674711375 | AA11: 0.1701907265 | AB11: 0.1729988811 | AC11: 0.1759058354 | AD11: 0.1789171349 | AE11: 0.1820335718 | AF11: 0.1852622762 | AG11: 0.1886062791 | AH11: 0.1920713874 | AI11: 0.195673198 | AJ11: 0.1994183619 | AK11: 0.2033116847 | AL11: 0.2073661141 | AM11: 0.2115945573 | AN11: 0.2160058189 | AO11: 0.2206103393 | AP11: 0.2254348345 | AQ11: 0.2304873072 | AR11: 0.2357633212 | AS11: 0.2412518634 | AT11: 0.2470095699 | AU11: 0.2530625823 | AV11: 0.2594391607 | AW11: 0.2661490773 | AX11: 0.27324045 | AY11: 0.2807508399 | AZ11: 0.2887310154 | BA11: 0.2972043582 | BB11: 0.3061878143 | BC11: 0.3156847009 | BD11: 0.3257819584 | BE11: 0.3366065842 | BF11: 0.3482382572 | BG11: 0.3607733017 | BH11: 0.3743532971 | BI11: 0.3890858914 | BJ11: 0.4049425876 | BK11: 0.4222934695 | BL11: 0.4411915348 | BM11: 0.4617707025 | BN11: 0.484385764 | BO11: 0.5094704769 | BP11: 0.5372043611 | BQ11: 0.5679646257 | BR11: 0.6022408766 | BS11: 0.6404510617 | BT11: 0.6837638168 | BU11: 0.7315867361 | BV11: 0.7856628607 | BW11: 0.8429318714 | BX11: 0.8989376192 | BY11: 0.950492419 | BZ11: 0.9869962472 | CA11: 0.9999928112 | CB11: 1 | CC11: 1 | CD11: 1
A12: 0.625 | B12: 0.1252633789 | C12: 0.1267223803 | D12: 0.1282166239 | E12: 0.1297476034 | F12: 0.1313165471 | G12: 0.1329229361 | H12: 0.134568956 | I12: 0.1362535661 | J12: 0.1379760892 | K12: 0.1397435446 | L12: 0.141558235 | M12: 0.1434237854 | N12: 0.1453399082 | O12: 0.1473070071 | P12: 0.1493246919 | Q12: 0.1514016854 | R12: 0.1535380462 | S12: 0.1557326095 | T12: 0.1579896286 | U12: 0.1603095378 | V12: 0.1627027297 | W12: 0.1651745558 | X12: 0.1677287589 | Y12: 0.1703650861 | Z12: 0.1730900502 | AA12: 0.1759061066 | AB12: 0.1788079578 | AC12: 0.1818020832 | AD12: 0.1848967432 | AE12: 0.1881042657 | AF12: 0.1914366929 | AG12: 0.1948954057 | AH12: 0.1984803586 | AI12: 0.2022040496 | AJ12: 0.2060832449 | AK12: 0.2101212853 | AL12: 0.2143222278 | AM12: 0.2186943461 | AN12: 0.2232559326 | AO12: 0.2280203634 | AP12: 0.2329929962 | AQ12: 0.2381868983 | AR12: 0.2436033648 | AS12: 0.2492750156 | AT12: 0.2552343226 | AU12: 0.2614869857 | AV12: 0.2680657066 | AW12: 0.2749993482 | AX12: 0.2823283295 | AY12: 0.2900863466 | AZ12: 0.2983087885 | BA12: 0.3070211104 | BB12: 0.3162452247 | BC12: 0.3260182031 | BD12: 0.3364588295 | BE12: 0.3476802023 | BF12: 0.3597311895 | BG12: 0.3727304444 | BH12: 0.3867607645 | BI12: 0.4018836864 | BJ12: 0.4183414914 | BK12: 0.4361980017 | BL12: 0.4556139496 | BM12: 0.476808575 | BN12: 0.5000516437 | BO12: 0.525811826 | BP12: 0.5543161999 | BQ12: 0.5858319574 | BR12: 0.6209256506 | BS12: 0.6599819557 | BT12: 0.7036821319 | BU12: 0.7516747819 | BV12: 0.8057975343 | BW12: 0.8612944 | BX12: 0.91496917 | BY12: 0.9629153787 | BZ12: 0.9930989414 | CA12: 1 | CB12: 1 | CC12: 1 | CD12: 1
A13: 0.6875 | B13: 0.1293494509 | C13: 0.1308598696 | D13: 0.1324027039 | E13: 0.133980082 | F13: 0.1355961156 | G13: 0.1372474756 | H13: 0.1389405695 | I13: 0.1406780557 | J13: 0.1424592741 | K13: 0.1442836739 | L13: 0.1461562068 | M13: 0.1480778165 | N13: 0.1500499356 | O13: 0.1520736017 | P13: 0.1541533207 | Q13: 0.1562892561 | R13: 0.1584833218 | S13: 0.1607435259 | T13: 0.1630726037 | U13: 0.1654745205 | V13: 0.1679488866 | W13: 0.1705039947 | X13: 0.1731405091 | Y13: 0.1758612497 | Z13: 0.1786626413 | AA13: 0.1815481473 | AB13: 0.1845324481 | AC13: 0.1876202398 | AD13: 0.1908213267 | AE13: 0.1941412967 | AF13: 0.1975835853 | AG13: 0.2011536481 | AH13: 0.2048630763 | AI13: 0.208721312 | AJ13: 0.2127332603 | AK13: 0.2168917271 | AL13: 0.221219913 | AM13: 0.22573157 | AN13: 0.2304314106 | AO13: 0.2353455386 | AP13: 0.2404508869 | AQ13: 0.2457834293 | AR13: 0.2513853137 | AS13: 0.2572454534 | AT13: 0.2633925618 | AU13: 0.2698335838 | AV13: 0.276612133 | AW13: 0.2837575402 | AX13: 0.2913071972 | AY13: 0.2993050447 | AZ13: 0.3077534954 | BA13: 0.3166965836 | BB13: 0.3261791393 | BC13: 0.3362860999 | BD13: 0.3470906162 | BE13: 0.3586913416 | BF13: 0.371172822 | BG13: 0.384567843 | BH13: 0.3989730004 | BI13: 0.414619996 | BJ13: 0.4315613431 | BK13: 0.4498592873 | BL13: 0.4698439587 | BM13: 0.4915428608 | BN13: 0.5154070523 | BO13: 0.5418823875 | BP13: 0.5710413468 | BQ13: 0.6033446232 | BR13: 0.6391288276 | BS13: 0.6787897844 | BT13: 0.7225847221 | BU13: 0.7711665484 | BV13: 0.8247748849 | BW13: 0.877953437 | BX13: 0.9299686097 | BY13: 0.9732748122 | BZ13: 0.9967740079 | CA13: 1 | CB13: 1 | CC13: 1 | CD13: 1
A14: 0.75 | B14: 0.1334105062 | C14: 0.1349638834 | D14: 0.1365524847 | E14: 0.13817873 | F14: 0.1398436698 | G14: 0.1415449214 | H14: 0.1432896604 | I14: 0.1450784873 | J14: 0.1469112922 | K14: 0.1487855962 | L14: 0.1507075764 | M14: 0.1526823575 | N14: 0.1547074627 | O14: 0.1567884702 | P14: 0.1589303487 | Q14: 0.1611354765 | R14: 0.1634040408 | S14: 0.1657363738 | T14: 0.1681368964 | U14: 0.1706124562 | V14: 0.1731588968 | W14: 0.1757872808 | X14: 0.1784877505 | Y14: 0.181277937 | Z14: 0.1841649554 | AA14: 0.1871494981 | AB14: 0.1902366164 | AC14: 0.1934266193 | AD14: 0.1967267851 | AE14: 0.2001513244 | AF14: 0.2037093959 | AG14: 0.2073993258 | AH14: 0.2112240561 | AI14: 0.2151913661 | AJ14: 0.2193165108 | AK14: 0.2236025437 | AL14: 0.2280555396 | AM14: 0.2327011134 | AN14: 0.2375492877 | AO14: 0.2425751638 | AP14: 0.2478408777 | AQ14: 0.2533431092 | AR14: 0.2591184555 | AS14: 0.2651523908 | AT14: 0.2714563785 | AU14: 0.2780858834 | AV14: 0.2850666272 | AW14: 0.2924255362 | AX14: 0.3002126681 | AY14: 0.308406987 | AZ14: 0.3170781912 | BA14: 0.3262656515 | BB14: 0.3360682912 | BC14: 0.3465034655 | BD14: 0.3576589295 | BE14: 0.3696588484 | BF14: 0.3824900582 | BG14: 0.3962525407 | BH14: 0.4111072167 | BI14: 0.4272111867 | BJ14: 0.4445408659 | BK14: 0.4633609082 | BL14: 0.4837534902 | BM14: 0.506017127 | BN14: 0.5305678379 | BO14: 0.5575362607 | BP14: 0.5873984912 | BQ14: 0.6204045731 | BR14: 0.6567746334 | BS14: 0.6969483046 | BT14: 0.7405154835 | BU14: 0.7896869157 | BV14: 0.8421791569 | BW14: 0.8934928826 | BX14: 0.9432536351 | BY14: 0.9815361489 | BZ14: 0.9990188027 | CA14: 1 | CB14: 1 | CC14: 1 | CD14: 1
A15: 0.8125 | B15: 0.1374073179 | C15: 0.1390027572 | D15: 0.1406353519 | E15: 0.1423066417 | F15: 0.1440196413 | G15: 0.1457711263 | H15: 0.1475604326 | I15: 0.1493956381 | J15: 0.1512757477 | K15: 0.1532013958 | L15: 0.1551792534 | M15: 0.1572130624 | N15: 0.1593049852 | O15: 0.1614533703 | P15: 0.1636587403 | Q15: 0.1659289063 | R15: 0.1682618788 | S15: 0.1706599957 | T15: 0.1731288475 | U15: 0.17567154 | V15: 0.1782847667 | W15: 0.1809823688 | X15: 0.1837702422 | Y15: 0.1866537972 | Z15: 0.1896374181 | AA15: 0.1927150452 | AB15: 0.1958932928 | AC15: 0.1991817239 | AD15: 0.2025912398 | AE15: 0.206119184 | AF15: 0.2097819323 | AG15: 0.2135744621 | AH15: 0.2175076136 | AI15: 0.2215845869 | AJ15: 0.2258249053 | AK15: 0.2302406501 | AL15: 0.2348405985 | AM15: 0.2396096248 | AN15: 0.2445735302 | AO15: 0.2497549264 | AP15: 0.2551817685 | AQ15: 0.2608520844 | AR15: 0.2667614901 | AS15: 0.2729542718 | AT15: 0.2794478727 | AU15: 0.2862640559 | AV15: 0.2934573802 | AW15: 0.3010294523 | AX15: 0.3089976948 | AY15: 0.3174063136 | AZ15: 0.326313826 | BA15: 0.3358045881 | BB15: 0.3458983812 | BC15: 0.3566705396 | BD15: 0.3681911024 | BE15: 0.3805054819 | BF15: 0.3936725519 | BG15: 0.4078388948 | BH15: 0.4231408124 | BI15: 0.4395864467 | BJ15: 0.4573696388 | BK15: 0.4765352619 | BL15: 0.4974713569 | BM15: 0.5203384809 | BN15: 0.5453418247 | BO15: 0.5729630559 | BP15: 0.6034801075 | BQ15: 0.6371081173 | BR15: 0.6738630973 | BS15: 0.7141690352 | BT15: 0.7582058451 | BU15: 0.8071634365 | BV15: 0.8576148245 | BW15: 0.9080651978 | BX15: 0.9547967929 | BY15: 0.9878949459 | BZ15: 0.9998497055 | CA15: 1 | CB15: 1 | CC15: 1 | CD15: 1
A16: 0.875 | B16: 0.1412712537 | C16: 0.1429118626 | D16: 0.1445884896 | E16: 0.1463051267 | F16: 0.1480600967 | G16: 0.1498526967 | H16: 0.1516903424 | I16: 0.1535767541 | J16: 0.1555126396 | K16: 0.1574989841 | L16: 0.1595350602 | M16: 0.1616260966 | N16: 0.1637762598 | O16: 0.1659816613 | P16: 0.1682480647 | Q16: 0.1705786601 | R16: 0.1729772471 | S16: 0.1754452389 | T16: 0.177978135 | U16: 0.180590765 | V16: 0.1832875854 | W16: 0.1860732855 | X16: 0.1889519054 | Y16: 0.1919188216 | Z16: 0.1949871578 | AA16: 0.1981592499 | AB16: 0.2014353715 | AC16: 0.204819842 | AD16: 0.2083233794 | AE16: 0.2119563062 | AF16: 0.2157192374 | AG16: 0.2196058175 | AH16: 0.2236441072 | AI16: 0.2278460147 | AJ16: 0.232223762 | AK16: 0.2367724945 | AL16: 0.2414769757 | AM16: 0.2463708382 | AN16: 0.2514781315 | AO16: 0.256815646 | AP16: 0.2623679979 | AQ16: 0.2681741824 | AR16: 0.2742594911 | AS16: 0.2806272033 | AT16: 0.2873146342 | AU16: 0.2943588749 | AV16: 0.301734425 | AW16: 0.3094929518 | AX16: 0.317664663 | AY16: 0.3263085311 | AZ16: 0.3355043929 | BA16: 0.3452645277 | BB16: 0.3556893498 | BC16: 0.3667985516 | BD16: 0.3786000243 | BE16: 0.3912265618 | BF16: 0.4047798223 | BG16: 0.4193463536 | BH16: 0.4349717429 | BI16: 0.4518102763 | BJ16: 0.469907157 | BK16: 0.4895688362 | BL16: 0.5109989465 | BM16: 0.5343515502 | BN16: 0.5598624609 | BO16: 0.5880534288 | BP16: 0.6192950236 | BQ16: 0.6532637403 | BR16: 0.6904053447 | BS16: 0.7306550114 | BT16: 0.7752139846 | BU16: 0.8236031474 | BV16: 0.8719021994 | BW16: 0.9212696849 | BX16: 0.9651419829 | BY16: 0.9929050515 | BZ16: 1 | CA16: 1 | CB16: 1 | CC16: 1 | CD16: 1
A17: 0.9375 | B17: 0.1448572399 | C17: 0.1465357045 | D17: 0.1482497366 | E17: 0.1500061678 | F17: 0.151806585 | G17: 0.1536494563 | H17: 0.1555388319 | I17: 0.1574760931 | J17: 0.1594622762 | K17: 0.1614991199 | L17: 0.1635901476 | M17: 0.1657361525 | N17: 0.1679397969 | O17: 0.1702076362 | P17: 0.17254131 | Q17: 0.1749390077 | R17: 0.1773979008 | S17: 0.179930951 | T17: 0.1825421326 | U17: 0.1852359406 | V17: 0.1880138423 | W17: 0.1908742259 | X17: 0.1938296268 | Y17: 0.1968852261 | Z17: 0.2000368309 | AA17: 0.2032943419 | AB17: 0.2066589801 | AC17: 0.2101414766 | AD17: 0.2137386697 | AE17: 0.2174570389 | AF17: 0.2213207424 | AG17: 0.2253338554 | AH17: 0.2295038999 | AI17: 0.2338295421 | AJ17: 0.2383251558 | AK17: 0.2429684156 | AL17: 0.2477973761 | AM17: 0.2528240839 | AN17: 0.2580491911 | AO17: 0.2635155417 | AP17: 0.2692273493 | AQ17: 0.2752010389 | AR17: 0.281458878 | AS17: 0.2880334961 | AT17: 0.2949310357 | AU17: 0.3021546627 | AV17: 0.309730623 | AW17: 0.3177074215 | AX17: 0.3261261706 | AY17: 0.3350510139 | AZ17: 0.3445143836 | BA17: 0.3545971189 | BB17: 0.3653314254 | BC17: 0.376696134 | BD17: 0.388808318 | BE17: 0.4018136807 | BF17: 0.4157216402 | BG17: 0.4306151705 | BH17: 0.4465965988 | BI17: 0.4637293348 | BJ17: 0.4822868264 | BK17: 0.5023828465 | BL17: 0.524333042 | BM17: 0.5481301779 | BN17: 0.5741966213 | BO17: 0.6029694751 | BP17: 0.6347615234 | BQ17: 0.6690217688 | BR17: 0.7063433333 | BS17: 0.7467156929 | BT17: 0.7914463922 | BU17: 0.8385902088 | BV17: 0.8854770425 | BW17: 0.9331193521 | BX17: 0.9737184544 | BY17: 0.9962282442 | BZ17: 1 | CA17: 1 | CB17: 1 | CC17: 1 | CD17: 1
A18: 1 | B18: 0.148098963 | C18: 0.1498170022 | D18: 0.1515754852 | E18: 0.1533781528 | F18: 0.1552236493 | G18: 0.1571126217 | H18: 0.1590474824 | I18: 0.1610335681 | J18: 0.1630663532 | K18: 0.1651510178 | L18: 0.1672939029 | M18: 0.1694979571 | N18: 0.1717659532 | O18: 0.1740918394 | P18: 0.1764808954 | Q18: 0.1789412553 | R18: 0.1814739421 | S18: 0.1840839702 | T18: 0.1867684112 | U18: 0.1895325436 | V18: 0.1923857063 | W18: 0.1953249545 | X18: 0.1983562536 | Y18: 0.2014896582 | Z18: 0.2047274641 | AA18: 0.2080720952 | AB18: 0.2115207998 | AC18: 0.215077302 | AD18: 0.2187675581 | AE18: 0.2225994293 | AF18: 0.2265798033 | AG18: 0.2307036332 | AH18: 0.2349872728 | AI18: 0.2394120351 | AJ18: 0.2440019864 | AK18: 0.2487586086 | AL18: 0.2536984328 | AM18: 0.2588500338 | AN18: 0.2642353084 | AO18: 0.2698483711 | AP18: 0.2757078529 | AQ18: 0.2818514034 | AR18: 0.2882962747 | AS18: 0.2950368425 | AT18: 0.302097881 | AU18: 0.3094917547 | AV18: 0.3172770299 | AW18: 0.3254795906 | AX18: 0.334153357 | AY18: 0.3433430706 | AZ18: 0.3531197829 | BA18: 0.3635106491 | BB18: 0.3745054391 | BC18: 0.3862305386 | BD18: 0.3987460101 | BE18: 0.4121011612 | BF18: 0.4263676305 | BG18: 0.4416210233 | BH18: 0.4578689976 | BI18: 0.4754133451 | BJ18: 0.4943405833 | BK18: 0.5148976537 | BL18: 0.5373054781 | BM18: 0.561516702 | BN18: 0.5881249541 | BO18: 0.6175972771 | BP18: 0.6496363997 | BQ18: 0.68412249 | BR18: 0.7216247657 | BS18: 0.7624119573 | BT18: 0.8069586518 | BU18: 0.8523806945 | BV18: 0.8984862389 | BW18: 0.9439021558 | BX18: 0.980264044 | BY18: 0.9985833148 | BZ18: 1 | CA18: 1 | CB18: 1 | CC18: 1 | CD18: 1
A19: 1.0625 | B19: 0.1511861793 | C19: 0.1529393239 | D19: 0.1547340037 | E19: 0.1565722701 | F19: 0.1584570739 | G19: 0.1603810911 | H19: 0.162353877 | I19: 0.164379616 | J19: 0.1664589197 | K19: 0.1685951697 | L19: 0.170790392 | M19: 0.1730396717 | N19: 0.1753505134 | O19: 0.1777290671 | P19: 0.1801778252 | Q19: 0.1826998133 | R19: 0.1852887539 | S19: 0.1879545028 | T19: 0.1906986702 | U19: 0.1935248292 | V19: 0.1964411471 | W19: 0.1994492441 | X19: 0.2025557576 | Y19: 0.2057649299 | Z19: 0.2090713399 | AA19: 0.2124783184 | AB19: 0.2160046395 | AC19: 0.219659227 | AD19: 0.2234518264 | AE19: 0.2273817814 | AF19: 0.2314652435 | AG19: 0.2356923147 | AH19: 0.2400552026 | AI19: 0.2445629452 | AJ19: 0.2492434618 | AK19: 0.254104757 | AL19: 0.2591792188 | AM19: 0.264468746 | AN19: 0.2699733675 | AO19: 0.2757341145 | AP19: 0.2817754898 | AQ19: 0.2881005156 | AR19: 0.2947038323 | AS19: 0.3016072535 | AT19: 0.3088202155 | AU19: 0.3164014849 | AV19: 0.3243751629 | AW19: 0.3327959133 | AX19: 0.3417121938 | AY19: 0.351169466 | AZ19: 0.361196109 | BA19: 0.3717851719 | BB19: 0.383083793 | BC19: 0.3951833784 | BD19: 0.4080398925 | BE19: 0.4217518683 | BF19: 0.4363583541 | BG19: 0.4518704991 | BH19: 0.4685232882 | BI19: 0.4864139795 | BJ19: 0.5058110589 | BK19: 0.5269189452 | BL19: 0.5496921246 | BM19: 0.5745553228 | BN19: 0.6017759441 | BO19: 0.6317672638 | BP19: 0.6640331236 | BQ19: 0.6987141642 | BR19: 0.7363822027 | BS19: 0.7773019945 | BT19: 0.8212192628 | BU19: 0.8650691024 | BV19: 0.910912354 | BW19: 0.9538060053 | BX19: 0.9860384284 | BY19: 0.9996303722 | BZ19: 1 | CA19: 1 | CB19: 1 | CC19: 1 | CD19: 1
A20: 1.125 | B20: 0.1541607497 | C20: 0.1559487512 | D20: 0.1577754994 | E20: 0.1596464727 | F20: 0.1615649622 | G20: 0.163530519 | H20: 0.165548314 | I20: 0.1676203023 | J20: 0.1697451439 | K20: 0.1719198557 | L20: 0.1741522255 | M20: 0.1764483875 | N20: 0.1788114566 | O20: 0.1812415882 | P20: 0.1837363602 | Q20: 0.1863022099 | R20: 0.1889407206 | S20: 0.1916539244 | T20: 0.1944508003 | U20: 0.1973315996 | V20: 0.2003019182 | W20: 0.2033684664 | X20: 0.2065282828 | Y20: 0.2097871349 | Z20: 0.2131589132 | AA20: 0.2166474676 | AB20: 0.2202606026 | AC20: 0.2239981765 | AD20: 0.227874959 | AE20: 0.2318940232 | AF20: 0.2360478642 | AG20: 0.2403211094 | AH20: 0.2447390385 | AI20: 0.2493325437 | AJ20: 0.2541153119 | AK20: 0.2590913315 | AL20: 0.2642649752 | AM20: 0.2696466667 | AN20: 0.2752806612 | AO20: 0.2811835408 | AP20: 0.28735293 | AQ20: 0.2937912161 | AR20: 0.300516055 | AS20: 0.3075540699 | AT20: 0.3149447558 | AU20: 0.3227058697 | AV20: 0.3308859264 | AW20: 0.33953421 | AX20: 0.3486837655 | AY20: 0.3583535571 | AZ20: 0.3685671327 | BA20: 0.3794400485 | BB20: 0.3910664957 | BC20: 0.4034637973 | BD20: 0.4166903808 | BE20: 0.4307463695 | BF20: 0.4455953309 | BG20: 0.4614411399 | BH20: 0.4783666366 | BI20: 0.4966632709 | BJ20: 0.5165440123 | BK20: 0.5379802933 | BL20: 0.5612957972 | BM20: 0.5866655966 | BN20: 0.6145260268 | BO20: 0.6449203778 | BP20: 0.6773614967 | BQ20: 0.7125942507 | BR20: 0.750621512 | BS20: 0.791647467 | BT20: 0.8343418553 | BU20: 0.8770987942 | BV20: 0.922226477 | BW20: 0.962444411 | BX20: 0.9908181534 | BY20: 0.9999914921 | BZ20: 1 | CA20: 1 | CB20: 1 | CC20: 1 | CD20: 1
A21: 1.1875 | B21: 0.1569958197 | C21: 0.1588165467 | D21: 0.1606832035 | E21: 0.1625970895 | F21: 0.1645596644 | G21: 0.166570335 | H21: 0.1686308564 | I21: 0.1707395976 | J21: 0.1728983456 | K21: 0.1751174466 | L21: 0.1773983909 | M21: 0.179740903 | N21: 0.1821449338 | O21: 0.1846133576 | P21: 0.1871516469 | Q21: 0.1897618589 | R21: 0.1924466032 | S21: 0.1952087966 | T21: 0.198053907 | U21: 0.200986405 | V21: 0.2040051852 | W21: 0.2071181934 | X21: 0.2103338266 | Y21: 0.21366079 | Z21: 0.2171050913 | AA21: 0.220663871 | AB21: 0.2243471413 | AC21: 0.2281600177 | AD21: 0.2320968364 | AE21: 0.2361602232 | AF21: 0.2403462241 | AG21: 0.2446906822 | AH21: 0.2491979765 | AI21: 0.2538860271 | AJ21: 0.2587637416 | AK21: 0.2638231686 | AL21: 0.2690945534 | AM21: 0.2746011006 | AN21: 0.2803505918 | AO21: 0.2863494867 | AP21: 0.2926166388 | AQ21: 0.2991470737 | AR21: 0.3059909656 | AS21: 0.3131512593 | AT21: 0.320668943 | AU21: 0.3285911333 | AV21: 0.3369579114 | AW21: 0.3457854896 | AX21: 0.355107484 | AY21: 0.3649505308 | AZ21: 0.3754035686 | BA21: 0.3865544214 | BB21: 0.398417405 | BC21: 0.4110768293 | BD21: 0.4245733263 | BE21: 0.4388699389 | BF21: 0.4540084467 | BG21: 0.4700508325 | BH21: 0.4872960815 | BI21: 0.5060042222 | BJ21: 0.5262320569 | BK21: 0.5480186686 | BL21: 0.5718116 | BM21: 0.5977721052 | BN21: 0.6261563999 | BO21: 0.6567575616 | BP21: 0.6895962238 | BQ21: 0.7253394067 | BR21: 0.7638208497 | BS21: 0.8047836889 | BT21: 0.8465706156 | BU21: 0.8885898726 | BV21: 0.9321723163 | BW21: 0.9694499859 | BX21: 0.994246971 | BY21: 1 | BZ21: 1 | CA21: 1 | CB21: 1 | CC21: 1 | CD21: 1
A22: 1.25 | B22: 0.1596964543 | C22: 0.1615536207 | D22: 0.1634572611 | E22: 0.1654088965 | F22: 0.1674057084 | G22: 0.1694489546 | H22: 0.1715401291 | I22: 0.1736874135 | J22: 0.175889079 | K22: 0.1781506938 | L22: 0.1804664007 | M22: 0.1828458169 | N22: 0.1852905855 | O22: 0.1878053253 | P22: 0.1903885741 | Q22: 0.1930435129 | R22: 0.1957780982 | S22: 0.1985910657 | T22: 0.201484147 | U22: 0.2044663578 | V22: 0.2075383875 | W22: 0.2107135395 | X22: 0.2139976051 | Y22: 0.2173884338 | Z22: 0.2208939546 | AA22: 0.2245182185 | AB22: 0.2282551562 | AC22: 0.2321138562 | AD22: 0.2360847456 | AE22: 0.2401874406 | AF22: 0.244443429 | AG22: 0.2488582836 | AH22: 0.2534399869 | AI22: 0.2581937826 | AJ22: 0.2631413742 | AK22: 0.2682903585 | AL22: 0.2736677293 | AM22: 0.27927654 | AN22: 0.2851161915 | AO22: 0.2912017515 | AP22: 0.2975547534 | AQ22: 0.3042080198 | AR22: 0.3111610093 | AS22: 0.3184554787 | AT22: 0.3261199683 | AU22: 0.3342079274 | AV22: 0.3427045516 | AW22: 0.3516776949 | AX22: 0.3611483158 | AY22: 0.3711887639 | AZ22: 0.3818878481 | BA22: 0.3932562263 | BB22: 0.4053582389 | BC22: 0.4182632515 | BD22: 0.4319285387 | BE22: 0.446488058 | BF22: 0.4617800867 | BG22: 0.4780656993 | BH22: 0.4956637056 | BI22: 0.5146926101 | BJ22: 0.5351407864 | BK22: 0.5573983381 | BL22: 0.5815563494 | BM22: 0.6078561678 | BN22: 0.6365330723 | BO22: 0.6671124125 | BP22: 0.7006609181 | BQ22: 0.7369724605 | BR22: 0.7758431023 | BS22: 0.8164625933 | BT22: 0.8572282756 | BU22: 0.8991915665 | BV22: 0.9412221346 | BW22: 0.9754286405 | BX22: 0.996675239 | BY22: 1 | BZ22: 1 | CA22: 1 | CB22: 1 | CC22: 1 | CD22: 1
A23: 1.3125 | B23: 0.1622807537 | C23: 0.1641716207 | D23: 0.1661050162 | E23: 0.1680872466 | F23: 0.170113114 | G23: 0.1721886111 | H23: 0.1743161008 | I23: 0.1764975596 | J23: 0.1787271585 | K23: 0.1810192238 | L23: 0.1833697739 | M23: 0.1857862642 | N23: 0.1882657669 | O23: 0.1908153049 | P23: 0.1934402282 | Q23: 0.1961361129 | R23: 0.1989087955 | S23: 0.2017672138 | T23: 0.204706228 | U23: 0.207738696 | V23: 0.2108712667 | W23: 0.2141048575 | X23: 0.2174451152 | Y23: 0.2208960584 | Z23: 0.2244521497 | AA23: 0.2281241433 | AB23: 0.2319106966 | AC23: 0.2358048624 | AD23: 0.2398357419 | AE23: 0.2440097614 | AF23: 0.2483374003 | AG23: 0.2528202554 | AH23: 0.2574748431 | AI23: 0.2623134944 | AJ23: 0.2673515351 | AK23: 0.2725991174 | AL23: 0.278061699 | AM23: 0.2837385301 | AN23: 0.2896503729 | AO23: 0.2958219134 | AP23: 0.3022786944 | AQ23: 0.3090161724 | AR23: 0.3160839769 | AS23: 0.3234917758 | AT23: 0.3312908605 | AU23: 0.3394787509 | AV23: 0.3481151958 | AW23: 0.3572268253 | AX23: 0.3668621474 | AY23: 0.3771079006 | AZ23: 0.387979567 | BA23: 0.3995301398 | BB23: 0.4118479833 | BC23: 0.4248909845 | BD23: 0.4387745276 | BE23: 0.4535149171 | BF23: 0.4690797082 | BG23: 0.4857223015 | BH23: 0.5035618509 | BI23: 0.5227891625 | BJ23: 0.5435473896 | BK23: 0.5660607933 | BL23: 0.5906079936 | BM23: 0.6173327267 | BN23: 0.6458968943 | BO23: 0.6766164518 | BP23: 0.7106043373 | BQ23: 0.7472529121 | BR23: 0.7865448332 | BS23: 0.8268083348 | BT23: 0.8666425591 | BU23: 0.90914639 | BV23: 0.9494546704 | BW23: 0.9807843118 | BX23: 0.9983088068 | BY23: 1 | BZ23: 1 | CA23: 1 | CB23: 1 | CC23: 1 | CD23: 1
A24: 1.375 | B24: 0.1648022826 | C24: 0.1667207629 | D24: 0.1686825061 | E24: 0.1706924482 | F24: 0.1727513217 | G24: 0.1748552704 | H24: 0.177008965 | I24: 0.1792174724 | J24: 0.1814810579 | K24: 0.183804445 | L24: 0.186184476 | M24: 0.1886329081 | N24: 0.1911506862 | O24: 0.1937351124 | P24: 0.1963932218 | Q24: 0.1991312171 | R24: 0.2019457856 | S24: 0.2048447742 | T24: 0.2078347928 | U24: 0.2109169001 | V24: 0.2140958026 | W24: 0.2173732677 | X24: 0.2207499873 | Y24: 0.2242421516 | Z24: 0.2278376767 | AA24: 0.2315455107 | AB24: 0.2353622067 | AC24: 0.2393080344 | AD24: 0.2433909028 | AE24: 0.2476176589 | AF24: 0.2519981648 | AG24: 0.2565530502 | AH24: 0.2612859967 | AI24: 0.2662137271 | AJ24: 0.2713448531 | AK24: 0.2766693639 | AL24: 0.2821984144 | AM24: 0.2879453517 | AN24: 0.2939448715 | AO24: 0.3002104924 | AP24: 0.3067499196 | AQ24: 0.3135964263 | AR24: 0.3207764668 | AS24: 0.3283128086 | AT24: 0.3362088773 | AU24: 0.3445306786 | AV24: 0.353298146 | AW24: 0.3625625578 | AX24: 0.3723891504 | AY24: 0.3827925406 | AZ24: 0.3938272717 | BA24: 0.4055867876 | BB24: 0.4180044868 | BC24: 0.4311944309 | BD24: 0.4452041487 | BE24: 0.4601374915 | BF24: 0.4759968741 | BG24: 0.4929329126 | BH24: 0.5110560278 | BI24: 0.5304435113 | BJ24: 0.5514763677 | BK24: 0.5742937026 | BL24: 0.5990426425 | BM24: 0.6260244453 | BN24: 0.6544711196 | BO24: 0.6855743934 | BP24: 0.7198457855 | BQ24: 0.7566951866 | BR24: 0.795849547 | BS24: 0.8358992226 | BT24: 0.8751754568 | BU24: 0.9177232109 | BV24: 0.9563553092 | BW24: 0.9849923323 | BX24: 0.9993184434 | BY24: 1 | BZ24: 1 | CA24: 1 | CB24: 1 | CC24: 1 | CD24: 1
A25: 1.4375 | B25: 0.1671738009 | C25: 0.1691179457 | D25: 0.1711074771 | E25: 0.1731397802 | F25: 0.1752203588 | G25: 0.1773507068 | H25: 0.1795356038 | I25: 0.1817723432 | J25: 0.1840652636 | K25: 0.1864226098 | L25: 0.1888425334 | M25: 0.1913251714 | N25: 0.1938788285 | O25: 0.1965078079 | P25: 0.1992097076 | Q25: 0.2019880856 | R25: 0.2048500381 | S25: 0.2077976019 | T25: 0.2108319654 | U25: 0.2139526931 | V25: 0.2171672596 | W25: 0.2204898459 | X25: 0.2239134257 | Y25: 0.2274443361 | Z25: 0.2310742266 | AA25: 0.2348171336 | AB25: 0.2386825633 | AC25: 0.2426751411 | AD25: 0.2468041838 | AE25: 0.2510902476 | AF25: 0.2555465058 | AG25: 0.2601673619 | AH25: 0.2649750198 | AI25: 0.2699682893 | AJ25: 0.2751535181 | AK25: 0.2805290019 | AL25: 0.2861196279 | AM25: 0.291946295 | AN25: 0.2980305409 | AO25: 0.3043783703 | AP25: 0.3110176091 | AQ25: 0.3179675102 | AR25: 0.3252511032 | AS25: 0.3328690842 | AT25: 0.34087556 | AU25: 0.3493070423 | AV25: 0.3582057478 | AW25: 0.3676249237 | AX25: 0.3775782813 | AY25: 0.3881221702 | AZ25: 0.3993523576 | BA25: 0.4112004052 | BB25: 0.4237593538 | BC25: 0.4370811344 | BD25: 0.4512304187 | BE25: 0.4663914571 | BF25: 0.4825442787 | BG25: 0.4997847302 | BH25: 0.5181143984 | BI25: 0.5377716389 | BJ25: 0.5589649743 | BK25: 0.5819146712 | BL25: 0.6069900467 | BM25: 0.6338922619 | BN25: 0.6623965873 | BO25: 0.6938757388 | BP25: 0.7282430831 | BQ25: 0.76536272 | BR25: 0.8043105986 | BS25: 0.8437615752 | BT25: 0.8829232317 | BU25: 0.924769444 | BV25: 0.9615578392 | BW25: 0.9884769606 | BX25: 0.9998051601 | BY25: 1 | BZ25: 1 | CA25: 1 | CB25: 1 | CC25: 1 | CD25: 1
A26: 1.5 | B26: 0.1694368885 | C26: 0.1713983371 | D26: 0.1734061144 | E26: 0.1754599246 | F26: 0.1775654235 | G26: 0.1797154919 | H26: 0.1819217523 | I26: 0.1841875133 | J26: 0.1865091204 | K26: 0.1888896323 | L26: 0.1913372832 | M26: 0.1938553577 | N26: 0.1964466581 | O26: 0.1991070872 | P26: 0.2018471141 | Q26: 0.2046679624 | R26: 0.2075677972 | S26: 0.2105451188 | T26: 0.2136097506 | U26: 0.2167727881 | V26: 0.2200363854 | W26: 0.223391257 | X26: 0.2268522322 | Y26: 0.2304034277 | Z26: 0.2340689334 | AA26: 0.2378501809 | AB26: 0.2417526702 | AC26: 0.2457915237 | AD26: 0.2499845208 | AE26: 0.2543401811 | AF26: 0.2588564308 | AG26: 0.263543984 | AH26: 0.2684114856 | AI26: 0.2734564116 | AJ26: 0.2786915842 | AK26: 0.2841342522 | AL26: 0.2897929056 | AM26: 0.2957005679 | AN26: 0.3018598916 | AO26: 0.3082889443 | AP26: 0.3150229796 | AQ26: 0.3220604199 | AR26: 0.3294289895 | AS26: 0.3371514041 | AT26: 0.3452643949 | AU26: 0.3538217042 | AV26: 0.3628569479 | AW26: 0.3723884349 | AX26: 0.3824702306 | AY26: 0.3931851417 | AZ26: 0.4045079145 | BA26: 0.4164746389 | BB26: 0.4291207571 | BC26: 0.4425364186 | BD26: 0.4568731971 | BE26: 0.4722409586 | BF26: 0.4886311094 | BG26: 0.5061221389 | BH26: 0.5246866994 | BI26: 0.5445798394 | BJ26: 0.5659688485 | BK26: 0.5890620775 | BL26: 0.6142163917 | BM26: 0.6410007288 | BN26: 0.6698813485 | BO26: 0.7015396505 | BP26: 0.7359440817 | BQ26: 0.7732009244 | BR26: 0.8118918356 | BS26: 0.8505918605 | BT26: 0.890069361 | BU26: 0.9310298139 | BV26: 0.9659629673 | BW26: 0.9912625278 | BX26: 1 | BY26: 1 | BZ26: 1 | CA26: 1 | CB26: 1 | CC26: 1 | CD26: 1
A27: 1.5625 | B27: 0.171562711 | C27: 0.1735436795 | D27: 0.1755716139 | E27: 0.1776445396 | F27: 0.179771253 | G27: 0.1819526585 | H27: 0.1841867984 | I27: 0.1864762181 | J27: 0.1888277234 | K27: 0.1912434704 | L27: 0.193727739 | M27: 0.1962774259 | N27: 0.1989000553 | O27: 0.2015992997 | P27: 0.204371081 | Q27: 0.2072157252 | R27: 0.2101397603 | S27: 0.2131551397 | T27: 0.2162658429 | U27: 0.2194682525 | V27: 0.2227686484 | W27: 0.2261531909 | X27: 0.2296345106 | Y27: 0.2332181717 | Z27: 0.2369157283 | AA27: 0.2407327549 | AB27: 0.2446861373 | AC27: 0.2487826649 | AD27: 0.2530351648 | AE27: 0.2574402338 | AF27: 0.2620090113 | AG27: 0.2667449391 | AH27: 0.2716474318 | AI27: 0.276733384 | AJ27: 0.2820227824 | AK27: 0.2875144256 | AL27: 0.2932417562 | AM27: 0.2992104032 | AN27: 0.3054490188 | AO27: 0.3119726922 | AP27: 0.3187651781 | AQ27: 0.3258777159 | AR27: 0.3333303234 | AS27: 0.3411486579 | AT27: 0.3493830851 | AU27: 0.3580605165 | AV27: 0.36719594 | AW27: 0.376845677 | AX27: 0.3870730281 | AY27: 0.3978771279 | AZ27: 0.4093065642 | BA27: 0.4213507701 | BB27: 0.4340868287 | BC27: 0.4476696327 | BD27: 0.4621587509 | BE27: 0.4776930286 | BF27: 0.4943112446 | BG27: 0.5119273742 | BH27: 0.5308312532 | BI27: 0.5509298838 | BJ27: 0.5724203503 | BK27: 0.5957802686 | BL27: 0.6208759478 | BM27: 0.6476101369 | BN27: 0.6768796605 | BO27: 0.7086727358 | BP27: 0.7431066666 | BQ27: 0.7803484544 | BR27: 0.8189494628 | BS27: 0.8570958208 | BT27: 0.8968512827 | BU27: 0.936722511 | BV27: 0.9699661275 | BW27: 0.9933867942 | BX27: 1 | BY27: 1 | BZ27: 1 | CA27: 1 | CB27: 1 | CC27: 1 | CD27: 1
A28: 1.625 | B28: 0.1735501109 | C28: 0.1755477487 | D28: 0.1775955052 | E28: 0.1796930484 | F28: 0.181840336 | G28: 0.1840403386 | H28: 0.1862992281 | I28: 0.1886190443 | J28: 0.191001971 | K28: 0.1934483252 | L28: 0.1959597124 | M28: 0.1985431676 | N28: 0.2011916777 | O28: 0.2039101559 | P28: 0.2067037584 | Q28: 0.2095820324 | R28: 0.2125458344 | S28: 0.2155999405 | T28: 0.2187426375 | U28: 0.2219833681 | V28: 0.2252987573 | W28: 0.2287026655 | X28: 0.2322060997 | Y28: 0.2358159505 | Z28: 0.2395511475 | AA28: 0.2434207726 | AB28: 0.2474310057 | AC28: 0.2515863569 | AD28: 0.2558873259 | AE28: 0.2603437121 | AF28: 0.2649576761 | AG28: 0.2697284467 | AH28: 0.2746727427 | AI28: 0.2798059763 | AJ28: 0.2851413935 | AK28: 0.2906960598 | AL28: 0.2964800198 | AM28: 0.3025183603 | AN28: 0.3088362691 | AO28: 0.3154012552 | AP28: 0.3222689422 | AQ28: 0.3294487013 | AR28: 0.3369850469 | AS28: 0.3449086248 | AT28: 0.3532346153 | AU28: 0.3619910682 | AV28: 0.3712371377 | AW28: 0.3810165414 | AX28: 0.391341126 | AY28: 0.4022333209 | AZ28: 0.4137234918 | BA28: 0.4258484215 | BB28: 0.4387037849 | BC28: 0.4523898977 | BD28: 0.4670273881 | BE28: 0.4827062476 | BF28: 0.4995035699 | BG28: 0.5173180184 | BH28: 0.5364300979 | BI28: 0.5567525639 | BJ28: 0.5784896234 | BK28: 0.6018695984 | BL28: 0.6268843645 | BM28: 0.6538271581 | BN28: 0.6834292786 | BO28: 0.7152307255 | BP28: 0.7497645871 | BQ28: 0.7870129456 | BR28: 0.8253511895 | BS28: 0.8632804653 | BT28: 0.9032112953 | BU28: 0.9418630462 | BV28: 0.9737687477 | BW28: 0.994883622 | BX28: 1 | BY28: 1 | BZ28: 1 | CA28: 1 | CB28: 1 | CC28: 1 | CD28: 1
A29: 1.6875 | B29: 0.1754202625 | C29: 0.1774376999 | D29: 0.1795019542 | E29: 0.1816169134 | F29: 0.1837871419 | G29: 0.1860145589 | H29: 0.1883017341 | I29: 0.1906500107 | J29: 0.1930551982 | K29: 0.1955280777 | L29: 0.1980588756 | M29: 0.2006561292 | N29: 0.2033227984 | O29: 0.2060684735 | P29: 0.2088970505 | Q29: 0.2118112865 | R29: 0.2148065617 | S29: 0.2178933379 | T29: 0.2210635649 | U29: 0.2243140515 | V29: 0.2276444633 | W29: 0.2310668873 | X29: 0.2345989088 | Y29: 0.238250947 | Z29: 0.2420318764 | AA29: 0.2459494094 | AB29: 0.2500054102 | AC29: 0.2541941155 | AD29: 0.2585333817 | AE29: 0.2630228634 | AF29: 0.2676579404 | AG29: 0.2724607372 | AH29: 0.2774461024 | AI29: 0.28262711 | AJ29: 0.2880196432 | AK29: 0.2936290425 | AL29: 0.2994789089 | AM29: 0.3055820183 | AN29: 0.3119324055 | AO29: 0.3185673997 | AP29: 0.3254857977 | AQ29: 0.3327415084 | AR29: 0.3403734721 | AS29: 0.3483733689 | AT29: 0.3567646083 | AU29: 0.3656219228 | AV29: 0.3749673207 | AW29: 0.384835896 | AX29: 0.395209788 | AY29: 0.4061751815 | AZ29: 0.4177316179 | BA29: 0.4299766948 | BB29: 0.4429496045 | BC29: 0.4567686194 | BD29: 0.4715067783 | BE29: 0.4872849286 | BF29: 0.5041585655 | BG29: 0.5222090621 | BH29: 0.5414057949 | BI29: 0.561934346 | BJ29: 0.5839491384 | BK29: 0.6073023034 | BL29: 0.6323282183 | BM29: 0.6596629725 | BN29: 0.6894416211 | BO29: 0.7213321455 | BP29: 0.7560611608 | BQ29: 0.7931889528 | BR29: 0.8309050391 | BS29: 0.8691443752 | BT29: 0.908992513 | BU29: 0.9458684548 | BV29: 0.9770410636 | BW29: 0.9958341014 | BX29: 1 | BY29: 1 | BZ29: 1 | CA29: 1 | CB29: 1 | CC29: 1 | CD29: 1
A30: 1.75 | B30: 0.1771960023 | C30: 0.1792309706 | D30: 0.1813178404 | E30: 0.1834585717 | F30: 0.1856555154 | G30: 0.1879105096 | H30: 0.1902197976 | I30: 0.1925891068 | J30: 0.195010993 | K30: 0.197494423 | L30: 0.2000414948 | M30: 0.2026622472 | N30: 0.2053593983 | O30: 0.2081359062 | P30: 0.2109932259 | Q30: 0.2139301215 | R30: 0.2169561065 | S30: 0.2200513031 | T30: 0.2232222393 | U30: 0.226478137 | V30: 0.229822874 | W30: 0.2332743954 | X30: 0.2368443732 | Y30: 0.240538453 | Z30: 0.2443637509 | AA30: 0.248321558 | AB30: 0.2524041978 | AC30: 0.2566281216 | AD30: 0.2609939018 | AE30: 0.2655010097 | AF30: 0.2701581429 | AG30: 0.2749950358 | AH30: 0.2800194018 | AI30: 0.2852410448 | AJ30: 0.2906768259 | AK30: 0.2963364043 | AL30: 0.3022295802 | AM30: 0.3083619971 | AN30: 0.3147803784 | AO30: 0.3214559727 | AP30: 0.328447239 | AQ30: 0.335790163 | AR30: 0.3434868641 | AS30: 0.3515345686 | AT30: 0.3600129027 | AU30: 0.3689423429 | AV30: 0.3783647639 | AW30: 0.3882461599 | AX30: 0.3986897779 | AY30: 0.4097027662 | AZ30: 0.4213720478 | BA30: 0.433695306 | BB30: 0.4467623051 | BC30: 0.4606749344 | BD30: 0.4755047006 | BE30: 0.4913921993 | BF30: 0.5083586653 | BG30: 0.5264908629 | BH30: 0.5458062237 | BI30: 0.5665075409 | BJ30: 0.5886106102 | BK30: 0.6120829533 | BL30: 0.6373149113 | BM30: 0.6649231051 | BN30: 0.6946617095 | BO30: 0.7265461591 | BP30: 0.7615118598 | BQ30: 0.7986326059 | BR30: 0.8358983156 | BS30: 0.8746873612 | BT30: 0.914210596 | BU30: 0.9492647643 | BV30: 0.9796653731 | BW30: 0.996641513 | BX30: 1 | BY30: 1 | BZ30: 1 | CA30: 1 | CB30: 1 | CC30: 1 | CD30: 1
A31: 1.8125 | B31: 0.1788188943 | C31: 0.1808779522 | D31: 0.1829894532 | E31: 0.1851554644 | F31: 0.18737478 | G31: 0.1896457549 | H31: 0.1919683253 | I31: 0.1943478047 | J31: 0.1967851933 | K31: 0.1992911909 | L31: 0.2018683373 | M31: 0.204519257 | N31: 0.2072479909 | O31: 0.2100498187 | P31: 0.2129344919 | Q31: 0.2158979931 | R31: 0.2189259245 | S31: 0.222024389 | T31: 0.2252041604 | U31: 0.2284841262 | V31: 0.2318683104 | W31: 0.2353596387 | X31: 0.2389689864 | Y31: 0.2427036603 | Z31: 0.2465604752 | AA31: 0.2505402112 | AB31: 0.2546535018 | AC31: 0.2588969639 | AD31: 0.2632740516 | AE31: 0.2677979583 | AF31: 0.272494612 | AG31: 0.2773710532 | AH31: 0.2824331996 | AI31: 0.2876999732 | AJ31: 0.2931827325 | AK31: 0.2988807519 | AL31: 0.3048038034 | AM31: 0.3109937578 | AN31: 0.3174361557 | AO31: 0.3241749774 | AP31: 0.3312386651 | AQ31: 0.3386373038 | AR31: 0.3463684085 | AS31: 0.3545013251 | AT31: 0.3630514203 | AU31: 0.3720630906 | AV31: 0.3814949035 | AW31: 0.3914335442 | AX31: 0.4018939543 | AY31: 0.4129862505 | AZ31: 0.4247489357 | BA31: 0.4371339369 | BB31: 0.4502763251 | BC31: 0.4642705703 | BD31: 0.4791918296 | BE31: 0.4950974011 | BF31: 0.5121845952 | BG31: 0.5303257023 | BH31: 0.5496625931 | BI31: 0.5704708155 | BJ31: 0.5926397149 | BK31: 0.6162485103 | BL31: 0.6417436324 | BM31: 0.6694723733 | BN31: 0.6991315438 | BO31: 0.7311921344 | BP31: 0.7661756027 | BQ31: 0.8033260683 | BR31: 0.8402601425 | BS31: 0.8795429082 | BT31: 0.918576491 | BU31: 0.9524240337 | BV31: 0.9820001322 | BW31: 0.9973099242 | BX31: 1 | BY31: 1 | BZ31: 1 | CA31: 1 | CB31: 1 | CC31: 1 | CD31: 1
A32: 1.875 | B32: 0.1802643613 | C32: 0.1823428624 | D32: 0.1844733798 | E32: 0.1866484964 | F32: 0.1888740772 | G32: 0.1911520523 | H32: 0.1934848761 | I32: 0.195880562 | J32: 0.1983414281 | K32: 0.2008716312 | L32: 0.2034736853 | M32: 0.2061476324 | N32: 0.2088942536 | O32: 0.2117225642 | P32: 0.2146165368 | Q32: 0.2175718884 | R32: 0.2205954158 | S32: 0.2237048628 | T32: 0.2269139624 | U32: 0.2302274711 | V32: 0.2336456501 | W32: 0.2371724429 | X32: 0.2408204686 | Y32: 0.2445797162 | Z32: 0.248461088 | AA32: 0.2524707212 | AB32: 0.2566058282 | AC32: 0.2608603299 | AD32: 0.2652617977 | AE32: 0.2698228175 | AF32: 0.2745544798 | AG32: 0.2794653881 | AH32: 0.2845693517 | AI32: 0.2898712661 | AJ32: 0.2953763612 | AK32: 0.3010969094 | AL32: 0.3070741343 | AM32: 0.3132888853 | AN32: 0.3197990043 | AO32: 0.3266089687 | AP32: 0.3337261832 | AQ32: 0.3411461811 | AR32: 0.3489440129 | AS32: 0.3571297588 | AT32: 0.3657336346 | AU32: 0.3747461109 | AV32: 0.3842274882 | AW32: 0.3941968188 | AX32: 0.4047411699 | AY32: 0.4159317602 | AZ32: 0.4277385809 | BA32: 0.4402324524 | BB32: 0.453466592 | BC32: 0.4675053998 | BD32: 0.4824679158 | BE32: 0.498462311 | BF32: 0.5155369842 | BG32: 0.5336616947 | BH32: 0.5531268407 | BI32: 0.5738881418 | BJ32: 0.5960388244 | BK32: 0.6199757568 | BL32: 0.6458929918 | BM32: 0.6735680487 | BN32: 0.7031475646 | BO32: 0.7352887185 | BP32: 0.770134388 | BQ32: 0.8072538816 | BR32: 0.8441701823 | BS32: 0.8838314302 | BT32: 0.9223154183 | BU32: 0.9553990468 | BV32: 0.9839101531 | BW32: 0.9978714918 | BX32: 1 | BY32: 1 | BZ32: 1 | CA32: 1 | CB32: 1 | CC32: 1 | CD32: 1
A33: 1.9375 | B33: 0.1816200215 | C33: 0.1837050314 | D33: 0.1858372907 | E33: 0.1880178718 | F33: 0.1902500411 | G33: 0.1925402191 | H33: 0.1948917654 | I33: 0.1973072635 | J33: 0.1997885734 | K33: 0.2023398313 | L33: 0.2049554161 | M33: 0.2076458361 | N33: 0.2104109856 | O33: 0.2132362557 | P33: 0.2161159566 | Q33: 0.219064507 | R33: 0.2221026058 | S33: 0.2252361505 | T33: 0.2284702093 | U33: 0.2318094609 | V33: 0.2352548414 | W33: 0.2388107696 | X33: 0.2424673949 | Y33: 0.246242348 | Z33: 0.2501389182 | AA33: 0.254154998 | AB33: 0.2582863519 | AC33: 0.2625593114 | AD33: 0.266983198 | AE33: 0.2715700574 | AF33: 0.2763294742 | AG33: 0.2812732296 | AH33: 0.2864015706 | AI33: 0.2917216781 | AJ33: 0.2972551271 | AK33: 0.3030271006 | AL33: 0.3090243257 | AM33: 0.3152993844 | AN33: 0.32187332 | AO33: 0.328762519 | AP33: 0.3359290209 | AQ33: 0.3434066367 | AR33: 0.3512527972 | AS33: 0.3594785524 | AT33: 0.3680914157 | AU33: 0.3771200179 | AV33: 0.3866222189 | AW33: 0.3966317445 | AX33: 0.4072552591 | AY33: 0.4184575963 | AZ33: 0.4303251017 | BA33: 0.4429222635 | BB33: 0.4562560699 | BC33: 0.4704136298 | BD33: 0.4854025863 | BE33: 0.5014328202 | BF33: 0.518486841 | BG33: 0.5365890135 | BH33: 0.556069614 | BI33: 0.5767543284 | BJ33: 0.598906818 | BK33: 0.6231269238 | BL33: 0.6492905659 | BM33: 0.6768981811 | BN33: 0.7065373389 | BO33: 0.7387160993 | BP33: 0.7734519469 | BQ33: 0.8102953048 | BR33: 0.8473586226 | BS33: 0.8871324142 | BT33: 0.9256697792 | BU33: 0.9582872514 | BV33: 0.9854682152 | BW33: 0.9983662282 | BX33: 1 | BY33: 1 | BZ33: 1 | CA33: 1 | CB33: 1 | CC33: 1 | CD33: 1
A34: 2 | B34: 0.1828222606 | C34: 0.1849115506 | D34: 0.1870490811 | E34: 0.189240306 | F34: 0.1914885508 | G34: 0.193796088 | H34: 0.1961655116 | I34: 0.1985994731 | J34: 0.2010962207 | K34: 0.2036583894 | L34: 0.2062934348 | M34: 0.2089925352 | N34: 0.2117510484 | O34: 0.2145637189 | P34: 0.217446817 | Q34: 0.2204167956 | R34: 0.223477167 | S34: 0.2266336638 | T34: 0.2298914166 | U34: 0.2332550103 | V34: 0.2367204517 | W34: 0.2402790253 | X34: 0.2439483842 | Y34: 0.2477322577 | Z34: 0.2516269975 | AA34: 0.2556384044 | AB34: 0.2597876902 | AC34: 0.264089082 | AD34: 0.2685430718 | AE34: 0.273149863 | AF34: 0.2779408443 | AG34: 0.2829152222 | AH34: 0.288052391 | AI34: 0.2933909783 | AJ34: 0.2989519229 | AK34: 0.3047298934 | AL34: 0.310771393 | AM34: 0.3170932485 | AN34: 0.3237108868 | AO34: 0.3306183288 | AP34: 0.3378608606 | AQ34: 0.345431531 | AR34: 0.3533336264 | AS34: 0.3615891687 | AT34: 0.3702141415 | AU34: 0.3792828358 | AV34: 0.3888220705 | AW34: 0.398901068 | AX34: 0.4095492771 | AY34: 0.420789068 | AZ34: 0.4326960226 | BA34: 0.4453802671 | BB34: 0.4588046051 | BC34: 0.4730089032 | BD34: 0.4880688342 | BE34: 0.5040837969 | BF34: 0.5210770462 | BG34: 0.539244471 | BH34: 0.5586290159 | BI34: 0.5792142801 | BJ34: 0.6015130341 | BK34: 0.6259316655 | BL34: 0.6521822286 | BM34: 0.6798315155 | BN34: 0.7094915222 | BO34: 0.7416773816 | BP34: 0.7765451536 | BQ34: 0.8129109128 | BR34: 0.85028539 | BS34: 0.8899026203 | BT34: 0.928500849 | BU34: 0.9610851836 | BV34: 0.9866545384 | BW34: 0.9987874039 | BX34: 1 | BY34: 1 | BZ34: 1 | CA34: 1 | CB34: 1 | CC34: 1 | CD34: 1
A35: 2.0625 | B35: 0.183850268 | C35: 0.1859476239 | D35: 0.1880984684 | E35: 0.1903048435 | F35: 0.1925691523 | G35: 0.1948933652 | H35: 0.1972800037 | I35: 0.1997231205 | J35: 0.2022330746 | K35: 0.2048098035 | L35: 0.2074431543 | M35: 0.2101270036 | N35: 0.2128735476 | O35: 0.2157020888 | P35: 0.2186159914 | Q35: 0.2216111552 | R35: 0.2246933183 | S35: 0.2278713138 | T35: 0.2311511455 | U35: 0.2345288521 | V35: 0.2380001031 | W35: 0.2415786029 | X35: 0.2452562697 | Y35: 0.2490369925 | Z35: 0.2529309383 | AA35: 0.256960166 | AB35: 0.2611359916 | AC35: 0.2654567639 | AD35: 0.2699375539 | AE35: 0.2745888363 | AF35: 0.2794101126 | AG35: 0.2843917041 | AH35: 0.2895504543 | AI35: 0.2949090126 | AJ35: 0.300475608 | AK35: 0.3062896297 | AL35: 0.3123678048 | AM35: 0.3187218487 | AN35: 0.3253466592 | AO35: 0.3322874955 | AP35: 0.3395766358 | AQ35: 0.3472037195 | AR35: 0.3551432257 | AS35: 0.363412152 | AT35: 0.3720981308 | AU35: 0.3812018086 | AV35: 0.3908171751 | AW35: 0.4009524479 | AX35: 0.4116354758 | AY35: 0.4229117781 | AZ35: 0.4348814572 | BA35: 0.44759054 | BB35: 0.4611035355 | BC35: 0.4753820325 | BD35: 0.4904330221 | BE35: 0.5063904381 | BF35: 0.5233852676 | BG35: 0.5415056796 | BH35: 0.560785741 | BI35: 0.5814247284 | BJ35: 0.6039100025 | BK35: 0.6284899122 | BL35: 0.6546974987 | BM35: 0.6824655782 | BN35: 0.7122102918 | BO35: 0.7443768629 | BP35: 0.779445353 | BQ35: 0.8154134749 | BR35: 0.8530262692 | BS35: 0.8924153056 | BT35: 0.9309641577 | BU35: 0.9634774762 | BV35: 0.9877211235 | BW35: 0.9991161822 | BX35: 1 | BY35: 1 | BZ35: 1 | CA35: 1 | CB35: 1 | CC35: 1 | CD35: 1
A36: 2.125 | B36: 0.184775274 | C36: 0.1868847977 | D36: 0.1890482823 | E36: 0.191267657 | F36: 0.1935453714 | G36: 0.1958792373 | H36: 0.1982721191 | I36: 0.2007300775 | J36: 0.2032404854 | K36: 0.2058086126 | L36: 0.2084166358 | M36: 0.2110997472 | N36: 0.2138617659 | O36: 0.2167061529 | P36: 0.219636338 | Q36: 0.2226551725 | R36: 0.2257622683 | S36: 0.2289580832 | T36: 0.2322445397 | U36: 0.235628693 | V36: 0.2391118925 | W36: 0.242695686 | X36: 0.2463763479 | Y36: 0.2501536465 | Z36: 0.2540624829 | AA36: 0.2581131516 | AB36: 0.262300479 | AC36: 0.2666381584 | AD36: 0.2711426824 | AE36: 0.2758191424 | AF36: 0.280653169 | AG36: 0.2856654823 | AH36: 0.2908486174 | AI36: 0.2962122299 | AJ36: 0.3018100513 | AK36: 0.3076567898 | AL36: 0.3137633931 | AM36: 0.3201231842 | AN36: 0.3267784426 | AO36: 0.3337590447 | AP36: 0.3410697363 | AQ36: 0.3487238985 | AR36: 0.3566830154 | AS36: 0.3649839059 | AT36: 0.3737090959 | AU36: 0.3828942044 | AV36: 0.3925621415 | AW36: 0.4027370666 | AX36: 0.413451336 | AY36: 0.4247760969 | AZ36: 0.4367749177 | BA36: 0.4495355226 | BB36: 0.4631267453 | BC36: 0.4774854729 | BD36: 0.4925541568 | BE36: 0.5084267539 | BF36: 0.5254409557 | BG36: 0.5434308043 | BH36: 0.5626057146 | BI36: 0.5833614713 | BJ36: 0.6059994821 | BK36: 0.6306479611 | BL36: 0.6569943012 | BM36: 0.6848628362 | BN36: 0.7147971291 | BO36: 0.7469742809 | BP36: 0.7820704331 | BQ36: 0.8178000305 | BR36: 0.8556686351 | BS36: 0.8948416861 | BT36: 0.9334159801 | BU36: 0.9657165982 | BV36: 0.9886347277 | BW36: 0.99928052 | BX36: 1 | BY36: 1 | BZ36: 1 | CA36: 1 | CB36: 1 | CC36: 1 | CD36: 1
A37: 2.1875 | B37: 0.1856282536 | C37: 0.1877489464 | D37: 0.1899239129 | E37: 0.1921546877 | F37: 0.1944361984 | G37: 0.1967783171 | H37: 0.1991771818 | I37: 0.2016297675 | J37: 0.2041213915 | K37: 0.2066695904 | L37: 0.2092905369 | M37: 0.2119873558 | N37: 0.2147635758 | O37: 0.2176226578 | P37: 0.2205680024 | Q37: 0.2236030167 | R37: 0.2267256158 | S37: 0.2299379416 | T37: 0.2332322208 | U37: 0.2366187545 | V37: 0.240106031 | W37: 0.2436931031 | X37: 0.2473728132 | Y37: 0.2511777368 | Z37: 0.2551051819 | AA37: 0.2591621651 | AB37: 0.2633652534 | AC37: 0.2677231217 | AD37: 0.2722421213 | AE37: 0.2769121843 | AF37: 0.2817683706 | AG37: 0.286800491 | AH37: 0.2919975997 | AI37: 0.2973987425 | AJ37: 0.3030246958 | AK37: 0.3089008047 | AL37: 0.3150082307 | AM37: 0.3213912802 | AN37: 0.3280784411 | AO37: 0.3350722061 | AP37: 0.3423892884 | AQ37: 0.3500471313 | AR37: 0.3580336666 | AS37: 0.366374004 | AT37: 0.3751437362 | AU37: 0.3844132152 | AV37: 0.3940997 | AW37: 0.4043010691 | AX37: 0.4150591796 | AY37: 0.426439787 | AZ37: 0.4384668062 | BA37: 0.4512624563 | BB37: 0.4649040426 | BC37: 0.4793256958 | BD37: 0.494362505 | BE37: 0.5102511133 | BF37: 0.5271953792 | BG37: 0.5450734956 | BH37: 0.5642150864 | BI37: 0.5850944089 | BJ37: 0.6077701135 | BK37: 0.6323722064 | BL37: 0.6588775143 | BM37: 0.6868417753 | BN37: 0.7169509476 | BO37: 0.7493580185 | BP37: 0.7843781438 | BQ37: 0.8200976217 | BR37: 0.858199588 | BS37: 0.8970817013 | BT37: 0.9357026421 | BU37: 0.9676272704 | BV37: 0.9893717852 | BW37: 0.9994209119 | BX37: 1 | BY37: 1 | BZ37: 1 | CA37: 1 | CB37: 1 | CC37: 1 | CD37: 1
A38: 2.25 | B38: 0.186421884 | C38: 0.1885537953 | D38: 0.1907402983 | E38: 0.1929796202 | F38: 0.1952726161 | G38: 0.1976119318 | H38: 0.2000066908 | I38: 0.2024396825 | J38: 0.2049297332 | K38: 0.2074899789 | L38: 0.2101233981 | M38: 0.2128331327 | N38: 0.2156224758 | O38: 0.2184950118 | P38: 0.2214545479 | Q38: 0.2244958448 | R38: 0.2276238634 | S38: 0.230838958 | T38: 0.2341419787 | U38: 0.2375418268 | V38: 0.2410324226 | W38: 0.2446180037 | X38: 0.2483175935 | Y38: 0.2521427569 | Z38: 0.2560906581 | AA38: 0.260165846 | AB38: 0.2643893379 | AC38: 0.2687573311 | AD38: 0.2732694936 | AE38: 0.2779583982 | AF38: 0.2828183984 | AG38: 0.2878577475 | AH38: 0.2930946252 | AI38: 0.2985310669 | AJ38: 0.3041907814 | AK38: 0.3100782427 | AL38: 0.3162050254 | AM38: 0.3226159382 | AN38: 0.3293118979 | AO38: 0.3363099474 | AP38: 0.3436283481 | AQ38: 0.351297216 | AR38: 0.3592914403 | AS38: 0.3676928768 | AT38: 0.376532109 | AU38: 0.3858293669 | AV38: 0.395576956 | AW38: 0.405798118 | AX38: 0.4166221273 | AY38: 0.428036364 | AZ38: 0.4400894257 | BA38: 0.4529196319 | BB38: 0.4665849851 | BC38: 0.4810118366 | BD38: 0.4960030123 | BE38: 0.5119171658 | BF38: 0.5287355694 | BG38: 0.5465360041 | BH38: 0.5657527417 | BI38: 0.5867075037 | BJ38: 0.6094630478 | BK38: 0.6340167115 | BL38: 0.6605209818 | BM38: 0.6887032461 | BN38: 0.7188926214 | BO38: 0.7515904343 | BP38: 0.7865542183 | BQ38: 0.8222821088 | BR38: 0.8605401972 | BS38: 0.8992680767 | BT38: 0.937903202 | BU38: 0.9693476083 | BV38: 0.9899872577 | BW38: 0.9995613038 | BX38: 1 | BY38: 1 | BZ38: 1 | CA38: 1 | CB38: 1 | CC38: 1 | CD38: 1
A39: 2.3125 | B39: 0.1871285624 | C39: 0.1892715602 | D39: 0.1914691734 | E39: 0.1937115073 | F39: 0.1960000946 | G39: 0.198334968 | H39: 0.2007305818 | I39: 0.2031692511 | J39: 0.2056704784 | K39: 0.2082423131 | L39: 0.2108876034 | M39: 0.2136093519 | N39: 0.2164112958 | O39: 0.21929464 | P39: 0.2222568462 | Q39: 0.225304357 | R39: 0.2284288199 | S39: 0.2316445181 | T39: 0.2349605167 | U39: 0.2383680701 | V39: 0.2418654061 | W39: 0.2454672812 | X39: 0.2491839945 | Y39: 0.2530130572 | Z39: 0.2569788428 | AA39: 0.2610879392 | AB39: 0.2653177304 | AC39: 0.2696820331 | AD39: 0.2742142278 | AE39: 0.2789093616 | AF39: 0.2837873557 | AG39: 0.2888497285 | AH39: 0.2941128193 | AI39: 0.2995929492 | AJ39: 0.3052787916 | AK39: 0.311192796 | AL39: 0.3173454847 | AM39: 0.3237630171 | AN39: 0.3304635023 | AO39: 0.3374625724 | AP39: 0.3447871389 | AQ39: 0.3524612086 | AR39: 0.3604870514 | AS39: 0.3689328424 | AT39: 0.377818438 | AU39: 0.3871466411 | AV39: 0.3969376164 | AW39: 0.4072262597 | AX39: 0.4180897362 | AY39: 0.4295480879 | AZ39: 0.4416328501 | BA39: 0.4544926301 | BB39: 0.4682012825 | BC39: 0.4825243085 | BD39: 0.4975223494 | BE39: 0.5134472132 | BF39: 0.5301411354 | BG39: 0.5479584406 | BH39: 0.5672421399 | BI39: 0.5882242405 | BJ39: 0.610951883 | BK39: 0.635582962 | BL39: 0.6620301132 | BM39: 0.6903959123 | BN39: 0.7206787955 | BO39: 0.7536122356 | BP39: 0.7887064152 | BQ39: 0.8243987867 | BR39: 0.8627188878 | BS39: 0.9013144817 | BT39: 0.9400382814 | BU39: 0.9709317568 | BV39: 0.9904786294 | BW39: 0.9997016957 | BX39: 1 | BY39: 1 | BZ39: 1 | CA39: 1 | CB39: 1 | CC39: 1 | CD39: 1
A40: 2.375 | B40: 0.1877737327 | C40: 0.1899217417 | D40: 0.1921132531 | E40: 0.1943495239 | F40: 0.196630249 | G40: 0.1989719272 | H40: 0.2013770804 | I40: 0.2038282796 | J40: 0.2063395707 | K40: 0.2089214089 | L40: 0.2115770786 | M40: 0.2143097929 | N40: 0.2171168803 | O40: 0.2200034175 | P40: 0.2229743628 | Q40: 0.2260213318 | R40: 0.2291508543 | S40: 0.2323771534 | T40: 0.235696663 | U40: 0.2391051936 | V40: 0.2426272653 | W40: 0.2462474942 | X40: 0.2499713852 | Y40: 0.2538155988 | Z40: 0.2577947185 | AA40: 0.2619008208 | AB40: 0.2661426488 | AC40: 0.2705278418 | AD40: 0.2750619065 | AE40: 0.2797736875 | AF40: 0.2846713434 | AG40: 0.2897543966 | AH40: 0.295042489 | AI40: 0.3005295235 | AJ40: 0.3062485428 | AK40: 0.3122020216 | AL40: 0.3183675015 | AM40: 0.3247897843 | AN40: 0.3314935859 | AO40: 0.3384983327 | AP40: 0.3458367033 | AQ40: 0.3535357677 | AR40: 0.3615912416 | AS40: 0.3700673274 | AT40: 0.3789776314 | AU40: 0.3883344872 | AV40: 0.3981536453 | AW40: 0.4085141807 | AX40: 0.4194210141 | AY40: 0.4309264054 | AZ40: 0.4430572763 | BA40: 0.4559697337 | BB40: 0.4696360292 | BC40: 0.4839478869 | BD40: 0.4989214932 | BE40: 0.5147806452 | BF40: 0.5314514599 | BG40: 0.5493257357 | BH40: 0.5686341654 | BI40: 0.5896531881 | BJ40: 0.6123277236 | BK40: 0.6369641296 | BL40: 0.6633950345 | BM40: 0.6918030907 | BN40: 0.7222789005 | BO40: 0.7554994326 | BP40: 0.7907475563 | BQ40: 0.8264693423 | BR40: 0.8647693155 | BS40: 0.9032799683 | BT40: 0.94196829 | BU40: 0.9721604566 | BV40: 0.9908671716 | BW40: 0.9998420876 | BX40: 1 | BY40: 1 | BZ40: 1 | CA40: 1 | CB40: 1 | CC40: 1 | CD40: 1
A41: 2.4375 | B41: 0.1883963564 | C41: 0.1905443937 | D41: 0.1927292391 | E41: 0.1949639414 | F41: 0.1972528531 | G41: 0.1996028332 | H41: 0.2020164993 | I41: 0.2044785079 | J41: 0.2069982824 | K41: 0.2095892033 | L41: 0.2122542714 | M41: 0.2149867414 | N41: 0.2177992643 | O41: 0.2206857113 | P41: 0.223649592 | Q41: 0.2267043096 | R41: 0.2298546974 | S41: 0.2330913317 | T41: 0.2364134886 | U41: 0.2398331713 | V41: 0.2433618707 | W41: 0.2470006057 | X41: 0.2507389334 | Y41: 0.2545970774 | Z41: 0.258571596 | AA41: 0.2626806072 | AB41: 0.26693934 | AC41: 0.2713415237 | AD41: 0.2758961591 | AE41: 0.2806240938 | AF41: 0.2855383183 | AG41: 0.2906385921 | AH41: 0.2959385122 | AI41: 0.3014506295 | AJ41: 0.3071904288 | AK41: 0.3131659684 | AL41: 0.319347501 | AM41: 0.3257748746 | AN41: 0.332478307 | AO41: 0.3395050454 | AP41: 0.3468685838 | AQ41: 0.3545941067 | AR41: 0.3626774316 | AS41: 0.3711549748 | AT41: 0.3800695684 | AU41: 0.3894576225 | AV41: 0.3993311867 | AW41: 0.4097278699 | AX41: 0.4206636902 | AY41: 0.432231763 | AZ41: 0.4444169961 | BA41: 0.4573869969 | BB41: 0.4709953073 | BC41: 0.4853028946 | BD41: 0.5002159278 | BE41: 0.5159893191 | BF41: 0.5327399979 | BG41: 0.5506930308 | BH41: 0.5700189401 | BI41: 0.591004779 | BJ41: 0.6136946864 | BK41: 0.6382834315 | BL41: 0.6647474064 | BM41: 0.693032209 | BN41: 0.7238576967 | BO41: 0.7571785357 | BP41: 0.7926975907 | BQ41: 0.8285104246 | BR41: 0.866659798 | BS41: 0.905245455 | BT41: 0.9436959362 | BU41: 0.9733615874 | BV41: 0.9912357003 | BW41: 0.9999824795 | BX41: 1 | BY41: 1 | BZ41: 1 | CA41: 1 | CB41: 1 | CC41: 1 | CD41: 1
A42: 2.5 | B42: 0.1889670344 | C42: 0.1911084568 | D42: 0.1932981787 | E42: 0.195540869 | F42: 0.1978379789 | G42: 0.2001963897 | H42: 0.2026184252 | I42: 0.2050917659 | J42: 0.2076208032 | K42: 0.2102180572 | L42: 0.2128826645 | M42: 0.2156239885 | N42: 0.2184288085 | O42: 0.221315329 | P42: 0.2242890789 | Q42: 0.2273545127 | R42: 0.2305161273 | S42: 0.2337659372 | T42: 0.2370999083 | U42: 0.2405255598 | V42: 0.2440580256 | W42: 0.2477099645 | X42: 0.2514798434 | Y42: 0.2553269876 | Z42: 0.2593059486 | AA42: 0.2634274338 | AB42: 0.2676883517 | AC42: 0.2721100606 | AD42: 0.2767005805 | AE42: 0.2814603991 | AF42: 0.2863941166 | AG42: 0.2914988717 | AH42: 0.2968108434 | AI42: 0.3023492435 | AJ42: 0.3081029366 | AK42: 0.3140759527 | AL42: 0.3202824591 | AM42: 0.3267302064 | AN42: 0.3334542727 | AO42: 0.3405054354 | AP42: 0.347894622 | AQ42: 0.355647113 | AR42: 0.3637379432 | AS42: 0.3722133253 | AT42: 0.3811378099 | AU42: 0.3905586697 | AV42: 0.400470187 | AW42: 0.4108935507 | AX42: 0.4218852488 | AY42: 0.4334998189 | AZ42: 0.4457600787 | BA42: 0.4587062878 | BB42: 0.4723250058 | BC42: 0.4866015731 | BD42: 0.5014376444 | BE42: 0.5171686111 | BF42: 0.5339825714 | BG42: 0.5520228034 | BH42: 0.5713845639 | BI42: 0.5922683061 | BJ42: 0.6150062672 | BK42: 0.6395260686 | BL42: 0.6659881412 | BM42: 0.694246186 | BN42: 0.7253800868 | BO42: 0.7588164413 | BP42: 0.7945506725 | BQ42: 0.8304653691 | BR42: 0.8685431947 | BS42: 0.9071418239 | BT42: 0.9453331907 | BU42: 0.9744599054 | BV42: 0.991604229 | BW42: 1 | BX42: 1 | BY42: 1 | BZ42: 1 | CA42: 1 | CB42: 1 | CC42: 1 | CD42: 1
A43: 2.5625 | B43: 0.1894750423 | C43: 0.1916241568 | D43: 0.1938217683 | E43: 0.1960724302 | F43: 0.1983773783 | G43: 0.2007439183 | H43: 0.2031746215 | I43: 0.205663302 | J43: 0.2081983122 | K43: 0.2107971987 | L43: 0.2134630253 | M43: 0.216194176 | N43: 0.2190054607 | O43: 0.2219007448 | P43: 0.2248837497 | Q43: 0.2279585679 | R43: 0.2311296081 | S43: 0.2343915447 | T43: 0.2377284659 | U43: 0.2411569521 | V43: 0.2446999232 | W43: 0.2483629205 | X43: 0.2521242435 | Y43: 0.2559882432 | Z43: 0.2599751748 | AA43: 0.2640958664 | AB43: 0.2683696805 | AC43: 0.2728048461 | AD43: 0.2774109979 | AE43: 0.2821978434 | AF43: 0.2871557783 | AG43: 0.2922821281 | AH43: 0.2976212071 | AI43: 0.3031614409 | AJ43: 0.30892131 | AK43: 0.3149289721 | AL43: 0.3211382255 | AM43: 0.3276206609 | AN43: 0.334391606 | AO43: 0.3414677614 | AP43: 0.348882995 | AQ43: 0.3566489383 | AR43: 0.3647352421 | AS43: 0.3732251228 | AT43: 0.3821624247 | AU43: 0.3916133226 | AV43: 0.4015401937 | AW43: 0.4119876306 | AX43: 0.4230345511 | AY43: 0.434712228 | AZ43: 0.4470276104 | BA43: 0.4599422696 | BB43: 0.4735872436 | BC43: 0.4878272054 | BD43: 0.5025907427 | BE43: 0.5183479032 | BF43: 0.5352110005 | BG43: 0.5533112829 | BH43: 0.5727199427 | BI43: 0.5935318333 | BJ43: 0.6162466214 | BK43: 0.6407157053 | BL43: 0.6671559816 | BM43: 0.6954601631 | BN43: 0.7266852081 | BO43: 0.7604237766 | BP43: 0.7962641621 | BQ43: 0.8322180462 | BR43: 0.8702333686 | BS43: 0.90892863 | BT43: 0.9468124671 | BU43: 0.9754319291 | BV43: 0.9919727578 | BW43: 1 | BX43: 1 | BY43: 1 | BZ43: 1 | CA43: 1 | CB43: 1 | CC43: 1 | CD43: 1
A44: 2.625 | B44: 0.1899221799 | C44: 0.1920780789 | D44: 0.194282355 | E44: 0.196543511 | F44: 0.1988582639 | G44: 0.2012322287 | H44: 0.2036704667 | I44: 0.2061668618 | J44: 0.2087256046 | K44: 0.2113172694 | L44: 0.2139792764 | M44: 0.2167183759 | N44: 0.2195382531 | O44: 0.2224425221 | P44: 0.2254340986 | Q44: 0.2285176163 | R44: 0.2316979535 | S44: 0.2349623184 | T44: 0.2383021802 | U44: 0.2417403589 | V44: 0.2452901383 | W44: 0.2489335594 | X44: 0.2527030512 | Y44: 0.256589389 | Z44: 0.2605761862 | AA44: 0.2647076752 | AB44: 0.2689927012 | AC44: 0.2734392297 | AD44: 0.2780569903 | AE44: 0.2828559535 | AF44: 0.2878353582 | AG44: 0.292987823 | AH44: 0.2983399674 | AI44: 0.3038840898 | AJ44: 0.3096694185 | AK44: 0.3156930512 | AL44: 0.3219290684 | AM44: 0.3284338407 | AN44: 0.3352496355 | AO44: 0.342376828 | AP44: 0.349811891 | AQ44: 0.3575689903 | AR44: 0.3656696995 | AS44: 0.3741586507 | AT44: 0.3831228559 | AU44: 0.3925742265 | AV44: 0.4025015982 | AW44: 0.4129884131 | AX44: 0.4240684125 | AY44: 0.4358338443 | AZ44: 0.4481202479 | BA44: 0.4610789901 | BB44: 0.4747287879 | BC44: 0.4889912071 | BD44: 0.5037246773 | BE44: 0.5195271952 | BF44: 0.5364018036 | BG44: 0.5545423437 | BH44: 0.5739331552 | BI44: 0.5947953604 | BJ44: 0.6174259134 | BK44: 0.6418748816 | BL44: 0.6682109495 | BM44: 0.6966741402 | BN44: 0.7279136373 | BO44: 0.761996166 | BP44: 0.797878669 | BQ44: 0.8339467516 | BR44: 0.8718424723 | BS44: 0.910715436 | BT44: 0.9482865821 | BU44: 0.9763054787 | BV44: 0.9923412865 | BW44: 1 | BX44: 1 | BY44: 1 | BZ44: 1 | CA44: 1 | CB44: 1 | CC44: 1 | CD44: 1
A45: 2.6875 | B45: 0.1903241867 | C45: 0.1924852079 | D45: 0.1946949857 | E45: 0.1969619997 | F45: 0.1992887967 | G45: 0.2016759053 | H45: 0.2041206301 | I45: 0.2066189698 | J45: 0.2091712855 | K45: 0.2117871838 | L45: 0.2144559595 | M45: 0.2172023935 | N45: 0.2200297642 | O45: 0.222941544 | P45: 0.2259416042 | Q45: 0.2290343557 | R45: 0.232214247 | S45: 0.2354842748 | T45: 0.2388340843 | U45: 0.2422759973 | V45: 0.2458102877 | W45: 0.2494648021 | X45: 0.2532458403 | Y45: 0.2571362608 | Z45: 0.2611516993 | AA45: 0.2652948516 | AB45: 0.2695918085 | AC45: 0.2740505184 | AD45: 0.2786810854 | AE45: 0.2834938109 | AF45: 0.2884883019 | AG45: 0.293656548 | AH45: 0.2990231681 | AI45: 0.3045834451 | AJ45: 0.3103769491 | AK45: 0.3164127103 | AL45: 0.3226885378 | AM45: 0.329233748 | AN45: 0.3360685883 | AO45: 0.3432388619 | AP45: 0.3506869002 | AQ45: 0.3584547911 | AR45: 0.3665573921 | AS45: 0.3750742288 | AT45: 0.3840540521 | AU45: 0.3934953897 | AV45: 0.4034492104 | AW45: 0.4139493765 | AX45: 0.4250818666 | AY45: 0.4368689467 | AZ45: 0.4491685074 | BA45: 0.462151159 | BB45: 0.4757996269 | BC45: 0.4900845329 | BD45: 0.504858612 | BE45: 0.5207064872 | BF45: 0.5375892852 | BG45: 0.5557387269 | BH45: 0.5750917604 | BI45: 0.5960209594 | BJ45: 0.61855865 | BK45: 0.6429283694 | BL45: 0.6692482897 | BM45: 0.6978428421 | BN45: 0.7291080636 | BO45: 0.7635419336 | BP45: 0.7994495273 | BQ45: 0.8355682794 | BR45: 0.8733165873 | BS45: 0.9124555213 | BT45: 0.9497154954 | BU45: 0.9771790284 | BV45: 0.9927098153 | BW45: 1 | BX45: 1 | BY45: 1 | BZ45: 1 | CA45: 1 | CB45: 1 | CC45: 1 | CD45: 1
A46: 2.75 | B46: 0.1906789716 | C46: 0.1928448362 | D46: 0.1950597333 | E46: 0.1973319107 | F46: 0.1996641084 | G46: 0.2020587114 | H46: 0.204505725 | I46: 0.2069982743 | J46: 0.2095565429 | K46: 0.2121872383 | L46: 0.214882315 | M46: 0.2176360377 | N46: 0.2204703637 | O46: 0.2233896918 | P46: 0.2263977151 | Q46: 0.2294876787 | R46: 0.2326719768 | S46: 0.2359515915 | T46: 0.2393044375 | U46: 0.2427438291 | V46: 0.2462871305 | W46: 0.249951105 | X46: 0.2537417756 | Y46: 0.2576585823 | Z46: 0.2616938967 | AA46: 0.2658579337 | AB46: 0.2701650018 | AC46: 0.2746343973 | AD46: 0.2792764907 | AE46: 0.2841012765 | AF46: 0.2891027957 | AG46: 0.2942697197 | AH46: 0.2996533175 | AI46: 0.3052382787 | AJ46: 0.3110308889 | AK46: 0.3170816418 | AL46: 0.323387381 | AM46: 0.3299676086 | AN46: 0.3368494952 | AO46: 0.3440225202 | AP46: 0.3514974176 | AQ46: 0.3592969043 | AR46: 0.36741337 | AS46: 0.3759555881 | AT46: 0.3849203273 | AU46: 0.3943767062 | AV46: 0.404331447 | AW46: 0.414865243 | AX46: 0.4260592772 | AY46: 0.4377875558 | AZ46: 0.4501846514 | BA46: 0.4632016777 | BB46: 0.476832046 | BC46: 0.4911174138 | BD46: 0.5059925466 | BE46: 0.5218480427 | BF46: 0.5387711442 | BG46: 0.5568750983 | BH46: 0.5762085141 | BI46: 0.5971451971 | BJ46: 0.6196888049 | BK46: 0.6439442587 | BL46: 0.6702856299 | BM46: 0.6989990107 | BN46: 0.7302750713 | BO46: 0.7648644972 | BP46: 0.8009774443 | BQ46: 0.8371557878 | BR46: 0.8747907023 | BS46: 0.9140738016 | BT46: 0.9510913361 | BU46: 0.9780273214 | BV46: 0.993078344 | BW46: 1 | BX46: 1 | BY46: 1 | BZ46: 1 | CA46: 1 | CB46: 1 | CC46: 1 | CD46: 1
A47: 2.8125 | B47: 0.1910237443 | C47: 0.1931938554 | D47: 0.1954131381 | E47: 0.1976898449 | F47: 0.2000242794 | G47: 0.2024057523 | H47: 0.2048514524 | I47: 0.2073556946 | J47: 0.2099255019 | K47: 0.2125611608 | L47: 0.2152724157 | M47: 0.2180455274 | N47: 0.2208901833 | O47: 0.223815537 | P47: 0.2268176999 | Q47: 0.2299117644 | R47: 0.2331029181 | S47: 0.2363903599 | T47: 0.2397493056 | U47: 0.2431959901 | V47: 0.2467467754 | W47: 0.2504183282 | X47: 0.2542170441 | Y47: 0.2581431435 | Z47: 0.2622011361 | AA47: 0.2663927477 | AB47: 0.2707133567 | AC47: 0.2751944042 | AD47: 0.2798485987 | AE47: 0.2846788588 | AF47: 0.2896810888 | AG47: 0.2948611223 | AH47: 0.3002552466 | AI47: 0.3058465976 | AJ47: 0.3116716675 | AK47: 0.3177368041 | AL47: 0.3240574333 | AM47: 0.3306724354 | AN47: 0.3375620265 | AO47: 0.3447416007 | AP47: 0.3522397683 | AQ47: 0.3600770084 | AR47: 0.3682409433 | AS47: 0.3767756641 | AT47: 0.3857392801 | AU47: 0.3952190577 | AV47: 0.4051985734 | AW47: 0.4157586461 | AX47: 0.4269192797 | AY47: 0.4386507757 | AZ47: 0.4511011498 | BA47: 0.4642247548 | BB47: 0.4777899562 | BC47: 0.492136555 | BD47: 0.5071068734 | BE47: 0.522988025 | BF47: 0.5399176781 | BG47: 0.5579432976 | BH47: 0.5773165669 | BI47: 0.5981902217 | BJ47: 0.6207642993 | BK47: 0.6449006972 | BL47: 0.6713229701 | BM47: 0.700097554 | BN47: 0.7314409639 | BO47: 0.7661093054 | BP47: 0.8023271019 | BQ47: 0.8386286346 | BR47: 0.8762648173 | BS47: 0.9154380201 | BT47: 0.9524087737 | BU47: 0.9787916773 | BV47: 0.9934468728 | BW47: 1 | BX47: 1 | BY47: 1 | BZ47: 1 | CA47: 1 | CB47: 1 | CC47: 1 | CD47: 1
A48: 2.875 | B48: 0.1913504706 | C48: 0.1935287274 | D48: 0.1957570941 | E48: 0.1980287327 | F48: 0.2003519617 | G48: 0.2027374766 | H48: 0.2051877534 | I48: 0.207696573 | J48: 0.2102736747 | K48: 0.2129237349 | L48: 0.2156419057 | M48: 0.2184353362 | N48: 0.2212918166 | O48: 0.2242182796 | P48: 0.2272256234 | Q48: 0.2303257828 | R48: 0.2335230802 | S48: 0.2368183071 | T48: 0.2401842672 | U48: 0.2436380837 | V48: 0.2471961963 | W48: 0.2508754842 | X48: 0.2546822019 | Y48: 0.2586168713 | Z48: 0.2626828639 | AA48: 0.2668973032 | AB48: 0.2712492812 | AC48: 0.2757405225 | AD48: 0.280397349 | AE48: 0.2852271287 | AF48: 0.2902407668 | AG48: 0.2954318321 | AH48: 0.3008177437 | AI48: 0.306433663 | AJ48: 0.312280287 | AK48: 0.3183786289 | AL48: 0.324716368 | AM48: 0.3313362504 | AN48: 0.3382306061 | AO48: 0.3454291947 | AP48: 0.3529407226 | AQ48: 0.360796114 | AR48: 0.3690040057 | AS48: 0.377551536 | AT48: 0.3865461884 | AU48: 0.396049219 | AV48: 0.4060533556 | AW48: 0.4166213329 | AX48: 0.4277093201 | AY48: 0.4394699312 | AZ48: 0.4519398773 | BA48: 0.4651483415 | BB48: 0.4787376015 | BC48: 0.4931308511 | BD48: 0.5081652124 | BE48: 0.5241280072 | BF48: 0.5410387613 | BG48: 0.5590114969 | BH48: 0.5783709939 | BI48: 0.599172965 | BJ48: 0.6217146528 | BK48: 0.6458317172 | BL48: 0.6723515842 | BM48: 0.7011959142 | BN48: 0.7325465501 | BO48: 0.7673541136 | BP48: 0.8036119702 | BQ48: 0.8399648181 | BR48: 0.8777389323 | BS48: 0.9167781246 | BT48: 0.9535880657 | BU48: 0.9795436122 | BV48: 0.9938154015 | BW48: 1 | BX48: 1 | BY48: 1 | BZ48: 1 | CA48: 1 | CB48: 1 | CC48: 1 | CD48: 1
A49: 2.9375 | B49: 0.1916598086 | C49: 0.193839822 | D49: 0.1960611513 | E49: 0.1983371795 | F49: 0.2006651039 | G49: 0.2030549071 | H49: 0.205509425 | I49: 0.2080226983 | J49: 0.2106045393 | K49: 0.2132594722 | L49: 0.2159906149 | M49: 0.2187962358 | N49: 0.2216582064 | O49: 0.2245933619 | P49: 0.2276174514 | Q49: 0.230724184 | R49: 0.2339280067 | S49: 0.2372310099 | T49: 0.2406037829 | U49: 0.2440647283 | V49: 0.2476303062 | W49: 0.2513173318 | X49: 0.2551319343 | Y49: 0.2590746516 | Z49: 0.2631490432 | AA49: 0.2673723742 | AB49: 0.2717526262 | AC49: 0.2762618642 | AD49: 0.2809186867 | AE49: 0.2857587813 | AF49: 0.2907831469 | AG49: 0.2959653216 | AH49: 0.3013624459 | AI49: 0.3069900551 | AJ49: 0.3128637387 | AK49: 0.3189817982 | AL49: 0.3253468987 | AM49: 0.3319511842 | AN49: 0.3388548103 | AO49: 0.3460726154 | AP49: 0.353598639 | AQ49: 0.3614928051 | AR49: 0.3696753456 | AS49: 0.3782678769 | AT49: 0.3873035415 | AU49: 0.3968401812 | AV49: 0.406879908 | AW49: 0.4174026912 | AX49: 0.4284673132 | AY49: 0.440223259 | AZ49: 0.45271327 | BA49: 0.4659421715 | BB49: 0.479657554 | BC49: 0.4941013929 | BD49: 0.5092097557 | BE49: 0.5251939451 | BF49: 0.5420785128 | BG49: 0.5600681658 | BH49: 0.5793419515 | BI49: 0.6001414423 | BJ49: 0.6226038037 | BK49: 0.6467592728 | BL49: 0.6733343276 | BM49: 0.7022703106 | BN49: 0.7336202279 | BO49: 0.7685493528 | BP49: 0.804792669 | BQ49: 0.8411466065 | BR49: 0.8792130473 | BS49: 0.9181182292 | BT49: 0.9546556859 | BU49: 0.9801987745 | BV49: 0.9941839303 | BW49: 1 | BX49: 1 | BY49: 1 | BZ49: 1 | CA49: 1 | CB49: 1 | CC49: 1 | CD49: 1
A50: 3 | B50: 0.1919483357 | C50: 0.1941167209 | D50: 0.196338752 | E50: 0.1986183854 | F50: 0.2009580797 | G50: 0.2033563197 | H50: 0.2058148723 | I50: 0.2083323297 | J50: 0.2109184712 | K50: 0.2135778257 | L50: 0.2163135163 | M50: 0.2191245235 | N50: 0.2220005487 | O50: 0.2249455195 | P50: 0.2279748126 | Q50: 0.2310978863 | R50: 0.2343118908 | S50: 0.2376217923 | T50: 0.2410008368 | U50: 0.2444682912 | V50: 0.2480405952 | W50: 0.2517344051 | X50: 0.2555559309 | Y50: 0.2595059645 | Z50: 0.2635880581 | AA50: 0.2678192851 | AB50: 0.2721985404 | AC50: 0.2767357953 | AD50: 0.2814112529 | AE50: 0.2862614185 | AF50: 0.2912790205 | AG50: 0.2964692976 | AH50: 0.3018773899 | AI50: 0.3075164394 | AJ50: 0.3134020606 | AK50: 0.3195499823 | AL50: 0.3258996206 | AM50: 0.3325230055 | AN50: 0.3394376177 | AO50: 0.3466618321 | AP50: 0.3542218022 | AQ50: 0.3621038136 | AR50: 0.3703069657 | AS50: 0.3789175228 | AT50: 0.3880107233 | AU50: 0.3975851393 | AV50: 0.4076118651 | AW50: 0.4180861522 | AX50: 0.4291862148 | AY50: 0.4409523912 | AZ50: 0.4534162683 | BA50: 0.4666877009 | BB50: 0.4805350034 | BC50: 0.4950044564 | BD50: 0.510192499 | BE50: 0.5262010685 | BF50: 0.5430612561 | BG50: 0.5610918884 | BH50: 0.5802800247 | BI50: 0.6010596444 | BJ50: 0.623422379 | BK50: 0.6476385695 | BL50: 0.6743170709 | BM50: 0.7033108624 | BN50: 0.7346643927 | BO50: 0.7696762974 | BP50: 0.8059158042 | BQ50: 0.8422748323 | BR50: 0.8805693799 | BS50: 0.9194583337 | BT50: 0.9556384292 | BU50: 0.9808539367 | BV50: 0.994552459 | BW50: 1 | BX50: 1 | BY50: 1 | BZ50: 1 | CA50: 1 | CB50: 1 | CC50: 1 | CD50: 1
A51: 3.0625 | B51: 0.1922189964 | C51: 0.1943908076 | D51: 0.1966162964 | E51: 0.1988992845 | F51: 0.2012425581 | G51: 0.2036486583 | H51: 0.2061201194 | I51: 0.2086419612 | J51: 0.2112324031 | K51: 0.2138961792 | L51: 0.2166364176 | M51: 0.2194524922 | N51: 0.2223329508 | O51: 0.225297547 | P51: 0.2283321738 | Q51: 0.2314607453 | R51: 0.2346876642 | S51: 0.2380125437 | T51: 0.2413978906 | U51: 0.2448718542 | V51: 0.2484506713 | W51: 0.2521511721 | X51: 0.2559798073 | Y51: 0.2599372773 | Z51: 0.264026934 | AA51: 0.268255726 | AB51: 0.2726353153 | AC51: 0.2771808111 | AD51: 0.2818970439 | AE51: 0.2867480958 | AF51: 0.2917703922 | AG51: 0.2969706973 | AH51: 0.3023892354 | AI51: 0.3080391752 | AJ51: 0.3139361603 | AK51: 0.320076003 | AL51: 0.3264356624 | AM51: 0.3330714494 | AN51: 0.3399922295 | AO51: 0.3472370965 | AP51: 0.3548107138 | AQ51: 0.3626833802 | AR51: 0.3709039112 | AS51: 0.379554978 | AT51: 0.3886658855 | AU51: 0.3982951299 | AV51: 0.4082808745 | AW51: 0.4187413145 | AX51: 0.4298618508 | AY51: 0.441624729 | AZ51: 0.4540915285 | BA51: 0.4674070614 | BB51: 0.4813373592 | BC51: 0.4958780061 | BD51: 0.5111175761 | BE51: 0.5271423979 | BF51: 0.5440096598 | BG51: 0.5620227252 | BH51: 0.5812180979 | BI51: 0.6019487931 | BJ51: 0.6242085737 | BK51: 0.6484845021 | BL51: 0.6752798438 | BM51: 0.704350062 | BN51: 0.7357085575 | BO51: 0.770724557 | BP51: 0.8070389395 | BQ51: 0.8433331713 | BR51: 0.8818016638 | BS51: 0.9206465723 | BT51: 0.9566211725 | BU51: 0.9815090989 | BV51: 0.9949209878 | BW51: 1 | BX51: 1 | BY51: 1 | BZ51: 1 | CA51: 1 | CB51: 1 | CC51: 1 | CD51: 1
A52: 3.125 | B52: 0.1924883061 | C52: 0.1946647091 | D52: 0.1968934998 | E52: 0.1991800683 | F52: 0.2015270364 | G52: 0.2039369297 | H52: 0.2064122864 | I52: 0.2089470084 | J52: 0.211546335 | K52: 0.2142145327 | L52: 0.216959319 | M52: 0.2197800733 | N52: 0.2226653492 | O52: 0.2256371683 | P52: 0.228689535 | Q52: 0.2318236044 | R52: 0.235056193 | S52: 0.2383912295 | T52: 0.2417946141 | U52: 0.2452751512 | V52: 0.2488604496 | W52: 0.2525678642 | X52: 0.2564036838 | Y52: 0.2603684233 | Z52: 0.2644546182 | AA52: 0.2686845595 | AB52: 0.2730720901 | AC52: 0.277625827 | AD52: 0.2823440236 | AE52: 0.2872235637 | AF52: 0.2922617639 | AG52: 0.2974720969 | AH52: 0.3029010809 | AI52: 0.308561911 | AJ52: 0.3144566328 | AK52: 0.3206001328 | AL52: 0.3269717042 | AM52: 0.3335971028 | AN52: 0.3405303984 | AO52: 0.3478042984 | AP52: 0.3553553123 | AQ52: 0.3632543813 | AR52: 0.3714987295 | AS52: 0.3801673789 | AT52: 0.3893210477 | AU52: 0.3989215814 | AV52: 0.4089085424 | AW52: 0.4193964767 | AX52: 0.4305329674 | AY52: 0.4422699491 | AZ52: 0.4547466907 | BA52: 0.4680860799 | BB52: 0.4820463948 | BC52: 0.4967408438 | BD52: 0.5119859753 | BE52: 0.5280272748 | BF52: 0.5449514555 | BG52: 0.5629200125 | BH52: 0.5821442995 | BI52: 0.6028133237 | BJ52: 0.6249947684 | BK52: 0.6493120755 | BL52: 0.6762079903 | BM52: 0.7052971513 | BN52: 0.7367527223 | BO52: 0.7717728165 | BP52: 0.8080252708 | BQ52: 0.8443915103 | BR52: 0.8829481977 | BS52: 0.9217067574 | BT52: 0.9576039158 | BU52: 0.9821642611 | BV52: 0.9952895165 | BW52: 1 | BX52: 1 | BY52: 1 | BZ52: 1 | CA52: 1 | CB52: 1 | CC52: 1 | CD52: 1
A53: 3.1875 | B53: 0.1927342034 | C53: 0.1949311536 | D53: 0.1971695131 | E53: 0.1994608521 | F53: 0.2018115147 | G53: 0.204225201 | H53: 0.2067044533 | I53: 0.2092431777 | J53: 0.2118511767 | K53: 0.2145328861 | L53: 0.2172822204 | M53: 0.2201076544 | N53: 0.2229977477 | O53: 0.2259745279 | P53: 0.2290418744 | Q53: 0.2321864635 | R53: 0.2354247217 | S53: 0.2387660545 | T53: 0.2421755028 | U53: 0.2456739357 | V53: 0.2492701969 | W53: 0.2529845563 | X53: 0.2568273664 | Y53: 0.2607876582 | Z53: 0.264875794 | AA53: 0.2691133929 | AB53: 0.2735088649 | AC53: 0.2780620129 | AD53: 0.2827786985 | AE53: 0.2876810382 | AF53: 0.2927461639 | AG53: 0.2979734966 | AH53: 0.3034129264 | AI53: 0.3090770701 | AJ53: 0.3149693684 | AK53: 0.3211242626 | AL53: 0.3274941789 | AM53: 0.3341227562 | AN53: 0.3410685674 | AO53: 0.3483226195 | AP53: 0.3558870436 | AQ53: 0.3638087494 | AR53: 0.372090244 | AS53: 0.3807782734 | AT53: 0.3899337437 | AU53: 0.3995047089 | AV53: 0.4094866267 | AW53: 0.4200441324 | AX53: 0.4311778927 | AY53: 0.442903977 | AZ53: 0.4554018529 | BA53: 0.4687598039 | BB53: 0.4827132563 | BC53: 0.4975130416 | BD53: 0.5128110215 | BE53: 0.5288719945 | BF53: 0.5458565317 | BG53: 0.5637746623 | BH53: 0.5830112007 | BI53: 0.6036331992 | BJ53: 0.6257809631 | BK53: 0.6501396488 | BL53: 0.6770998335 | BM53: 0.7061285354 | BN53: 0.7377968871 | BO53: 0.7728210761 | BP53: 0.8089792207 | BQ53: 0.8454498492 | BR53: 0.8840582648 | BS53: 0.9226895008 | BT53: 0.9585166033 | BU53: 0.9828194233 | BV53: 0.9956580452 | BW53: 1 | BX53: 1 | BY53: 1 | BZ53: 1 | CA53: 1 | CB53: 1 | CC53: 1 | CD53: 1
A54: 3.25 | B54: 0.1929798892 | C54: 0.1951799493 | D54: 0.1974340978 | E54: 0.199733412 | F54: 0.2020934631 | G54: 0.2045134724 | H54: 0.2069966203 | I54: 0.2095393469 | J54: 0.2121514594 | K54: 0.2148375219 | L54: 0.2176006849 | M54: 0.2204352356 | N54: 0.2233301462 | O54: 0.2263118876 | P54: 0.2293843456 | Q54: 0.2325493226 | R54: 0.2357932505 | S54: 0.2391404329 | T54: 0.2425561817 | U54: 0.2460608553 | V54: 0.2496716257 | W54: 0.2534010285 | X54: 0.2572384432 | Y54: 0.2612014449 | Z54: 0.2652969697 | AA54: 0.2695422264 | AB54: 0.2739394063 | AC54: 0.2784884864 | AD54: 0.2832133735 | AE54: 0.2881242362 | AF54: 0.2932178807 | AG54: 0.2984671977 | AH54: 0.3039229847 | AI54: 0.3095788965 | AJ54: 0.3154821041 | AK54: 0.3216437582 | AL54: 0.3280078857 | AM54: 0.3346484096 | AN54: 0.3415958736 | AO54: 0.3488259758 | AP54: 0.3564029839 | AQ54: 0.3643549242 | AR54: 0.3726592006 | AS54: 0.3813891679 | AT54: 0.3904974947 | AU54: 0.4000385028 | AV54: 0.4100643999 | AW54: 0.4206362989 | AX54: 0.431791602 | AY54: 0.443538005 | AZ54: 0.4560570152 | BA54: 0.4694036702 | BB54: 0.4833801179 | BC54: 0.498190542 | BD54: 0.5135843231 | BE54: 0.5296974989 | BF54: 0.5466701706 | BG54: 0.5646183985 | BH54: 0.5838529929 | BI54: 0.604381956 | BJ54: 0.6265671577 | BK54: 0.6509672221 | BL54: 0.6779187863 | BM54: 0.7069378535 | BN54: 0.7388410519 | BO54: 0.7738155925 | BP54: 0.8098583859 | BQ54: 0.8465081882 | BR54: 0.8851229035 | BS54: 0.9236722441 | BT54: 0.9593027979 | BU54: 0.9832752586 | BV54: 0.996026574 | BW54: 1 | BX54: 1 | BY54: 1 | BZ54: 1 | CA54: 1 | CB54: 1 | CC54: 1 | CD54: 1
A55: 3.3125 | B55: 0.1932200786 | C55: 0.1954287451 | D55: 0.1976864596 | E55: 0.2000014329 | F55: 0.2023650106 | G55: 0.2047919601 | H55: 0.2072848374 | I55: 0.2098355161 | J55: 0.2124517421 | K55: 0.2151420339 | L55: 0.2179095471 | M55: 0.2207536937 | N55: 0.2236625447 | O55: 0.2266492472 | P55: 0.2297268168 | Q55: 0.2328996585 | R55: 0.2361617793 | S55: 0.2395148113 | T55: 0.2429368607 | U55: 0.2464477718 | V55: 0.2500647488 | W55: 0.253791703 | X55: 0.2576450956 | Y55: 0.2616152315 | Z55: 0.2657181454 | AA55: 0.2699673275 | AB55: 0.2743579822 | AC55: 0.2789149599 | AD55: 0.2836480484 | AE55: 0.2885674342 | AF55: 0.293674289 | AG55: 0.2989485414 | AH55: 0.3044059043 | AI55: 0.3100807229 | AJ55: 0.3159948398 | AK55: 0.3221460492 | AL55: 0.3285215924 | AM55: 0.335174063 | AN55: 0.342087874 | AO55: 0.3493293322 | AP55: 0.3569189241 | AQ55: 0.3648840937 | AR55: 0.3732207086 | AS55: 0.3819453772 | AT55: 0.3910363891 | AU55: 0.400571992 | AV55: 0.41061358 | AW55: 0.4212011882 | AX55: 0.4323578825 | AY55: 0.4441634215 | AZ55: 0.4567071491 | BA55: 0.4700475365 | BB55: 0.4840370348 | BC55: 0.4988129853 | BD55: 0.5143300355 | BE55: 0.5305230033 | BF55: 0.5474348382 | BG55: 0.56543023 | BH55: 0.5846345291 | BI55: 0.6051307128 | BJ55: 0.6273533524 | BK55: 0.6517947955 | BL55: 0.6786874517 | BM55: 0.707745249 | BN55: 0.7398265001 | BO55: 0.7747983358 | BP55: 0.8106817539 | BQ55: 0.8475199431 | BR55: 0.8861543601 | BS55: 0.9245832516 | BT55: 0.9600889926 | BU55: 0.9836028397 | BV55: 0.9963951027 | BW55: 1 | BX55: 1 | BY55: 1 | BZ55: 1 | CA55: 1 | CB55: 1 | CC55: 1 | CD55: 1
A56: 3.375 | B56: 0.1934411959 | C56: 0.1956570308 | D56: 0.1979277379 | E56: 0.2002568146 | F56: 0.2026365581 | G56: 0.2050671283 | H56: 0.2075637241 | I56: 0.2101202701 | J56: 0.2127465895 | K56: 0.215446546 | L56: 0.2182184093 | M56: 0.2210670322 | N56: 0.2239810073 | O56: 0.2269823883 | P56: 0.2300692879 | Q56: 0.2332473985 | R56: 0.236525416 | S56: 0.2398891897 | T56: 0.2433175087 | U56: 0.2468344249 | V56: 0.2504439463 | W56: 0.2541748063 | X56: 0.2580348835 | Y56: 0.2620249182 | Z56: 0.2661380023 | AA56: 0.2703782929 | AB56: 0.274776558 | AC56: 0.2793414334 | AD56: 0.2840827234 | AE56: 0.2890106322 | AF56: 0.2941263509 | AG56: 0.2994076139 | AH56: 0.3048768021 | AI56: 0.3105733133 | AJ56: 0.316490132 | AK56: 0.3226483403 | AL56: 0.3290352992 | AM56: 0.3356655032 | AN56: 0.3425792457 | AO56: 0.3498326885 | AP56: 0.3574348644 | AQ56: 0.3654132632 | AR56: 0.3737557018 | AS56: 0.3824482938 | AT56: 0.3915358871 | AU56: 0.4011054813 | AV56: 0.4111489469 | AW56: 0.4217115699 | AX56: 0.4329091303 | AY56: 0.4447557122 | AZ56: 0.4573204128 | BA56: 0.4706914028 | BB56: 0.4846687984 | BC56: 0.4994317497 | BD56: 0.5150481941 | BE56: 0.5312813337 | BF56: 0.5481718957 | BG56: 0.5661758025 | BH56: 0.5853649722 | BI56: 0.6058649081 | BJ56: 0.6281395471 | BK56: 0.6526223688 | BL56: 0.6794297738 | BM56: 0.7084967587 | BN56: 0.740747822 | BO56: 0.7757392472 | BP56: 0.8114539094 | BQ56: 0.8484851452 | BR56: 0.8871090289 | BS56: 0.9253873143 | BT56: 0.9608751873 | BU56: 0.9839304208 | BV56: 0.9966595862 | BW56: 1 | BX56: 1 | BY56: 1 | BZ56: 1 | CA56: 1 | CB56: 1 | CC56: 1 | CD56: 1
A57: 3.4375 | B57: 0.1936623131 | C57: 0.195880947 | D57: 0.1981545249 | E57: 0.2004870825 | F57: 0.2028812784 | G57: 0.2053364145 | H57: 0.2078426107 | I57: 0.2104029771 | J57: 0.213033223 | K57: 0.2157379316 | L57: 0.2185202755 | M57: 0.2213796885 | N57: 0.2242989536 | O57: 0.2273050802 | P57: 0.2304026978 | Q57: 0.2335951384 | R57: 0.2368785894 | S57: 0.2402635681 | T57: 0.2436979254 | U57: 0.247206522 | V57: 0.2508206646 | W57: 0.2545579097 | X57: 0.2584245921 | Y57: 0.2624214638 | Z57: 0.2665332276 | AA57: 0.2707892583 | AB57: 0.2751951339 | AC57: 0.279767907 | AD57: 0.2845173983 | AE57: 0.2894538301 | AF57: 0.2945678172 | AG57: 0.2998488456 | AH57: 0.3053477 | AI57: 0.311045424 | AJ57: 0.3169714539 | AK57: 0.3231506313 | AL57: 0.32953661 | AM57: 0.3361454476 | AN57: 0.3430706174 | AO57: 0.3503360448 | AP57: 0.3579508046 | AQ57: 0.3659424327 | AR57: 0.3742556526 | AS57: 0.3829263851 | AT57: 0.3920272587 | AU57: 0.4016255222 | AV57: 0.4116692228 | AW57: 0.4222178316 | AX57: 0.4334312127 | AY57: 0.4453196113 | AZ57: 0.4579077742 | BA57: 0.4713232374 | BB57: 0.4852774461 | BC57: 0.500050514 | BD57: 0.5157185296 | BE57: 0.5319588426 | BF57: 0.5489027211 | BG57: 0.566898872 | BH57: 0.5860192647 | BI57: 0.6065668676 | BJ57: 0.6289257417 | BK57: 0.6534499421 | BL57: 0.6801395328 | BM57: 0.7092482683 | BN57: 0.7416691439 | BO57: 0.7765312563 | BP57: 0.8122260649 | BQ57: 0.8493922929 | BR57: 0.8880098769 | BS57: 0.926191377 | BT57: 0.9615808454 | BU57: 0.9842580019 | BV57: 0.9969052721 | BW57: 1 | BX57: 1 | BY57: 1 | BZ57: 1 | CA57: 1 | CB57: 1 | CC57: 1 | CD57: 1
A58: 3.5 | B58: 0.1938834304 | C58: 0.1961048632 | D58: 0.1983813118 | E58: 0.2007168147 | F58: 0.2031140334 | G58: 0.2055755398 | H58: 0.2080996343 | I58: 0.2106743576 | J58: 0.21331682 | K58: 0.2160286022 | L58: 0.2188150985 | M58: 0.2216787843 | N58: 0.224608268 | O58: 0.2276256223 | P58: 0.2307302789 | Q58: 0.2339288484 | R58: 0.2372279649 | S58: 0.240625126 | T58: 0.2440631511 | U58: 0.2475770645 | V58: 0.2511973829 | W58: 0.254941013 | X58: 0.2588143006 | Y58: 0.2628017718 | Z58: 0.2669193053 | AA58: 0.2711873809 | AB58: 0.2756137098 | AC58: 0.2801943805 | AD58: 0.2849520732 | AE58: 0.2898918998 | AF58: 0.2950002243 | AG58: 0.3002900773 | AH58: 0.3058013746 | AI58: 0.3115054315 | AJ58: 0.3174414616 | AK58: 0.3236420286 | AL58: 0.3300056466 | AM58: 0.336625392 | AN58: 0.3435619891 | AO58: 0.3508394012 | AP58: 0.3584667449 | AQ58: 0.3664545779 | AR58: 0.3747211626 | AS58: 0.3834044765 | AT58: 0.3925186304 | AU58: 0.4021128706 | AV58: 0.4121546016 | AW58: 0.4227240934 | AX58: 0.4339532951 | AY58: 0.4458268337 | AZ58: 0.4584618481 | BA58: 0.4718993284 | BB58: 0.4858741117 | BC58: 0.5006692783 | BD58: 0.5163598928 | BE58: 0.532627108 | BF58: 0.5495979314 | BG58: 0.5675619225 | BH58: 0.5866446468 | BI58: 0.6072688271 | BJ58: 0.6296890434 | BK58: 0.6542261015 | BL58: 0.6808492919 | BM58: 0.7099997779 | BN58: 0.7425129414 | BO58: 0.7773174509 | BP58: 0.8129982203 | BQ58: 0.8502356854 | BR58: 0.888910725 | BS58: 0.9269954398 | BT58: 0.9622687657 | BU58: 0.984585583 | BV58: 0.9971509579 | BW58: 1 | BX58: 1 | BY58: 1 | BZ58: 1 | CA58: 1 | CB58: 1 | CC58: 1 | CD58: 1
A59: 3.5625 | B59: 0.1941045476 | C59: 0.1963287794 | D59: 0.1986080987 | E59: 0.2009465469 | F59: 0.2033467884 | G59: 0.2058113982 | H59: 0.2083429737 | I59: 0.2109301401 | J59: 0.2135787026 | K59: 0.216302252 | L59: 0.2191032821 | M59: 0.221976485 | N59: 0.2249117623 | O59: 0.2279336463 | P59: 0.2310475031 | Q59: 0.234257776 | R59: 0.2375647366 | S59: 0.2409594758 | T59: 0.2444229932 | U59: 0.2479476071 | V59: 0.2515741012 | W59: 0.2553241163 | X59: 0.2591903108 | Y59: 0.2631810763 | Z59: 0.2673053831 | AA59: 0.2715804782 | AB59: 0.2760148515 | AC59: 0.2806172138 | AD59: 0.2853867482 | AE59: 0.2903158283 | AF59: 0.2954326314 | AG59: 0.300731309 | AH59: 0.3062313248 | AI59: 0.3119584941 | AJ59: 0.3179114693 | AK59: 0.3240872564 | AL59: 0.3304629162 | AM59: 0.3371053365 | AN59: 0.3440533607 | AO59: 0.3513427575 | AP59: 0.3589817531 | AQ59: 0.3669250723 | AR59: 0.3751866726 | AS59: 0.3838825678 | AT59: 0.3930100021 | AU59: 0.4025880492 | AV59: 0.412617069 | AW59: 0.4232303551 | AX59: 0.4344753775 | AY59: 0.4463340561 | AZ59: 0.4589859778 | BA59: 0.4724299645 | BB59: 0.4864496115 | BC59: 0.5012880426 | BD59: 0.51694041 | BE59: 0.5332953735 | BF59: 0.5502213181 | BG59: 0.5681873505 | BH59: 0.5872700289 | BI59: 0.6079263952 | BJ59: 0.6304261009 | BK59: 0.6550019515 | BL59: 0.681559051 | BM59: 0.7107512875 | BN59: 0.7432499989 | BO59: 0.7780390035 | BP59: 0.8137703758 | BQ59: 0.8510329174 | BR59: 0.8898115731 | BS59: 0.9277951512 | BT59: 0.962954416 | BU59: 0.9849131641 | BV59: 0.9973966437 | BW59: 1 | BX59: 1 | BY59: 1 | BZ59: 1 | CA59: 1 | CB59: 1 | CC59: 1 | CD59: 1
A60: 3.625 | B60: 0.1943256649 | C60: 0.1965526957 | D60: 0.1988348856 | E60: 0.2011762791 | F60: 0.2035795434 | G60: 0.2060472566 | H60: 0.2085820194 | I60: 0.211177818 | J60: 0.2138380376 | K60: 0.2165652396 | L60: 0.2193707309 | M60: 0.2222539735 | N60: 0.2252036002 | O60: 0.2282365802 | P60: 0.2313601942 | Q60: 0.2345734178 | R60: 0.2378750241 | S60: 0.2412820583 | T60: 0.2447576867 | U60: 0.2483148811 | V60: 0.2519508195 | W60: 0.2556959688 | X60: 0.2595630755 | Y60: 0.2635603807 | Z60: 0.2676914608 | AA60: 0.2719735756 | AB60: 0.2764152284 | AC60: 0.281025145 | AD60: 0.2857944445 | AE60: 0.2907397568 | AF60: 0.2958650384 | AG60: 0.3011598902 | AH60: 0.3066612751 | AI60: 0.3123975922 | AJ60: 0.318367163 | AK60: 0.3245240312 | AL60: 0.3309096178 | AM60: 0.3375726067 | AN60: 0.3445447324 | AO60: 0.3518461139 | AP60: 0.3594729738 | AQ60: 0.3673786461 | AR60: 0.3756521826 | AS60: 0.3843606592 | AT60: 0.3934792941 | AU60: 0.4030373033 | AV60: 0.4130795365 | AW60: 0.4237069762 | AX60: 0.4349692145 | AY60: 0.4468412784 | AZ60: 0.4594820423 | BA60: 0.4729043923 | BB60: 0.4869873321 | BC60: 0.501906807 | BD60: 0.5175073774 | BE60: 0.5339441428 | BF60: 0.5508355327 | BG60: 0.5687496479 | BH60: 0.587895411 | BI60: 0.6085815574 | BJ60: 0.6311365331 | BK60: 0.6557028885 | BL60: 0.6822688101 | BM60: 0.7115027971 | BN60: 0.743946288 | BO60: 0.77867936 | BP60: 0.8144736244 | BQ60: 0.8517394449 | BR60: 0.8906664666 | BS60: 0.9285098737 | BT60: 0.963544062 | BU60: 0.9852407452 | BV60: 0.9976262767 | BW60: 1 | BX60: 1 | BY60: 1 | BZ60: 1 | CA60: 1 | CB60: 1 | CC60: 1 | CD60: 1
A61: 3.6875 | B61: 0.1945467821 | C61: 0.1967766119 | D61: 0.1990616726 | E61: 0.2014060113 | F61: 0.2038122984 | G61: 0.206283115 | H61: 0.2088210651 | I61: 0.2114201383 | J61: 0.2140901869 | K61: 0.2168282273 | L61: 0.2196374755 | M61: 0.222524584 | N61: 0.2254781902 | O61: 0.2285204022 | P61: 0.2316525653 | Q61: 0.2348668068 | R61: 0.2381787833 | S61: 0.2415940403 | T61: 0.24507734 | U61: 0.2486516002 | V61: 0.2523101225 | W61: 0.2560624155 | X61: 0.2599358402 | Y61: 0.2639396852 | Z61: 0.2680775386 | AA61: 0.2723666729 | AB61: 0.2768156053 | AC61: 0.2814197093 | AD61: 0.2861913216 | AE61: 0.2911507518 | AF61: 0.2962928098 | AG61: 0.3015810659 | AH61: 0.3070912253 | AI61: 0.3128366903 | AJ61: 0.318776327 | AK61: 0.324960806 | AL61: 0.3313563193 | AM61: 0.3380296967 | AN61: 0.345022488 | AO61: 0.3523398761 | AP61: 0.3599156386 | AQ61: 0.36783222 | AR61: 0.3761176926 | AS61: 0.3848387505 | AT61: 0.3939383762 | AU61: 0.4034865574 | AV61: 0.4135420039 | AW61: 0.4241834578 | AX61: 0.4354375334 | AY61: 0.4473485008 | AZ61: 0.4599675835 | BA61: 0.4733788202 | BB61: 0.4874787037 | BC61: 0.502490598 | BD61: 0.5180743447 | BE61: 0.5345029001 | BF61: 0.5514308161 | BG61: 0.5693051116 | BH61: 0.5884953403 | BI61: 0.6092367196 | BJ61: 0.6318244534 | BK61: 0.6563752919 | BL61: 0.6829785691 | BM61: 0.7122543067 | BN61: 0.7445652663 | BO61: 0.779269006 | BP61: 0.8150930263 | BQ61: 0.8524198057 | BR61: 0.8914386208 | BS61: 0.9292245961 | BT61: 0.964133708 | BU61: 0.9855683263 | BV61: 0.9977491196 | BW61: 1 | BX61: 1 | BY61: 1 | BZ61: 1 | CA61: 1 | CB61: 1 | CC61: 1 | CD61: 1
A62: 3.75 | B62: 0.1947678994 | C62: 0.1970005281 | D62: 0.1992884595 | E62: 0.2016357435 | F62: 0.2040450534 | G62: 0.2065189734 | H62: 0.2090601107 | I62: 0.2116624586 | J62: 0.2143358728 | K62: 0.2170849879 | L62: 0.2199042201 | M62: 0.2227951944 | N62: 0.2257527803 | O62: 0.2287956826 | P62: 0.2319205862 | Q62: 0.2351422636 | R62: 0.238465225 | S62: 0.2418929017 | T62: 0.2453870008 | U62: 0.2489658227 | V62: 0.2526366386 | W62: 0.2564104356 | X62: 0.2603059802 | Y62: 0.2643189896 | Z62: 0.2684636163 | AA62: 0.2727597702 | AB62: 0.2772078146 | AC62: 0.2818090982 | AD62: 0.2865881987 | AE62: 0.2915554108 | AF62: 0.2966877056 | AG62: 0.3019993202 | AH62: 0.3075211755 | AI62: 0.3132396749 | AJ62: 0.3191822427 | AK62: 0.3253896613 | AL62: 0.3318030208 | AM62: 0.3384867866 | AN62: 0.345490461 | AO62: 0.3527901249 | AP62: 0.3603578731 | AQ62: 0.3682857938 | AR62: 0.3765832026 | AS62: 0.3852909651 | AT62: 0.394375151 | AU62: 0.4039358115 | AV62: 0.4140044714 | AW62: 0.4246599395 | AX62: 0.4358981943 | AY62: 0.4478194068 | AZ62: 0.4604261971 | BA62: 0.473853248 | BB62: 0.4879700754 | BC62: 0.5029377153 | BD62: 0.518635937 | BE62: 0.5350139267 | BF62: 0.5520040831 | BG62: 0.5698395151 | BH62: 0.5890760523 | BI62: 0.6098918819 | BJ62: 0.6325123737 | BK62: 0.6570476952 | BL62: 0.6836478929 | BM62: 0.7129996961 | BN62: 0.7451794809 | BO62: 0.779858652 | BP62: 0.8156545939 | BQ62: 0.8530449996 | BR62: 0.8921756783 | BS62: 0.9299393185 | BT62: 0.9646982307 | BU62: 0.9858959074 | BV62: 0.9978719625 | BW62: 1 | BX62: 1 | BY62: 1 | BZ62: 1 | CA62: 1 | CB62: 1 | CC62: 1 | CD62: 1
A63: 3.8125 | B63: 0.1949890167 | C63: 0.1972244443 | D63: 0.1995152464 | E63: 0.2018654757 | F63: 0.2042778084 | G63: 0.2067548318 | H63: 0.2092991564 | I63: 0.2119047788 | J63: 0.2145815586 | K63: 0.2173341341 | L63: 0.2201657338 | M63: 0.2230658049 | N63: 0.226023223 | O63: 0.2290597032 | P63: 0.2321886071 | Q63: 0.2354144079 | R63: 0.2387416216 | S63: 0.2421750879 | T63: 0.2456762593 | U63: 0.249255203 | V63: 0.2529362371 | W63: 0.2567380621 | X63: 0.2606492109 | Y63: 0.2646864146 | Z63: 0.268849694 | AA63: 0.2731496941 | AB63: 0.2775899925 | AC63: 0.2821984871 | AD63: 0.2869850759 | AE63: 0.2919438603 | AF63: 0.2970808029 | AG63: 0.3024004399 | AH63: 0.3079272293 | AI63: 0.3136369541 | AJ63: 0.3195881584 | AK63: 0.3258045974 | AL63: 0.3322497223 | AM63: 0.3389438765 | AN63: 0.345940597 | AO63: 0.3531976038 | AP63: 0.3607844738 | AQ63: 0.3687393677 | AR63: 0.3770450999 | AS63: 0.3857348183 | AT63: 0.3948119258 | AU63: 0.4043850656 | AV63: 0.4144669388 | AW63: 0.4251335775 | AX63: 0.4363588552 | AY63: 0.4482632263 | AZ63: 0.4608763811 | BA63: 0.4743276758 | BB63: 0.4884602121 | BC63: 0.5033744901 | BD63: 0.5191273087 | BE63: 0.5355199757 | BF63: 0.5525133205 | BG63: 0.5703522508 | BH63: 0.5896567643 | BI63: 0.6105114202 | BJ63: 0.6331863558 | BK63: 0.6577200985 | BL63: 0.6843030551 | BM63: 0.7136933973 | BN63: 0.7457936954 | BO63: 0.7804330315 | BP63: 0.8161214204 | BQ63: 0.8536497648 | BR63: 0.8929127358 | BS63: 0.9306540409 | BT63: 0.9651896024 | BU63: 0.9862234885 | BV63: 0.9979948054 | BW63: 1 | BX63: 1 | BY63: 1 | BZ63: 1 | CA63: 1 | CB63: 1 | CC63: 1 | CD63: 1
A64: 3.875 | B64: 0.1952101339 | C64: 0.1974483605 | D64: 0.1997420333 | E64: 0.2020952079 | F64: 0.2045105634 | G64: 0.2069906903 | H64: 0.2095382021 | I64: 0.2121470991 | J64: 0.2148272445 | K64: 0.2175832803 | L64: 0.2204184393 | M64: 0.2233273509 | N64: 0.2262833609 | O64: 0.2293237238 | P64: 0.2324566281 | Q64: 0.2356865522 | R64: 0.2390180182 | S64: 0.2424536189 | T64: 0.2459457212 | U64: 0.2495290823 | V64: 0.2532212145 | W64: 0.2570391485 | X64: 0.2609719487 | Y64: 0.265021336 | Z64: 0.2692063829 | AA64: 0.2735201388 | AB64: 0.2779721705 | AC64: 0.2825878759 | AD64: 0.2873735046 | AE64: 0.2923292498 | AF64: 0.2974739002 | AG64: 0.3028015597 | AH64: 0.308295758 | AI64: 0.3140212742 | AJ64: 0.3199940742 | AK64: 0.3262195334 | AL64: 0.3326768526 | AM64: 0.33939813 | AN64: 0.3463565263 | AO64: 0.3536050828 | AP64: 0.3612021397 | AQ64: 0.3691762267 | AR64: 0.3774847483 | AS64: 0.3861597884 | AT64: 0.3952487006 | AU64: 0.4048343197 | AV64: 0.4149294063 | AW64: 0.425580279 | AX64: 0.4368073239 | AY64: 0.4486773371 | AZ64: 0.4613022365 | BA64: 0.4748020385 | BB64: 0.4889074126 | BC64: 0.5038112649 | BD64: 0.5196015952 | BE64: 0.5359456665 | BF64: 0.5529993881 | BG64: 0.5708649865 | BH64: 0.5902374763 | BI64: 0.6111197851 | BJ64: 0.633825139 | BK64: 0.6583925019 | BL64: 0.6849582174 | BM64: 0.714336577 | BN64: 0.7463682035 | BO64: 0.7809571613 | BP64: 0.8165425962 | BQ64: 0.8542177416 | BR64: 0.8935925757 | BS64: 0.9313687633 | BT64: 0.9656809741 | BU64: 0.9865510696 | BV64: 0.9981176484 | BW64: 1 | BX64: 1 | BY64: 1 | BZ64: 1 | CA64: 1 | CB64: 1 | CC64: 1 | CD64: 1
A65: 3.9375 | B65: 0.1954312512 | C65: 0.1976722767 | D65: 0.1999688203 | E65: 0.2023249401 | F65: 0.2047433184 | G65: 0.2072265487 | H65: 0.2097772478 | I65: 0.2123894194 | J65: 0.2150729303 | K65: 0.2178324265 | L65: 0.2206655821 | M65: 0.223569476 | N65: 0.2265403694 | O65: 0.2295877444 | P65: 0.232724649 | Q65: 0.2359586965 | R65: 0.2392942293 | S65: 0.2427188036 | T65: 0.246215183 | U65: 0.2498029616 | V65: 0.2534996584 | W65: 0.2573223118 | X65: 0.2612775188 | Y65: 0.2653439243 | Z65: 0.2695239053 | AA65: 0.2738450276 | AB65: 0.278327218 | AC65: 0.2829731966 | AD65: 0.2877514828 | AE65: 0.2927146394 | AF65: 0.2978669976 | AG65: 0.3031657393 | AH65: 0.3086642868 | AI65: 0.314397644 | AJ65: 0.3203816967 | AK65: 0.3266324629 | AL65: 0.3331012191 | AM65: 0.3398229629 | AN65: 0.3467543033 | AO65: 0.3540125617 | AP65: 0.3616198056 | AQ65: 0.3695969113 | AR65: 0.3778963198 | AS65: 0.3865847585 | AT65: 0.3956854754 | AU65: 0.4052835738 | AV65: 0.4153918737 | AW65: 0.4260269806 | AX65: 0.4372372741 | AY65: 0.4490894552 | AZ65: 0.461728092 | BA65: 0.4752425787 | BB65: 0.4893285883 | BC65: 0.5042480398 | BD65: 0.5200479396 | BE65: 0.5363387639 | BF65: 0.5533896428 | BG65: 0.5713721278 | BH65: 0.5908091349 | BI65: 0.61172815 | BJ65: 0.6344172071 | BK65: 0.6590649052 | BL65: 0.6856133796 | BM65: 0.7149501964 | BN65: 0.7468704231 | BO65: 0.781481291 | BP65: 0.8169637719 | BQ65: 0.8546836572 | BR65: 0.894247738 | BS65: 0.9320834858 | BT65: 0.9661723457 | BU65: 0.9868786507 | BV65: 0.9982404913 | BW65: 1 | BX65: 1 | BY65: 1 | BZ65: 1 | CA65: 1 | CB65: 1 | CC65: 1 | CD65: 1
A66: 4 | B66: 0.1956424663 | C66: 0.1978904708 | D66: 0.2001941756 | E66: 0.2025546724 | F66: 0.2049760734 | G66: 0.2074624071 | H66: 0.2100162935 | I66: 0.2126317397 | J66: 0.2153186161 | K66: 0.2180753323 | L66: 0.2209042483 | M66: 0.2238116012 | N66: 0.2267860553 | O66: 0.2298497485 | P66: 0.2329926699 | Q66: 0.2362308408 | R66: 0.2395552705 | S66: 0.2429839883 | T66: 0.2464846449 | U66: 0.2500768409 | V66: 0.2537781024 | W66: 0.2576054751 | X66: 0.2615655643 | Y66: 0.265643307 | Z66: 0.2698248347 | AA66: 0.2741592699 | AB66: 0.2786547991 | AC66: 0.283293453 | AD66: 0.2881049513 | AE66: 0.2930933126 | AF66: 0.2982424166 | AG66: 0.303526747 | AH66: 0.3090328155 | AI66: 0.3147740138 | AJ66: 0.3207662485 | AK66: 0.3270255602 | AL66: 0.3335074325 | AM66: 0.3401927347 | AN66: 0.3471520804 | AO66: 0.3544200407 | AP66: 0.3620374715 | AQ66: 0.370000088 | AR66: 0.3782842448 | AS66: 0.386990715 | AT66: 0.3961222503 | AU66: 0.4057328279 | AV66: 0.4158543412 | AW66: 0.4264691264 | AX66: 0.4376458931 | AY66: 0.4495015734 | AZ66: 0.4621539474 | BA66: 0.4756831188 | BB66: 0.4897497641 | BC66: 0.5046848146 | BD66: 0.5204637156 | BE66: 0.5367118105 | BF66: 0.5537172239 | BG66: 0.5718364817 | BH66: 0.5913394482 | BI66: 0.612336515 | BJ66: 0.6350068531 | BK66: 0.6597227664 | BL66: 0.6862685418 | BM66: 0.7155282808 | BN66: 0.7473617948 | BO66: 0.7819975479 | BP66: 0.8173849476 | BQ66: 0.8550616354 | BR66: 0.8949029002 | BS66: 0.9327982082 | BT66: 0.9666637174 | BU66: 0.9872062319 | BV66: 0.9983633342 | BW66: 1 | BX66: 1 | BY66: 1 | BZ66: 1 | CA66: 1 | CB66: 1 | CC66: 1 | CD66: 1
A67: 4.0625 | B67: 0.1958431267 | C67: 0.1981019472 | D67: 0.2004083632 | E67: 0.202774616 | F67: 0.2052034018 | G67: 0.2076973185 | H67: 0.2102553391 | I67: 0.2128740599 | J67: 0.2155574027 | K67: 0.218310637 | L67: 0.2211429145 | M67: 0.2240537264 | N67: 0.2270317411 | O67: 0.2300991012 | P67: 0.2332598381 | Q67: 0.2364896845 | R67: 0.2398163117 | S67: 0.243249173 | T67: 0.2467541068 | U67: 0.2503507202 | V67: 0.2540565463 | W67: 0.2578886385 | X67: 0.2618474312 | Y67: 0.265924347 | Z67: 0.2701231675 | AA67: 0.2744630269 | AB67: 0.278952666 | AC67: 0.28359922 | AD67: 0.2884253706 | AE67: 0.2934323193 | AF67: 0.2985680008 | AG67: 0.3038770889 | AH67: 0.3093983338 | AI67: 0.3151503836 | AJ67: 0.3211508002 | AK67: 0.3274186575 | AL67: 0.3338768098 | AM67: 0.3405458896 | AN67: 0.3475287917 | AO67: 0.3548275196 | AP67: 0.3624435726 | AQ67: 0.3703905877 | AR67: 0.3786721699 | AS67: 0.3873891244 | AT67: 0.3965387965 | AU67: 0.406182082 | AV67: 0.4163089607 | AW67: 0.4268860478 | AX67: 0.4380451326 | AY67: 0.4499136916 | AZ67: 0.4625798029 | BA67: 0.4761044675 | BB67: 0.4901709398 | BC67: 0.5050975541 | BD67: 0.5208577824 | BE67: 0.5370655981 | BF67: 0.554044805 | BG67: 0.5722637614 | BH67: 0.5918308198 | BI67: 0.6129054289 | BJ67: 0.6355964992 | BK67: 0.6602917231 | BL67: 0.6868826443 | BM67: 0.7161063651 | BN67: 0.7478531665 | BO67: 0.7824561615 | BP67: 0.8177978706 | BQ67: 0.8554396136 | BR67: 0.8955423845 | BS67: 0.9335129306 | BT67: 0.9671550891 | BU67: 0.987533813 | BV67: 0.9984861771 | BW67: 1 | BX67: 1 | BY67: 1 | BZ67: 1 | CA67: 1 | CB67: 1 | CC67: 1 | CD67: 1
A68: 4.125 | B68: 0.1960396754 | C68: 0.1983056015 | D68: 0.2006225509 | E68: 0.2029915853 | F68: 0.205423226 | G68: 0.2079200736 | H68: 0.2104847603 | I68: 0.213103765 | J68: 0.2157890432 | K68: 0.2185459418 | L68: 0.2213815808 | M68: 0.2242958515 | N68: 0.2272774269 | O68: 0.230348454 | P68: 0.2335018405 | Q68: 0.2367467097 | R68: 0.2400773529 | S68: 0.2435143577 | T68: 0.2470235687 | U68: 0.2506245995 | V68: 0.2543349903 | W68: 0.2581702446 | X68: 0.2621185328 | Y68: 0.2662002048 | Z68: 0.2704186989 | AA68: 0.2747620362 | AB68: 0.2792438492 | AC68: 0.2838958973 | AD68: 0.2887277531 | AE68: 0.2937120982 | AF68: 0.2988672753 | AG68: 0.30419821 | AH68: 0.3097370008 | AI68: 0.315510829 | AJ68: 0.3215273248 | AK68: 0.3277932562 | AL68: 0.3342118359 | AM68: 0.340888707 | AN68: 0.3478853347 | AO68: 0.3552251697 | AP68: 0.3628366699 | AQ68: 0.3707685659 | AR68: 0.3790600949 | AS68: 0.3877875339 | AT68: 0.3969482728 | AU68: 0.4066098426 | AV68: 0.4167425239 | AW68: 0.4272895079 | AX68: 0.438444372 | AY68: 0.4503258097 | AZ68: 0.4630056583 | BA68: 0.4765111199 | BB68: 0.4905921155 | BC68: 0.505497931 | BD68: 0.5211979628 | BE68: 0.5373918452 | BF68: 0.5543723862 | BG68: 0.5726910411 | BH68: 0.5922852027 | BI68: 0.6134201993 | BJ68: 0.6361808041 | BK68: 0.6608606798 | BL68: 0.6874832096 | BM68: 0.7166844494 | BN68: 0.7483445381 | BO68: 0.7828967568 | BP68: 0.8181488503 | BQ68: 0.8558175918 | BR68: 0.8961156515 | BS68: 0.9341902932 | BT68: 0.9676464607 | BU68: 0.9878613941 | BV68: 0.99860902 | BW68: 1 | BX68: 1 | BY68: 1 | BZ68: 1 | CA68: 1 | CB68: 1 | CC68: 1 | CD68: 1
A69: 4.1875 | B69: 0.196236224 | C69: 0.1985046381 | D69: 0.2008292864 | E69: 0.2032085546 | F69: 0.2056430502 | G69: 0.2081428288 | H69: 0.2107023649 | I69: 0.2133191608 | J69: 0.2160074306 | K69: 0.2187718239 | L69: 0.2216155819 | M69: 0.2245379767 | N69: 0.2275231128 | O69: 0.2305887858 | P69: 0.2337400813 | Q69: 0.2369889716 | R69: 0.2403383941 | S69: 0.2437795424 | T69: 0.2472930306 | U69: 0.2508984788 | V69: 0.2546134342 | W69: 0.2584367512 | X69: 0.2623896344 | Y69: 0.2664760626 | Z69: 0.2706994827 | AA69: 0.2750479252 | AB69: 0.2795350324 | AC69: 0.2841925745 | AD69: 0.2890109436 | AE69: 0.2939818708 | AF69: 0.2991424435 | AG69: 0.3044867059 | AH69: 0.3100552396 | AI69: 0.3158470423 | AJ69: 0.3218779127 | AK69: 0.3281192839 | AL69: 0.3345333846 | AM69: 0.3412265615 | AN69: 0.3482363145 | AO69: 0.3555700397 | AP69: 0.3632101461 | AQ69: 0.3711465441 | AR69: 0.3794480199 | AS69: 0.3881859434 | AT69: 0.3973577492 | AU69: 0.4070310183 | AV69: 0.4171272176 | AW69: 0.4276766493 | AX69: 0.4388436115 | AY69: 0.4507379279 | AZ69: 0.4634315138 | BA69: 0.4769177724 | BB69: 0.4910132912 | BC69: 0.5058983079 | BD69: 0.5215250747 | BE69: 0.5377063231 | BF69: 0.5546999673 | BG69: 0.573084666 | BH69: 0.5927319042 | BI69: 0.6138926356 | BJ69: 0.6367213129 | BK69: 0.6614247186 | BL69: 0.688083775 | BM69: 0.7172499807 | BN69: 0.7488359098 | BO69: 0.7832774861 | BP69: 0.818454678 | BQ69: 0.85619557 | BR69: 0.8966889184 | BS69: 0.9348156753 | BT69: 0.9681378324 | BU69: 0.9881889752 | BV69: 0.9987318629 | BW69: 1 | BX69: 1 | BY69: 1 | BZ69: 1 | CA69: 1 | CB69: 1 | CC69: 1 | CD69: 1
A70: 4.25 | B70: 0.1964327727 | C70: 0.1987036747 | D70: 0.2010308747 | E70: 0.2034184641 | F70: 0.2058628743 | G70: 0.2083568191 | H70: 0.21091485 | I70: 0.2135345566 | J70: 0.216225818 | K70: 0.2189932872 | L70: 0.2218402089 | M70: 0.2247660908 | N70: 0.2277526762 | O70: 0.2308192665 | P70: 0.2339783221 | Q70: 0.2372308777 | R70: 0.2405856908 | S70: 0.2440447271 | T70: 0.2475624925 | U70: 0.2511723581 | V70: 0.2548784091 | W70: 0.2587032579 | X70: 0.262660736 | Y70: 0.2667519204 | Z70: 0.2709802665 | AA70: 0.2753338142 | AB70: 0.2798262156 | AC70: 0.2844857792 | AD70: 0.2892755283 | AE70: 0.2942516435 | AF70: 0.2994176116 | AG70: 0.3047674898 | AH70: 0.310341873 | AI70: 0.316154508 | AJ70: 0.322191597 | AK70: 0.3284066146 | AL70: 0.3348393042 | AM70: 0.3415465245 | AN70: 0.3485678628 | AO70: 0.355894979 | AP70: 0.3635301421 | AQ70: 0.3715144556 | AR70: 0.3798359449 | AS70: 0.3885843528 | AT70: 0.3977672256 | AU70: 0.4074521941 | AV70: 0.417496918 | AW70: 0.4280398917 | AX70: 0.439242851 | AY70: 0.4511500461 | AZ70: 0.4638287472 | BA70: 0.4773244248 | BB70: 0.4914042694 | BC70: 0.5062835994 | BD70: 0.5218274573 | BE70: 0.5380208009 | BF70: 0.5550275484 | BG70: 0.5734404563 | BH70: 0.5931712651 | BI70: 0.6143249678 | BJ70: 0.6372618218 | BK70: 0.661941952 | BL70: 0.6886800009 | BM70: 0.7177702566 | BN70: 0.7493272815 | BO70: 0.7836050672 | BP70: 0.8187354618 | BQ70: 0.8565735482 | BR70: 0.8972621853 | BS70: 0.9354410574 | BT70: 0.968629204 | BU70: 0.9885165563 | BV70: 0.9988547058 | BW70: 1 | BX70: 1 | BY70: 1 | BZ70: 1 | CA70: 1 | CB70: 1 | CC70: 1 | CD70: 1
A71: 4.3125 | B71: 0.1966293214 | C71: 0.1989027114 | D71: 0.2012324631 | E71: 0.2036226705 | F71: 0.2060668062 | G71: 0.2085664711 | H71: 0.211127335 | I71: 0.2137499524 | J71: 0.2164442054 | K71: 0.2192147505 | L71: 0.222064836 | M71: 0.2249890669 | N71: 0.2279694579 | O71: 0.2310392837 | P71: 0.2342025969 | Q71: 0.2374638754 | R71: 0.2408276845 | S71: 0.2442972264 | T71: 0.2478319543 | U71: 0.2514373576 | V71: 0.255140474 | W71: 0.2589697646 | X71: 0.2629318377 | Y71: 0.2670277781 | Z71: 0.2712610503 | AA71: 0.2756197031 | AB71: 0.2801173988 | AC71: 0.2847474847 | AD71: 0.2895401131 | AE71: 0.2945214162 | AF71: 0.2996927797 | AG71: 0.3050482736 | AH71: 0.3106285065 | AI71: 0.3164353492 | AJ71: 0.3224557321 | AK71: 0.3286733902 | AL71: 0.3351226123 | AM71: 0.3418490956 | AN71: 0.3488715601 | AO71: 0.3561893444 | AP71: 0.3638249651 | AQ71: 0.3718396248 | AR71: 0.3802008248 | AS71: 0.3889827623 | AT71: 0.398176702 | AU71: 0.407854563 | AV71: 0.4178437686 | AW71: 0.4283972529 | AX71: 0.4396170089 | AY71: 0.4515621643 | AZ71: 0.4642218445 | BA71: 0.4777310772 | BB71: 0.4917903472 | BC71: 0.5066475784 | BD71: 0.5221298398 | BE71: 0.5383352788 | BF71: 0.5553551295 | BG71: 0.5737822801 | BH71: 0.5935732965 | BI71: 0.6147461435 | BJ71: 0.6378023306 | BK71: 0.6624591853 | BL71: 0.6892259694 | BM71: 0.7182872699 | BN71: 0.7498147079 | BO71: 0.7839326483 | BP71: 0.8190162456 | BQ71: 0.8569515264 | BR71: 0.8978354523 | BS71: 0.9360664395 | BT71: 0.9691205757 | BU71: 0.9888441374 | BV71: 0.9989775488 | BW71: 1 | BX71: 1 | BY71: 1 | BZ71: 1 | CA71: 1 | CB71: 1 | CC71: 1 | CD71: 1
A72: 4.375 | B72: 0.19682587 | C72: 0.199101748 | D72: 0.2014340515 | E72: 0.2038169511 | F72: 0.2062607687 | G72: 0.2087701546 | H72: 0.2113398201 | I72: 0.2139653482 | J72: 0.2166625928 | K72: 0.2194362138 | L72: 0.2222865359 | M72: 0.2252027068 | N72: 0.2281862395 | O72: 0.2312593008 | P72: 0.2344259476 | Q72: 0.2376906623 | R72: 0.2410580149 | S72: 0.2445329031 | T72: 0.2480853969 | U72: 0.2516951264 | V72: 0.2554025389 | W72: 0.2592362712 | X72: 0.2632029393 | Y72: 0.2673036359 | Z72: 0.2715418341 | AA72: 0.2759055921 | AB72: 0.2803879905 | AC72: 0.2850070773 | AD72: 0.2898046978 | AE72: 0.2947911889 | AF72: 0.2999679479 | AG72: 0.3053290574 | AH72: 0.31091514 | AI72: 0.3167071718 | AJ72: 0.3227120999 | AK72: 0.328935455 | AL72: 0.3353906333 | AM72: 0.3421268709 | AN72: 0.3491435608 | AO72: 0.3564607735 | AP72: 0.3641165409 | AQ72: 0.3721420074 | AR72: 0.3805370264 | AS72: 0.3893356944 | AT72: 0.3985716577 | AU72: 0.4082163565 | AV72: 0.4181906192 | AW72: 0.4287546142 | AX72: 0.4399855377 | AY72: 0.4519423653 | AZ72: 0.4646149418 | BA72: 0.4781356465 | BB72: 0.4921764249 | BC72: 0.5070049493 | BD72: 0.5224322224 | BE72: 0.5386497567 | BF72: 0.5556827106 | BG72: 0.5741241039 | BH72: 0.5939753278 | BI72: 0.6151673192 | BJ72: 0.6383133739 | BK72: 0.6629764186 | BL72: 0.689771938 | BM72: 0.7187497373 | BN72: 0.7502445485 | BO72: 0.7842602294 | BP72: 0.8192970294 | BQ72: 0.8573295046 | BR72: 0.898359269 | BS72: 0.9366918216 | BT72: 0.9696119474 | BU72: 0.9891717185 | BV72: 0.9991003917 | BW72: 1 | BX72: 1 | BY72: 1 | BZ72: 1 | CA72: 1 | CB72: 1 | CC72: 1 | CD72: 1
A73: 4.4375 | B73: 0.1970224187 | C73: 0.1993007846 | D73: 0.2016251558 | E73: 0.2040083946 | F73: 0.2064547312 | G73: 0.2089667033 | H73: 0.2115469293 | I73: 0.214180744 | J73: 0.2168809802 | K73: 0.2196566745 | L73: 0.2224971237 | M73: 0.2254163467 | N73: 0.2284030211 | O73: 0.231479318 | P73: 0.2346492984 | Q73: 0.2379174493 | R73: 0.2412883454 | S73: 0.2447668896 | T73: 0.2483231574 | U73: 0.2519424587 | V73: 0.2556646038 | W73: 0.2595027779 | X73: 0.2634740409 | Y73: 0.2675794937 | Z73: 0.2718226179 | AA73: 0.2761858245 | AB73: 0.2806427758 | AC73: 0.2852666699 | AD73: 0.2900692826 | AE73: 0.2950609616 | AF73: 0.300243116 | AG73: 0.3056098412 | AH73: 0.3111827473 | AI73: 0.3169600308 | AJ73: 0.3229684677 | AK73: 0.3291975199 | AL73: 0.3356586542 | AM73: 0.342378999 | AN73: 0.349381586 | AO73: 0.3567027696 | AP73: 0.3643762144 | AQ73: 0.3724296508 | AR73: 0.3808490974 | AS73: 0.3896809826 | AT73: 0.3989265373 | AU73: 0.4085195356 | AV73: 0.4185165141 | AW73: 0.4291020048 | AX73: 0.4403540664 | AY73: 0.4522910806 | AZ73: 0.4649808303 | BA73: 0.4785084112 | BB73: 0.4925483048 | BC73: 0.5073325304 | BD73: 0.5227152443 | BE73: 0.5389400569 | BF73: 0.5560102917 | BG73: 0.5744659276 | BH73: 0.5943373922 | BI73: 0.6155884949 | BJ73: 0.6387994239 | BK73: 0.663493652 | BL73: 0.6902875046 | BM73: 0.7191699522 | BN73: 0.7506130772 | BO73: 0.7845878105 | BP73: 0.8195778132 | BQ73: 0.8577074828 | BR73: 0.8988506406 | BS73: 0.9373172038 | BT73: 0.970103319 | BU73: 0.9894992996 | BV73: 0.9992232346 | BW73: 1 | BX73: 1 | BY73: 1 | BZ73: 1 | CA73: 1 | CB73: 1 | CC73: 1 | CD73: 1
A74: 4.5 | B74: 0.1972189674 | C74: 0.1994891329 | D74: 0.2018141449 | E74: 0.2041998381 | F74: 0.2066486937 | G74: 0.2091632519 | H74: 0.2117461341 | I74: 0.2143913752 | J74: 0.2170993677 | K74: 0.2198642963 | L74: 0.2227077116 | M74: 0.2256299865 | N74: 0.2286198027 | O74: 0.2316993352 | P74: 0.2348726491 | Q74: 0.2381442362 | R74: 0.2415186759 | S74: 0.2450008761 | T74: 0.2485609179 | U74: 0.2521841169 | V74: 0.2559174285 | W74: 0.2597692846 | X74: 0.2637451425 | Y74: 0.2678553515 | Z74: 0.2721034017 | AA74: 0.2764382406 | AB74: 0.2808975611 | AC74: 0.2855262625 | AD74: 0.2903338673 | AE74: 0.2953307343 | AF74: 0.3005182841 | AG74: 0.3058848202 | AH74: 0.3114452983 | AI74: 0.317210944 | AJ74: 0.3232248356 | AK74: 0.3294595848 | AL74: 0.3359236773 | AM74: 0.3426303985 | AN74: 0.3496155725 | AO74: 0.3569424631 | AP74: 0.3646219003 | AQ74: 0.3726827242 | AR74: 0.381138637 | AS74: 0.3900144549 | AT74: 0.3992814168 | AU74: 0.4088003195 | AV74: 0.4188216735 | AW74: 0.429429586 | AX74: 0.4406936096 | AY74: 0.4526223047 | AZ74: 0.465335954 | BA74: 0.4788529453 | BB74: 0.4928992845 | BC74: 0.5076601115 | BD74: 0.522979829 | BE74: 0.539215225 | BF74: 0.5563378728 | BG74: 0.574782151 | BH74: 0.5946947534 | BI74: 0.6160096706 | BJ74: 0.6392416584 | BK74: 0.6640108853 | BL74: 0.6907788762 | BM74: 0.7195746112 | BN74: 0.750981606 | BO74: 0.7849153917 | BP74: 0.819858597 | BQ74: 0.858085461 | BR74: 0.8993420123 | BS74: 0.9379425859 | BT74: 0.9705946907 | BU74: 0.9898268807 | BV74: 0.9993460775 | BW74: 1 | BX74: 1 | BY74: 1 | BZ74: 1 | CA74: 1 | CB74: 1 | CC74: 1 | CD74: 1
A75: 4.5625 | B75: 0.1974046907 | C75: 0.1996757297 | D75: 0.202003134 | E75: 0.2043912816 | F75: 0.2068426562 | G75: 0.2093598006 | H75: 0.2119453388 | I75: 0.2145933088 | J75: 0.2173008399 | K75: 0.2200719181 | L75: 0.2229182995 | M75: 0.2258436264 | N75: 0.2288365843 | O75: 0.2319193523 | P75: 0.2350959999 | Q75: 0.2383710231 | R75: 0.2417490063 | S75: 0.2452348626 | T75: 0.2487986784 | U75: 0.2524257751 | V75: 0.2561631143 | W75: 0.2600278054 | X75: 0.2640162441 | Y75: 0.2681312093 | Z75: 0.272368721 | AA75: 0.2766883935 | AB75: 0.2811523465 | AC75: 0.2857858551 | AD75: 0.2905984521 | AE75: 0.2956005069 | AF75: 0.3007934523 | AG75: 0.3061455481 | AH75: 0.3116909841 | AI75: 0.3174618572 | AJ75: 0.3234812034 | AK75: 0.3297216497 | AL75: 0.3361693632 | AM75: 0.3428607189 | AN75: 0.349849559 | AO75: 0.3571821566 | AP75: 0.3648675861 | AQ75: 0.3729347097 | AR75: 0.3813972536 | AS75: 0.3903066218 | AT75: 0.3995738803 | AU75: 0.4090795602 | AV75: 0.4191107157 | AW75: 0.4297381137 | AX75: 0.4410164003 | AY75: 0.4529393186 | AZ75: 0.4656635351 | BA75: 0.4791918223 | BB75: 0.4932204296 | BC75: 0.5079569531 | BD75: 0.5232444138 | BE75: 0.5394903931 | BF75: 0.5566654539 | BG75: 0.5750812468 | BH75: 0.5950087136 | BI75: 0.6164308463 | BJ75: 0.6396838929 | BK75: 0.6645133198 | BL75: 0.6912702479 | BM75: 0.7199792703 | BN75: 0.7513501347 | BO75: 0.7851841446 | BP75: 0.8201393808 | BQ75: 0.8584634393 | BR75: 0.899833384 | BS75: 0.938567968 | BT75: 0.9710860624 | BU75: 0.9901544618 | BV75: 0.9994689204 | BW75: 1 | BX75: 1 | BY75: 1 | BZ75: 1 | CA75: 1 | CB75: 1 | CC75: 1 | CD75: 1
A76: 4.625 | B76: 0.1975889551 | C76: 0.1998623265 | D76: 0.2021921231 | E76: 0.2045827251 | F76: 0.2070366187 | G76: 0.2095563493 | H76: 0.2121445435 | I76: 0.2147844685 | J76: 0.2174919289 | K76: 0.2202760588 | L76: 0.2231288873 | M76: 0.2260572662 | N76: 0.229053366 | O76: 0.2321393695 | P76: 0.2353193507 | Q76: 0.23859781 | R76: 0.2419793368 | S76: 0.2454688491 | T76: 0.2490364389 | U76: 0.2526674333 | V76: 0.2564088001 | W76: 0.2602776554 | X76: 0.2642806648 | Y76: 0.2683993797 | Z76: 0.2726305458 | AA76: 0.2769385463 | AB76: 0.2814071318 | AC76: 0.2860454476 | AD76: 0.2908630368 | AE76: 0.2958702796 | AF76: 0.3010558533 | AG76: 0.3063973336 | AH76: 0.3119366699 | AI76: 0.3177127704 | AJ76: 0.3237375712 | AK76: 0.329977154 | AL76: 0.336415049 | AM76: 0.3430892638 | AN76: 0.3500835455 | AO76: 0.3574218501 | AP76: 0.3651132719 | AQ76: 0.3731866951 | AR76: 0.3816558703 | AS76: 0.3905865923 | AT76: 0.3997938751 | AU76: 0.4093322656 | AV76: 0.4193830551 | AW76: 0.4300329347 | AX76: 0.4412978361 | AY76: 0.4532556596 | AZ76: 0.4659911162 | BA76: 0.4795306993 | BB76: 0.4935012134 | BC76: 0.5082179679 | BD76: 0.5235089985 | BE76: 0.5397655613 | BF76: 0.5569930351 | BG76: 0.5753803426 | BH76: 0.5953214046 | BI76: 0.6168520221 | BJ76: 0.6401261274 | BK76: 0.6649788298 | BL76: 0.6917616196 | BM76: 0.7203834643 | BN76: 0.7517186635 | BO76: 0.7854462095 | BP76: 0.8204201647 | BQ76: 0.8588414175 | BR76: 0.9003247556 | BS76: 0.9391933501 | BT76: 0.971577434 | BU76: 0.9904820429 | BV76: 0.9995917633 | BW76: 1 | BX76: 1 | BY76: 1 | BZ76: 1 | CA76: 1 | CB76: 1 | CC76: 1 | CD76: 1
A77: 4.6875 | B77: 0.1977732195 | C77: 0.2000489234 | D77: 0.2023811122 | E77: 0.2047741686 | F77: 0.2072305812 | G77: 0.2097528979 | H77: 0.212334927 | I77: 0.2149729398 | J77: 0.2176830179 | K77: 0.2204698392 | L77: 0.2233366715 | M77: 0.2262709061 | N77: 0.2292701476 | O77: 0.2323593867 | P77: 0.2355427014 | Q77: 0.238824597 | R77: 0.2422096673 | S77: 0.2457028356 | T77: 0.2492741993 | U77: 0.2529090915 | V77: 0.256654486 | W77: 0.2605275054 | X77: 0.2645346443 | Y77: 0.2686526791 | Z77: 0.2728762316 | AA77: 0.2771886992 | AB77: 0.2816619171 | AC77: 0.2863050402 | AD77: 0.2911276216 | AE77: 0.2961398685 | AF77: 0.3013113665 | AG77: 0.3066380054 | AH77: 0.3121823558 | AI77: 0.3179636836 | AJ77: 0.323993939 | AK77: 0.3302173801 | AL77: 0.336638831 | AM77: 0.3433178088 | AN77: 0.350317532 | AO77: 0.3576615436 | AP77: 0.3653589578 | AQ77: 0.3734386806 | AR77: 0.381914487 | AS77: 0.3908394023 | AT77: 0.4000122626 | AU77: 0.4095725138 | AV77: 0.419643193 | AW77: 0.4303009556 | AX77: 0.4415551548 | AY77: 0.4535364943 | AZ77: 0.466312065 | BA77: 0.4798387291 | BB77: 0.4937819972 | BC77: 0.5084727532 | BD77: 0.5237425045 | BE77: 0.5400407294 | BF77: 0.5573197985 | BG77: 0.5756794384 | BH77: 0.5956340957 | BI77: 0.6172275139 | BJ77: 0.6405683619 | BK77: 0.6654212001 | BL77: 0.6922529912 | BM77: 0.7207303149 | BN77: 0.7520871922 | BO77: 0.7856658203 | BP77: 0.8207009485 | BQ77: 0.8592193957 | BR77: 0.9008161273 | BS77: 0.9398099142 | BT77: 0.9720688057 | BU77: 0.990809624 | BV77: 0.9997146063 | BW77: 1 | BX77: 1 | BY77: 1 | BZ77: 1 | CA77: 1 | CB77: 1 | CC77: 1 | CD77: 1
A78: 4.75 | B78: 0.1979487647 | C78: 0.2002311125 | D78: 0.2025701013 | E78: 0.2049656121 | F78: 0.2074245438 | G78: 0.2099425259 | H78: 0.2125208514 | I78: 0.2151614111 | J78: 0.2178741069 | K78: 0.2206636195 | L78: 0.2235332201 | M78: 0.2264824454 | N78: 0.2294869292 | O78: 0.2325794038 | P78: 0.2357660522 | Q78: 0.2390513839 | R78: 0.2424399977 | S78: 0.2459368221 | T78: 0.2495119598 | U78: 0.2531507497 | V78: 0.2569001718 | W78: 0.2607773554 | X78: 0.2647718583 | Y78: 0.2688940547 | Z78: 0.2731180265 | AA78: 0.277438852 | AB78: 0.2819167024 | AC78: 0.2865646328 | AD78: 0.2913922063 | AE78: 0.2963903717 | AF78: 0.3015528169 | AG78: 0.3068786773 | AH78: 0.3124280416 | AI78: 0.3182145968 | AJ78: 0.3242403272 | AK78: 0.3304567645 | AL78: 0.3368621818 | AM78: 0.3435463538 | AN78: 0.3505515185 | AO78: 0.3579012371 | AP78: 0.3656046436 | AQ78: 0.3736906661 | AR78: 0.3821731037 | AS78: 0.391078448 | AT78: 0.4002144238 | AU78: 0.4097971408 | AV78: 0.419903331 | AW78: 0.4305452154 | AX78: 0.4418008407 | AY78: 0.4537901055 | AZ78: 0.4665853019 | BA78: 0.4801248477 | BB78: 0.494062781 | BC78: 0.5087157517 | BD78: 0.5239692914 | BE78: 0.5403125355 | BF78: 0.5576064319 | BG78: 0.5759785342 | BH78: 0.5959467867 | BI78: 0.6176018923 | BJ78: 0.6409924335 | BK78: 0.6658349867 | BL78: 0.6927443629 | BM78: 0.7210771655 | BN78: 0.752455721 | BO78: 0.7858623689 | BP78: 0.8209817323 | BQ78: 0.8595973739 | BR78: 0.9013074989 | BS78: 0.9402957796 | BT78: 0.9725601774 | BU78: 0.9911372052 | BV78: 0.9998374492 | BW78: 1 | BX78: 1 | BY78: 1 | BZ78: 1 | CA78: 1 | CB78: 1 | CC78: 1 | CD78: 1
A79: 4.8125 | B79: 0.1981207448 | C79: 0.2004052696 | D79: 0.2027465121 | E79: 0.2051488636 | F79: 0.2076134338 | G79: 0.2101259713 | H79: 0.2127067758 | I79: 0.2153498825 | J79: 0.2180651959 | K79: 0.2208573999 | L79: 0.2237297688 | M79: 0.2266818426 | N79: 0.2297023375 | O79: 0.232799421 | P79: 0.2359894029 | Q79: 0.2392781708 | R79: 0.2426703282 | S79: 0.2461708087 | T79: 0.2497497203 | U79: 0.2533924079 | V79: 0.2571458577 | W79: 0.261017625 | X79: 0.2650090722 | Y79: 0.2691354303 | Z79: 0.2733461633 | AA79: 0.2776866056 | AB79: 0.2821714877 | AC79: 0.2868242254 | AD79: 0.2916498249 | AE79: 0.2966408749 | AF79: 0.3017886753 | AG79: 0.3071193491 | AH79: 0.3126737274 | AI79: 0.31846551 | AJ79: 0.324475331 | AK79: 0.3306751519 | AL79: 0.3370855325 | AM79: 0.3437748987 | AN79: 0.350785505 | AO79: 0.3581409305 | AP79: 0.3658503294 | AQ79: 0.3739426516 | AR79: 0.3824255338 | AS79: 0.3912804961 | AT79: 0.4004055128 | AU79: 0.4100217679 | AV79: 0.4201361486 | AW79: 0.4307834562 | AX79: 0.4420465265 | AY79: 0.4540437167 | AZ79: 0.4668473668 | BA79: 0.4803583666 | BB79: 0.4943239213 | BC79: 0.5089341392 | BD79: 0.5241960783 | BE79: 0.5405483939 | BF79: 0.5578930654 | BG79: 0.57627763 | BH79: 0.5962594778 | BI79: 0.6179641023 | BJ79: 0.6413855308 | BK79: 0.6662487734 | BL79: 0.6931836634 | BM79: 0.7214240161 | BN79: 0.7527703978 | BO79: 0.7860589176 | BP79: 0.8212625161 | BQ79: 0.8599496799 | BR79: 0.9017988706 | BS79: 0.9407424811 | BT79: 0.973051549 | BU79: 0.9914284662 | BV79: 0.9999602921 | BW79: 1 | BX79: 1 | BY79: 1 | BZ79: 1 | CA79: 1 | CB79: 1 | CC79: 1 | CD79: 1
A80: 4.875 | B80: 0.1982927248 | C80: 0.2005794266 | D80: 0.202922902 | E80: 0.2053275442 | F80: 0.2077944655 | G80: 0.2103094167 | H80: 0.2128927003 | I80: 0.2155383538 | J80: 0.2182562848 | K80: 0.2210511803 | L80: 0.2239263175 | M80: 0.2268812398 | N80: 0.229904667 | O80: 0.2330188193 | P80: 0.2362127537 | Q80: 0.2395049577 | R80: 0.2429006587 | S80: 0.2464047952 | T80: 0.2499874808 | U80: 0.2536340661 | V80: 0.2573892534 | W80: 0.2612508183 | X80: 0.2652462861 | Y80: 0.2693768058 | Z80: 0.2735743002 | AA80: 0.2779188904 | AB80: 0.2824254288 | AC80: 0.287083818 | AD80: 0.2918955107 | AE80: 0.2968723941 | AF80: 0.3020245337 | AG80: 0.3073600209 | AH80: 0.3129194133 | AI80: 0.3187041473 | AJ80: 0.3247082755 | AK80: 0.3308935393 | AL80: 0.3373088833 | AM80: 0.3440034437 | AN80: 0.3510194915 | AO80: 0.358380624 | AP80: 0.3660960153 | AQ80: 0.374194637 | AR80: 0.3826582888 | AS80: 0.3914664205 | AT80: 0.4005966018 | AU80: 0.4102259663 | AV80: 0.4203642923 | AW80: 0.4310084561 | AX80: 0.4422922123 | AY80: 0.4542973279 | AZ80: 0.4671094317 | BA80: 0.4805616928 | BB80: 0.4945696071 | BC80: 0.5091525266 | BD80: 0.5244228652 | BE80: 0.5407842523 | BF80: 0.5581796989 | BG80: 0.5765767258 | BH80: 0.5965721689 | BI80: 0.6182916834 | BJ80: 0.6417762591 | BK80: 0.6666625601 | BL80: 0.6936054876 | BM80: 0.7217708666 | BN80: 0.7530775051 | BO80: 0.7862554663 | BP80: 0.8215432999 | BQ80: 0.8602520624 | BR80: 0.9022676147 | BS80: 0.9411891826 | BT80: 0.9735429207 | BU80: 0.9915409996 | BV80: 1 | BW80: 1 | BX80: 1 | BY80: 1 | BZ80: 1 | CA80: 1 | CB80: 1 | CC80: 1 | CD80: 1
A81: 4.9375 | B81: 0.1984647049 | C81: 0.2007535837 | D81: 0.2030992918 | E81: 0.2055062248 | F81: 0.2079754972 | G81: 0.2104928622 | H81: 0.2130786247 | I81: 0.2157268251 | J81: 0.2184473738 | K81: 0.2212449607 | L81: 0.2241228662 | M81: 0.227080637 | N81: 0.2301069965 | O81: 0.2332241686 | P81: 0.2364361045 | Q81: 0.2397317447 | R81: 0.2431309892 | S81: 0.2466387817 | T81: 0.2502252413 | U81: 0.2538757243 | V81: 0.2576185602 | W81: 0.2614840117 | X81: 0.2654835 | Y81: 0.2696071232 | Z81: 0.273802437 | AA81: 0.2781511752 | AB81: 0.2826620151 | AC81: 0.2873299179 | AD81: 0.2921363788 | AE81: 0.2971036278 | AF81: 0.3022603921 | AG81: 0.3076006928 | AH81: 0.3131650991 | AI81: 0.318934151 | AJ81: 0.3249219154 | AK81: 0.3311119268 | AL81: 0.337532234 | AM81: 0.3442319886 | AN81: 0.351253478 | AO81: 0.3586203175 | AP81: 0.3663417011 | AQ81: 0.3744466225 | AR81: 0.3828910438 | AS81: 0.3916523449 | AT81: 0.4007876908 | AU81: 0.410422515 | AV81: 0.4205666218 | AW81: 0.4312169168 | AX81: 0.4425378982 | AY81: 0.454550939 | AZ81: 0.4673714966 | BA81: 0.480765019 | BB81: 0.4948014451 | BC81: 0.509370914 | BD81: 0.5246496522 | BE81: 0.5410201107 | BF81: 0.5584663324 | BG81: 0.5768758216 | BH81: 0.5968848599 | BI81: 0.6186192645 | BJ81: 0.6421202193 | BK81: 0.6670763467 | BL81: 0.693910095 | BM81: 0.7221177172 | BN81: 0.7533846124 | BO81: 0.7864520149 | BP81: 0.8218240837 | BQ81: 0.860554445 | BR81: 0.9026770911 | BS81: 0.9416358841 | BT81: 0.9740342923 | BU81: 0.9916501933 | BV81: 1 | BW81: 1 | BX81: 1 | BY81: 1 | BZ81: 1 | CA81: 1 | CB81: 1 | CC81: 1 | CD81: 1
A82: 5 | B82: 0.198636685 | C82: 0.2009277407 | D82: 0.2032756816 | E82: 0.2056849054 | F82: 0.2081565288 | G82: 0.2106763076 | H82: 0.2132645491 | I82: 0.2159152964 | J82: 0.2186384628 | K82: 0.221438741 | L82: 0.2243194148 | M82: 0.2272800342 | N82: 0.230309326 | O82: 0.233429518 | P82: 0.2366447298 | Q82: 0.2399585316 | R82: 0.2433613196 | S82: 0.2468727682 | T82: 0.2504630018 | U82: 0.2541060332 | V82: 0.257847867 | W82: 0.261717205 | X82: 0.2657207139 | Y82: 0.2698312576 | Z82: 0.2740305739 | AA82: 0.27838346 | AB82: 0.2828970265 | AC82: 0.2875532244 | AD82: 0.2923631657 | AE82: 0.2973348616 | AF82: 0.3024962505 | AG82: 0.3078413646 | AH82: 0.3133967959 | AI82: 0.3191609911 | AJ82: 0.3251355552 | AK82: 0.3313303142 | AL82: 0.3377555848 | AM82: 0.3444605336 | AN82: 0.3514874645 | AO82: 0.358860011 | AP82: 0.3665873869 | AQ82: 0.3746734938 | AR82: 0.3831237988 | AS82: 0.3918382693 | AT82: 0.4009787797 | AU82: 0.4106190637 | AV82: 0.4207440955 | AW82: 0.4314253775 | AX82: 0.4427546545 | AY82: 0.4548045502 | AZ82: 0.4676335615 | BA82: 0.4809683452 | BB82: 0.4950120329 | BC82: 0.5095893014 | BD82: 0.5248764391 | BE82: 0.5412559691 | BF82: 0.5587212046 | BG82: 0.5771749174 | BH82: 0.597197551 | BI82: 0.6189468456 | BJ82: 0.6424641794 | BK82: 0.6674901334 | BL82: 0.6941311548 | BM82: 0.7224320556 | BN82: 0.7536449858 | BO82: 0.7866485636 | BP82: 0.8221048675 | BQ82: 0.8608568276 | BR82: 0.9030865675 | BS82: 0.9420825856 | BT82: 0.974525664 | BU82: 0.991759387 | BV82: 1 | BW82: 1 | BX82: 1 | BY82: 1 | BZ82: 1 | CA82: 1 | CB82: 1 | CC82: 1 | CD82: 1
